Workbook

Sheet Datu_ievade
J1: Elektrostacijas veids | K1: OI sākuma gads | L1: Mēnesis | M1: Atbalsta noteikumi
B2: Komersanta nosaukums | J2: Biogāze | K2: 2006 | L2: 1 | M2: 221 | O2: Jā
B3: Elektrostacijas adrese | J3: Biomasa | K3: 2007 | L3: 2 | M3: 262 | O3: Nē
B4: Elektrostacijas veids | C4: VES | F4: =IF($C$4=$J$5,"Minimum efficiency of the power plant for the calculation of Natural resources tax"," ") ->  | G4: 0.75 | J4: Dabasgāze | K4: 2008 | L4: 3
B5: Līgumā ar publisko tirgotāju norādītā stacijas uzstādītā elektriskā jauda (MW) | F5: =IF($C$4=$J$5,"Water drop, m"," ") ->  | G5: 3.5 | J5: HES | K5: 2009 | L5: 4
B6: =IF(OR($C$4=$J$2,$C$4=$J$3,$C$4=$J$4),"Stacijas uzstādītā neto siltuma jauda (MW)"," ") ->  | C6: 1.2 | D6: Poligongāze? | E6: Nē | F6: Balansēšanas pienākums (Jā/Nē) | G6: Nē | J6: VES | K6: 2010 | L6: 5
B7: Stacijai šobrīd piemērojamie atbalsta MK noteikumi | C7: 262 | K7: 2011 | L7: 6
K8: 2012 | L8: 7
B9: Obligātā iepirkuma sākuma datums | C9: Gads | D9: Mēnesis | K9: 2013 | L9: 8
K10: 2014 | L10: 9
B11: Obligātā iepirkuma beigu datums | C11: Gads | D11: Mēnesis | K11: 2015 | L11: 10
C12: =IF(AND($C$7=262,$D$10=1),$C$10+19,IF($C$7=262,$C$10+20,IF(AND($C$7=221,$D$10=1),$C$10+9,$C$10+10))) -> 20 | D12: =IF($D$10=1,12,$D$10-1) -> -1 | K12: 2016 | L12: 11
K13: 2017 | L13: 12
B14: Fondu atbalsts investīcijām (EUR) | K14: 2018
B15: Gads, kurā saņemts investīciju atbalsts no fondiem | K15: 2019
B16: AST pieslēguma izbūves investīcijas (EUR) | K16: 2020
K17: 2021
K18: 2022
K19: 2023
K20: 2024
K21: 2025
K22: 2026
K23: 2027
K24: 2028
K25: 2029
K26: 2030

Sheet VES
A1: Vēja elektrostacijas
A2: Komersanta nosaukums | B2: =IF(Datu_ievade!$C$4=Datu_ievade!$J$6,Datu_ievade!$C$2," ") -> 0 | Q2: Stacijai piemērojamās līmeņatzīmes | QD2: -1
A3: Elektrostacijas adrese | B3: =IF(Datu_ievade!$C$4=Datu_ievade!$J$6,Datu_ievade!$C$3," ") -> 0 | QD3: 0
A4: Atbalsta noteikumi | C4: =IF(Datu_ievade!$C$4=Datu_ievade!$J$6,Datu_ievade!$C$7," ") -> 262 | Q4: Bāzes elektroenerģijas cena (Periodā no 07.2009-) | AQ4: Īpatnējās inv. | BD4: Darba stundu sk. | BQ4: Darba slodzes | CD4: Ekspluatācijas un pārējās darbības izmaksas | CQ4: k koeficients | DD4: Balansēšanas izdevumi | QD4: 20
A5: Atbalsta perioda sākums (gads un mēnesis) | B5: =IF(Datu_ievade!$C$4=Datu_ievade!$J$6,Datu_ievade!$C$10,0) -> 0 | C5: =IF(Datu_ievade!$C$4=Datu_ievade!$J$6,Datu_ievade!$D$10,0) -> 0 | Q5: 1-10.gads | AD5: 11.-20.gads | AQ5: EUR/kWe | BD5: h | BQ5: sk. | CD5: EUR/MWh | DD5: % | QD5: 11
A6: Atbalsta perioda beigas (gads un mēnesis) | B6: =IF(Datu_ievade!$C$4=Datu_ievade!$J$6,Datu_ievade!$C$12,0) -> 20 | C6: =IF(Datu_ievade!$C$4=Datu_ievade!$J$6,Datu_ievade!$D$12,0) -> -1 | Q6: =IF(AND($C$7<=$B$61,$C$11="Nē"),BD61,BD62) -> 147 | AD6: =Q6*0.6 -> 88.2 | AQ6: =IF($C$7<=$B$61,$D$61,IF(AND($C$7>$A$62,$C$7<=$B$62),$D$62,$D$63)) -> 2150 | BD6: =IF($C$7<=$B$61,$C$61,IF(AND($C$7>$A$62,$C$7<=$B$62),$C$62,$C$63)) -> 1500 | BQ6: =IF($C$7<=$B$62,$Q$61,$Q$63) -> 0.5 | CD6: =IF($C$7<=$B$61,$AD$61,IF(AND($C$7>$A$62,$C$7<=$B$62),$AD$62,$AD$63)) -> 14 | CQ6: =VLOOKUP($C$7,k_koef!$A$2:$B$22333,2,FALSE) -> 1.24 | DD6: =IF(AND($C$7<=$B$61,$C$11="Nē"),AQ61,IF(AND($C$7<=$B$61,$C$11="Jā"),10%,IF(AND($C$7>$A$62,$C$7<=$B$62),$AQ$62,$AQ$63))) -> 0 | DE6: jānoskaidro no kura brīža balansēšanas izd.ir spēkā | QD6: 21 | QE6: Pēdējā gada aprēķins (20 vai 21 atkarībā no kura mēneša sākās stacijas OI iepirkums)
A7: Līgumā ar publisko tirgotāju norādītā stacijas uzstādītā elektriskā jauda (MW) | B7: MW | C7: =IF(Datu_ievade!$C$4=Datu_ievade!$J$6,Datu_ievade!$C$5,0) -> 0
A8: Investīcijas kopā | B8: EUR | C8: =$C$7*$AQ$6*1000 -> 0
A9: Investīcijas pieslēgumam AST | B9: EUR | C9: =IF(Datu_ievade!$C$4=Datu_ievade!$J$6,Datu_ievade!$C$16,0) -> 0
A10: Subsīdijas no fondiem | B10: EUR | C10: =IF(Datu_ievade!$C$4=Datu_ievade!$J$6,Datu_ievade!$C$14,0) -> 0 | D10: =IF(Datu_ievade!$C$4=Datu_ievade!$J$6,Datu_ievade!$C$15,0) -> 0 | E10: =IF(Datu_ievade!$C$4=Datu_ievade!$J$6,Datu_ievade!$C$14,0) -> 0 | F10: =IF(Datu_ievade!$C$4=Datu_ievade!$J$6,Datu_ievade!$C$14,0) -> 0 | G10: =IF(Datu_ievade!$C$4=Datu_ievade!$J$6,Datu_ievade!$C$14,0) -> 0 | H10: =IF(Datu_ievade!$C$4=Datu_ievade!$J$6,Datu_ievade!$C$14,0) -> 0 | I10: =IF(Datu_ievade!$C$4=Datu_ievade!$J$6,Datu_ievade!$C$14,0) -> 0 | J10: =IF(Datu_ievade!$C$4=Datu_ievade!$J$6,Datu_ievade!$C$14,0) -> 0 | K10: =IF(Datu_ievade!$C$4=Datu_ievade!$J$6,Datu_ievade!$C$14,0) -> 0 | L10: =IF(Datu_ievade!$C$4=Datu_ievade!$J$6,Datu_ievade!$C$14,0) -> 0 | M10: =IF(Datu_ievade!$C$4=Datu_ievade!$J$6,Datu_ievade!$C$14,0) -> 0 | N10: =IF(Datu_ievade!$C$4=Datu_ievade!$J$6,Datu_ievade!$C$14,0) -> 0 | O10: =IF(Datu_ievade!$C$4=Datu_ievade!$J$6,Datu_ievade!$C$14,0) -> 0 | P10: =IF(Datu_ievade!$C$4=Datu_ievade!$J$6,Datu_ievade!$C$14,0) -> 0
A11: Balansēšana saskaņā ar 55.punktu? | B11: Jā/Nē | C11: =IF(Datu_ievade!$C$4=Datu_ievade!$J$6,Datu_ievade!$G$6,0) -> Nē
A14: IRR aprēķins (pirms pārkompensācijas koeficienta)
A15: Gads | C15: 2006 | D15: =C15+1 -> 2007 | E15: 2007 | Q15: =D15+1 -> 2008 | R15: 2008 | AD15: =Q15+1 -> 2009 | AE15: 2009 | AQ15: =AD15+1 -> 2010 | AR15: 2010 | BD15: =AQ15+1 -> 2011 | BE15: 2011 | BQ15: 2012 | BR15: 2012 | CD15: 2013 | CE15: 2013 | CQ15: 2014 | CR15: 2014 | DD15: 2015 | DE15: 2015 | DQ15: 2016 | DR15: 2016 | ED15: 2017 | EE15: 2017 | EQ15: 2018 | ER15: 2018 | FD15: 2019 | FE15: 2019 | FQ15: 2020 | FR15: 2020 | GD15: 2021 | GE15: 2021 | GQ15: 2022 | GR15: 2022 | HD15: 2023 | HE15: 2023 | HQ15: 2024 | HR15: 2024 | ID15: 2025 | IE15: 2024 | IQ15: 2026 | IR15: 2026 | JD15: 2027 | JE15: 2027 | JQ15: 2028 | JR15: 2028 | KD15: 2029 | KE15: 2029 | KQ15: 2030 | KR15: 2030 | LD15: 2031 | LE15: 2031 | LQ15: 2032 | LR15: 2032 | MD15: 2033 | ME15: 2033 | MQ15: 2034 | MR15: 2034 | ND15: 2035 | NE15: 2035 | NQ15: 2036 | NR15: 2036 | OD15: 2037 | OE15: 2037 | OQ15: 2038 | OR15: 2038 | PD15: 2039 | PE15: 2039 | PQ15: 2040 | PR15: 2040
A16: Projekta gads | C16: =IF(C15-$B$5<-1," ",IF(C15-$B$5=-1,0," ")) ->  | D16: =IF(D15-$B$5<-1," ",IF(D15-$B$5=-1,0,IF(AND(D15>=$B$5,D15<$B$6),C16+1,IF(D15=$B$6,IF($C$6=12,$QD$4,IF($C$6<12,$QD$6," "))," ")))) ->  | E16: =D16 ->  | F16: =E16 ->  | Q16: =IF(Q15-$B$5<-1," ",IF(Q15-$B$5=-1,0,IF(AND(Q15>=$B$5,Q15<$B$6),D16+1,IF(Q15=$B$6,IF($C$6=12,$QD$4,IF($C$6<12,$QD$6," "))," ")))) ->  | R16: =Q16 ->  | S16: =R16 ->  | AD16: =IF(AD15-$B$5<-1," ",IF(AD15-$B$5=-1,0,IF(AND(AD15>=$B$5,AD15<$B$6),Q16+1,IF(AD15=$B$6,IF($C$6=12,$QD$4,IF($C$6<12,$QD$6," "))," ")))) ->  | AE16: =AD16 ->  | AF16: =AE16 ->  | AQ16: =IF(AQ15-$B$5<-1," ",IF(AQ15-$B$5=-1,0,IF(AND(AQ15>=$B$5,AQ15<$B$6),AD16+1,IF(AQ15=$B$6,IF($C$6=12,$QD$4,IF($C$6<12,$QD$6," "))," ")))) ->  | AR16: =$AQ$16 ->  | AS16: =$AQ$16 ->  | BD16: =IF(BD15-$B$5<-1," ",IF(BD15-$B$5=-1,0,IF(AND(BD15>=$B$5,BD15<$B$6),AQ16+1,IF(BD15=$B$6,IF($C$6=12,$QD$4,IF($C$6<12,$QD$6," "))," ")))) ->  | BE16: =$BD$16 ->  | BF16: =$BD$16 ->  | BQ16: =IF(BQ15-$B$5<-1," ",IF(BQ15-$B$5=-1,0,IF(AND(BQ15>=$B$5,BQ15<$B$6),BD16+1,IF(BQ15=$B$6,IF($C$6=12,$QD$4,IF($C$6<12,$QD$6," "))," ")))) ->  | BR16: =$BQ$16 ->  | BS16: =$BQ$16 ->  | CD16: =IF(CD15-$B$5<-1," ",IF(CD15-$B$5=-1,0,IF(AND(CD15>=$B$5,CD15<$B$6),BQ16+1,IF(CD15=$B$6,IF($C$6=12,$QD$4,IF($C$6<12,$QD$6," "))," ")))) ->  | CE16: =$CD$16 ->  | CF16: =$CD$16 ->  | CQ16: =IF(CQ15-$B$5<-1," ",IF(CQ15-$B$5=-1,0,IF(AND(CQ15>=$B$5,CQ15<$B$6),CD16+1,IF(CQ15=$B$6,IF($C$6=12,$QD$4,IF($C$6<12,$QD$6," "))," ")))) ->  | CR16: =$CQ$16 ->  | CS16: =$CQ$16 ->  | DD16: =IF(DD15-$B$5<-1," ",IF(DD15-$B$5=-1,0,IF(AND(DD15>=$B$5,DD15<$B$6),CQ16+1,IF(DD15=$B$6,IF($C$6=12,$QD$4,IF($C$6<12,$QD$6," "))," ")))) ->  | DE16: =$DD$16 ->  | DF16: =$DD$16 ->  | DQ16: =IF(DQ15-$B$5<-1," ",IF(DQ15-$B$5=-1,0,IF(AND(DQ15>=$B$5,DQ15<$B$6),DD16+1,IF(DQ15=$B$6,IF($C$6=12,$QD$4,IF($C$6<12,$QD$6," "))," ")))) ->  | DR16: =$DQ$16 ->  | DS16: =$DQ$16 ->  | ED16: =IF(ED15-$B$5<-1," ",IF(ED15-$B$5=-1,0,IF(AND(ED15>=$B$5,ED15<$B$6),DQ16+1,IF(ED15=$B$6,IF($C$6=12,$QD$4,IF($C$6<12,$QD$6," "))," ")))) ->  | EE16: =$ED$16 ->  | EF16: =$ED$16 ->  | EQ16: =IF(EQ15-$B$5<-1," ",IF(EQ15-$B$5=-1,0,IF(AND(EQ15>=$B$5,EQ15<$B$6),ED16+1,IF(EQ15=$B$6,IF($C$6=12,$QD$4,IF($C$6<12,$QD$6," "))," ")))) ->  | ER16: =$EQ$16 ->  | ES16: =$EQ$16 ->  | FD16: =IF(FD15-$B$5<-1," ",IF(FD15-$B$5=-1,0,IF(AND(FD15>=$B$5,FD15<$B$6),EQ16+1,IF(FD15=$B$6,IF($C$6=12,$QD$4,IF($C$6<12,$QD$6," "))," ")))) ->  | FE16: =$FD$16 ->  | FF16: =$FD$16 ->  | FQ16: =IF(FQ15-$B$5<-1," ",IF(FQ15-$B$5=-1,0,IF(AND(FQ15>=$B$5,FQ15<$B$6),FD16+1,IF(FQ15=$B$6,IF($C$6=12,$QD$4,IF($C$6<12,$QD$6," "))," ")))) ->  | FR16: =$FQ$16 ->  | FS16: =$FQ$16 ->  | GD16: =IF(GD15-$B$5<-1," ",IF(GD15-$B$5=-1,0,IF(AND(GD15>=$B$5,GD15<$B$6),FQ16+1,IF(GD15=$B$6,IF($C$6=12,$QD$4,IF($C$6<12,$QD$6," "))," ")))) ->  | GE16: =$GD$16 ->  | GF16: =$GD$16 ->  | GQ16: =IF(GQ15-$B$5<-1," ",IF(GQ15-$B$5=-1,0,IF(AND(GQ15>=$B$5,GQ15<$B$6),GD16+1,IF(GQ15=$B$6,IF($C$6=12,$QD$4,IF($C$6<12,$QD$6," "))," ")))) ->  | GR16: =$GQ$16 ->  | GS16: =$GQ$16 ->  | HD16: =IF(HD15-$B$5<-1," ",IF(HD15-$B$5=-1,0,IF(AND(HD15>=$B$5,HD15<$B$6),GQ16+1,IF(HD15=$B$6,IF($C$6=12,$QD$4,IF($C$6<12,$QD$6," "))," ")))) ->  | HE16: =HD16 ->  | HF16: =HE16 ->  | HQ16: =IF(HQ15-$B$5<-1," ",IF(HQ15-$B$5=-1,0,IF(AND(HQ15>=$B$5,HQ15<$B$6),HD16+1,IF(HQ15=$B$6,IF($C$6=12,$QD$4,IF($C$6<12,$QD$6," "))," ")))) ->  | HR16: =$HQ$16 ->  | HS16: =$HQ$16 ->  | ID16: =IF(ID15-$B$5<-1," ",IF(ID15-$B$5=-1,0,IF(AND(ID15>=$B$5,ID15<$B$6),HQ16+1,IF(ID15=$B$6,IF($C$6=12,$QD$4,IF($C$6<12,$QD$6," "))," ")))) ->  | IE16: =$ID$16 ->  | IF16: =$ID$16 ->  | IQ16: =IF(IQ15-$B$5<-1," ",IF(IQ15-$B$5=-1,0,IF(AND(IQ15>=$B$5,IQ15<$B$6),ID16+1,IF(IQ15=$B$6,IF($C$6=12,$QD$4,IF($C$6<12,$QD$6," "))," ")))) ->  | IR16: =$IQ$16 ->  | IS16: =$IQ$16 ->  | JD16: =IF(JD15-$B$5<-1," ",IF(JD15-$B$5=-1,0,IF(AND(JD15>=$B$5,JD15<$B$6),IQ16+1,IF(JD15=$B$6,IF($C$6=12,$QD$4,IF($C$6<12,$QD$6," "))," ")))) ->  | JE16: =$JD$16 ->  | JF16: =$JD$16 ->  | JQ16: =IF(JQ15-$B$5<-1," ",IF(JQ15-$B$5=-1,0,IF(AND(JQ15>=$B$5,JQ15<$B$6),JD16+1,IF(JQ15=$B$6,IF($C$6=12,$QD$4,IF($C$6<12,$QD$6," "))," ")))) ->  | JR16: =JQ16 ->  | JS16: =JR16 ->  | KD16: =IF(KD15-$B$5<-1," ",IF(KD15-$B$5=-1,0,IF(AND(KD15>=$B$5,KD15<$B$6),JQ16+1,IF(KD15=$B$6,IF($C$6=12,$QD$4,IF($C$6<12,$QD$6," "))," ")))) ->  | KE16: =KD16 ->  | KF16: =KE16 ->  | KQ16: =IF(KQ15-$B$5<-1," ",IF(KQ15-$B$5=-1,0,IF(AND(KQ15>=$B$5,KQ15<$B$6),KD16+1,IF(KQ15=$B$6,IF($C$6=12,$QD$4,IF($C$6<12,$QD$6," "))," ")))) ->  | KR16: =$KQ$16 ->  | KS16: =$KQ$16 ->  | LD16: =IF(LD15-$B$5<-1," ",IF(LD15-$B$5=-1,0,IF(AND(LD15>=$B$5,LD15<$B$6),KQ16+1,IF(LD15=$B$6,IF($C$6=12,$QD$4,IF($C$6<12,$QD$6," "))," ")))) ->  | LE16: =LD16 ->  | LF16: =LE16 ->  | LQ16: =IF(LQ15-$B$5<-1," ",IF(LQ15-$B$5=-1,0,IF(AND(LQ15>=$B$5,LQ15<$B$6),LD16+1,IF(LQ15=$B$6,IF($C$6=12,$QD$4,IF($C$6<12,$QD$6," "))," ")))) ->  | LR16: =LQ16 ->  | LS16: =LR16 ->  | MD16: =IF(MD15-$B$5<-1," ",IF(MD15-$B$5=-1,0,IF(AND(MD15>=$B$5,MD15<$B$6),LQ16+1,IF(MD15=$B$6,IF($C$6=12,$QD$4,IF($C$6<12,$QD$6," "))," ")))) ->  | ME16: =MD16 ->  | MF16: =ME16 ->  | MQ16: =IF(MQ15-$B$5<-1," ",IF(MQ15-$B$5=-1,0,IF(AND(MQ15>=$B$5,MQ15<$B$6),MD16+1,IF(MQ15=$B$6,IF($C$6=12,$QD$4,IF($C$6<12,$QD$6," "))," ")))) ->  | MR16: =MQ16 ->  | MS16: =MR16 ->  | ND16: =IF(ND15-$B$5<-1," ",IF(ND15-$B$5=-1,0,IF(AND(ND15>=$B$5,ND15<$B$6),MQ16+1,IF(ND15=$B$6,IF($C$6=12,$QD$4,IF($C$6<12,$QD$6," "))," ")))) ->  | NE16: =ND16 ->  | NF16: =NE16 ->  | NQ16: =IF(NQ15-$B$5<-1," ",IF(NQ15-$B$5=-1,0,IF(AND(NQ15>=$B$5,NQ15<$B$6),ND16+1,IF(NQ15=$B$6,IF($C$6=12,20,IF($C$6<20,21," "))," ")))) ->  | OD16: =IF(OD15-$B$5<-1," ",IF(OD15-$B$5=-1,0,IF(AND(OD15>=$B$5,OD15<$B$6),NQ16+1,IF(OD15=$B$6,IF($C$6=12,20,IF($C$6<20,21," "))," ")))) ->  | OQ16: =IF(OQ15-$B$5<-1," ",IF(OQ15-$B$5=-1,0,IF(AND(OQ15>=$B$5,OQ15<$B$6),OD16+1,IF(OQ15=$B$6,IF($C$6=12,20,IF($C$6<20,21," "))," ")))) ->  | PD16: =IF(PD15-$B$5<-1," ",IF(PD15-$B$5=-1,0,IF(AND(PD15>=$B$5,PD15<$B$6),OQ16+1,IF(PD15=$B$6,IF($C$6=12,20,IF($C$6<20,21," "))," ")))) ->  | PQ16: =IF(PQ15-$B$5<-1," ",IF(PQ15-$B$5=-1,0,IF(AND(PQ15>=$B$5,PQ15<$B$6),PD16+1,IF(PQ15=$B$6,IF($C$6=12,20,IF($C$6<20,21," "))," ")))) -> 
A17: Mēnesis | C17: =IF(C16=1,0," ") ->  | D17: =IF(Q16=1,0," ") ->  | E17: 1 | F17: 2 | G17: 3 | H17: 4 | I17: 5 | J17: 6 | K17: 7 | L17: 8 | M17: 9 | N17: 10 | O17: 11 | P17: 12 | R17: 1 | S17: 2 | T17: 3 | U17: 4 | V17: 5 | W17: 6 | X17: 7 | Y17: 8 | Z17: 9 | AA17: 10 | AB17: 11 | AC17: 12 | AE17: 1 | AF17: 2 | AG17: 3 | AH17: 4 | AI17: 5 | AJ17: 6 | AK17: 7 | AL17: 8 | AM17: 9 | AN17: 10 | AO17: 11 | AP17: 12 | AR17: 1 | AS17: 2 | AT17: 3 | AU17: 4 | AV17: 5 | AW17: 6 | AX17: 7 | AY17: 8 | AZ17: 9 | BA17: 10 | BB17: 11 | BC17: 12 | BE17: 1 | BF17: 2 | BG17: 3 | BH17: 4 | BI17: 5 | BJ17: 6 | BK17: 7 | BL17: 8 | BM17: 9 | BN17: 10 | BO17: 11 | BP17: 12 | BR17: 1 | BS17: 2 | BT17: 3 | BU17: 4 | BV17: 5 | BW17: 6 | BX17: 7 | BY17: 8 | BZ17: 9 | CA17: 10 | CB17: 11 | CC17: 12 | CE17: 1 | CF17: 2 | CG17: 3 | CH17: 4 | CI17: 5 | CJ17: 6 | CK17: 7 | CL17: 8 | CM17: 9 | CN17: 10 | CO17: 11 | CP17: 12 | CR17: 1 | CS17: 2 | CT17: 3 | CU17: 4 | CV17: 5 | CW17: 6 | CX17: 7 | CY17: 8 | CZ17: 9 | DA17: 10 | DB17: 11 | DC17: 12 | DE17: 1 | DF17: 2 | DG17: 3 | DH17: 4 | DI17: 5 | DJ17: 6 | DK17: 7 | DL17: 8 | DM17: 9 | DN17: 10 | DO17: 11 | DP17: 12 | DR17: 1 | DS17: 2 | DT17: 3 | DU17: 4 | DV17: 5 | DW17: 6 | DX17: 7 | DY17: 8 | DZ17: 9 | EA17: 10 | EB17: 11 | EC17: 12 | EE17: 1 | EF17: 2 | EG17: 3 | EH17: 4 | EI17: 5 | EJ17: 6 | EK17: 7 | EL17: 8 | EM17: 9 | EN17: 10 | EO17: 11 | EP17: 12 | ER17: 1 | ES17: 2 | ET17: 3 | EU17: 4 | EV17: 5 | EW17: 6 | EX17: 7 | EY17: 8 | EZ17: 9 | FA17: 10 | FB17: 11 | FC17: 12 | FE17: 1 | FF17: 2 | FG17: 3 | FH17: 4 | FI17: 5 | FJ17: 6 | FK17: 7 | FL17: 8 | FM17: 9 | FN17: 10 | FO17: 11 | FP17: 12 | FR17: 1 | FS17: 2 | FT17: 3 | FU17: 4 | FV17: 5 | FW17: 6 | FX17: 7 | FY17: 8 | FZ17: 9 | GA17: 10 | GB17: 11 | GC17: 12 | GE17: 1 | GF17: 2 | GG17: 3 | GH17: 4 | GI17: 5 | GJ17: 6 | GK17: 7 | GL17: 8 | GM17: 9 | GN17: 10 | GO17: 11 | GP17: 12 | GR17: 1 | GS17: 2 | GT17: 3 | GU17: 4 | GV17: 5 | GW17: 6 | GX17: 7 | GY17: 8 | GZ17: 9 | HA17: 10 | HB17: 11 | HC17: 12 | HE17: 1 | HF17: 2 | HG17: 3 | HH17: 4 | HI17: 5 | HJ17: 6 | HK17: 7 | HL17: 8 | HM17: 9 | HN17: 10 | HO17: 11 | HP17: 12 | HR17: 1 | HS17: 2 | HT17: 3 | HU17: 4 | HV17: 5 | HW17: 6 | HX17: 7 | HY17: 8 | HZ17: 9 | IA17: 10 | IB17: 11 | IC17: 12 | IE17: 1 | IF17: 2 | IG17: 3 | IH17: 4 | II17: 5 | IJ17: 6 | IK17: 7 | IL17: 8 | IM17: 9 | IN17: 10 | IO17: 11 | IP17: 12 | IR17: 1 | IS17: 2 | IT17: 3 | IU17: 4 | IV17: 5 | IW17: 6 | IX17: 7 | IY17: 8 | IZ17: 9 | JA17: 10 | JB17: 11 | JC17: 12 | JE17: 1 | JF17: 2 | JG17: 3 | JH17: 4 | JI17: 5 | JJ17: 6 | JK17: 7 | JL17: 8 | JM17: 9 | JN17: 10 | JO17: 11 | JP17: 12 | JR17: 1 | JS17: 2 | JT17: 3 | JU17: 4 | JV17: 5 | JW17: 6 | JX17: 7 | JY17: 8 | JZ17: 9 | KA17: 10 | KB17: 11 | KC17: 12 | KE17: 1 | KF17: 2 | KG17: 3 | KH17: 4 | KI17: 5 | KJ17: 6 | KK17: 7 | KL17: 8 | KM17: 9 | KN17: 10 | KO17: 11 | KP17: 12 | KR17: 1 | KS17: 2 | KT17: 3 | KU17: 4 | KV17: 5 | KW17: 6 | KX17: 7 | KY17: 8 | KZ17: 9 | LA17: 10 | LB17: 11 | LC17: 12 | LE17: 1 | LF17: 2 | LG17: 3 | LH17: 4 | LI17: 5 | LJ17: 6 | LK17: 7 | LL17: 8 | LM17: 9 | LN17: 10 | LO17: 11 | LP17: 12 | LR17: 1 | LS17: 2 | LT17: 3 | LU17: 4 | LV17: 5 | LW17: 6 | LX17: 7 | LY17: 8 | LZ17: 9 | MA17: 10 | MB17: 11 | MC17: 12 | ME17: 1 | MF17: 2 | MG17: 3 | MH17: 4 | MI17: 5 | MJ17: 6 | MK17: 7 | ML17: 8 | MM17: 9 | MN17: 10 | MO17: 11 | MP17: 12 | MR17: 1 | MS17: 2 | MT17: 3 | MU17: 4 | MV17: 5 | MW17: 6 | MX17: 7 | MY17: 8 | MZ17: 9 | NA17: 10 | NB17: 11 | NC17: 12 | NE17: 1 | NF17: 2 | NG17: 3 | NH17: 4 | NI17: 5 | NJ17: 6 | NK17: 7 | NL17: 8 | NM17: 9 | NN17: 10 | NO17: 11 | NP17: 12 | NR17: 1 | NS17: 2 | NT17: 3 | NU17: 4 | NV17: 5 | NW17: 6 | NX17: 7 | NY17: 8 | NZ17: 9 | OA17: 10 | OB17: 11 | OC17: 12 | OE17: 1 | OF17: 2 | OG17: 3 | OH17: 4 | OI17: 5 | OJ17: 6 | OK17: 7 | OL17: 8 | OM17: 9 | ON17: 10 | OO17: 11 | OP17: 12 | OR17: 1 | OS17: 2 | OT17: 3 | OU17: 4 | OV17: 5 | OW17: 6 | OX17: 7 | OY17: 8 | OZ17: 9 | PA17: 10 | PB17: 11 | PC17: 12 | PE17: 1 | PF17: 2 | PG17: 3 | PH17: 4 | PI17: 5 | PJ17: 6 | PK17: 7 | PL17: 8 | PM17: 9 | PN17: 10 | PO17: 11 | PP17: 12 | PR17: 1 | PS17: 2 | PT17: 3 | PU17: 4 | PV17: 5 | PW17: 6 | PX17: 7 | PY17: 8 | PZ17: 9 | QA17: 10 | QB17: 11 | QC17: 12
E18: =$D$15&E17 -> 20071 | F18: =$D$15&F17 -> 20072 | G18: 20073 | H18: 20074 | I18: 20075 | J18: 20076 | K18: 20077 | L18: 20078 | M18: 20079 | N18: 200710 | O18: 200711 | P18: 200712 | R18: =$Q$15&R17 -> 20081 | S18: =$Q$15&S17 -> 20082 | T18: 20083 | U18: 20084 | V18: 20085 | W18: 20086 | X18: 20087 | Y18: 20088 | Z18: 20089 | AA18: 200810 | AB18: 200811 | AC18: 200812 | AE18: =$AD$15&AE17 -> 20091 | AF18: =$AD$15&AF17 -> 20092 | AG18: 20093 | AH18: 20094 | AI18: 20095 | AJ18: 20096 | AK18: 20097 | AL18: 20098 | AM18: 20099 | AN18: 200910 | AO18: 200911 | AP18: 200912 | AR18: =$AQ$15&AR17 -> 20101 | AS18: =$AQ$15&AS17 -> 20102 | AT18: 20103 | AU18: 20104 | AV18: 20105 | AW18: 20106 | AX18: 20107 | AY18: 20108 | AZ18: 20109 | BA18: 201010 | BB18: 201011 | BC18: 201012 | BE18: =$BD$15&BE17 -> 20111 | BF18: =$BD$15&BF17 -> 20112 | BG18: 20113 | BH18: 20114 | BI18: 20115 | BJ18: 20116 | BK18: 20117 | BL18: 20118 | BM18: 20119 | BN18: 201110 | BO18: 201111 | BP18: 201112 | BR18: =$BQ$15&BR17 -> 20121 | BS18: =$BQ$15&BS17 -> 20122 | BT18: 20123 | BU18: 20124 | BV18: 20125 | BW18: 20126 | BX18: 20127 | BY18: 20128 | BZ18: 20129 | CA18: 201210 | CB18: 201211 | CC18: 201212 | CE18: =$CD$15&CE17 -> 20131 | CF18: =$CD$15&CF17 -> 20132 | CG18: 20133 | CH18: 20134 | CI18: 20135 | CJ18: 20136 | CK18: 20137 | CL18: 20138 | CM18: 20139 | CN18: 201310 | CO18: 201311 | CP18: 201312 | CR18: =$CQ$15&CR17 -> 20141 | CS18: =$CQ$15&CS17 -> 20142 | CT18: 20143 | CU18: 20144 | CV18: 20145 | CW18: 20146 | CX18: 20147 | CY18: 20148 | CZ18: 20149 | DA18: 201410 | DB18: 201411 | DC18: 201412 | DE18: =$DD$15&DE17 -> 20151 | DF18: =$DD$15&DF17 -> 20152 | DG18: 20153 | DH18: 20154 | DI18: 20155 | DJ18: 20156 | DK18: 20157 | DL18: 20158 | DM18: 20159 | DN18: 201510 | DO18: 201511 | DP18: 201512 | DR18: =$DQ$15&DR17 -> 20161 | DS18: =$DQ$15&DS17 -> 20162 | DT18: 20163 | DU18: 20164 | DV18: 20165 | DW18: 20166 | DX18: 20167 | DY18: 20168 | DZ18: 20169 | EA18: 201610 | EB18: 201611 | EC18: 201612 | EE18: =$ED$15&EE17 -> 20171 | EF18: =$ED$15&EF17 -> 20172 | EG18: 20173 | EH18: 20174 | EI18: 20175 | EJ18: 20176 | EK18: 20177 | EL18: 20178 | EM18: 20179 | EN18: 201710 | EO18: 201711 | EP18: 201712 | ER18: =$EQ$15&ER17 -> 20181 | ES18: =$EQ$15&ES17 -> 20182 | ET18: 20183 | EU18: 20184 | EV18: 20185 | EW18: 20186 | EX18: 20187 | EY18: 20188 | EZ18: 20189 | FA18: 201810 | FB18: 201811 | FC18: 201812 | FE18: =$FD$15&FE17 -> 20191 | FF18: =$FD$15&FF17 -> 20192 | FG18: 20193 | FH18: 20194 | FI18: 20195 | FJ18: 20196 | FK18: 20197 | FL18: 20198 | FM18: 20199 | FN18: 201910 | FO18: 201911 | FP18: 201912 | FR18: =$FQ$15&FR17 -> 20201 | FS18: =$FQ$15&FS17 -> 20202 | FT18: 20203 | FU18: 20204 | FV18: 20205 | FW18: 20206 | FX18: 20207 | FY18: 20208 | FZ18: 20209 | GA18: 202010 | GB18: 202011 | GC18: 202012 | GE18: =$GD$15&GE17 -> 20211 | GF18: =$GD$15&GF17 -> 20212 | GG18: 20213 | GH18: 20214 | GI18: 20215 | GJ18: 20216 | GK18: 20217 | GL18: 20218 | GM18: 20219 | GN18: 202110 | GO18: 202111 | GP18: 202112 | GR18: =$GQ$15&GR17 -> 20221 | GS18: =$GQ$15&GS17 -> 20222 | GT18: 20223 | GU18: 20224 | GV18: 20225 | GW18: 20226 | GX18: 20227 | GY18: 20228 | GZ18: 20229 | HA18: 202210 | HB18: 202211 | HC18: 202212 | HE18: =$HD$15&HE17 -> 20231 | HF18: =$HD$15&HF17 -> 20232 | HG18: 20233 | HH18: 20234 | HI18: 20235 | HJ18: 20236 | HK18: 20237 | HL18: 20238 | HM18: 20239 | HN18: 202310 | HO18: 202311 | HP18: 202312 | HR18: =$HQ$15&HR17 -> 20241 | HS18: =$HQ$15&HS17 -> 20242 | HT18: 20243 | HU18: 20244 | HV18: 20245 | HW18: 20246 | HX18: 20247 | HY18: 20248 | HZ18: 20249 | IA18: 202410 | IB18: 202411 | IC18: 202412 | IE18: =$ID$15&IE17 -> 20251 | IF18: =$ID$15&IF17 -> 20252 | IG18: 20253 | IH18: 20254 | II18: 20255 | IJ18: 20256 | IK18: 20257 | IL18: 20258 | IM18: 20259 | IN18: 202510 | IO18: 202511 | IP18: 202512 | IR18: =$IQ$15&IR17 -> 20261 | IS18: =$IQ$15&IS17 -> 20262 | IT18: 20263 | IU18: 20264 | IV18: 20265 | IW18: 20266 | IX18: 20267 | IY18: 20268 | IZ18: 20269 | JA18: 202610 | JB18: 202611 | JC18: 202612 | JE18: =$JD$15&JE17 -> 20271 | JF18: =$JD$15&JF17 -> 20272 | JG18: 20273 | JH18: 20274 | JI18: 20275 | JJ18: 20276 | JK18: 20277 | JL18: 20278 | JM18: 20279 | JN18: 202710 | JO18: 202711 | JP18: 202712 | JR18: =$JQ$15&JR17 -> 20281 | JS18: =$JQ$15&JS17 -> 20282 | JT18: 20283 | JU18: 20284 | JV18: 20285 | JW18: 20286 | JX18: 20287 | JY18: 20288 | JZ18: 20289 | KA18: 202810 | KB18: 202811 | KC18: 202812 | KE18: =$KD$15&KE17 -> 20291 | KF18: =$KD$15&KF17 -> 20292 | KG18: 20293 | KH18: 20294 | KI18: 20295 | KJ18: 20296 | KK18: 20297 | KL18: 20298 | KM18: 20299 | KN18: 202910 | KO18: 202911 | KP18: 202912 | KR18: =$KQ$15&KR17 -> 20301 | KS18: =$KQ$15&KS17 -> 20302 | KT18: 20303 | KU18: 20304 | KV18: 20305 | KW18: 20306 | KX18: 20307 | KY18: 20308 | KZ18: 20309 | LA18: 203010 | LB18: 203011 | LC18: 203012 | LE18: =$LD$15&LE17 -> 20311 | LF18: =$LD$15&LF17 -> 20312 | LG18: 20313 | LH18: 20314 | LI18: 20315 | LJ18: 20316 | LK18: 20317 | LL18: 20318 | LM18: 20319 | LN18: 203110 | LO18: 203111 | LP18: 203112 | LR18: =$LQ$15&LR17 -> 20321 | LS18: =$LQ$15&LS17 -> 20322 | LT18: 20323 | LU18: 20324 | LV18: 20325 | LW18: 20326 | LX18: 20327 | LY18: 20328 | LZ18: 20329 | MA18: 203210 | MB18: 203211 | MC18: 203212 | ME18: =$MD$15&ME17 -> 20331 | MF18: =$MD$15&MF17 -> 20332 | MG18: 20333 | MH18: 20334 | MI18: 20335 | MJ18: 20336 | MK18: 20337 | ML18: 20338 | MM18: 20339 | MN18: 203310 | MO18: 203311 | MP18: 203312 | MR18: =$MQ$15&MR17 -> 20341 | MS18: =$MQ$15&MS17 -> 20342 | MT18: 20343 | MU18: 20344 | MV18: 20345 | MW18: 20346 | MX18: 20347 | MY18: 20348 | MZ18: 20349 | NA18: 203410 | NB18: 203411 | NC18: 203412 | NE18: =$ND$15&NE17 -> 20351 | NF18: =$ND$15&NF17 -> 20352 | NG18: 20353 | NH18: 20354 | NI18: 20355 | NJ18: 20356 | NK18: 20357 | NL18: 20358 | NM18: 20359 | NN18: 203510 | NO18: 203511 | NP18: 203512 | NR18: =$NQ$15&NR17 -> 20361 | NS18: =$NQ$15&NS17 -> 20362 | NT18: 20363 | NU18: 20364 | NV18: 20365 | NW18: 20366 | NX18: 20367 | NY18: 20368 | NZ18: 20369 | OA18: 203610 | OB18: 203611 | OC18: 203612 | OE18: =$OD$15&OE17 -> 20371 | OF18: =$OD$15&OF17 -> 20372 | OG18: 20373 | OH18: 20374 | OI18: 20375 | OJ18: 20376 | OK18: 20377 | OL18: 20378 | OM18: 20379 | ON18: 203710 | OO18: 203711 | OP18: 203712 | OR18: =$OQ$15&OR17 -> 20381 | OS18: =$OQ$15&OS17 -> 20382 | OT18: 20383 | OU18: 20384 | OV18: 20385 | OW18: 20386 | OX18: 20387 | OY18: 20388 | OZ18: 20389 | PA18: 203810 | PB18: 203811 | PC18: 203812 | PE18: =$PD$15&PE17 -> 20391 | PF18: =$PD$15&PF17 -> 20392 | PG18: 20393 | PH18: 20394 | PI18: 20395 | PJ18: 20396 | PK18: 20397 | PL18: 20398 | PM18: 20399 | PN18: 203910 | PO18: 203911 | PP18: 203912 | PR18: =$PQ$15&PR17 -> 20401 | PS18: =$PQ$15&PS17 -> 20402 | PT18: 20403 | PU18: 20404 | PV18: 20405 | PW18: 20406 | PX18: 20407 | PY18: 20408 | PZ18: 20409 | QA18: 204010 | QB18: 204011 | QC18: 204012
A19: Ieņēmumi kopā | D19: =IF(D22=" "," ",SUM(E19:P19)) ->  | E19: =IF(E22=" "," ",(E20+E23)*(1-E24)) ->  | F19: =IF(F22=" "," ",(F20+F23)*(1-F24)) ->  | Q19: =IF(Q22=" "," ",SUM(R19:AC19)) ->  | R19: =IF(R22=" "," ",(R20+R23)*(1-R24)) ->  | AD19: =IF(AD22=" "," ",SUM(AE19:AP19)) ->  | AE19: =IF(AE22=" "," ",(AE20+AE23)*(1-AE24)) ->  | AQ19: =IF(AQ22=" "," ",SUM(AR19:BC19)) ->  | AR19: =IF(AR22=" "," ",(AR20+AR23)*(1-AR24)) ->  | BD19: =IF(BD22=" "," ",SUM(BE19:BP19)) ->  | BE19: =IF(BE22=" "," ",(BE20+BE23)*(1-BE24)) ->  | BQ19: =IF(BQ22=" "," ",SUM(BR19:CC19)) ->  | BR19: =IF(BR22=" "," ",(BR20+BR23)*(1-BR24)) ->  | CD19: =IF(CD22=" "," ",(CD20*(1-CD24))) ->  | CE19: =IF(CE22=" "," ",(CE20+CE23)*(1-CE24)) ->  | CQ19: =IF(CQ22=" "," ",SUM(CR19:DC19)) ->  | CR19: =IF(CR22=" "," ",(CR20+CR23)*(1-CR24)) ->  | DD19: =IF(DD22=" "," ",SUM(DE19:DP19)) ->  | DE19: =IF(DE22=" "," ",(DE20+DE23)*(1-DE24)) ->  | DQ19: =IF(DQ22=" "," ",SUM(DR19:EC19)) ->  | DR19: =IF(DR22=" "," ",(DR20+DR23)*(1-DR24)) ->  | ED19: =IF(ED22=" "," ",SUM(EE19:EP19)) ->  | EE19: =IF(EE22=" "," ",(EE20+EE23)*(1-EE24)) ->  | EQ19: =IF(EQ22=" "," ",SUM(ER19:FC19)) ->  | ER19: =IF(ER22=" "," ",(ER20+ER23)*(1-ER24)) ->  | FD19: =IF(FD22=" "," ",SUM(FE19:FP19)) ->  | FE19: =IF(FE22=" "," ",(FE20+FE23)*(1-FE24)) ->  | FQ19: =IF(FQ22=" "," ",SUM(FR19:GC19)) ->  | FR19: =IF(FR22=" "," ",(FR20+FR23)*(1-FR24)) ->  | GD19: =IF(GD22=" "," ",SUM(GE19:GP19)) ->  | GE19: =IF(GE22=" "," ",(GE20+GE23)*(1-GE24)) ->  | GQ19: =IF(GQ22=" "," ",SUM(GR19:HC19)) ->  | GR19: =IF(GR22=" "," ",(GR20+GR23)*(1-GR24)) ->  | HD19: =IF(HD22=" "," ",SUM(HE19:HP19)) ->  | HE19: =IF(HE22=" "," ",(HE20+HE23)*(1-HE24)) ->  | HQ19: =IF(HQ22=" "," ",SUM(HR19:IC19)) ->  | HR19: =IF(HR22=" "," ",(HR20+HR23)*(1-HR24)) ->  | ID19: =IF(ID22=" "," ",SUM(IE19:IP19)) ->  | IE19: =IF(IE22=" "," ",(IE20+IE23)*(1-IE24)) ->  | IQ19: =IF(IQ22=" "," ",SUM(IR19:JC19)) ->  | IR19: =IF(IR22=" "," ",(IR20+IR23)*(1-IR24)) ->  | JD19: =IF(JD22=" "," ",SUM(JE19:JP19)) ->  | JE19: =IF(JE22=" "," ",(JE20+JE23)*(1-JE24)) ->  | JQ19: =IF(JQ22=" "," ",(JQ20*(1-JQ24))) ->  | JR19: =IF(JR22=" "," ",(JR20+JR23)*(1-JR24)) ->  | KD19: =IF(KD22=" "," ",(KD20*(1-KD24))) ->  | KE19: =IF(KE22=" "," ",(KE20+KE23)*(1-KE24)) ->  | KQ19: =IF(KQ22=" "," ",(KQ20*(1-KQ24))) ->  | KR19: =IF(KR22=" "," ",(KR20+KR23)*(1-KR24)) ->  | LD19: =IF(LD22=" "," ",(LD20*(1-LD24))) ->  | LE19: =IF(LE22=" "," ",(LE20+LE23)*(1-LE24)) ->  | LQ19: =IF(LQ22=" "," ",(LQ20*(1-LQ24))) ->  | LR19: =IF(LR22=" "," ",(LR20+LR23)*(1-LR24)) ->  | MD19: =IF(MD22=" "," ",(MD20*(1-MD24))) ->  | ME19: =IF(ME22=" "," ",(ME20+ME23)*(1-ME24)) ->  | MQ19: =IF(MQ22=" "," ",(MQ20*(1-MQ24))) ->  | MR19: =IF(MR22=" "," ",(MR20+MR23)*(1-MR24)) ->  | ND19: =IF(ND22=" "," ",(ND20*(1-ND24))) ->  | NE19: =IF(NE22=" "," ",(NE20+NE23)*(1-NE24)) ->  | NQ19: =IF(NQ22=" "," ",(NQ20*(1-NQ24))) ->  | NR19: =IF(NR22=" "," ",(NR20+NR23)*(1-NR24)) ->  | OD19: =IF(OD22=" "," ",(OD20*(1-OD24))) ->  | OE19: =IF(OE22=" "," ",(OE20+OE23)*(1-OE24)) ->  | OQ19: =IF(OQ22=" "," ",(OQ20*(1-OQ24))) ->  | OR19: =IF(OR22=" "," ",(OR20+OR23)*(1-OR24)) ->  | PD19: =IF(PD22=" "," ",(PD20*(1-PD24))) ->  | PE19: =IF(PE22=" "," ",(PE20+PE23)*(1-PE24)) ->  | PQ19: =IF(PQ22=" "," ",(PQ20*(1-PQ24))) ->  | PR19: =IF(PR22=" "," ",(PR20+PR23)*(1-PR24)) -> 
A20: Ieņēmumi no elektroenerģijas pārdošanas OI ietvaros | B20: EUR | D20: =IF(OR(D$16=" ",D$16=0)," ",SUM(E20:P20)) ->  | E20: =IF(OR(E22=" ",E22=0)," ",E21*ROUND(E22,2)) ->  | F20: =IF(OR(F22=" ",F22=0)," ",F21*ROUND(F22,2)) ->  | Q20: =IF(OR(Q$16=" ",Q$16=0)," ",SUM(R20:AC20)) ->  | R20: =IF(OR(R22=" ",R22=0)," ",R21*ROUND(R22,2)) ->  | AD20: =IF(OR(AD$16=" ",AD$16=0)," ",SUM(AE20:AP20)) ->  | AE20: =IF(OR(AE22=" ",AE22=0)," ",AE21*ROUND(AE22,2)) ->  | AQ20: =IF(OR(AQ$16=" ",AQ$16=0)," ",SUM(AR20:BC20)) ->  | AR20: =IF(OR(AR22=" ",AR22=0)," ",AR21*ROUND(AR22,2)) ->  | BD20: =IF(OR(BD$16=" ",BD$16=0)," ",SUM(BE20:BP20)) ->  | BE20: =IF(OR(BE22=" ",BE22=0)," ",BE21*ROUND(BE22,2)) ->  | BQ20: =IF(OR(BQ$16=" ",BQ$16=0)," ",SUM(BR20:CC20)) ->  | BR20: =IF(OR(BR22=" ",BR22=0)," ",BR21*ROUND(BR22,2)) ->  | CD20: =IF(OR(CD$16=" ",CD$16=0)," ",SUM(CE20:CP20)) ->  | CE20: =IF(OR(CE22=" ",CE22=0)," ",CE21*ROUND(CE22,2)) ->  | CQ20: =IF(OR(CQ$16=" ",CQ$16=0)," ",SUM(CR20:DC20)) ->  | CR20: =IF(OR(CR22=" ",CR22=0)," ",CR21*ROUND(CR22,2)) ->  | DD20: =IF(OR(DD$16=" ",DD$16=0)," ",SUM(DE20:DP20)) ->  | DE20: =IF(OR(DE22=" ",DE22=0)," ",DE21*ROUND(DE22,2)) ->  | DQ20: =IF(OR(DQ$16=" ",DQ$16=0)," ",SUM(DR20:EC20)) ->  | DR20: =IF(OR(DR22=" ",DR22=0)," ",DR21*ROUND(DR22,2)) ->  | ED20: =IF(OR(ED$16=" ",ED$16=0)," ",SUM(EE20:EP20)) ->  | EE20: =IF(OR(EE22=" ",EE22=0)," ",EE21*ROUND(EE22,2)) ->  | EQ20: =IF(OR(EQ$16=" ",EQ$16=0)," ",SUM(ER20:FC20)) ->  | ER20: =IF(OR(ER22=" ",ER22=0)," ",ER21*ROUND(ER22,2)) ->  | FD20: =IF(OR(FD$16=" ",FD$16=0)," ",SUM(FE20:FP20)) ->  | FE20: =IF(OR(FE22=" ",FE22=0)," ",FE21*ROUND(FE22,2)) ->  | FQ20: =IF(OR(FQ$16=" ",FQ$16=0)," ",SUM(FR20:GC20)) ->  | FR20: =IF(OR(FR22=" ",FR22=0)," ",FR21*ROUND(FR22,2)) ->  | GD20: =IF(OR(GD$16=" ",GD$16=0)," ",SUM(GE20:GP20)) ->  | GE20: =IF(OR(GE22=" ",GE22=0)," ",GE21*ROUND(GE22,2)) ->  | GQ20: =IF(OR(GQ$16=" ",GQ$16=0)," ",SUM(GR20:HC20)) ->  | GR20: =IF(OR(GR22=" ",GR22=0)," ",GR21*ROUND(GR22,2)) ->  | HD20: =IF(OR(HD$16=" ",HD$16=0)," ",SUM(HE20:HP20)) ->  | HE20: =IF(OR(HE22=" ",HE22=0)," ",HE21*ROUND(HE22,2)) ->  | HQ20: =IF(OR(HQ$16=" ",HQ$16=0)," ",SUM(HR20:IC20)) ->  | HR20: =IF(OR(HR22=" ",HR22=0)," ",HR21*ROUND(HR22,2)) ->  | ID20: =IF(OR(ID$16=" ",ID$16=0)," ",SUM(IE20:IP20)) ->  | IE20: =IF(OR(IE22=" ",IE22=0)," ",IE21*ROUND(IE22,2)) ->  | IQ20: =IF(OR(IQ$16=" ",IQ$16=0)," ",SUM(IR20:JC20)) ->  | IR20: =IF(OR(IR22=" ",IR22=0)," ",IR21*ROUND(IR22,2)) ->  | JD20: =IF(OR(JD$16=" ",JD$16=0)," ",SUM(JE20:JP20)) ->  | JE20: =IF(OR(JE22=" ",JE22=0)," ",JE21*ROUND(JE22,2)) ->  | JQ20: =IF(OR(JQ$16=" ",JQ$16=0)," ",SUM(JR20:KC20)) ->  | JR20: =IF(OR(JR22=" ",JR22=0)," ",JR21*ROUND(JR22,2)) ->  | KD20: =IF(OR(KD$16=" ",KD$16=0)," ",SUM(KE20:KP20)) ->  | KE20: =IF(OR(KE22=" ",KE22=0)," ",KE21*ROUND(KE22,2)) ->  | KQ20: =IF(OR(KQ$16=" ",KQ$16=0)," ",SUM(KR20:LC20)) ->  | KR20: =IF(OR(KR22=" ",KR22=0)," ",KR21*ROUND(KR22,2)) ->  | LD20: =IF(OR(LD$16=" ",LD$16=0)," ",SUM(LE20:LP20)) ->  | LE20: =IF(OR(LE22=" ",LE22=0)," ",LE21*ROUND(LE22,2)) ->  | LQ20: =IF(OR(LQ$16=" ",LQ$16=0)," ",SUM(LR20:MC20)) ->  | LR20: =IF(OR(LR22=" ",LR22=0)," ",LR21*ROUND(LR22,2)) ->  | MD20: =IF(OR(MD$16=" ",MD$16=0)," ",SUM(ME20:MP20)) ->  | ME20: =IF(OR(ME22=" ",ME22=0)," ",ME21*ROUND(ME22,2)) ->  | MQ20: =IF(OR(MQ$16=" ",MQ$16=0)," ",SUM(MR20:NC20)) ->  | MR20: =IF(OR(MR22=" ",MR22=0)," ",MR21*ROUND(MR22,2)) ->  | ND20: =IF(OR(ND$16=" ",ND$16=0)," ",SUM(NE20:NP20)) ->  | NE20: =IF(OR(NE22=" ",NE22=0)," ",NE21*ROUND(NE22,2)) ->  | NQ20: =IF(OR(NQ$16=" ",NQ$16=0)," ",SUM(NR20:OC20)) ->  | NR20: =IF(OR(NR22=" ",NR22=0)," ",NR21*ROUND(NR22,2)) ->  | OD20: =IF(OR(OD$16=" ",OD$16=0)," ",SUM(OE20:OP20)) ->  | OE20: =IF(OR(OE22=" ",OE22=0)," ",OE21*ROUND(OE22,2)) ->  | OQ20: =IF(OR(OQ$16=" ",OQ$16=0)," ",SUM(OR20:PC20)) ->  | OR20: =IF(OR(OR22=" ",OR22=0)," ",OR21*ROUND(OR22,2)) ->  | PD20: =IF(OR(PD$16=" ",PD$16=0)," ",SUM(PE20:PP20)) ->  | PE20: =IF(OR(PE22=" ",PE22=0)," ",PE21*ROUND(PE22,2)) ->  | PQ20: =IF(OR(PQ$16=" ",PQ$16=0)," ",SUM(PR20:QC20)) ->  | PR20: =IF(OR(PR22=" ",PR22=0)," ",PR21*ROUND(PR22,2)) -> 
A21: Pārdotais elektroenerģijas apjoms | B21: MWh | D21: =IF(OR(D$16=" ",D$16=0)," ",SUM(E21:P21)) ->  | E21: =IF(OR(E22=" ",E22=0)," ",$BD$6*$C$7/12) ->  | F21: =IF(OR(F22=" ",F22=0)," ",$BD$6*$C$7/12) ->  | Q21: =IF(OR(Q$16=" ",Q$16=0)," ",SUM(R21:AC21)) ->  | AD21: =IF(OR(AD$16=" ",AD$16=0)," ",SUM(AE21:AP21)) ->  | AE21: =IF(OR(AE22=" ",AE22=0)," ",$BD$6*$C$7/12) ->  | AQ21: =IF(OR(AQ$16=" ",AQ$16=0)," ",SUM(AR21:BC21)) ->  | AR21: =IF(OR(AR22=" ",AR22=0)," ",$BD$6*$C$7/12) ->  | BD21: =IF(OR(BD$16=" ",BD$16=0)," ",SUM(BE21:BP21)) ->  | BE21: =IF(OR(BE22=" ",BE22=0)," ",$BD$6*$C$7/12) ->  | BQ21: =IF(OR(BQ$16=" ",BQ$16=0)," ",SUM(BR21:CC21)) ->  | BR21: =IF(OR(BR22=" ",BR22=0)," ",$BD$6*$C$7/12) ->  | CD21: =IF(OR(CD$16=" ",CD$16=0)," ",SUM(CE21:CP21)) ->  | CE21: =IF(OR(CE22=" ",CE22=0)," ",$BD$6*$C$7/12) ->  | CQ21: =IF(OR(CQ$16=" ",CQ$16=0)," ",SUM(CR21:DC21)) ->  | CR21: =IF(OR(CR22=" ",CR22=0)," ",$BD$6*$C$7/12) ->  | DD21: =IF(OR(DD$16=" ",DD$16=0)," ",SUM(DE21:DP21)) ->  | DE21: =IF(OR(DE22=" ",DE22=0)," ",$BD$6*$C$7/12) ->  | DF21: =IF(OR(DF22=" ",DF22=0)," ",$BD$6*$C$7/12) ->  | DQ21: =IF(OR(DQ$16=" ",DQ$16=0)," ",SUM(DR21:EC21)) ->  | DR21: =IF(OR(DR22=" ",DR22=0)," ",$BD$6*$C$7/12) ->  | DS21: =IF(OR(DS22=" ",DS22=0)," ",$BD$6*$C$7/12) ->  | ED21: =IF(OR(ED$16=" ",ED$16=0)," ",SUM(EE21:EP21)) ->  | EE21: =IF(OR(EE22=" ",EE22=0)," ",$BD$6*$C$7/12) ->  | EF21: =IF(OR(EF22=" ",EF22=0)," ",$BD$6*$C$7/12) ->  | EQ21: =IF(OR(EQ$16=" ",EQ$16=0)," ",SUM(ER21:FC21)) ->  | ER21: =IF(OR(ER22=" ",ER22=0)," ",$BD$6*$C$7/12) ->  | ES21: =IF(OR(ES22=" ",ES22=0)," ",$BD$6*$C$7/12) ->  | FD21: =IF(OR(FD$16=" ",FD$16=0)," ",SUM(FE21:FP21)) ->  | FE21: =IF(OR(FE22=" ",FE22=0)," ",$BD$6*$C$7/12) ->  | FF21: =IF(OR(FF22=" ",FF22=0)," ",$BD$6*$C$7/12) ->  | FQ21: =IF(OR(FQ$16=" ",FQ$16=0)," ",SUM(FR21:GC21)) ->  | FR21: =IF(OR(FR22=" ",FR22=0)," ",$BD$6*$C$7/12) ->  | FS21: =IF(OR(FS22=" ",FS22=0)," ",$BD$6*$C$7/12) ->  | GD21: =IF(OR(GD$16=" ",GD$16=0)," ",SUM(GE21:GP21)) ->  | GE21: =IF(OR(GE22=" ",GE22=0)," ",$BD$6*$C$7/12) ->  | GF21: =IF(OR(GF22=" ",GF22=0)," ",$BD$6*$C$7/12) ->  | GQ21: =IF(OR(GQ$16=" ",GQ$16=0)," ",SUM(GR21:HC21)) ->  | GR21: =IF(OR(GR22=" ",GR22=0)," ",$BD$6*$C$7/12) ->  | GS21: =IF(OR(GS22=" ",GS22=0)," ",$BD$6*$C$7/12) ->  | HD21: =IF(OR(HD$16=" ",HD$16=0)," ",SUM(HE21:HP21)) ->  | HE21: =IF(OR(HE22=" ",HE22=0)," ",$BD$6*$C$7/12) ->  | HF21: =IF(OR(HF22=" ",HF22=0)," ",$BD$6*$C$7/12) ->  | HQ21: =IF(OR(HQ$16=" ",HQ$16=0)," ",SUM(HR21:IC21)) ->  | HR21: =IF(OR(HR22=" ",HR22=0)," ",$BD$6*$C$7/12) ->  | HS21: =IF(OR(HS22=" ",HS22=0)," ",$BD$6*$C$7/12) ->  | ID21: =IF(OR(ID$16=" ",ID$16=0)," ",SUM(IE21:IP21)) ->  | IE21: =IF(OR(IE22=" ",IE22=0)," ",$BD$6*$C$7/12) ->  | IF21: =IF(OR(IF22=" ",IF22=0)," ",$BD$6*$C$7/12) ->  | IQ21: =IF(OR(IQ$16=" ",IQ$16=0)," ",SUM(IR21:JC21)) ->  | IR21: =IF(OR(IR22=" ",IR22=0)," ",$BD$6*$C$7/12) ->  | IS21: =IF(OR(IS22=" ",IS22=0)," ",$BD$6*$C$7/12) ->  | JD21: =IF(OR(JD$16=" ",JD$16=0)," ",SUM(JE21:JP21)) ->  | JE21: =IF(OR(JE22=" ",JE22=0)," ",$BD$6*$C$7/12) ->  | JF21: =IF(OR(JF22=" ",JF22=0)," ",$BD$6*$C$7/12) ->  | JQ21: =IF(OR(JQ$16=" ",JQ$16=0)," ",SUM(JR21:KC21)) ->  | JR21: =IF(OR(JR22=" ",JR22=0)," ",$BD$6*$C$7/12) ->  | JS21: =IF(OR(JS22=" ",JS22=0)," ",$BD$6*$C$7/12) ->  | KD21: =IF(OR(KD$16=" ",KD$16=0)," ",SUM(KE21:KP21)) ->  | KE21: =IF(OR(KE22=" ",KE22=0)," ",$BD$6*$C$7/12) ->  | KF21: =IF(OR(KF22=" ",KF22=0)," ",$BD$6*$C$7/12) ->  | KQ21: =IF(OR(KQ$16=" ",KQ$16=0)," ",SUM(KR21:LC21)) ->  | KR21: =IF(OR(KR22=" ",KR22=0)," ",$BD$6*$C$7/12) ->  | KS21: =IF(OR(KS22=" ",KS22=0)," ",$BD$6*$C$7/12) ->  | LD21: =IF(OR(LD$16=" ",LD$16=0)," ",SUM(LE21:LP21)) ->  | LE21: =IF(OR(LE22=" ",LE22=0)," ",$BD$6*$C$7/12) ->  | LF21: =IF(OR(LF22=" ",LF22=0)," ",$BD$6*$C$7/12) ->  | LQ21: =IF(OR(LQ$16=" ",LQ$16=0)," ",SUM(LR21:MC21)) ->  | LR21: =IF(OR(LR22=" ",LR22=0)," ",$BD$6*$C$7/12) ->  | LS21: =IF(OR(LS22=" ",LS22=0)," ",$BD$6*$C$7/12) ->  | MD21: =IF(OR(MD$16=" ",MD$16=0)," ",SUM(ME21:MP21)) ->  | ME21: =IF(OR(ME22=" ",ME22=0)," ",$BD$6*$C$7/12) ->  | MF21: =IF(OR(MF22=" ",MF22=0)," ",$BD$6*$C$7/12) ->  | MQ21: =IF(OR(MQ$16=" ",MQ$16=0)," ",SUM(MR21:NC21)) ->  | MR21: =IF(OR(MR22=" ",MR22=0)," ",$BD$6*$C$7/12) ->  | MS21: =IF(OR(MS22=" ",MS22=0)," ",$BD$6*$C$7/12) ->  | ND21: =IF(OR(ND$16=" ",ND$16=0)," ",SUM(NE21:NP21)) ->  | NE21: =IF(OR(NE22=" ",NE22=0)," ",$BD$6*$C$7/12) ->  | NF21: =IF(OR(NF22=" ",NF22=0)," ",$BD$6*$C$7/12) ->  | NQ21: =IF(OR(NQ$16=" ",NQ$16=0)," ",SUM(NR21:OC21)) ->  | NR21: =IF(OR(NR22=" ",NR22=0)," ",$BD$6*$C$7/12) ->  | NS21: =IF(OR(NS22=" ",NS22=0)," ",$BD$6*$C$7/12) ->  | OD21: =IF(OR(OD$16=" ",OD$16=0)," ",SUM(OE21:OP21)) ->  | OE21: =IF(OR(OE22=" ",OE22=0)," ",$BD$6*$C$7/12) ->  | OF21: =IF(OR(OF22=" ",OF22=0)," ",$BD$6*$C$7/12) ->  | OQ21: =IF(OR(OQ$16=" ",OQ$16=0)," ",SUM(OR21:PC21)) ->  | OR21: =IF(OR(OR22=" ",OR22=0)," ",$BD$6*$C$7/12) ->  | OS21: =IF(OR(OS22=" ",OS22=0)," ",$BD$6*$C$7/12) ->  | PD21: =IF(OR(PD$16=" ",PD$16=0)," ",SUM(PE21:PP21)) ->  | PE21: =IF(OR(PE22=" ",PE22=0)," ",$BD$6*$C$7/12) ->  | PF21: =IF(OR(PF22=" ",PF22=0)," ",$BD$6*$C$7/12) ->  | PQ21: =IF(OR(PQ$16=" ",PQ$16=0)," ",SUM(PR21:QC21)) ->  | PR21: =IF(OR(PR22=" ",PR22=0)," ",$BD$6*$C$7/12) ->  | PS21: =IF(OR(PS22=" ",PS22=0)," ",$BD$6*$C$7/12) -> 
A22: Elektroenerģijas cena | B22: EUR/MWh | D22: =IF(OR(D$16=" ",D$16=0,D21=0)," ",SUMPRODUCT(E21:P21,E22:P22)/D21) ->  | E22: =IF(AND($AD$15>=$B$5,$AD$15<$B$6),IF($D$16=1,IF(E17>=$C$5,((VLOOKUP(E18,Kurināmais!$A$4:$G$303,5,FALSE)*VLOOKUP($C$7,k_koef!$A$2:$B$17833,2,FALSE))/9.2)*3.5," "),IF($D$16=($QD$4+1),IF(E17<=$C$6,((VLOOKUP(E18,Kurināmais!$A$4:$G$303,5,FALSE)*VLOOKUP($C$7,k_koef!$A$2:$B$17833,2,FALSE))/9.2)*3.5," "),((VLOOKUP(E18,Kurināmais!$A$4:$G$303,5,FALSE)*VLOOKUP($C$7,k_koef!$A$2:$B$17833,2,FALSE))/9.2)*3.5))," ") ->  | F22: =IF(AND($AD$15>=$B$5,$AD$15<$B$6),IF($D$16=1,IF(F17>=$C$5,((VLOOKUP(F18,Kurināmais!$A$4:$G$303,5,FALSE)*VLOOKUP($C$7,k_koef!$A$2:$B$17833,2,FALSE))/9.2)*3.5," "),IF($D$16=($QD$4+1),IF(F17<=$C$6,((VLOOKUP(F18,Kurināmais!$A$4:$G$303,5,FALSE)*VLOOKUP($C$7,k_koef!$A$2:$B$17833,2,FALSE))/9.2)*3.5," "),((VLOOKUP(F18,Kurināmais!$A$4:$G$303,5,FALSE)*VLOOKUP($C$7,k_koef!$A$2:$B$17833,2,FALSE))/9.2)*3.5))," ") ->  | G22: =IF(AND($AD$15>=$B$5,$AD$15<$B$6),IF($D$16=1,IF(G17>=$C$5,((VLOOKUP(G18,Kurināmais!$A$4:$G$303,5,FALSE)*VLOOKUP($C$7,k_koef!$A$2:$B$17833,2,FALSE))/9.2)*3.5," "),IF($D$16=($QD$4+1),IF(G17<=$C$6,((VLOOKUP(G18,Kurināmais!$A$4:$G$303,5,FALSE)*VLOOKUP($C$7,k_koef!$A$2:$B$17833,2,FALSE))/9.2)*3.5," "),((VLOOKUP(G18,Kurināmais!$A$4:$G$303,5,FALSE)*VLOOKUP($C$7,k_koef!$A$2:$B$17833,2,FALSE))/9.2)*3.5))," ") ->  | H22: =IF(AND($AD$15>=$B$5,$AD$15<$B$6),IF($D$16=1,IF(H17>=$C$5,((VLOOKUP(H18,Kurināmais!$A$4:$G$303,5,FALSE)*VLOOKUP($C$7,k_koef!$A$2:$B$17833,2,FALSE))/9.2)*3.5," "),IF($D$16=($QD$4+1),IF(H17<=$C$6,((VLOOKUP(H18,Kurināmais!$A$4:$G$303,5,FALSE)*VLOOKUP($C$7,k_koef!$A$2:$B$17833,2,FALSE))/9.2)*3.5," "),((VLOOKUP(H18,Kurināmais!$A$4:$G$303,5,FALSE)*VLOOKUP($C$7,k_koef!$A$2:$B$17833,2,FALSE))/9.2)*3.5))," ") ->  | I22: =IF(AND($AD$15>=$B$5,$AD$15<$B$6),IF($D$16=1,IF(I17>=$C$5,((VLOOKUP(I18,Kurināmais!$A$4:$G$303,5,FALSE)*VLOOKUP($C$7,k_koef!$A$2:$B$17833,2,FALSE))/9.2)*3.5," "),IF($D$16=($QD$4+1),IF(I17<=$C$6,((VLOOKUP(I18,Kurināmais!$A$4:$G$303,5,FALSE)*VLOOKUP($C$7,k_koef!$A$2:$B$17833,2,FALSE))/9.2)*3.5," "),((VLOOKUP(I18,Kurināmais!$A$4:$G$303,5,FALSE)*VLOOKUP($C$7,k_koef!$A$2:$B$17833,2,FALSE))/9.2)*3.5))," ") ->  | J22: =IF(AND($AD$15>=$B$5,$AD$15<$B$6),IF($D$16=1,IF(J17>=$C$5,((VLOOKUP(J18,Kurināmais!$A$4:$G$303,5,FALSE)*VLOOKUP($C$7,k_koef!$A$2:$B$17833,2,FALSE))/9.2)*3.5," "),IF($D$16=($QD$4+1),IF(J17<=$C$6,((VLOOKUP(J18,Kurināmais!$A$4:$G$303,5,FALSE)*VLOOKUP($C$7,k_koef!$A$2:$B$17833,2,FALSE))/9.2)*3.5," "),((VLOOKUP(J18,Kurināmais!$A$4:$G$303,5,FALSE)*VLOOKUP($C$7,k_koef!$A$2:$B$17833,2,FALSE))/9.2)*3.5))," ") ->  | K22: =IF(AND($AD$15>=$B$5,$AD$15<$B$6),IF($D$16=1,IF(K17>=$C$5,((VLOOKUP(K18,Kurināmais!$A$4:$G$303,5,FALSE)*VLOOKUP($C$7,k_koef!$A$2:$B$17833,2,FALSE))/9.2)*3.5," "),IF($D$16=($QD$4+1),IF(K17<=$C$6,((VLOOKUP(K18,Kurināmais!$A$4:$G$303,5,FALSE)*VLOOKUP($C$7,k_koef!$A$2:$B$17833,2,FALSE))/9.2)*3.5," "),((VLOOKUP(K18,Kurināmais!$A$4:$G$303,5,FALSE)*VLOOKUP($C$7,k_koef!$A$2:$B$17833,2,FALSE))/9.2)*3.5))," ") ->  | L22: =IF(AND($AD$15>=$B$5,$AD$15<$B$6),IF($D$16=1,IF(L17>=$C$5,((VLOOKUP(L18,Kurināmais!$A$4:$G$303,5,FALSE)*VLOOKUP($C$7,k_koef!$A$2:$B$17833,2,FALSE))/9.2)*3.5," "),IF($D$16=($QD$4+1),IF(L17<=$C$6,((VLOOKUP(L18,Kurināmais!$A$4:$G$303,5,FALSE)*VLOOKUP($C$7,k_koef!$A$2:$B$17833,2,FALSE))/9.2)*3.5," "),((VLOOKUP(L18,Kurināmais!$A$4:$G$303,5,FALSE)*VLOOKUP($C$7,k_koef!$A$2:$B$17833,2,FALSE))/9.2)*3.5))," ") ->  | M22: =IF(AND($AD$15>=$B$5,$AD$15<$B$6),IF($D$16=1,IF(M17>=$C$5,((VLOOKUP(M18,Kurināmais!$A$4:$G$303,5,FALSE)*VLOOKUP($C$7,k_koef!$A$2:$B$17833,2,FALSE))/9.2)*3.5," "),IF($D$16=($QD$4+1),IF(M17<=$C$6,((VLOOKUP(M18,Kurināmais!$A$4:$G$303,5,FALSE)*VLOOKUP($C$7,k_koef!$A$2:$B$17833,2,FALSE))/9.2)*3.5," "),((VLOOKUP(M18,Kurināmais!$A$4:$G$303,5,FALSE)*VLOOKUP($C$7,k_koef!$A$2:$B$17833,2,FALSE))/9.2)*3.5))," ") ->  | N22: =IF(AND($AD$15>=$B$5,$AD$15<$B$6),IF($D$16=1,IF(N17>=$C$5,((VLOOKUP(N18,Kurināmais!$A$4:$G$303,5,FALSE)*VLOOKUP($C$7,k_koef!$A$2:$B$17833,2,FALSE))/9.2)*3.5," "),IF($D$16=($QD$4+1),IF(N17<=$C$6,((VLOOKUP(N18,Kurināmais!$A$4:$G$303,5,FALSE)*VLOOKUP($C$7,k_koef!$A$2:$B$17833,2,FALSE))/9.2)*3.5," "),((VLOOKUP(N18,Kurināmais!$A$4:$G$303,5,FALSE)*VLOOKUP($C$7,k_koef!$A$2:$B$17833,2,FALSE))/9.2)*3.5))," ") ->  | O22: =IF(AND($AD$15>=$B$5,$AD$15<$B$6),IF($D$16=1,IF(O17>=$C$5,((VLOOKUP(O18,Kurināmais!$A$4:$G$303,5,FALSE)*VLOOKUP($C$7,k_koef!$A$2:$B$17833,2,FALSE))/9.2)*3.5," "),IF($D$16=($QD$4+1),IF(O17<=$C$6,((VLOOKUP(O18,Kurināmais!$A$4:$G$303,5,FALSE)*VLOOKUP($C$7,k_koef!$A$2:$B$17833,2,FALSE))/9.2)*3.5," "),((VLOOKUP(O18,Kurināmais!$A$4:$G$303,5,FALSE)*VLOOKUP($C$7,k_koef!$A$2:$B$17833,2,FALSE))/9.2)*3.5))," ") ->  | P22: =IF(AND($AD$15>=$B$5,$AD$15<$B$6),IF($D$16=1,IF(P17>=$C$5,((VLOOKUP(P18,Kurināmais!$A$4:$G$303,5,FALSE)*VLOOKUP($C$7,k_koef!$A$2:$B$17833,2,FALSE))/9.2)*3.5," "),IF($D$16=($QD$4+1),IF(P17<=$C$6,((VLOOKUP(P18,Kurināmais!$A$4:$G$303,5,FALSE)*VLOOKUP($C$7,k_koef!$A$2:$B$17833,2,FALSE))/9.2)*3.5," "),((VLOOKUP(P18,Kurināmais!$A$4:$G$303,5,FALSE)*VLOOKUP($C$7,k_koef!$A$2:$B$17833,2,FALSE))/9.2)*3.5))," ") ->  | Q22: =IF(OR(Q$16=" ",Q$16=0,Q21=0)," ",SUMPRODUCT(R21:AC21,R22:AC22)/Q21) ->  | R22: =IF(AND($AD$15>=$B$5,$AD$15<$B$6),IF($Q$16=1,IF(R17>=$C$5,((VLOOKUP(R18,Kurināmais!$A$4:$G$303,5,FALSE)*VLOOKUP($C$7,k_koef!$A$2:$B$17833,2,FALSE))/9.2)*3.5," "),IF($D$16=($QD$4+1),IF(R17<=$C$6,((VLOOKUP(R18,Kurināmais!$A$4:$G$303,5,FALSE)*VLOOKUP($C$7,k_koef!$A$2:$B$17833,2,FALSE))/9.2)*3.5," "),((VLOOKUP(R18,Kurināmais!$A$4:$G$303,5,FALSE)*VLOOKUP($C$7,k_koef!$A$2:$B$17833,2,FALSE))/9.2)*3.5))," ") ->  | S22: =IF(AND($AD$15>=$B$5,$AD$15<$B$6),IF($Q$16=1,IF(S17>=$C$5,((VLOOKUP(S18,Kurināmais!$A$4:$G$303,5,FALSE)*VLOOKUP($C$7,k_koef!$A$2:$B$17833,2,FALSE))/9.2)*3.5," "),IF($D$16=($QD$4+1),IF(S17<=$C$6,((VLOOKUP(S18,Kurināmais!$A$4:$G$303,5,FALSE)*VLOOKUP($C$7,k_koef!$A$2:$B$17833,2,FALSE))/9.2)*3.5," "),((VLOOKUP(S18,Kurināmais!$A$4:$G$303,5,FALSE)*VLOOKUP($C$7,k_koef!$A$2:$B$17833,2,FALSE))/9.2)*3.5))," ") ->  | T22: =IF(AND($AD$15>=$B$5,$AD$15<$B$6),IF($Q$16=1,IF(T17>=$C$5,((VLOOKUP(T18,Kurināmais!$A$4:$G$303,5,FALSE)*VLOOKUP($C$7,k_koef!$A$2:$B$17833,2,FALSE))/9.2)*3.5," "),IF($D$16=($QD$4+1),IF(T17<=$C$6,((VLOOKUP(T18,Kurināmais!$A$4:$G$303,5,FALSE)*VLOOKUP($C$7,k_koef!$A$2:$B$17833,2,FALSE))/9.2)*3.5," "),((VLOOKUP(T18,Kurināmais!$A$4:$G$303,5,FALSE)*VLOOKUP($C$7,k_koef!$A$2:$B$17833,2,FALSE))/9.2)*3.5))," ") ->  | U22: =IF(AND($AD$15>=$B$5,$AD$15<$B$6),IF($Q$16=1,IF(U17>=$C$5,((VLOOKUP(U18,Kurināmais!$A$4:$G$303,5,FALSE)*VLOOKUP($C$7,k_koef!$A$2:$B$17833,2,FALSE))/9.2)*3.5," "),IF($D$16=($QD$4+1),IF(U17<=$C$6,((VLOOKUP(U18,Kurināmais!$A$4:$G$303,5,FALSE)*VLOOKUP($C$7,k_koef!$A$2:$B$17833,2,FALSE))/9.2)*3.5," "),((VLOOKUP(U18,Kurināmais!$A$4:$G$303,5,FALSE)*VLOOKUP($C$7,k_koef!$A$2:$B$17833,2,FALSE))/9.2)*3.5))," ") ->  | V22: =IF(AND($AD$15>=$B$5,$AD$15<$B$6),IF($Q$16=1,IF(V17>=$C$5,((VLOOKUP(V18,Kurināmais!$A$4:$G$303,5,FALSE)*VLOOKUP($C$7,k_koef!$A$2:$B$17833,2,FALSE))/9.2)*3.5," "),IF($D$16=($QD$4+1),IF(V17<=$C$6,((VLOOKUP(V18,Kurināmais!$A$4:$G$303,5,FALSE)*VLOOKUP($C$7,k_koef!$A$2:$B$17833,2,FALSE))/9.2)*3.5," "),((VLOOKUP(V18,Kurināmais!$A$4:$G$303,5,FALSE)*VLOOKUP($C$7,k_koef!$A$2:$B$17833,2,FALSE))/9.2)*3.5))," ") ->  | W22: =IF(AND($AD$15>=$B$5,$AD$15<$B$6),IF($Q$16=1,IF(W17>=$C$5,((VLOOKUP(W18,Kurināmais!$A$4:$G$303,5,FALSE)*VLOOKUP($C$7,k_koef!$A$2:$B$17833,2,FALSE))/9.2)*3.5," "),IF($D$16=($QD$4+1),IF(W17<=$C$6,((VLOOKUP(W18,Kurināmais!$A$4:$G$303,5,FALSE)*VLOOKUP($C$7,k_koef!$A$2:$B$17833,2,FALSE))/9.2)*3.5," "),((VLOOKUP(W18,Kurināmais!$A$4:$G$303,5,FALSE)*VLOOKUP($C$7,k_koef!$A$2:$B$17833,2,FALSE))/9.2)*3.5))," ") ->  | X22: =IF(AND($AD$15>=$B$5,$AD$15<$B$6),IF($Q$16=1,IF(X17>=$C$5,((VLOOKUP(X18,Kurināmais!$A$4:$G$303,5,FALSE)*VLOOKUP($C$7,k_koef!$A$2:$B$17833,2,FALSE))/9.2)*3.5," "),IF($D$16=($QD$4+1),IF(X17<=$C$6,((VLOOKUP(X18,Kurināmais!$A$4:$G$303,5,FALSE)*VLOOKUP($C$7,k_koef!$A$2:$B$17833,2,FALSE))/9.2)*3.5," "),((VLOOKUP(X18,Kurināmais!$A$4:$G$303,5,FALSE)*VLOOKUP($C$7,k_koef!$A$2:$B$17833,2,FALSE))/9.2)*3.5))," ") ->  | Y22: =IF(AND($AD$15>=$B$5,$AD$15<$B$6),IF($Q$16=1,IF(Y17>=$C$5,((VLOOKUP(Y18,Kurināmais!$A$4:$G$303,5,FALSE)*VLOOKUP($C$7,k_koef!$A$2:$B$17833,2,FALSE))/9.2)*3.5," "),IF($D$16=($QD$4+1),IF(Y17<=$C$6,((VLOOKUP(Y18,Kurināmais!$A$4:$G$303,5,FALSE)*VLOOKUP($C$7,k_koef!$A$2:$B$17833,2,FALSE))/9.2)*3.5," "),((VLOOKUP(Y18,Kurināmais!$A$4:$G$303,5,FALSE)*VLOOKUP($C$7,k_koef!$A$2:$B$17833,2,FALSE))/9.2)*3.5))," ") ->  | Z22: =IF(AND($AD$15>=$B$5,$AD$15<$B$6),IF($Q$16=1,IF(Z17>=$C$5,((VLOOKUP(Z18,Kurināmais!$A$4:$G$303,5,FALSE)*VLOOKUP($C$7,k_koef!$A$2:$B$17833,2,FALSE))/9.2)*3.5," "),IF($D$16=($QD$4+1),IF(Z17<=$C$6,((VLOOKUP(Z18,Kurināmais!$A$4:$G$303,5,FALSE)*VLOOKUP($C$7,k_koef!$A$2:$B$17833,2,FALSE))/9.2)*3.5," "),((VLOOKUP(Z18,Kurināmais!$A$4:$G$303,5,FALSE)*VLOOKUP($C$7,k_koef!$A$2:$B$17833,2,FALSE))/9.2)*3.5))," ") ->  | AA22: =IF(AND($AD$15>=$B$5,$AD$15<$B$6),IF($Q$16=1,IF(AA17>=$C$5,((VLOOKUP(AA18,Kurināmais!$A$4:$G$303,5,FALSE)*VLOOKUP($C$7,k_koef!$A$2:$B$17833,2,FALSE))/9.2)*3.5," "),IF($D$16=($QD$4+1),IF(AA17<=$C$6,((VLOOKUP(AA18,Kurināmais!$A$4:$G$303,5,FALSE)*VLOOKUP($C$7,k_koef!$A$2:$B$17833,2,FALSE))/9.2)*3.5," "),((VLOOKUP(AA18,Kurināmais!$A$4:$G$303,5,FALSE)*VLOOKUP($C$7,k_koef!$A$2:$B$17833,2,FALSE))/9.2)*3.5))," ") ->  | AB22: =IF(AND($AD$15>=$B$5,$AD$15<$B$6),IF($Q$16=1,IF(AB17>=$C$5,((VLOOKUP(AB18,Kurināmais!$A$4:$G$303,5,FALSE)*VLOOKUP($C$7,k_koef!$A$2:$B$17833,2,FALSE))/9.2)*3.5," "),IF($D$16=($QD$4+1),IF(AB17<=$C$6,((VLOOKUP(AB18,Kurināmais!$A$4:$G$303,5,FALSE)*VLOOKUP($C$7,k_koef!$A$2:$B$17833,2,FALSE))/9.2)*3.5," "),((VLOOKUP(AB18,Kurināmais!$A$4:$G$303,5,FALSE)*VLOOKUP($C$7,k_koef!$A$2:$B$17833,2,FALSE))/9.2)*3.5))," ") ->  | AC22: =IF(AND($AD$15>=$B$5,$AD$15<$B$6),IF($Q$16=1,IF(AC17>=$C$5,((VLOOKUP(AC18,Kurināmais!$A$4:$G$303,5,FALSE)*VLOOKUP($C$7,k_koef!$A$2:$B$17833,2,FALSE))/9.2)*3.5," "),IF($D$16=($QD$4+1),IF(AC17<=$C$6,((VLOOKUP(AC18,Kurināmais!$A$4:$G$303,5,FALSE)*VLOOKUP($C$7,k_koef!$A$2:$B$17833,2,FALSE))/9.2)*3.5," "),((VLOOKUP(AC18,Kurināmais!$A$4:$G$303,5,FALSE)*VLOOKUP($C$7,k_koef!$A$2:$B$17833,2,FALSE))/9.2)*3.5))," ") ->  | AD22: =IF(OR(AD$16=" ",AD$16=0,AD21=0)," ",SUMPRODUCT(AE21:AP21,AE22:AP22)/AD21) ->  | AE22: =IF(AND($AD$15>=$B$5,$AD$15<$B$6),IF($AD$16=1,IF(AE17>=$C$5,((VLOOKUP(AE18,Kurināmais!$A$4:$G$303,5,FALSE)*VLOOKUP($C$7,k_koef!$A$2:$B$17833,2,FALSE))/9.2)*3.5," "),IF($D$16=($QD$4+1),IF(AE17<=$C$6,((VLOOKUP(AE18,Kurināmais!$A$4:$G$303,5,FALSE)*VLOOKUP($C$7,k_koef!$A$2:$B$17833,2,FALSE))/9.2)*3.5," "),((VLOOKUP(AE18,Kurināmais!$A$4:$G$303,5,FALSE)*VLOOKUP($C$7,k_koef!$A$2:$B$17833,2,FALSE))/9.2)*3.5))," ") ->  | AF22: =IF(AND($AD$15>=$B$5,$AD$15<$B$6),IF($AD$16=1,IF(AF17>=$C$5,((VLOOKUP(AF18,Kurināmais!$A$4:$G$303,5,FALSE)*VLOOKUP($C$7,k_koef!$A$2:$B$17833,2,FALSE))/9.2)*3.5," "),IF($D$16=($QD$4+1),IF(AF17<=$C$6,((VLOOKUP(AF18,Kurināmais!$A$4:$G$303,5,FALSE)*VLOOKUP($C$7,k_koef!$A$2:$B$17833,2,FALSE))/9.2)*3.5," "),((VLOOKUP(AF18,Kurināmais!$A$4:$G$303,5,FALSE)*VLOOKUP($C$7,k_koef!$A$2:$B$17833,2,FALSE))/9.2)*3.5))," ") ->  | AG22: =IF(AND($AD$15>=$B$5,$AD$15<$B$6),IF($AD$16=1,IF(AG17>=$C$5,((VLOOKUP(AG18,Kurināmais!$A$4:$G$303,5,FALSE)*VLOOKUP($C$7,k_koef!$A$2:$B$17833,2,FALSE))/9.2)*3.5," "),IF($D$16=($QD$4+1),IF(AG17<=$C$6,((VLOOKUP(AG18,Kurināmais!$A$4:$G$303,5,FALSE)*VLOOKUP($C$7,k_koef!$A$2:$B$17833,2,FALSE))/9.2)*3.5," "),((VLOOKUP(AG18,Kurināmais!$A$4:$G$303,5,FALSE)*VLOOKUP($C$7,k_koef!$A$2:$B$17833,2,FALSE))/9.2)*3.5))," ") ->  | AH22: =IF(AND($AD$15>=$B$5,$AD$15<$B$6),IF($AD$16=1,IF(AH17>=$C$5,((176*VLOOKUP($C$7,k_koef!$A$2:$B$17833,2,FALSE))*(1+0.15*0.03*VES!$AD$16))," "),IF($AD$16=($QD$4+1),IF(AH17<=$C$6,((164*VLOOKUP($C$7,k_koef!$A$2:$B$17833,2,FALSE))*(1+0.15*0.03*VES!$AD$16))," "),((164*VLOOKUP($C$7,k_koef!$A$2:$B$17833,2,FALSE))*(1+0.15*0.03*VES!$AD$16))))," ") ->  | AI22: =IF(AND($AD$15>=$B$5,$AD$15<$B$6),IF($AD$16=1,IF(AI17>=$C$5,((176*VLOOKUP($C$7,k_koef!$A$2:$B$17833,2,FALSE))*(1+0.15*0.03*VES!$AD$16))," "),IF($AD$16=($QD$4+1),IF(AI17<=$C$6,((164*VLOOKUP($C$7,k_koef!$A$2:$B$17833,2,FALSE))*(1+0.15*0.03*VES!$AD$16))," "),((164*VLOOKUP($C$7,k_koef!$A$2:$B$17833,2,FALSE))*(1+0.15*0.03*VES!$AD$16))))," ") ->  | AJ22: =IF(AND($AD$15>=$B$5,$AD$15<$B$6),IF($AD$16=1,IF(AJ17>=$C$5,((176*VLOOKUP($C$7,k_koef!$A$2:$B$17833,2,FALSE))*(1+0.15*0.03*VES!$AD$16))," "),IF($AD$16=($QD$4+1),IF(AJ17<=$C$6,((164*VLOOKUP($C$7,k_koef!$A$2:$B$17833,2,FALSE))*(1+0.15*0.03*VES!$AD$16))," "),((164*VLOOKUP($C$7,k_koef!$A$2:$B$17833,2,FALSE))*(1+0.15*0.03*VES!$AD$16))))," ") ->  | AK22: =IF(AND($AD$15>=$B$5,$AD$15<$B$6),IF($AD$16=1,IF(AK17>=$C$5,$Q$6*$CQ$6," "),IF(AND($AD$16>1,$AD$16<=10),$Q$6*$CQ$6,IF($AD$16=11,IF(AK17<$C$5,$Q$6*$CQ$6,$AD$6*$CQ$6),IF($AD$16>11,$AD$6*$CQ$6)))),IF(AND($AD$16=$QD$4,$C$6=12),$CQ$6*$AD$6,IF(AND($AD$16=$QD$4+1,$C$6<12,AK17<=$C$6),$CQ$6*$AD$6," "))) ->  | AL22: =IF(AND($AD$15>=$B$5,$AD$15<$B$6),IF($AD$16=1,IF(AL17>=$C$5,$Q$6*$CQ$6," "),IF(AND($AD$16>1,$AD$16<=10),$Q$6*$CQ$6,IF($AD$16=11,IF(AL17<$C$5,$Q$6*$CQ$6,$AD$6*$CQ$6),IF($AD$16>11,$AD$6*$CQ$6)))),IF(AND($AD$16=$QD$4,$C$6=12),$CQ$6*$AD$6,IF(AND($AD$16=$QD$4+1,$C$6<12,AL17<=$C$6),$CQ$6*$AD$6," "))) ->  | AQ22: =IF(OR(AQ$16=" ",AQ$16=0,AQ21=0)," ",SUMPRODUCT(AR21:BC21,AR22:BC22)/AQ21) ->  | AR22: =IF(AND($AQ$15>=$B$5,$AQ$15<$B$6),IF($AQ$16=1,IF(AR17>=$C$5,$Q$6*$CQ$6," "),IF(AND($AQ$16>1,$AQ$16<=10),$Q$6*$CQ$6,IF($AQ$16=11,IF(AR17<$C$5,$Q$6*$CQ$6,$AD$6*$CQ$6),IF($AQ$16>11,$AD$6*$CQ$6)))),IF(AND($AQ$16=$QD$4,$C$6=12),$CQ$6*$AD$6,IF(AND($AQ$16=$QD$4+1,$C$6<12,AR17<=$C$6),$CQ$6*$AD$6," "))) ->  | AS22: =IF(AND($AQ$15>=$B$5,$AQ$15<$B$6),IF($AQ$16=1,IF(AS17>=$C$5,$Q$6*$CQ$6," "),IF(AND($AQ$16>1,$AQ$16<=10),$Q$6*$CQ$6,IF($AQ$16=11,IF(AS17<$C$5,$Q$6*$CQ$6,$AD$6*$CQ$6),IF($AQ$16>11,$AD$6*$CQ$6)))),IF(AND($AQ$16=$QD$4,$C$6=12),$CQ$6*$AD$6,IF(AND($AQ$16=$QD$4+1,$C$6<12,AS17<=$C$6),$CQ$6*$AD$6," "))) ->  | BD22: =IF(OR(BD$16=" ",BD$16=0,BD21=0)," ",SUMPRODUCT(BE21:BP21,BE22:BP22)/BD21) ->  | BE22: =IF(AND($BD$15>=$B$5,$BD$15<$B$6),IF($BD$16=1,IF(BE17>=$C$5,$Q$6*$CQ$6," "),IF(AND($BD$16>1,$BD$16<=10),$Q$6*$CQ$6,IF($BD$16=11,IF(BE17<$C$5,$Q$6*$CQ$6,$AD$6*$CQ$6),IF($BD$16>11,$AD$6*$CQ$6)))),IF(AND($BD$16=$QD$4,$C$6=12),$CQ$6*$AD$6,IF(AND($BD$16=$QD$4+1,$C$6<12,BE17<=$C$6),$CQ$6*$AD$6," "))) ->  | BF22: =IF(AND($BD$15>=$B$5,$BD$15<$B$6),IF($BD$16=1,IF(BF17>=$C$5,$Q$6*$CQ$6," "),IF(AND($BD$16>1,$BD$16<=10),$Q$6*$CQ$6,IF($BD$16=11,IF(BF17<$C$5,$Q$6*$CQ$6,$AD$6*$CQ$6),IF($BD$16>11,$AD$6*$CQ$6)))),IF(AND($BD$16=$QD$4,$C$6=12),$CQ$6*$AD$6,IF(AND($BD$16=$QD$4+1,$C$6<12,BF17<=$C$6),$CQ$6*$AD$6," "))) ->  | BQ22: =IF(OR(BQ$16=" ",BQ$16=0,BQ21=0)," ",SUMPRODUCT(BR21:CC21,BR22:CC22)/BQ21) ->  | BR22: =IF(AND($BQ$15>=$B$5,$BQ$15<$B$6),IF($BQ$16=1,IF(BR17>=$C$5,$Q$6*$CQ$6," "),IF(AND($BQ$16>1,$BQ$16<=10),$Q$6*$CQ$6,IF($BQ$16=11,IF(BR17<$C$5,$Q$6*$CQ$6,$AD$6*$CQ$6),IF($BQ$16>11,$AD$6*$CQ$6)))),IF(AND($BQ$16=$QD$4,$C$6=12),$CQ$6*$AD$6,IF(AND($BQ$16=$QD$4+1,$C$6<12,BR17<=$C$6),$CQ$6*$AD$6," "))) ->  | BS22: =IF(AND($BQ$15>=$B$5,$BQ$15<$B$6),IF($BQ$16=1,IF(BS17>=$C$5,$Q$6*$CQ$6," "),IF(AND($BQ$16>1,$BQ$16<=10),$Q$6*$CQ$6,IF($BQ$16=11,IF(BS17<$C$5,$Q$6*$CQ$6,$AD$6*$CQ$6),IF($BQ$16>11,$AD$6*$CQ$6)))),IF(AND($BQ$16=$QD$4,$C$6=12),$CQ$6*$AD$6,IF(AND($BQ$16=$QD$4+1,$C$6<12,BS17<=$C$6),$CQ$6*$AD$6," "))) ->  | CD22: =IF(OR(CD$16=" ",CD$16=0,CD21=0)," ",SUMPRODUCT(CE21:CP21,CE22:CP22)/CD21) ->  | CE22: =IF(AND($CD$15>=$B$5,$CD$15<$B$6),IF($CD$16=1,IF(CE17>=$C$5,$Q$6*$CQ$6," "),IF(AND($CD$16>1,$CD$16<=10),$Q$6*$CQ$6,IF($CD$16=11,IF(CE17<$C$5,$Q$6*$CQ$6,$AD$6*$CQ$6),IF($CD$16>11,$AD$6*$CQ$6)))),IF(AND($CD$16=$QD$4,$C$6=12),$CQ$6*$AD$6,IF(AND($CD$16=$QD$4+1,$C$6<12,CE17<=$C$6),$CQ$6*$AD$6," "))) ->  | CF22: =IF(AND($CD$15>=$B$5,$CD$15<$B$6),IF($CD$16=1,IF(CF17>=$C$5,$Q$6*$CQ$6," "),IF(AND($CD$16>1,$CD$16<=10),$Q$6*$CQ$6,IF($CD$16=11,IF(CF17<$C$5,$Q$6*$CQ$6,$AD$6*$CQ$6),IF($CD$16>11,$AD$6*$CQ$6)))),IF(AND($CD$16=$QD$4,$C$6=12),$CQ$6*$AD$6,IF(AND($CD$16=$QD$4+1,$C$6<12,CF17<=$C$6),$CQ$6*$AD$6," "))) ->  | CQ22: =IF(OR(CQ$16=" ",CQ$16=0,CQ21=0)," ",SUMPRODUCT(CR21:DC21,CR22:DC22)/CQ21) ->  | CR22: =IF(AND($CQ$15>=$B$5,$CQ$15<$B$6),IF($CQ$16=1,IF(CR17>=$C$5,$Q$6*$CQ$6," "),IF(AND($CQ$16>1,$CQ$16<=10),$Q$6*$CQ$6,IF($CQ$16=11,IF(CR17<$C$5,$Q$6*$CQ$6,$AD$6*$CQ$6),IF($CQ$16>11,$AD$6*$CQ$6)))),IF(AND($CQ$16=$QD$4,$C$6=12),$CQ$6*$AD$6,IF(AND($CQ$16=$QD$4+1,$C$6<12,CR17<=$C$6),$CQ$6*$AD$6," "))) ->  | CS22: =IF(AND($CQ$15>=$B$5,$CQ$15<$B$6),IF($CQ$16=1,IF(CS17>=$C$5,$Q$6*$CQ$6," "),IF(AND($CQ$16>1,$CQ$16<=10),$Q$6*$CQ$6,IF($CQ$16=11,IF(CS17<$C$5,$Q$6*$CQ$6,$AD$6*$CQ$6),IF($CQ$16>11,$AD$6*$CQ$6)))),IF(AND($CQ$16=$QD$4,$C$6=12),$CQ$6*$AD$6,IF(AND($CQ$16=$QD$4+1,$C$6<12,CS17<=$C$6),$CQ$6*$AD$6," "))) ->  | DD22: =IF(OR(DD$16=" ",DD$16=0,DD21=0)," ",SUMPRODUCT(DE21:DP21,DE22:DP22)/DD21) ->  | DE22: =IF(AND($DD$15>=$B$5,$DD$15<$B$6),IF($DD$16=1,IF(DE17>=$C$5,$Q$6*$CQ$6," "),IF(AND($DD$16>1,$DD$16<=10),$Q$6*$CQ$6,IF($DD$16=11,IF(DE17<$C$5,$Q$6*$CQ$6,$AD$6*$CQ$6),IF($DD$16>11,$AD$6*$CQ$6)))),IF(AND($DD$16=$QD$4,$C$6=12),$CQ$6*$AD$6,IF(AND($DD$16=$QD$4+1,$C$6<12,DE17<=$C$6),$CQ$6*$AD$6," "))) ->  | DF22: =IF(AND($DD$15>=$B$5,$DD$15<$B$6),IF($DD$16=1,IF(DF17>=$C$5,$Q$6*$CQ$6," "),IF(AND($DD$16>1,$DD$16<=10),$Q$6*$CQ$6,IF($DD$16=11,IF(DF17<$C$5,$Q$6*$CQ$6,$AD$6*$CQ$6),IF($DD$16>11,$AD$6*$CQ$6)))),IF(AND($DD$16=$QD$4,$C$6=12),$CQ$6*$AD$6,IF(AND($DD$16=$QD$4+1,$C$6<12,DF17<=$C$6),$CQ$6*$AD$6," "))) ->  | DQ22: =IF(OR(DQ$16=" ",DQ$16=0,DQ21=0)," ",SUMPRODUCT(DR21:EC21,DR22:EC22)/DQ21) ->  | DR22: =IF(AND($DQ$15>=$B$5,$DQ$15<$B$6),IF($DQ$16=1,IF(DR17>=$C$5,$Q$6*$CQ$6," "),IF(AND($DQ$16>1,$DQ$16<=10),$Q$6*$CQ$6,IF($DQ$16=11,IF(DR17<$C$5,$Q$6*$CQ$6,$AD$6*$CQ$6),IF($DQ$16>11,$AD$6*$CQ$6)))),IF(AND($DQ$16=$QD$4,$C$6=12),$CQ$6*$AD$6,IF(AND($DQ$16=$QD$4+1,$C$6<12,DR17<=$C$6),$CQ$6*$AD$6," "))) ->  | DS22: =IF(AND($DQ$15>=$B$5,$DQ$15<$B$6),IF($DQ$16=1,IF(DS17>=$C$5,$Q$6*$CQ$6," "),IF(AND($DQ$16>1,$DQ$16<=10),$Q$6*$CQ$6,IF($DQ$16=11,IF(DS17<$C$5,$Q$6*$CQ$6,$AD$6*$CQ$6),IF($DQ$16>11,$AD$6*$CQ$6)))),IF(AND($DQ$16=$QD$4,$C$6=12),$CQ$6*$AD$6,IF(AND($DQ$16=$QD$4+1,$C$6<12,DS17<=$C$6),$CQ$6*$AD$6," "))) ->  | ED22: =IF(OR(ED$16=" ",ED$16=0,ED21=0)," ",SUMPRODUCT(EE21:EP21,EE22:EP22)/ED21) ->  | EE22: =IF(AND($ED$15>=$B$5,$ED$15<$B$6),IF($ED$16=1,IF(EE17>=$C$5,$Q$6*$CQ$6," "),IF(AND($ED$16>1,$ED$16<=10),$Q$6*$CQ$6,IF($ED$16=11,IF(EE17<$C$5,$Q$6*$CQ$6,$AD$6*$CQ$6),IF($ED$16>11,$AD$6*$CQ$6)))),IF(AND($ED$16=$QD$4,$C$6=12),$CQ$6*$AD$6,IF(AND($ED$16=$QD$4+1,$C$6<12,EE17<=$C$6),$CQ$6*$AD$6," "))) ->  | EF22: =IF(AND($ED$15>=$B$5,$ED$15<$B$6),IF($ED$16=1,IF(EF17>=$C$5,$Q$6*$CQ$6," "),IF(AND($ED$16>1,$ED$16<=10),$Q$6*$CQ$6,IF($ED$16=11,IF(EF17<$C$5,$Q$6*$CQ$6,$AD$6*$CQ$6),IF($ED$16>11,$AD$6*$CQ$6)))),IF(AND($ED$16=$QD$4,$C$6=12),$CQ$6*$AD$6,IF(AND($ED$16=$QD$4+1,$C$6<12,EF17<=$C$6),$CQ$6*$AD$6," "))) ->  | EQ22: =IF(OR(EQ$16=" ",EQ$16=0,EQ21=0)," ",SUMPRODUCT(ER21:FC21,ER22:FC22)/EQ21) ->  | ER22: =IF(AND($EQ$15>=$B$5,$EQ$15<$B$6),IF($EQ$16=1,IF(ER17>=$C$5,$Q$6*$CQ$6," "),IF(AND($EQ$16>1,$EQ$16<=10),$Q$6*$CQ$6,IF($EQ$16=11,IF(ER17<$C$5,$Q$6*$CQ$6,$AD$6*$CQ$6),IF($EQ$16>11,$AD$6*$CQ$6)))),IF(AND($EQ$16=$QD$4,$C$6=12),$CQ$6*$AD$6,IF(AND($EQ$16=$QD$4+1,$C$6<12,ER17<=$C$6),$CQ$6*$AD$6," "))) ->  | ES22: =IF(AND($EQ$15>=$B$5,$EQ$15<$B$6),IF($EQ$16=1,IF(ES17>=$C$5,$Q$6*$CQ$6," "),IF(AND($EQ$16>1,$EQ$16<=10),$Q$6*$CQ$6,IF($EQ$16=11,IF(ES17<$C$5,$Q$6*$CQ$6,$AD$6*$CQ$6),IF($EQ$16>11,$AD$6*$CQ$6)))),IF(AND($EQ$16=$QD$4,$C$6=12),$CQ$6*$AD$6,IF(AND($EQ$16=$QD$4+1,$C$6<12,ES17<=$C$6),$CQ$6*$AD$6," "))) ->  | FD22: =IF(OR(FD$16=" ",FD$16=0,FD21=0)," ",SUMPRODUCT(FE21:FP21,FE22:FP22)/FD21) ->  | FE22: =IF(AND($FD$15>=$B$5,$FD$15<$B$6),IF($FD$16=1,IF(FE17>=$C$5,$Q$6*$CQ$6," "),IF(AND($FD$16>1,$FD$16<=10),$Q$6*$CQ$6,IF($FD$16=11,IF(FE17<$C$5,$Q$6*$CQ$6,$AD$6*$CQ$6),IF($FD$16>11,$AD$6*$CQ$6)))),IF(AND($FD$16=$QD$4,$C$6=12),$CQ$6*$AD$6,IF(AND($FD$16=$QD$4+1,$C$6<12,FE17<=$C$6),$CQ$6*$AD$6," "))) ->  | FF22: =IF(AND($FD$15>=$B$5,$FD$15<$B$6),IF($FD$16=1,IF(FF17>=$C$5,$Q$6*$CQ$6," "),IF(AND($FD$16>1,$FD$16<=10),$Q$6*$CQ$6,IF($FD$16=11,IF(FF17<$C$5,$Q$6*$CQ$6,$AD$6*$CQ$6),IF($FD$16>11,$AD$6*$CQ$6)))),IF(AND($FD$16=$QD$4,$C$6=12),$CQ$6*$AD$6,IF(AND($FD$16=$QD$4+1,$C$6<12,FF17<=$C$6),$CQ$6*$AD$6," "))) ->  | FQ22: =IF(OR(FQ$16=" ",FQ$16=0,FQ21=0)," ",SUMPRODUCT(FR21:GC21,FR22:GC22)/FQ21) ->  | FR22: =IF(AND($FQ$15>=$B$5,$FQ$15<$B$6),IF($FQ$16=1,IF(FR17>=$C$5,$Q$6*$CQ$6," "),IF(AND($FQ$16>1,$FQ$16<=10),$Q$6*$CQ$6,IF($FQ$16=11,IF(FR17<$C$5,$Q$6*$CQ$6,$AD$6*$CQ$6),IF($FQ$16>11,$AD$6*$CQ$6)))),IF(AND($FQ$16=$QD$4,$C$6=12),$CQ$6*$AD$6,IF(AND($FQ$16=$QD$4+1,$C$6<12,FR17<=$C$6),$CQ$6*$AD$6," "))) ->  | FS22: =IF(AND($FQ$15>=$B$5,$FQ$15<$B$6),IF($FQ$16=1,IF(FS17>=$C$5,$Q$6*$CQ$6," "),IF(AND($FQ$16>1,$FQ$16<=10),$Q$6*$CQ$6,IF($FQ$16=11,IF(FS17<$C$5,$Q$6*$CQ$6,$AD$6*$CQ$6),IF($FQ$16>11,$AD$6*$CQ$6)))),IF(AND($FQ$16=$QD$4,$C$6=12),$CQ$6*$AD$6,IF(AND($FQ$16=$QD$4+1,$C$6<12,FS17<=$C$6),$CQ$6*$AD$6," "))) ->  | GD22: =IF(OR(GD$16=" ",GD$16=0,GD21=0)," ",SUMPRODUCT(GE21:GP21,GE22:GP22)/GD21) ->  | GE22: =IF(AND($GD$15>=$B$5,$GD$15<$B$6),IF($GD$16=1,IF(GE17>=$C$5,$Q$6*$CQ$6," "),IF(AND($GD$16>1,$GD$16<=10),$Q$6*$CQ$6,IF($GD$16=11,IF(GE17<$C$5,$Q$6*$CQ$6,$AD$6*$CQ$6),IF($GD$16>11,$AD$6*$CQ$6)))),IF(AND($GD$16=$QD$4,$C$6=12),$CQ$6*$AD$6,IF(AND($GD$16=$QD$4+1,$C$6<12,GE17<=$C$6),$CQ$6*$AD$6," "))) ->  | GF22: =IF(AND($GD$15>=$B$5,$GD$15<$B$6),IF($GD$16=1,IF(GF17>=$C$5,$Q$6*$CQ$6," "),IF(AND($GD$16>1,$GD$16<=10),$Q$6*$CQ$6,IF($GD$16=11,IF(GF17<$C$5,$Q$6*$CQ$6,$AD$6*$CQ$6),IF($GD$16>11,$AD$6*$CQ$6)))),IF(AND($GD$16=$QD$4,$C$6=12),$CQ$6*$AD$6,IF(AND($GD$16=$QD$4+1,$C$6<12,GF17<=$C$6),$CQ$6*$AD$6," "))) ->  | GQ22: =IF(OR(GQ$16=" ",GQ$16=0,GQ21=0)," ",SUMPRODUCT(GR21:HC21,GR22:HC22)/GQ21) ->  | GR22: =IF(AND($GQ$15>=$B$5,$GQ$15<$B$6),IF($GQ$16=1,IF(GR17>=$C$5,$Q$6*$CQ$6," "),IF(AND($GQ$16>1,$GQ$16<=10),$Q$6*$CQ$6,IF($GQ$16=11,IF(GR17<$C$5,$Q$6*$CQ$6,$AD$6*$CQ$6),IF($GQ$16>11,$AD$6*$CQ$6)))),IF(AND($GQ$16=$QD$4,$C$6=12),$CQ$6*$AD$6,IF(AND($GQ$16=$QD$4+1,$C$6<12,GR17<=$C$6),$CQ$6*$AD$6," "))) ->  | GS22: =IF(AND($GQ$15>=$B$5,$GQ$15<$B$6),IF($GQ$16=1,IF(GS17>=$C$5,$Q$6*$CQ$6," "),IF(AND($GQ$16>1,$GQ$16<=10),$Q$6*$CQ$6,IF($GQ$16=11,IF(GS17<$C$5,$Q$6*$CQ$6,$AD$6*$CQ$6),IF($GQ$16>11,$AD$6*$CQ$6)))),IF(AND($GQ$16=$QD$4,$C$6=12),$CQ$6*$AD$6,IF(AND($GQ$16=$QD$4+1,$C$6<12,GS17<=$C$6),$CQ$6*$AD$6," "))) ->  | HD22: =IF(OR(HD$16=" ",HD$16=0,HD21=0)," ",SUMPRODUCT(HE21:HP21,HE22:HP22)/HD21) ->  | HE22: =IF(AND($HD$15>=$B$5,$HD$15<$B$6),IF($HD$16=1,IF(HE17>=$C$5,$Q$6*$CQ$6," "),IF(AND($HD$16>1,$HD$16<=10),$Q$6*$CQ$6,IF($HD$16=11,IF(HE17<$C$5,$Q$6*$CQ$6,$AD$6*$CQ$6),IF($HD$16>11,$AD$6*$CQ$6)))),IF(AND($HD$16=$QD$4,$C$6=12),$CQ$6*$AD$6,IF(AND($HD$16=$QD$4+1,$C$6<12,HE17<=$C$6),$CQ$6*$AD$6," "))) ->  | HF22: =IF(AND($HD$15>=$B$5,$HD$15<$B$6),IF($HD$16=1,IF(HF17>=$C$5,$Q$6*$CQ$6," "),IF(AND($HD$16>1,$HD$16<=10),$Q$6*$CQ$6,IF($HD$16=11,IF(HF17<$C$5,$Q$6*$CQ$6,$AD$6*$CQ$6),IF($HD$16>11,$AD$6*$CQ$6)))),IF(AND($HD$16=$QD$4,$C$6=12),$CQ$6*$AD$6,IF(AND($HD$16=$QD$4+1,$C$6<12,HF17<=$C$6),$CQ$6*$AD$6," "))) ->  | HQ22: =IF(OR(HQ$16=" ",HQ$16=0,HQ21=0)," ",SUMPRODUCT(HR21:IC21,HR22:IC22)/HQ21) ->  | HR22: =IF(AND($HQ$15>=$B$5,$HQ$15<$B$6),IF($HQ$16=1,IF(HR17>=$C$5,$Q$6*$CQ$6," "),IF(AND($HQ$16>1,$HQ$16<=10),$Q$6*$CQ$6,IF($HQ$16=11,IF(HR17<$C$5,$Q$6*$CQ$6,$AD$6*$CQ$6),IF($HQ$16>11,$AD$6*$CQ$6)))),IF(AND($HQ$16=$QD$4,$C$6=12),$CQ$6*$AD$6,IF(AND($HQ$16=$QD$4+1,$C$6<12,HR17<=$C$6),$CQ$6*$AD$6," "))) ->  | HS22: =IF(AND($HQ$15>=$B$5,$HQ$15<$B$6),IF($HQ$16=1,IF(HS17>=$C$5,$Q$6*$CQ$6," "),IF(AND($HQ$16>1,$HQ$16<=10),$Q$6*$CQ$6,IF($HQ$16=11,IF(HS17<$C$5,$Q$6*$CQ$6,$AD$6*$CQ$6),IF($HQ$16>11,$AD$6*$CQ$6)))),IF(AND($HQ$16=$QD$4,$C$6=12),$CQ$6*$AD$6,IF(AND($HQ$16=$QD$4+1,$C$6<12,HS17<=$C$6),$CQ$6*$AD$6," "))) ->  | ID22: =IF(OR(ID$16=" ",ID$16=0,ID21=0)," ",SUMPRODUCT(IE21:IP21,IE22:IP22)/ID21) ->  | IE22: =IF(AND($ID$15>=$B$5,$ID$15<$B$6),IF($ID$16=1,IF(IE17>=$C$5,$Q$6*$CQ$6," "),IF(AND($ID$16>1,$ID$16<=10),$Q$6*$CQ$6,IF($ID$16=11,IF(IE17<$C$5,$Q$6*$CQ$6,$AD$6*$CQ$6),IF($ID$16>11,$AD$6*$CQ$6)))),IF(AND($ID$16=$QD$4,$C$6=12),$CQ$6*$AD$6,IF(AND($ID$16=$QD$4+1,$C$6<12,IE17<=$C$6),$CQ$6*$AD$6," "))) ->  | IF22: =IF(AND($ID$15>=$B$5,$ID$15<$B$6),IF($ID$16=1,IF(IF17>=$C$5,$Q$6*$CQ$6," "),IF(AND($ID$16>1,$ID$16<=10),$Q$6*$CQ$6,IF($ID$16=11,IF(IF17<$C$5,$Q$6*$CQ$6,$AD$6*$CQ$6),IF($ID$16>11,$AD$6*$CQ$6)))),IF(AND($ID$16=$QD$4,$C$6=12),$CQ$6*$AD$6,IF(AND($ID$16=$QD$4+1,$C$6<12,IF17<=$C$6),$CQ$6*$AD$6," "))) ->  | IQ22: =IF(OR(IQ$16=" ",IQ$16=0,IQ21=0)," ",SUMPRODUCT(IR21:JC21,IR22:JC22)/IQ21) ->  | IR22: =IF(AND($IQ$15>=$B$5,$IQ$15<$B$6),IF($IQ$16=1,IF(IR17>=$C$5,$Q$6*$CQ$6," "),IF(AND($IQ$16>1,$IQ$16<=10),$Q$6*$CQ$6,IF($IQ$16=11,IF(IR17<$C$5,$Q$6*$CQ$6,$AD$6*$CQ$6),IF($IQ$16>11,$AD$6*$CQ$6)))),IF(AND($IQ$16=$QD$4,$C$6=12),$CQ$6*$AD$6,IF(AND($IQ$16=$QD$4+1,$C$6<12,IR17<=$C$6),$CQ$6*$AD$6," "))) ->  | JC22: =IF(AND($IQ$15>=$B$5,$IQ$15<$B$6),IF($IQ$16=1,IF(JC17>=$C$5,$Q$6*$CQ$6," "),IF(AND($IQ$16>1,$IQ$16<=10),$Q$6*$CQ$6,IF($IQ$16=11,IF(JC17<$C$5,$Q$6*$CQ$6,$AD$6*$CQ$6),IF($IQ$16>11,$AD$6*$CQ$6)))),IF(AND($IQ$16=$QD$4,$C$6=12),$CQ$6*$AD$6,IF(AND($IQ$16=$QD$4+1,$C$6<12,JC17<=$C$6),$CQ$6*$AD$6," "))) ->  | JD22: =IF(OR(JD$16=" ",JD$16=0,JD21=0)," ",SUMPRODUCT(JE21:JP21,JE22:JP22)/JD21) ->  | JE22: =IF(AND($JD$15>=$B$5,$JD$15<$B$6),IF($JD$16=1,IF(JE17>=$C$5,$Q$6*$CQ$6," "),IF(AND($JD$16>1,$JD$16<=10),$Q$6*$CQ$6,IF($JD$16=11,IF(JE17<$C$5,$Q$6*$CQ$6,$AD$6*$CQ$6),IF($JD$16>11,$AD$6*$CQ$6)))),IF(AND($JD$16=$QD$4,$C$6=12),$CQ$6*$AD$6,IF(AND($JD$16=$QD$4+1,$C$6<12,JE17<=$C$6),$CQ$6*$AD$6," "))) ->  | JF22: =IF(AND($JD$15>=$B$5,$JD$15<$B$6),IF($JD$16=1,IF(JF17>=$C$5,$Q$6*$CQ$6," "),IF(AND($JD$16>1,$JD$16<=10),$Q$6*$CQ$6,IF($JD$16=11,IF(JF17<$C$5,$Q$6*$CQ$6,$AD$6*$CQ$6),IF($JD$16>11,$AD$6*$CQ$6)))),IF(AND($JD$16=$QD$4,$C$6=12),$CQ$6*$AD$6,IF(AND($JD$16=$QD$4+1,$C$6<12,JF17<=$C$6),$CQ$6*$AD$6," "))) ->  | JQ22: =IF(OR(JQ$16=" ",JQ$16=0,JQ21=0)," ",SUMPRODUCT(JR21:KC21,JR22:KC22)/JQ21) ->  | JR22: =IF(AND($JQ$15>=$B$5,$JQ$15<$B$6),IF($JQ$16=1,IF(JR17>=$C$5,$Q$6*$CQ$6," "),IF(AND($JQ$16>1,$JQ$16<=10),$Q$6*$CQ$6,IF($JQ$16=11,IF(JR17<$C$5,$Q$6*$CQ$6,$AD$6*$CQ$6),IF($JQ$16>11,$AD$6*$CQ$6)))),IF(AND($JQ$16=$QD$4,$C$6=12),$CQ$6*$AD$6,IF(AND($JQ$16=$QD$4+1,$C$6<12,JR17<=$C$6),$CQ$6*$AD$6," "))) ->  | JS22: =IF(AND($JQ$15>=$B$5,$JQ$15<$B$6),IF($JQ$16=1,IF(JS17>=$C$5,$Q$6*$CQ$6," "),IF(AND($JQ$16>1,$JQ$16<=10),$Q$6*$CQ$6,IF($JQ$16=11,IF(JS17<$C$5,$Q$6*$CQ$6,$AD$6*$CQ$6),IF($JQ$16>11,$AD$6*$CQ$6)))),IF(AND($JQ$16=$QD$4,$C$6=12),$CQ$6*$AD$6,IF(AND($JQ$16=$QD$4+1,$C$6<12,JS17<=$C$6),$CQ$6*$AD$6," "))) ->  | KD22: =IF(OR(KD$16=" ",KD$16=0,KD21=0)," ",SUMPRODUCT(KE21:KP21,KE22:KP22)/KD21) ->  | KE22: =IF(AND($KD$15>=$B$5,$KD$15<$B$6),IF($KD$16=1,IF(KE17>=$C$5,$Q$6*$CQ$6," "),IF(AND($KD$16>1,$KD$16<=10),$Q$6*$CQ$6,IF($KD$16=11,IF(KE17<$C$5,$Q$6*$CQ$6,$AD$6*$CQ$6),IF($KD$16>11,$AD$6*$CQ$6)))),IF(AND($KD$16=$QD$4,$C$6=12),$CQ$6*$AD$6,IF(AND($KD$16=$QD$4+1,$C$6<12,KE17<=$C$6),$CQ$6*$AD$6," "))) ->  | KF22: =IF(AND($KD$15>=$B$5,$KD$15<$B$6),IF($KD$16=1,IF(KF17>=$C$5,$Q$6*$CQ$6," "),IF(AND($KD$16>1,$KD$16<=10),$Q$6*$CQ$6,IF($KD$16=11,IF(KF17<$C$5,$Q$6*$CQ$6,$AD$6*$CQ$6),IF($KD$16>11,$AD$6*$CQ$6)))),IF(AND($KD$16=$QD$4,$C$6=12),$CQ$6*$AD$6,IF(AND($KD$16=$QD$4+1,$C$6<12,KF17<=$C$6),$CQ$6*$AD$6," "))) ->  | KQ22: =IF(OR(KQ$16=" ",KQ$16=0,KQ21=0)," ",SUMPRODUCT(KR21:LC21,KR22:LC22)/KQ21) ->  | KR22: =IF(AND($KQ$15>=$B$5,$KQ$15<$B$6),IF($KQ$16=1,IF(KR17>=$C$5,$Q$6*$CQ$6," "),IF(AND($KQ$16>1,$KQ$16<=10),$Q$6*$CQ$6,IF($KQ$16=11,IF(KR17<$C$5,$Q$6*$CQ$6,$AD$6*$CQ$6),IF($KQ$16>11,$AD$6*$CQ$6)))),IF(AND($KQ$16=$QD$4,$C$6=12),$CQ$6*$AD$6,IF(AND($KQ$16=$QD$4+1,$C$6<12,KR17<=$C$6),$CQ$6*$AD$6," "))) ->  | KS22: =IF(AND($KQ$15>=$B$5,$KQ$15<$B$6),IF($KQ$16=1,IF(KS17>=$C$5,$Q$6*$CQ$6," "),IF(AND($KQ$16>1,$KQ$16<=10),$Q$6*$CQ$6,IF($KQ$16=11,IF(KS17<$C$5,$Q$6*$CQ$6,$AD$6*$CQ$6),IF($KQ$16>11,$AD$6*$CQ$6)))),IF(AND($KQ$16=$QD$4,$C$6=12),$CQ$6*$AD$6,IF(AND($KQ$16=$QD$4+1,$C$6<12,KS17<=$C$6),$CQ$6*$AD$6," "))) ->  | LD22: =IF(OR(LD$16=" ",LD$16=0,LD21=0)," ",SUMPRODUCT(LE21:LP21,LE22:LP22)/LD21) ->  | LE22: =IF(AND($LD$15>=$B$5,$LD$15<$B$6),IF($LD$16=1,IF(LE17>=$C$5,$Q$6*$CQ$6," "),IF(AND($LD$16>1,$LD$16<=10),$Q$6*$CQ$6,IF($LD$16=11,IF(LE17<$C$5,$Q$6*$CQ$6,$AD$6*$CQ$6),IF($LD$16>11,$AD$6*$CQ$6)))),IF(AND($LD$16=$QD$4,$C$6=12),$CQ$6*$AD$6,IF(AND($LD$16=$QD$4+1,$C$6<12,LE17<=$C$6),$CQ$6*$AD$6," "))) ->  | LF22: =IF(AND($LD$15>=$B$5,$LD$15<$B$6),IF($LD$16=1,IF(LF17>=$C$5,$Q$6*$CQ$6," "),IF(AND($LD$16>1,$LD$16<=10),$Q$6*$CQ$6,IF($LD$16=11,IF(LF17<$C$5,$Q$6*$CQ$6,$AD$6*$CQ$6),IF($LD$16>11,$AD$6*$CQ$6)))),IF(AND($LD$16=$QD$4,$C$6=12),$CQ$6*$AD$6,IF(AND($LD$16=$QD$4+1,$C$6<12,LF17<=$C$6),$CQ$6*$AD$6," "))) ->  | LQ22: =IF(OR(LQ$16=" ",LQ$16=0,LQ21=0)," ",SUMPRODUCT(LR21:MC21,LR22:MC22)/LQ21) ->  | LR22: =IF(AND($LQ$15>=$B$5,$LQ$15<$B$6),IF($LQ$16=1,IF(LR17>=$C$5,$Q$6*$CQ$6," "),IF(AND($LQ$16>1,$LQ$16<=10),$Q$6*$CQ$6,IF($LQ$16=11,IF(LR17<$C$5,$Q$6*$CQ$6,$AD$6*$CQ$6),IF($LQ$16>11,$AD$6*$CQ$6)))),IF(AND($LQ$16=$QD$4,$C$6=12),$CQ$6*$AD$6,IF(AND($LQ$16=$QD$4+1,$C$6<12,LR17<=$C$6),$CQ$6*$AD$6," "))) ->  | LS22: =IF(AND($LQ$15>=$B$5,$LQ$15<$B$6),IF($LQ$16=1,IF(LS17>=$C$5,$Q$6*$CQ$6," "),IF(AND($LQ$16>1,$LQ$16<=10),$Q$6*$CQ$6,IF($LQ$16=11,IF(LS17<$C$5,$Q$6*$CQ$6,$AD$6*$CQ$6),IF($LQ$16>11,$AD$6*$CQ$6)))),IF(AND($LQ$16=$QD$4,$C$6=12),$CQ$6*$AD$6,IF(AND($LQ$16=$QD$4+1,$C$6<12,LS17<=$C$6),$CQ$6*$AD$6," "))) ->  | MD22: =IF(OR(MD$16=" ",MD$16=0,MD21=0)," ",SUMPRODUCT(ME21:MP21,ME22:MP22)/MD21) ->  | ME22: =IF(AND($MD$15>=$B$5,$MD$15<$B$6),IF($MD$16=1,IF(ME17>=$C$5,$Q$6*$CQ$6," "),IF(AND($MD$16>1,$MD$16<=10),$Q$6*$CQ$6,IF($MD$16=11,IF(ME17<$C$5,$Q$6*$CQ$6,$AD$6*$CQ$6),IF($MD$16>11,$AD$6*$CQ$6)))),IF(AND($MD$16=$QD$4,$C$6=12),$CQ$6*$AD$6,IF(AND($MD$16=$QD$4+1,$C$6<12,ME17<=$C$6),$CQ$6*$AD$6," "))) ->  | MF22: =IF(AND($MD$15>=$B$5,$MD$15<$B$6),IF($MD$16=1,IF(MF17>=$C$5,$Q$6*$CQ$6," "),IF(AND($MD$16>1,$MD$16<=10),$Q$6*$CQ$6,IF($MD$16=11,IF(MF17<$C$5,$Q$6*$CQ$6,$AD$6*$CQ$6),IF($MD$16>11,$AD$6*$CQ$6)))),IF(AND($MD$16=$QD$4,$C$6=12),$CQ$6*$AD$6,IF(AND($MD$16=$QD$4+1,$C$6<12,MF17<=$C$6),$CQ$6*$AD$6," "))) ->  | MQ22: =IF(OR(MQ$16=" ",MQ$16=0,MQ21=0)," ",SUMPRODUCT(MR21:NC21,MR22:NC22)/MQ21) ->  | MR22: =IF(AND($MQ$15>=$B$5,$MQ$15<$B$6),IF($MQ$16=1,IF(MR17>=$C$5,$Q$6*$CQ$6," "),IF(AND($MQ$16>1,$MQ$16<=10),$Q$6*$CQ$6,IF($MQ$16=11,IF(MR17<$C$5,$Q$6*$CQ$6,$AD$6*$CQ$6),IF($MQ$16>11,$AD$6*$CQ$6)))),IF(AND($MQ$16=$QD$4,$C$6=12),$CQ$6*$AD$6,IF(AND($MQ$16=$QD$4+1,$C$6<12,MR17<=$C$6),$CQ$6*$AD$6," "))) ->  | MS22: =IF(AND($MQ$15>=$B$5,$MQ$15<$B$6),IF($MQ$16=1,IF(MS17>=$C$5,$Q$6*$CQ$6," "),IF(AND($MQ$16>1,$MQ$16<=10),$Q$6*$CQ$6,IF($MQ$16=11,IF(MS17<$C$5,$Q$6*$CQ$6,$AD$6*$CQ$6),IF($MQ$16>11,$AD$6*$CQ$6)))),IF(AND($MQ$16=$QD$4,$C$6=12),$CQ$6*$AD$6,IF(AND($MQ$16=$QD$4+1,$C$6<12,MS17<=$C$6),$CQ$6*$AD$6," "))) ->  | ND22: =IF(OR(ND$16=" ",ND$16=0,ND21=0)," ",SUMPRODUCT(NE21:NP21,NE22:NP22)/ND21) ->  | NE22: =IF(AND($ND$15>=$B$5,$ND$15<$B$6),IF($ND$16=1,IF(NE17>=$C$5,$Q$6*$CQ$6," "),IF(AND($ND$16>1,$ND$16<=10),$Q$6*$CQ$6,IF($ND$16=11,IF(NE17<$C$5,$Q$6*$CQ$6,$AD$6*$CQ$6),IF($ND$16>11,$AD$6*$CQ$6)))),IF(AND($ND$16=$QD$4,$C$6=12),$CQ$6*$AD$6,IF(AND($ND$16=$QD$4+1,$C$6<12,NE17<=$C$6),$CQ$6*$AD$6," "))) ->  | NF22: =IF(AND($ND$15>=$B$5,$ND$15<$B$6),IF($ND$16=1,IF(NF17>=$C$5,$Q$6*$CQ$6," "),IF(AND($ND$16>1,$ND$16<=10),$Q$6*$CQ$6,IF($ND$16=11,IF(NF17<$C$5,$Q$6*$CQ$6,$AD$6*$CQ$6),IF($ND$16>11,$AD$6*$CQ$6)))),IF(AND($ND$16=$QD$4,$C$6=12),$CQ$6*$AD$6,IF(AND($ND$16=$QD$4+1,$C$6<12,NF17<=$C$6),$CQ$6*$AD$6," "))) ->  | NQ22: =IF(OR(NQ$16=" ",NQ$16=0,NQ21=0)," ",SUMPRODUCT(NR21:OC21,NR22:OC22)/NQ21) ->  | NR22: =IF(AND($NQ$15>=$B$5,$NQ$15<$B$6),IF($NQ$16=1,IF(NR17>=$C$5,$Q$6*$CQ$6," "),IF(AND($NQ$16>1,$NQ$16<=10),$Q$6*$CQ$6,IF($NQ$16=11,IF(NR17<$C$5,$Q$6*$CQ$6,$AD$6*$CQ$6),IF($NQ$16>11,$AD$6*$CQ$6)))),IF(AND($NQ$16=$QD$4,$C$6=12),$CQ$6*$AD$6,IF(AND($NQ$16=$QD$4+1,$C$6<12,NR17<=$C$6),$CQ$6*$AD$6," "))) ->  | NS22: =IF(AND($NQ$15>=$B$5,$NQ$15<$B$6),IF($NQ$16=1,IF(NS17>=$C$5,$Q$6*$CQ$6," "),IF(AND($NQ$16>1,$NQ$16<=10),$Q$6*$CQ$6,IF($NQ$16=11,IF(NS17<$C$5,$Q$6*$CQ$6,$AD$6*$CQ$6),IF($NQ$16>11,$AD$6*$CQ$6)))),IF(AND($NQ$16=$QD$4,$C$6=12),$CQ$6*$AD$6,IF(AND($NQ$16=$QD$4+1,$C$6<12,NS17<=$C$6),$CQ$6*$AD$6," "))) ->  | OD22: =IF(OR(OD$16=" ",OD$16=0,OD21=0)," ",SUMPRODUCT(OE21:OP21,OE22:OP22)/OD21) ->  | OE22: =IF(AND($OD$15>=$B$5,$OD$15<$B$6),IF($OD$16=1,IF(OE17>=$C$5,$Q$6*$CQ$6," "),IF(AND($OD$16>1,$OD$16<=10),$Q$6*$CQ$6,IF($OD$16=11,IF(OE17<$C$5,$Q$6*$CQ$6,$AD$6*$CQ$6),IF($OD$16>11,$AD$6*$CQ$6)))),IF(AND($OD$16=$QD$4,$C$6=12),$CQ$6*$AD$6,IF(AND($OD$16=$QD$4+1,$C$6<12,OE17<=$C$6),$CQ$6*$AD$6," "))) ->  | OF22: =IF(AND($OD$15>=$B$5,$OD$15<$B$6),IF($OD$16=1,IF(OF17>=$C$5,$Q$6*$CQ$6," "),IF(AND($OD$16>1,$OD$16<=10),$Q$6*$CQ$6,IF($OD$16=11,IF(OF17<$C$5,$Q$6*$CQ$6,$AD$6*$CQ$6),IF($OD$16>11,$AD$6*$CQ$6)))),IF(AND($OD$16=$QD$4,$C$6=12),$CQ$6*$AD$6,IF(AND($OD$16=$QD$4+1,$C$6<12,OF17<=$C$6),$CQ$6*$AD$6," "))) ->  | OQ22: =IF(OR(OQ$16=" ",OQ$16=0,OQ21=0)," ",SUMPRODUCT(OR21:PC21,OR22:PC22)/OQ21) ->  | OR22: =IF(AND($OQ$15>=$B$5,$OQ$15<$B$6),IF($OQ$16=1,IF(OR17>=$C$5,$Q$6*$CQ$6," "),IF(AND($OQ$16>1,$OQ$16<=10),$Q$6*$CQ$6,IF($OQ$16=11,IF(OR17<$C$5,$Q$6*$CQ$6,$AD$6*$CQ$6),IF($OQ$16>11,$AD$6*$CQ$6)))),IF(AND($OQ$16=$QD$4,$C$6=12),$CQ$6*$AD$6,IF(AND($OQ$16=$QD$4+1,$C$6<12,OR17<=$C$6),$CQ$6*$AD$6," "))) ->  | OS22: =IF(AND($OQ$15>=$B$5,$OQ$15<$B$6),IF($OQ$16=1,IF(OS17>=$C$5,$Q$6*$CQ$6," "),IF(AND($OQ$16>1,$OQ$16<=10),$Q$6*$CQ$6,IF($OQ$16=11,IF(OS17<$C$5,$Q$6*$CQ$6,$AD$6*$CQ$6),IF($OQ$16>11,$AD$6*$CQ$6)))),IF(AND($OQ$16=$QD$4,$C$6=12),$CQ$6*$AD$6,IF(AND($OQ$16=$QD$4+1,$C$6<12,OS17<=$C$6),$CQ$6*$AD$6," "))) ->  | PD22: =IF(OR(PD$16=" ",PD$16=0,PD21=0)," ",SUMPRODUCT(PE21:PP21,PE22:PP22)/PD21) ->  | PE22: =IF(AND($PD$15>=$B$5,$PD$15<$B$6),IF($PD$16=1,IF(PE17>=$C$5,$Q$6*$CQ$6," "),IF(AND($PD$16>1,$PD$16<=10),$Q$6*$CQ$6,IF($PD$16=11,IF(PE17<$C$5,$Q$6*$CQ$6,$AD$6*$CQ$6),IF($PD$16>11,$AD$6*$CQ$6)))),IF(AND($PD$16=$QD$4,$C$6=12),$CQ$6*$AD$6,IF(AND($PD$16=$QD$4+1,$C$6<12,PE17<=$C$6),$CQ$6*$AD$6," "))) ->  | PF22: =IF(AND($PD$15>=$B$5,$PD$15<$B$6),IF($PD$16=1,IF(PF17>=$C$5,$Q$6*$CQ$6," "),IF(AND($PD$16>1,$PD$16<=10),$Q$6*$CQ$6,IF($PD$16=11,IF(PF17<$C$5,$Q$6*$CQ$6,$AD$6*$CQ$6),IF($PD$16>11,$AD$6*$CQ$6)))),IF(AND($PD$16=$QD$4,$C$6=12),$CQ$6*$AD$6,IF(AND($PD$16=$QD$4+1,$C$6<12,PF17<=$C$6),$CQ$6*$AD$6," "))) ->  | PQ22: =IF(OR(PQ$16=" ",PQ$16=0,PQ21=0)," ",SUMPRODUCT(PR21:QC21,PR22:QC22)/PQ21) ->  | PR22: =IF(AND($PQ$15>=$B$5,$PQ$15<$B$6),IF($PQ$16=1,IF(PR17>=$C$5,$Q$6*$CQ$6," "),IF(AND($PQ$16>1,$PQ$16<=10),$Q$6*$CQ$6,IF($PQ$16=11,IF(PR17<$C$5,$Q$6*$CQ$6,$AD$6*$CQ$6),IF($PQ$16>11,$AD$6*$CQ$6)))),IF(AND($PQ$16=$QD$4,$C$6=12),$CQ$6*$AD$6,IF(AND($PQ$16=$QD$4+1,$C$6<12,PR17<=$C$6),$CQ$6*$AD$6," "))) ->  | PS22: =IF(AND($PQ$15>=$B$5,$PQ$15<$B$6),IF($PQ$16=1,IF(PS17>=$C$5,$Q$6*$CQ$6," "),IF(AND($PQ$16>1,$PQ$16<=10),$Q$6*$CQ$6,IF($PQ$16=11,IF(PS17<$C$5,$Q$6*$CQ$6,$AD$6*$CQ$6),IF($PQ$16>11,$AD$6*$CQ$6)))),IF(AND($PQ$16=$QD$4,$C$6=12),$CQ$6*$AD$6,IF(AND($PQ$16=$QD$4+1,$C$6<12,PS17<=$C$6),$CQ$6*$AD$6," "))) -> 
A23: Balansēšanas izdevumi | B23: EUR | AD23: =IF(OR(AD$16=" ",AD$16=0)," ",SUM(AE23:AP23)) ->  | AH23: =IF(OR(AH22=" ",AH22=0)," ",-$DD$6*AH20) ->  | AQ23: =IF(OR(AQ$16=" ",AQ$16=0)," ",SUM(AR23:BC23)) ->  | AR23: =IF(OR(AR22=" ",AR22=0)," ",-$DD$6*AR20) ->  | BD23: =IF(OR(BD$16=" ",BD$16=0)," ",SUM(BE23:BP23)) ->  | BE23: =IF(OR(BE22=" ",BE22=0)," ",-$DD$6*BE20) ->  | BQ23: =IF(OR(BQ$16=" ",BQ$16=0)," ",SUM(BR23:CC23)) ->  | BR23: =IF(OR(BR22=" ",BR22=0)," ",-$DD$6*BR20) ->  | CD23: =IF(OR(CD$16=" ",CD$16=0)," ",SUM(CE23:CP23)) ->  | CE23: =IF(OR(CE22=" ",CE22=0)," ",-$DD$6*CE20) ->  | CQ23: =IF(OR(CQ$16=" ",CQ$16=0)," ",SUM(CR23:DC23)) ->  | CR23: =IF(OR(CR22=" ",CR22=0)," ",-$DD$6*CR20) ->  | DD23: =IF(OR(DD$16=" ",DD$16=0)," ",SUM(DE23:DP23)) ->  | DE23: =IF(OR(DE22=" ",DE22=0)," ",-$DD$6*DE20) ->  | DQ23: =IF(OR(DQ$16=" ",DQ$16=0)," ",SUM(DR23:EC23)) ->  | DR23: =IF(OR(DR22=" ",DR22=0)," ",-$DD$6*DR20) ->  | ED23: =IF(OR(ED$16=" ",ED$16=0)," ",SUM(EE23:EP23)) ->  | EE23: =IF(OR(EE22=" ",EE22=0)," ",-$DD$6*EE20) ->  | EQ23: =IF(OR(EQ$16=" ",EQ$16=0)," ",SUM(ER23:FC23)) ->  | ER23: =IF(OR(ER22=" ",ER22=0)," ",-$DD$6*ER20) ->  | FD23: =IF(OR(FD$16=" ",FD$16=0)," ",SUM(FE23:FP23)) ->  | FE23: =IF(OR(FE22=" ",FE22=0)," ",-$DD$6*FE20) ->  | FQ23: =IF(OR(FQ$16=" ",FQ$16=0)," ",SUM(FR23:GC23)) ->  | FR23: =IF(OR(FR22=" ",FR22=0)," ",-$DD$6*FR20) ->  | GD23: =IF(OR(GD$16=" ",GD$16=0)," ",SUM(GE23:GP23)) ->  | GE23: =IF(OR(GE22=" ",GE22=0)," ",-$DD$6*GE20) ->  | GQ23: =IF(OR(GQ$16=" ",GQ$16=0)," ",SUM(GR23:HC23)) ->  | GR23: =IF(OR(GR22=" ",GR22=0)," ",-$DD$6*GR20) ->  | HD23: =IF(OR(HD$16=" ",HD$16=0)," ",SUM(HE23:HP23)) ->  | HE23: =IF(OR(HE22=" ",HE22=0)," ",-$DD$6*HE20) ->  | HQ23: =IF(OR(HQ$16=" ",HQ$16=0)," ",SUM(HR23:IC23)) ->  | HR23: =IF(OR(HR22=" ",HR22=0)," ",-$DD$6*HR20) ->  | ID23: =IF(OR(ID$16=" ",ID$16=0)," ",SUM(IE23:IP23)) ->  | IE23: =IF(OR(IE22=" ",IE22=0)," ",-$DD$6*IE20) ->  | IQ23: =IF(OR(IQ$16=" ",IQ$16=0)," ",SUM(IR23:JC23)) ->  | IR23: =IF(OR(IR22=" ",IR22=0)," ",-$DD$6*IR20) ->  | JD23: =IF(OR(JD$16=" ",JD$16=0)," ",SUM(JE23:JP23)) ->  | JE23: =IF(OR(JE22=" ",JE22=0)," ",-$DD$6*JE20) ->  | JQ23: =IF(OR(JQ$16=" ",JQ$16=0)," ",SUM(JR23:KC23)) ->  | JR23: =IF(OR(JR22=" ",JR22=0)," ",-$DD$6*JR20) ->  | KD23: =IF(OR(KD$16=" ",KD$16=0)," ",SUM(KE23:KP23)) ->  | KE23: =IF(OR(KE22=" ",KE22=0)," ",-$DD$6*KE20) ->  | KQ23: =IF(OR(KQ$16=" ",KQ$16=0)," ",SUM(KR23:LC23)) ->  | KR23: =IF(OR(KR22=" ",KR22=0)," ",-$DD$6*KR20) ->  | LD23: =IF(OR(LD$16=" ",LD$16=0)," ",SUM(LE23:LP23)) ->  | LE23: =IF(OR(LE22=" ",LE22=0)," ",-$DD$6*LE20) ->  | LQ23: =IF(OR(LQ$16=" ",LQ$16=0)," ",SUM(LR23:MC23)) ->  | LR23: =IF(OR(LR22=" ",LR22=0)," ",-$DD$6*LR20) ->  | MD23: =IF(OR(MD$16=" ",MD$16=0)," ",SUM(ME23:MP23)) ->  | ME23: =IF(OR(ME22=" ",ME22=0)," ",-$DD$6*ME20) ->  | MQ23: =IF(OR(MQ$16=" ",MQ$16=0)," ",SUM(MR23:NC23)) ->  | MR23: =IF(OR(MR22=" ",MR22=0)," ",-$DD$6*MR20) ->  | ND23: =IF(OR(ND$16=" ",ND$16=0)," ",SUM(NE23:NP23)) ->  | NE23: =IF(OR(NE22=" ",NE22=0)," ",-$DD$6*NE20) ->  | NQ23: =IF(OR(NQ$16=" ",NQ$16=0)," ",SUM(NR23:OC23)) ->  | NR23: =IF(OR(NR22=" ",NR22=0)," ",-$DD$6*NR20) ->  | OD23: =IF(OR(OD$16=" ",OD$16=0)," ",SUM(OE23:OP23)) ->  | OE23: =IF(OR(OE22=" ",OE22=0)," ",-$DD$6*OE20) ->  | OQ23: =IF(OR(OQ$16=" ",OQ$16=0)," ",SUM(OR23:PC23)) ->  | OR23: =IF(OR(OR22=" ",OR22=0)," ",-$DD$6*OR20) ->  | PD23: =IF(OR(PD$16=" ",PD$16=0)," ",SUM(PE23:PP23)) ->  | PE23: =IF(OR(PE22=" ",PE22=0)," ",-$DD$6*PE20) ->  | PQ23: =IF(OR(PQ$16=" ",PQ$16=0)," ",SUM(PR23:QC23)) ->  | PR23: =IF(OR(PR22=" ",PR22=0)," ",-$DD$6*PR20) -> 
A24: SEN (jāaizpilda ar faktisko likmi pa mēnešiem) | B24: % | CR24: 0.1 | CS24: 0.1 | CT24: 0.1 | CU24: 0.1 | CV24: 0.1 | CW24: 0.1 | CX24: 0.1 | CY24: 0.1 | CZ24: 0.1 | DA24: 0.1 | DB24: 0.1 | DC24: 0.1 | DE24: 0.1 | DF24: 0.1 | DG24: 0.1 | DH24: 0.1 | DI24: 0.1 | DJ24: 0.1 | DK24: 0.1 | DL24: 0.1 | DM24: 0.1 | DN24: 0.1 | DO24: 0.1 | DP24: 0.1 | DR24: 0.1 | DS24: 0.1 | DT24: 0.1 | DU24: 0.1 | DV24: 0.1 | DW24: 0.1 | DX24: 0.1 | DY24: 0.1 | DZ24: 0.1 | EA24: 0.1 | EB24: 0.1 | EC24: 0.1 | EE24: 0.1 | EF24: 0.1 | EG24: 0.1 | EH24: 0.1 | EI24: 0.1 | EJ24: 0.1 | EK24: 0.1 | EL24: 0.1 | EM24: 0.1 | EN24: 0.1 | EO24: 0.1 | EP24: 0.1
A25: Izdevumi kopā | B25: EUR | D25: =IF(D22=" "," ",D26+D27+D28) ->  | E25: =IF(E22=" "," ",E26+E27+E28) ->  | F25: =IF(F22=" "," ",F26+F27+F28) ->  | Q25: =IF(Q22=" "," ",Q26+Q27+Q28) ->  | R25: =IF(R22=" "," ",R26+R27+R28) ->  | S25: =IF(S22=" "," ",S26+S27+S28) ->  | AD25: =IF(AD22=" "," ",AD26+AD27+AD28) ->  | AE25: =IF(AE22=" "," ",AE26+AE27+AE28) ->  | AF25: =IF(AF22=" "," ",AF26+AF27+AF28) ->  | AQ25: =IF(AQ22=" "," ",AQ26+AQ27+AQ28) ->  | AR25: =IF(AR22=" "," ",AR26+AR27+AR28) ->  | AS25: =IF(AS22=" "," ",AS26+AS27+AS28) ->  | BD25: =IF(BD22=" "," ",BD26+BD27+BD28) ->  | BE25: =IF(BE22=" "," ",BE26+BE27+BE28) ->  | BF25: =IF(BF22=" "," ",BF26+BF27+BF28) ->  | BQ25: =IF(BQ22=" "," ",BQ26+BQ27+BQ28) ->  | BR25: =IF(BR22=" "," ",BR26+BR27+BR28) ->  | BS25: =IF(BS22=" "," ",BS26+BS27+BS28) ->  | CD25: =IF(CD22=" "," ",CD26+CD27+CD28) ->  | CE25: =IF(CE22=" "," ",CE26+CE27+CE28) ->  | CF25: =IF(CF22=" "," ",CF26+CF27+CF28) ->  | CQ25: =IF(CQ22=" "," ",CQ26+CQ27+CQ28) ->  | CR25: =IF(CR22=" "," ",CR26+CR27+CR28) ->  | CS25: =IF(CS22=" "," ",CS26+CS27+CS28) ->  | DD25: =IF(DD22=" "," ",DD26+DD27+DD28) ->  | DE25: =IF(DE22=" "," ",DE26+DE27+DE28) ->  | DF25: =IF(DF22=" "," ",DF26+DF27+DF28) ->  | DQ25: =IF(DQ22=" "," ",DQ26+DQ27+DQ28) ->  | DR25: =IF(DR22=" "," ",DR26+DR27+DR28) ->  | DS25: =IF(DS22=" "," ",DS26+DS27+DS28) ->  | EC25: =IF(EC22=" "," ",EC26+EC27+EC28) ->  | ED25: =IF(ED22=" "," ",ED26+ED27+ED28) ->  | EE25: =IF(EE22=" "," ",EE26+EE27+EE28) ->  | EF25: =IF(EF22=" "," ",EF26+EF27+EF28) ->  | EQ25: =IF(EQ22=" "," ",EQ26+EQ27+EQ28) ->  | ER25: =IF(ER22=" "," ",ER26+ER27+ER28) ->  | ES25: =IF(ES22=" "," ",ES26+ES27+ES28) ->  | FD25: =IF(FD22=" "," ",FD26+FD27+FD28) ->  | FE25: =IF(FE22=" "," ",FE26+FE27+FE28) ->  | FF25: =IF(FF22=" "," ",FF26+FF27+FF28) ->  | FQ25: =IF(FQ22=" "," ",FQ26+FQ27+FQ28) ->  | FR25: =IF(FR22=" "," ",FR26+FR27+FR28) ->  | FS25: =IF(FS22=" "," ",FS26+FS27+FS28) ->  | GD25: =IF(GD22=" "," ",GD26+GD27+GD28) ->  | GE25: =IF(GE22=" "," ",GE26+GE27+GE28) ->  | GF25: =IF(GF22=" "," ",GF26+GF27+GF28) ->  | GQ25: =IF(GQ22=" "," ",GQ26+GQ27+GQ28) ->  | GR25: =IF(GR22=" "," ",GR26+GR27+GR28) ->  | GS25: =IF(GS22=" "," ",GS26+GS27+GS28) ->  | HD25: =IF(HD22=" "," ",HD26+HD27+HD28) ->  | HE25: =IF(HE22=" "," ",HE26+HE27+HE28) ->  | HF25: =IF(HF22=" "," ",HF26+HF27+HF28) ->  | HQ25: =IF(HQ22=" "," ",HQ26+HQ27+HQ28) ->  | HR25: =IF(HR22=" "," ",HR26+HR27+HR28) ->  | HS25: =IF(HS22=" "," ",HS26+HS27+HS28) ->  | ID25: =IF(ID22=" "," ",ID26+ID27+ID28) ->  | IE25: =IF(IE22=" "," ",IE26+IE27+IE28) ->  | IF25: =IF(IF22=" "," ",IF26+IF27+IF28) ->  | IQ25: =IF(IQ22=" "," ",IQ26+IQ27+IQ28) ->  | IR25: =IF(IR22=" "," ",IR26+IR27+IR28) ->  | IS25: =IF(IS22=" "," ",IS26+IS27+IS28) ->  | JD25: =IF(JD22=" "," ",JD26+JD27+JD28) ->  | JE25: =IF(JE22=" "," ",JE26+JE27+JE28) ->  | JF25: =IF(JF22=" "," ",JF26+JF27+JF28) ->  | JQ25: =IF(JQ22=" "," ",JQ26+JQ27+JQ28) ->  | JR25: =IF(JR22=" "," ",JR26+JR27+JR28) ->  | JS25: =IF(JS22=" "," ",JS26+JS27+JS28) ->  | KD25: =IF(KD22=" "," ",KD26+KD27+KD28) ->  | KE25: =IF(KE22=" "," ",KE26+KE27+KE28) ->  | KF25: =IF(KF22=" "," ",KF26+KF27+KF28) ->  | KQ25: =IF(KQ22=" "," ",KQ26+KQ27+KQ28) ->  | KR25: =IF(KR22=" "," ",KR26+KR27+KR28) ->  | KS25: =IF(KS22=" "," ",KS26+KS27+KS28) ->  | LD25: =IF(LD22=" "," ",LD26+LD27+LD28) ->  | LE25: =IF(LE22=" "," ",LE26+LE27+LE28) ->  | LF25: =IF(LF22=" "," ",LF26+LF27+LF28) ->  | LQ25: =IF(LQ22=" "," ",LQ26+LQ27+LQ28) ->  | LR25: =IF(LR22=" "," ",LR26+LR27+LR28) ->  | LS25: =IF(LS22=" "," ",LS26+LS27+LS28) ->  | MD25: =IF(MD22=" "," ",MD26+MD27+MD28) ->  | ME25: =IF(ME22=" "," ",ME26+ME27+ME28) ->  | MF25: =IF(MF22=" "," ",MF26+MF27+MF28) ->  | MQ25: =IF(MQ22=" "," ",MQ26+MQ27+MQ28) ->  | MR25: =IF(MR22=" "," ",MR26+MR27+MR28) ->  | MS25: =IF(MS22=" "," ",MS26+MS27+MS28) ->  | ND25: =IF(ND22=" "," ",ND26+ND27+ND28) ->  | NE25: =IF(NE22=" "," ",NE26+NE27+NE28) ->  | NF25: =IF(NF22=" "," ",NF26+NF27+NF28) ->  | NQ25: =IF(NQ22=" "," ",NQ26+NQ27+NQ28) ->  | NR25: =IF(NR22=" "," ",NR26+NR27+NR28) ->  | OD25: =IF(OD22=" "," ",OD26+OD27+OD28) ->  | OE25: =IF(OE22=" "," ",OE26+OE27+OE28) ->  | OF25: =IF(OF22=" "," ",OF26+OF27+OF28) ->  | OQ25: =IF(OQ22=" "," ",OQ26+OQ27+OQ28) ->  | OR25: =IF(OR22=" "," ",OR26+OR27+OR28) ->  | OS25: =IF(OS22=" "," ",OS26+OS27+OS28) ->  | PD25: =IF(PD22=" "," ",PD26+PD27+PD28) ->  | PE25: =IF(PE22=" "," ",PE26+PE27+PE28) ->  | PF25: =IF(PF22=" "," ",PF26+PF27+PF28) ->  | PQ25: =IF(PQ22=" "," ",PQ26+PQ27+PQ28) ->  | PR25: =IF(PR22=" "," ",PR26+PR27+PR28) ->  | PS25: =IF(PS22=" "," ",PS26+PS27+PS28) -> 
A26: Personālizmaksas | B26: EUR/gadā | D26: =IF(OR(D$16=" ",D$16=0)," ",SUM(E26:P26)) ->  | E26: =IF(E22=" "," ",$BQ$6*HLOOKUP($D$15,Līmeņatzīmes!$B$6:$AI$7,2,FALSE)) ->  | F26: =IF(F22=" "," ",$BQ$6*HLOOKUP($D$15,Līmeņatzīmes!$B$6:$AI$7,2,FALSE)) ->  | G26: =IF(G22=" "," ",$BQ$6*HLOOKUP($D$15,Līmeņatzīmes!$B$6:$AI$7,2,FALSE)) ->  | H26: =IF(H22=" "," ",$BQ$6*HLOOKUP($D$15,Līmeņatzīmes!$B$6:$AI$7,2,FALSE)) ->  | I26: =IF(I22=" "," ",$BQ$6*HLOOKUP($D$15,Līmeņatzīmes!$B$6:$AI$7,2,FALSE)) ->  | J26: =IF(J22=" "," ",$BQ$6*HLOOKUP($D$15,Līmeņatzīmes!$B$6:$AI$7,2,FALSE)) ->  | K26: =IF(K22=" "," ",$BQ$6*HLOOKUP($D$15,Līmeņatzīmes!$B$6:$AI$7,2,FALSE)) ->  | L26: =IF(L22=" "," ",$BQ$6*HLOOKUP($D$15,Līmeņatzīmes!$B$6:$AI$7,2,FALSE)) ->  | M26: =IF(M22=" "," ",$BQ$6*HLOOKUP($D$15,Līmeņatzīmes!$B$6:$AI$7,2,FALSE)) ->  | N26: =IF(N22=" "," ",$BQ$6*HLOOKUP($D$15,Līmeņatzīmes!$B$6:$AI$7,2,FALSE)) ->  | O26: =IF(O22=" "," ",$BQ$6*HLOOKUP($D$15,Līmeņatzīmes!$B$6:$AI$7,2,FALSE)) ->  | P26: =IF(P22=" "," ",$BQ$6*HLOOKUP($D$15,Līmeņatzīmes!$B$6:$AI$7,2,FALSE)) ->  | Q26: =IF(OR(Q$16=" ",Q$16=0)," ",SUM(R26:AC26)) ->  | R26: =IF(R22=" "," ",$BQ$6*HLOOKUP($Q$15,Līmeņatzīmes!$B$6:$AI$7,2,FALSE)) ->  | S26: =IF(S22=" "," ",$BQ$6*HLOOKUP($Q$15,Līmeņatzīmes!$B$6:$AI$7,2,FALSE)) ->  | T26: =IF(T22=" "," ",$BQ$6*HLOOKUP($Q$15,Līmeņatzīmes!$B$6:$AI$7,2,FALSE)) ->  | U26: =IF(U22=" "," ",$BQ$6*HLOOKUP($Q$15,Līmeņatzīmes!$B$6:$AI$7,2,FALSE)) ->  | V26: =IF(V22=" "," ",$BQ$6*HLOOKUP($Q$15,Līmeņatzīmes!$B$6:$AI$7,2,FALSE)) ->  | W26: =IF(W22=" "," ",$BQ$6*HLOOKUP($Q$15,Līmeņatzīmes!$B$6:$AI$7,2,FALSE)) ->  | X26: =IF(X22=" "," ",$BQ$6*HLOOKUP($Q$15,Līmeņatzīmes!$B$6:$AI$7,2,FALSE)) ->  | Y26: =IF(Y22=" "," ",$BQ$6*HLOOKUP($Q$15,Līmeņatzīmes!$B$6:$AI$7,2,FALSE)) ->  | Z26: =IF(Z22=" "," ",$BQ$6*HLOOKUP($Q$15,Līmeņatzīmes!$B$6:$AI$7,2,FALSE)) ->  | AA26: =IF(AA22=" "," ",$BQ$6*HLOOKUP($Q$15,Līmeņatzīmes!$B$6:$AI$7,2,FALSE)) ->  | AB26: =IF(AB22=" "," ",$BQ$6*HLOOKUP($Q$15,Līmeņatzīmes!$B$6:$AI$7,2,FALSE)) ->  | AC26: =IF(AC22=" "," ",$BQ$6*HLOOKUP($Q$15,Līmeņatzīmes!$B$6:$AI$7,2,FALSE)) ->  | AD26: =IF(OR(AD$16=" ",AD$16=0)," ",SUM(AE26:AP26)) ->  | AE26: =IF(AE22=" "," ",$BQ$6*HLOOKUP($AD$15,Līmeņatzīmes!$B$6:$AI$7,2,FALSE)) ->  | AF26: =IF(AF22=" "," ",$BQ$6*HLOOKUP($AD$15,Līmeņatzīmes!$B$6:$AI$7,2,FALSE)) ->  | AG26: =IF(AG22=" "," ",$BQ$6*HLOOKUP($AD$15,Līmeņatzīmes!$B$6:$AI$7,2,FALSE)) ->  | AH26: =IF(AH22=" "," ",$BQ$6*HLOOKUP($AD$15,Līmeņatzīmes!$B$6:$AI$7,2,FALSE)) ->  | AI26: =IF(AI22=" "," ",$BQ$6*HLOOKUP($AD$15,Līmeņatzīmes!$B$6:$AI$7,2,FALSE)) ->  | AJ26: =IF(AJ22=" "," ",$BQ$6*HLOOKUP($AD$15,Līmeņatzīmes!$B$6:$AI$7,2,FALSE)) ->  | AK26: =IF(AK22=" "," ",$BQ$6*HLOOKUP($AD$15,Līmeņatzīmes!$B$6:$AI$7,2,FALSE)) ->  | AL26: =IF(AL22=" "," ",$BQ$6*HLOOKUP($AD$15,Līmeņatzīmes!$B$6:$AI$7,2,FALSE)) ->  | AM26: =IF(AM22=" "," ",$BQ$6*HLOOKUP($AD$15,Līmeņatzīmes!$B$6:$AI$7,2,FALSE)) ->  | AN26: =IF(AN22=" "," ",$BQ$6*HLOOKUP($AD$15,Līmeņatzīmes!$B$6:$AI$7,2,FALSE)) ->  | AO26: =IF(AO22=" "," ",$BQ$6*HLOOKUP($AD$15,Līmeņatzīmes!$B$6:$AI$7,2,FALSE)) ->  | AP26: =IF(AP22=" "," ",$BQ$6*HLOOKUP($AD$15,Līmeņatzīmes!$B$6:$AI$7,2,FALSE)) ->  | AQ26: =IF(OR(AQ$16=" ",AQ$16=0)," ",SUM(AR26:BC26)) ->  | AR26: =IF(AR22=" "," ",$BQ$6*HLOOKUP($AQ$15,Līmeņatzīmes!$B$6:$AI$7,2,FALSE)) ->  | AS26: =IF(AS22=" "," ",$BQ$6*HLOOKUP($AQ$15,Līmeņatzīmes!$B$6:$AI$7,2,FALSE)) ->  | AT26: =IF(AT22=" "," ",$BQ$6*HLOOKUP($AQ$15,Līmeņatzīmes!$B$6:$AI$7,2,FALSE)) ->  | AU26: =IF(AU22=" "," ",$BQ$6*HLOOKUP($AQ$15,Līmeņatzīmes!$B$6:$AI$7,2,FALSE)) ->  | AV26: =IF(AV22=" "," ",$BQ$6*HLOOKUP($AQ$15,Līmeņatzīmes!$B$6:$AI$7,2,FALSE)) ->  | AW26: =IF(AW22=" "," ",$BQ$6*HLOOKUP($AQ$15,Līmeņatzīmes!$B$6:$AI$7,2,FALSE)) ->  | AX26: =IF(AX22=" "," ",$BQ$6*HLOOKUP($AQ$15,Līmeņatzīmes!$B$6:$AI$7,2,FALSE)) ->  | AY26: =IF(AY22=" "," ",$BQ$6*HLOOKUP($AQ$15,Līmeņatzīmes!$B$6:$AI$7,2,FALSE)) ->  | AZ26: =IF(AZ22=" "," ",$BQ$6*HLOOKUP($AQ$15,Līmeņatzīmes!$B$6:$AI$7,2,FALSE)) ->  | BA26: =IF(BA22=" "," ",$BQ$6*HLOOKUP($AQ$15,Līmeņatzīmes!$B$6:$AI$7,2,FALSE)) ->  | BB26: =IF(BB22=" "," ",$BQ$6*HLOOKUP($AQ$15,Līmeņatzīmes!$B$6:$AI$7,2,FALSE)) ->  | BC26: =IF(BC22=" "," ",$BQ$6*HLOOKUP($AQ$15,Līmeņatzīmes!$B$6:$AI$7,2,FALSE)) ->  | BD26: =IF(OR(BD$16=" ",BD$16=0)," ",SUM(BE26:BP26)) ->  | BE26: =IF(BE22=" "," ",$BQ$6*HLOOKUP($BD$15,Līmeņatzīmes!$B$6:$AI$7,2,FALSE)) ->  | BF26: =IF(BF22=" "," ",$BQ$6*HLOOKUP($BD$15,Līmeņatzīmes!$B$6:$AI$7,2,FALSE)) ->  | BG26: =IF(BG22=" "," ",$BQ$6*HLOOKUP($BD$15,Līmeņatzīmes!$B$6:$AI$7,2,FALSE)) ->  | BH26: =IF(BH22=" "," ",$BQ$6*HLOOKUP($BD$15,Līmeņatzīmes!$B$6:$AI$7,2,FALSE)) ->  | BI26: =IF(BI22=" "," ",$BQ$6*HLOOKUP($BD$15,Līmeņatzīmes!$B$6:$AI$7,2,FALSE)) ->  | BJ26: =IF(BJ22=" "," ",$BQ$6*HLOOKUP($BD$15,Līmeņatzīmes!$B$6:$AI$7,2,FALSE)) ->  | BK26: =IF(BK22=" "," ",$BQ$6*HLOOKUP($BD$15,Līmeņatzīmes!$B$6:$AI$7,2,FALSE)) ->  | BL26: =IF(BL22=" "," ",$BQ$6*HLOOKUP($BD$15,Līmeņatzīmes!$B$6:$AI$7,2,FALSE)) ->  | BM26: =IF(BM22=" "," ",$BQ$6*HLOOKUP($BD$15,Līmeņatzīmes!$B$6:$AI$7,2,FALSE)) ->  | BN26: =IF(BN22=" "," ",$BQ$6*HLOOKUP($BD$15,Līmeņatzīmes!$B$6:$AI$7,2,FALSE)) ->  | BO26: =IF(BO22=" "," ",$BQ$6*HLOOKUP($BD$15,Līmeņatzīmes!$B$6:$AI$7,2,FALSE)) ->  | BP26: =IF(BP22=" "," ",$BQ$6*HLOOKUP($BD$15,Līmeņatzīmes!$B$6:$AI$7,2,FALSE)) ->  | BQ26: =IF(OR(BQ$16=" ",BQ$16=0)," ",SUM(BR26:CC26)) ->  | BR26: =IF(BR22=" "," ",$BQ$6*HLOOKUP($BQ$15,Līmeņatzīmes!$B$6:$AI$7,2,FALSE)) ->  | BS26: =IF(BS22=" "," ",$BQ$6*HLOOKUP($BQ$15,Līmeņatzīmes!$B$6:$AI$7,2,FALSE)) ->  | BT26: =IF(BT22=" "," ",$BQ$6*HLOOKUP($BQ$15,Līmeņatzīmes!$B$6:$AI$7,2,FALSE)) ->  | BU26: =IF(BU22=" "," ",$BQ$6*HLOOKUP($BQ$15,Līmeņatzīmes!$B$6:$AI$7,2,FALSE)) ->  | BV26: =IF(BV22=" "," ",$BQ$6*HLOOKUP($BQ$15,Līmeņatzīmes!$B$6:$AI$7,2,FALSE)) ->  | BW26: =IF(BW22=" "," ",$BQ$6*HLOOKUP($BQ$15,Līmeņatzīmes!$B$6:$AI$7,2,FALSE)) ->  | BX26: =IF(BX22=" "," ",$BQ$6*HLOOKUP($BQ$15,Līmeņatzīmes!$B$6:$AI$7,2,FALSE)) ->  | BY26: =IF(BY22=" "," ",$BQ$6*HLOOKUP($BQ$15,Līmeņatzīmes!$B$6:$AI$7,2,FALSE)) ->  | BZ26: =IF(BZ22=" "," ",$BQ$6*HLOOKUP($BQ$15,Līmeņatzīmes!$B$6:$AI$7,2,FALSE)) ->  | CA26: =IF(CA22=" "," ",$BQ$6*HLOOKUP($BQ$15,Līmeņatzīmes!$B$6:$AI$7,2,FALSE)) ->  | CB26: =IF(CB22=" "," ",$BQ$6*HLOOKUP($BQ$15,Līmeņatzīmes!$B$6:$AI$7,2,FALSE)) ->  | CC26: =IF(CC22=" "," ",$BQ$6*HLOOKUP($BQ$15,Līmeņatzīmes!$B$6:$AI$7,2,FALSE)) ->  | CD26: =IF(OR(CD$16=" ",CD$16=0)," ",SUM(CE26:CP26)) ->  | CE26: =IF(CE22=" "," ",$BQ$6*HLOOKUP($CD$15,Līmeņatzīmes!$B$6:$AI$7,2,FALSE)) ->  | CF26: =IF(CF22=" "," ",$BQ$6*HLOOKUP($CD$15,Līmeņatzīmes!$B$6:$AI$7,2,FALSE)) ->  | CG26: =IF(CG22=" "," ",$BQ$6*HLOOKUP($CD$15,Līmeņatzīmes!$B$6:$AI$7,2,FALSE)) ->  | CH26: =IF(CH22=" "," ",$BQ$6*HLOOKUP($CD$15,Līmeņatzīmes!$B$6:$AI$7,2,FALSE)) ->  | CI26: =IF(CI22=" "," ",$BQ$6*HLOOKUP($CD$15,Līmeņatzīmes!$B$6:$AI$7,2,FALSE)) ->  | CJ26: =IF(CJ22=" "," ",$BQ$6*HLOOKUP($CD$15,Līmeņatzīmes!$B$6:$AI$7,2,FALSE)) ->  | CK26: =IF(CK22=" "," ",$BQ$6*HLOOKUP($CD$15,Līmeņatzīmes!$B$6:$AI$7,2,FALSE)) ->  | CL26: =IF(CL22=" "," ",$BQ$6*HLOOKUP($CD$15,Līmeņatzīmes!$B$6:$AI$7,2,FALSE)) ->  | CM26: =IF(CM22=" "," ",$BQ$6*HLOOKUP($CD$15,Līmeņatzīmes!$B$6:$AI$7,2,FALSE)) ->  | CN26: =IF(CN22=" "," ",$BQ$6*HLOOKUP($CD$15,Līmeņatzīmes!$B$6:$AI$7,2,FALSE)) ->  | CO26: =IF(CO22=" "," ",$BQ$6*HLOOKUP($CD$15,Līmeņatzīmes!$B$6:$AI$7,2,FALSE)) ->  | CP26: =IF(CP22=" "," ",$BQ$6*HLOOKUP($CD$15,Līmeņatzīmes!$B$6:$AI$7,2,FALSE)) ->  | CQ26: =IF(OR(CQ$16=" ",CQ$16=0)," ",SUM(CR26:DC26)) ->  | CR26: =IF(CR22=" "," ",$BQ$6*HLOOKUP($CQ$15,Līmeņatzīmes!$B$6:$AI$7,2,FALSE)) ->  | CS26: =IF(CS22=" "," ",$BQ$6*HLOOKUP($CQ$15,Līmeņatzīmes!$B$6:$AI$7,2,FALSE)) ->  | CT26: =IF(CT22=" "," ",$BQ$6*HLOOKUP($CQ$15,Līmeņatzīmes!$B$6:$AI$7,2,FALSE)) ->  | CU26: =IF(CU22=" "," ",$BQ$6*HLOOKUP($CQ$15,Līmeņatzīmes!$B$6:$AI$7,2,FALSE)) ->  | CV26: =IF(CV22=" "," ",$BQ$6*HLOOKUP($CQ$15,Līmeņatzīmes!$B$6:$AI$7,2,FALSE)) ->  | CW26: =IF(CW22=" "," ",$BQ$6*HLOOKUP($CQ$15,Līmeņatzīmes!$B$6:$AI$7,2,FALSE)) ->  | CX26: =IF(CX22=" "," ",$BQ$6*HLOOKUP($CQ$15,Līmeņatzīmes!$B$6:$AI$7,2,FALSE)) ->  | CY26: =IF(CY22=" "," ",$BQ$6*HLOOKUP($CQ$15,Līmeņatzīmes!$B$6:$AI$7,2,FALSE)) ->  | CZ26: =IF(CZ22=" "," ",$BQ$6*HLOOKUP($CQ$15,Līmeņatzīmes!$B$6:$AI$7,2,FALSE)) ->  | DA26: =IF(DA22=" "," ",$BQ$6*HLOOKUP($CQ$15,Līmeņatzīmes!$B$6:$AI$7,2,FALSE)) ->  | DB26: =IF(DB22=" "," ",$BQ$6*HLOOKUP($CQ$15,Līmeņatzīmes!$B$6:$AI$7,2,FALSE)) ->  | DC26: =IF(DC22=" "," ",$BQ$6*HLOOKUP($CQ$15,Līmeņatzīmes!$B$6:$AI$7,2,FALSE)) ->  | DD26: =IF(OR(DD$16=" ",DD$16=0)," ",SUM(DE26:DP26)) ->  | DE26: =IF(DE22=" "," ",$BQ$6*HLOOKUP($DD$15,Līmeņatzīmes!$B$6:$AI$7,2,FALSE)) ->  | DF26: =IF(DF22=" "," ",$BQ$6*HLOOKUP($DD$15,Līmeņatzīmes!$B$6:$AI$7,2,FALSE)) ->  | DG26: =IF(DG22=" "," ",$BQ$6*HLOOKUP($DD$15,Līmeņatzīmes!$B$6:$AI$7,2,FALSE)) ->  | DH26: =IF(DH22=" "," ",$BQ$6*HLOOKUP($DD$15,Līmeņatzīmes!$B$6:$AI$7,2,FALSE)) ->  | DI26: =IF(DI22=" "," ",$BQ$6*HLOOKUP($DD$15,Līmeņatzīmes!$B$6:$AI$7,2,FALSE)) ->  | DJ26: =IF(DJ22=" "," ",$BQ$6*HLOOKUP($DD$15,Līmeņatzīmes!$B$6:$AI$7,2,FALSE)) ->  | DK26: =IF(DK22=" "," ",$BQ$6*HLOOKUP($DD$15,Līmeņatzīmes!$B$6:$AI$7,2,FALSE)) ->  | DL26: =IF(DL22=" "," ",$BQ$6*HLOOKUP($DD$15,Līmeņatzīmes!$B$6:$AI$7,2,FALSE)) ->  | DM26: =IF(DM22=" "," ",$BQ$6*HLOOKUP($DD$15,Līmeņatzīmes!$B$6:$AI$7,2,FALSE)) ->  | DN26: =IF(DN22=" "," ",$BQ$6*HLOOKUP($DD$15,Līmeņatzīmes!$B$6:$AI$7,2,FALSE)) ->  | DO26: =IF(DO22=" "," ",$BQ$6*HLOOKUP($DD$15,Līmeņatzīmes!$B$6:$AI$7,2,FALSE)) ->  | DP26: =IF(DP22=" "," ",$BQ$6*HLOOKUP($DD$15,Līmeņatzīmes!$B$6:$AI$7,2,FALSE)) ->  | DQ26: =IF(OR(DQ$16=" ",DQ$16=0)," ",SUM(DR26:EC26)) ->  | DR26: =IF(DR22=" "," ",$BQ$6*HLOOKUP($DQ$15,Līmeņatzīmes!$B$6:$AI$7,2,FALSE)) ->  | DS26: =IF(DS22=" "," ",$BQ$6*HLOOKUP($DQ$15,Līmeņatzīmes!$B$6:$AI$7,2,FALSE)) ->  | DT26: =IF(DT22=" "," ",$BQ$6*HLOOKUP($DQ$15,Līmeņatzīmes!$B$6:$AI$7,2,FALSE)) ->  | DU26: =IF(DU22=" "," ",$BQ$6*HLOOKUP($DQ$15,Līmeņatzīmes!$B$6:$AI$7,2,FALSE)) ->  | DV26: =IF(DV22=" "," ",$BQ$6*HLOOKUP($DQ$15,Līmeņatzīmes!$B$6:$AI$7,2,FALSE)) ->  | DW26: =IF(DW22=" "," ",$BQ$6*HLOOKUP($DQ$15,Līmeņatzīmes!$B$6:$AI$7,2,FALSE)) ->  | DX26: =IF(DX22=" "," ",$BQ$6*HLOOKUP($DQ$15,Līmeņatzīmes!$B$6:$AI$7,2,FALSE)) ->  | DY26: =IF(DY22=" "," ",$BQ$6*HLOOKUP($DQ$15,Līmeņatzīmes!$B$6:$AI$7,2,FALSE)) ->  | DZ26: =IF(DZ22=" "," ",$BQ$6*HLOOKUP($DQ$15,Līmeņatzīmes!$B$6:$AI$7,2,FALSE)) ->  | EA26: =IF(EA22=" "," ",$BQ$6*HLOOKUP($DQ$15,Līmeņatzīmes!$B$6:$AI$7,2,FALSE)) ->  | EB26: =IF(EB22=" "," ",$BQ$6*HLOOKUP($DQ$15,Līmeņatzīmes!$B$6:$AI$7,2,FALSE)) ->  | EC26: =IF(EC22=" "," ",$BQ$6*HLOOKUP($DQ$15,Līmeņatzīmes!$B$6:$AI$7,2,FALSE)) ->  | ED26: =IF(OR(ED$16=" ",ED$16=0)," ",SUM(EE26:EP26)) ->  | EE26: =IF(EE22=" "," ",$BQ$6*HLOOKUP($ED$15,Līmeņatzīmes!$B$6:$AI$7,2,FALSE)) ->  | EF26: =IF(EF22=" "," ",$BQ$6*HLOOKUP($ED$15,Līmeņatzīmes!$B$6:$AI$7,2,FALSE)) ->  | EG26: =IF(EG22=" "," ",$BQ$6*HLOOKUP($ED$15,Līmeņatzīmes!$B$6:$AI$7,2,FALSE)) ->  | EH26: =IF(EH22=" "," ",$BQ$6*HLOOKUP($ED$15,Līmeņatzīmes!$B$6:$AI$7,2,FALSE)) ->  | EI26: =IF(EI22=" "," ",$BQ$6*HLOOKUP($ED$15,Līmeņatzīmes!$B$6:$AI$7,2,FALSE)) ->  | EJ26: =IF(EJ22=" "," ",$BQ$6*HLOOKUP($ED$15,Līmeņatzīmes!$B$6:$AI$7,2,FALSE)) ->  | EK26: =IF(EK22=" "," ",$BQ$6*HLOOKUP($ED$15,Līmeņatzīmes!$B$6:$AI$7,2,FALSE)) ->  | EL26: =IF(EL22=" "," ",$BQ$6*HLOOKUP($ED$15,Līmeņatzīmes!$B$6:$AI$7,2,FALSE)) ->  | EM26: =IF(EM22=" "," ",$BQ$6*HLOOKUP($ED$15,Līmeņatzīmes!$B$6:$AI$7,2,FALSE)) ->  | EN26: =IF(EN22=" "," ",$BQ$6*HLOOKUP($ED$15,Līmeņatzīmes!$B$6:$AI$7,2,FALSE)) ->  | EO26: =IF(EO22=" "," ",$BQ$6*HLOOKUP($ED$15,Līmeņatzīmes!$B$6:$AI$7,2,FALSE)) ->  | EP26: =IF(EP22=" "," ",$BQ$6*HLOOKUP($ED$15,Līmeņatzīmes!$B$6:$AI$7,2,FALSE)) ->  | EQ26: =IF(OR(EQ$16=" ",EQ$16=0)," ",SUM(ER26:FC26)) ->  | ER26: =IF(ER22=" "," ",$BQ$6*HLOOKUP($EQ$15,Līmeņatzīmes!$B$6:$AI$7,2,FALSE)) ->  | ES26: =IF(ES22=" "," ",$BQ$6*HLOOKUP($EQ$15,Līmeņatzīmes!$B$6:$AI$7,2,FALSE)) ->  | ET26: =IF(ET22=" "," ",$BQ$6*HLOOKUP($EQ$15,Līmeņatzīmes!$B$6:$AI$7,2,FALSE)) ->  | EU26: =IF(EU22=" "," ",$BQ$6*HLOOKUP($EQ$15,Līmeņatzīmes!$B$6:$AI$7,2,FALSE)) ->  | EV26: =IF(EV22=" "," ",$BQ$6*HLOOKUP($EQ$15,Līmeņatzīmes!$B$6:$AI$7,2,FALSE)) ->  | EW26: =IF(EW22=" "," ",$BQ$6*HLOOKUP($EQ$15,Līmeņatzīmes!$B$6:$AI$7,2,FALSE)) ->  | EX26: =IF(EX22=" "," ",$BQ$6*HLOOKUP($EQ$15,Līmeņatzīmes!$B$6:$AI$7,2,FALSE)) ->  | EY26: =IF(EY22=" "," ",$BQ$6*HLOOKUP($EQ$15,Līmeņatzīmes!$B$6:$AI$7,2,FALSE)) ->  | EZ26: =IF(EZ22=" "," ",$BQ$6*HLOOKUP($EQ$15,Līmeņatzīmes!$B$6:$AI$7,2,FALSE)) ->  | FA26: =IF(FA22=" "," ",$BQ$6*HLOOKUP($EQ$15,Līmeņatzīmes!$B$6:$AI$7,2,FALSE)) ->  | FB26: =IF(FB22=" "," ",$BQ$6*HLOOKUP($EQ$15,Līmeņatzīmes!$B$6:$AI$7,2,FALSE)) ->  | FC26: =IF(FC22=" "," ",$BQ$6*HLOOKUP($EQ$15,Līmeņatzīmes!$B$6:$AI$7,2,FALSE)) ->  | FD26: =IF(OR(FD$16=" ",FD$16=0)," ",SUM(FE26:FP26)) ->  | FE26: =IF(FE22=" "," ",$BQ$6*HLOOKUP($FD$15,Līmeņatzīmes!$B$6:$AI$7,2,FALSE)) ->  | FF26: =IF(FF22=" "," ",$BQ$6*HLOOKUP($FD$15,Līmeņatzīmes!$B$6:$AI$7,2,FALSE)) ->  | FG26: =IF(FG22=" "," ",$BQ$6*HLOOKUP($FD$15,Līmeņatzīmes!$B$6:$AI$7,2,FALSE)) ->  | FH26: =IF(FH22=" "," ",$BQ$6*HLOOKUP($FD$15,Līmeņatzīmes!$B$6:$AI$7,2,FALSE)) ->  | FI26: =IF(FI22=" "," ",$BQ$6*HLOOKUP($FD$15,Līmeņatzīmes!$B$6:$AI$7,2,FALSE)) ->  | FJ26: =IF(FJ22=" "," ",$BQ$6*HLOOKUP($FD$15,Līmeņatzīmes!$B$6:$AI$7,2,FALSE)) ->  | FK26: =IF(FK22=" "," ",$BQ$6*HLOOKUP($FD$15,Līmeņatzīmes!$B$6:$AI$7,2,FALSE)) ->  | FL26: =IF(FL22=" "," ",$BQ$6*HLOOKUP($FD$15,Līmeņatzīmes!$B$6:$AI$7,2,FALSE)) ->  | FM26: =IF(FM22=" "," ",$BQ$6*HLOOKUP($FD$15,Līmeņatzīmes!$B$6:$AI$7,2,FALSE)) ->  | FN26: =IF(FN22=" "," ",$BQ$6*HLOOKUP($FD$15,Līmeņatzīmes!$B$6:$AI$7,2,FALSE)) ->  | FO26: =IF(FO22=" "," ",$BQ$6*HLOOKUP($FD$15,Līmeņatzīmes!$B$6:$AI$7,2,FALSE)) ->  | FP26: =IF(FP22=" "," ",$BQ$6*HLOOKUP($FD$15,Līmeņatzīmes!$B$6:$AI$7,2,FALSE)) ->  | FQ26: =IF(OR(FQ$16=" ",FQ$16=0)," ",SUM(FR26:GC26)) ->  | FR26: =IF(FR22=" "," ",$BQ$6*HLOOKUP($FQ$15,Līmeņatzīmes!$B$6:$AI$7,2,FALSE)) ->  | FS26: =IF(FS22=" "," ",$BQ$6*HLOOKUP($FQ$15,Līmeņatzīmes!$B$6:$AI$7,2,FALSE)) ->  | FT26: =IF(FT22=" "," ",$BQ$6*HLOOKUP($FQ$15,Līmeņatzīmes!$B$6:$AI$7,2,FALSE)) ->  | FU26: =IF(FU22=" "," ",$BQ$6*HLOOKUP($FQ$15,Līmeņatzīmes!$B$6:$AI$7,2,FALSE)) ->  | FV26: =IF(FV22=" "," ",$BQ$6*HLOOKUP($FQ$15,Līmeņatzīmes!$B$6:$AI$7,2,FALSE)) ->  | FW26: =IF(FW22=" "," ",$BQ$6*HLOOKUP($FQ$15,Līmeņatzīmes!$B$6:$AI$7,2,FALSE)) ->  | FX26: =IF(FX22=" "," ",$BQ$6*HLOOKUP($FQ$15,Līmeņatzīmes!$B$6:$AI$7,2,FALSE)) ->  | FY26: =IF(FY22=" "," ",$BQ$6*HLOOKUP($FQ$15,Līmeņatzīmes!$B$6:$AI$7,2,FALSE)) ->  | FZ26: =IF(FZ22=" "," ",$BQ$6*HLOOKUP($FQ$15,Līmeņatzīmes!$B$6:$AI$7,2,FALSE)) ->  | GA26: =IF(GA22=" "," ",$BQ$6*HLOOKUP($FQ$15,Līmeņatzīmes!$B$6:$AI$7,2,FALSE)) ->  | GB26: =IF(GB22=" "," ",$BQ$6*HLOOKUP($FQ$15,Līmeņatzīmes!$B$6:$AI$7,2,FALSE)) ->  | GC26: =IF(GC22=" "," ",$BQ$6*HLOOKUP($FQ$15,Līmeņatzīmes!$B$6:$AI$7,2,FALSE)) ->  | GD26: =IF(OR(GD$16=" ",GD$16=0)," ",SUM(GE26:GP26)) ->  | GE26: =IF(GE22=" "," ",$BQ$6*HLOOKUP($GD$15,Līmeņatzīmes!$B$6:$AI$7,2,FALSE)) ->  | GF26: =IF(GF22=" "," ",$BQ$6*HLOOKUP($GD$15,Līmeņatzīmes!$B$6:$AI$7,2,FALSE)) ->  | GG26: =IF(GG22=" "," ",$BQ$6*HLOOKUP($GD$15,Līmeņatzīmes!$B$6:$AI$7,2,FALSE)) ->  | GH26: =IF(GH22=" "," ",$BQ$6*HLOOKUP($GD$15,Līmeņatzīmes!$B$6:$AI$7,2,FALSE)) ->  | GI26: =IF(GI22=" "," ",$BQ$6*HLOOKUP($GD$15,Līmeņatzīmes!$B$6:$AI$7,2,FALSE)) ->  | GJ26: =IF(GJ22=" "," ",$BQ$6*HLOOKUP($GD$15,Līmeņatzīmes!$B$6:$AI$7,2,FALSE)) ->  | GK26: =IF(GK22=" "," ",$BQ$6*HLOOKUP($GD$15,Līmeņatzīmes!$B$6:$AI$7,2,FALSE)) ->  | GL26: =IF(GL22=" "," ",$BQ$6*HLOOKUP($GD$15,Līmeņatzīmes!$B$6:$AI$7,2,FALSE)) ->  | GM26: =IF(GM22=" "," ",$BQ$6*HLOOKUP($GD$15,Līmeņatzīmes!$B$6:$AI$7,2,FALSE)) ->  | GN26: =IF(GN22=" "," ",$BQ$6*HLOOKUP($GD$15,Līmeņatzīmes!$B$6:$AI$7,2,FALSE)) ->  | GO26: =IF(GO22=" "," ",$BQ$6*HLOOKUP($GD$15,Līmeņatzīmes!$B$6:$AI$7,2,FALSE)) ->  | GP26: =IF(GP22=" "," ",$BQ$6*HLOOKUP($GD$15,Līmeņatzīmes!$B$6:$AI$7,2,FALSE)) ->  | GQ26: =IF(OR(GQ$16=" ",GQ$16=0)," ",SUM(GR26:HC26)) ->  | GR26: =IF(GR22=" "," ",$BQ$6*HLOOKUP($GQ$15,Līmeņatzīmes!$B$6:$AI$7,2,FALSE)) ->  | GS26: =IF(GS22=" "," ",$BQ$6*HLOOKUP($GQ$15,Līmeņatzīmes!$B$6:$AI$7,2,FALSE)) ->  | GT26: =IF(GT22=" "," ",$BQ$6*HLOOKUP($GQ$15,Līmeņatzīmes!$B$6:$AI$7,2,FALSE)) ->  | GU26: =IF(GU22=" "," ",$BQ$6*HLOOKUP($GQ$15,Līmeņatzīmes!$B$6:$AI$7,2,FALSE)) ->  | GV26: =IF(GV22=" "," ",$BQ$6*HLOOKUP($GQ$15,Līmeņatzīmes!$B$6:$AI$7,2,FALSE)) ->  | GW26: =IF(GW22=" "," ",$BQ$6*HLOOKUP($GQ$15,Līmeņatzīmes!$B$6:$AI$7,2,FALSE)) ->  | GX26: =IF(GX22=" "," ",$BQ$6*HLOOKUP($GQ$15,Līmeņatzīmes!$B$6:$AI$7,2,FALSE)) ->  | GY26: =IF(GY22=" "," ",$BQ$6*HLOOKUP($GQ$15,Līmeņatzīmes!$B$6:$AI$7,2,FALSE)) ->  | GZ26: =IF(GZ22=" "," ",$BQ$6*HLOOKUP($GQ$15,Līmeņatzīmes!$B$6:$AI$7,2,FALSE)) ->  | HA26: =IF(HA22=" "," ",$BQ$6*HLOOKUP($GQ$15,Līmeņatzīmes!$B$6:$AI$7,2,FALSE)) ->  | HB26: =IF(HB22=" "," ",$BQ$6*HLOOKUP($GQ$15,Līmeņatzīmes!$B$6:$AI$7,2,FALSE)) ->  | HC26: =IF(HC22=" "," ",$BQ$6*HLOOKUP($GQ$15,Līmeņatzīmes!$B$6:$AI$7,2,FALSE)) ->  | HD26: =IF(OR(HD$16=" ",HD$16=0)," ",SUM(HE26:HP26)) ->  | HE26: =IF(HE22=" "," ",$BQ$6*HLOOKUP($HD$15,Līmeņatzīmes!$B$6:$AI$7,2,FALSE)) ->  | HF26: =IF(HF22=" "," ",$BQ$6*HLOOKUP($HD$15,Līmeņatzīmes!$B$6:$AI$7,2,FALSE)) ->  | HG26: =IF(HG22=" "," ",$BQ$6*HLOOKUP($HD$15,Līmeņatzīmes!$B$6:$AI$7,2,FALSE)) ->  | HH26: =IF(HH22=" "," ",$BQ$6*HLOOKUP($HD$15,Līmeņatzīmes!$B$6:$AI$7,2,FALSE)) ->  | HI26: =IF(HI22=" "," ",$BQ$6*HLOOKUP($HD$15,Līmeņatzīmes!$B$6:$AI$7,2,FALSE)) ->  | HJ26: =IF(HJ22=" "," ",$BQ$6*HLOOKUP($HD$15,Līmeņatzīmes!$B$6:$AI$7,2,FALSE)) ->  | HK26: =IF(HK22=" "," ",$BQ$6*HLOOKUP($HD$15,Līmeņatzīmes!$B$6:$AI$7,2,FALSE)) ->  | HL26: =IF(HL22=" "," ",$BQ$6*HLOOKUP($HD$15,Līmeņatzīmes!$B$6:$AI$7,2,FALSE)) ->  | HM26: =IF(HM22=" "," ",$BQ$6*HLOOKUP($HD$15,Līmeņatzīmes!$B$6:$AI$7,2,FALSE)) ->  | HN26: =IF(HN22=" "," ",$BQ$6*HLOOKUP($HD$15,Līmeņatzīmes!$B$6:$AI$7,2,FALSE)) ->  | HO26: =IF(HO22=" "," ",$BQ$6*HLOOKUP($HD$15,Līmeņatzīmes!$B$6:$AI$7,2,FALSE)) ->  | HP26: =IF(HP22=" "," ",$BQ$6*HLOOKUP($HD$15,Līmeņatzīmes!$B$6:$AI$7,2,FALSE)) ->  | HQ26: =IF(OR(HQ$16=" ",HQ$16=0)," ",SUM(HR26:IC26)) ->  | HR26: =IF(HR22=" "," ",$BQ$6*HLOOKUP($HQ$15,Līmeņatzīmes!$B$6:$AI$7,2,FALSE)) ->  | HS26: =IF(HS22=" "," ",$BQ$6*HLOOKUP($HQ$15,Līmeņatzīmes!$B$6:$AI$7,2,FALSE)) ->  | HT26: =IF(HT22=" "," ",$BQ$6*HLOOKUP($HQ$15,Līmeņatzīmes!$B$6:$AI$7,2,FALSE)) ->  | HU26: =IF(HU22=" "," ",$BQ$6*HLOOKUP($HQ$15,Līmeņatzīmes!$B$6:$AI$7,2,FALSE)) ->  | HV26: =IF(HV22=" "," ",$BQ$6*HLOOKUP($HQ$15,Līmeņatzīmes!$B$6:$AI$7,2,FALSE)) ->  | HW26: =IF(HW22=" "," ",$BQ$6*HLOOKUP($HQ$15,Līmeņatzīmes!$B$6:$AI$7,2,FALSE)) ->  | HX26: =IF(HX22=" "," ",$BQ$6*HLOOKUP($HQ$15,Līmeņatzīmes!$B$6:$AI$7,2,FALSE)) ->  | HY26: =IF(HY22=" "," ",$BQ$6*HLOOKUP($HQ$15,Līmeņatzīmes!$B$6:$AI$7,2,FALSE)) ->  | HZ26: =IF(HZ22=" "," ",$BQ$6*HLOOKUP($HQ$15,Līmeņatzīmes!$B$6:$AI$7,2,FALSE)) ->  | IA26: =IF(IA22=" "," ",$BQ$6*HLOOKUP($HQ$15,Līmeņatzīmes!$B$6:$AI$7,2,FALSE)) ->  | IB26: =IF(IB22=" "," ",$BQ$6*HLOOKUP($HQ$15,Līmeņatzīmes!$B$6:$AI$7,2,FALSE)) ->  | IC26: =IF(IC22=" "," ",$BQ$6*HLOOKUP($HQ$15,Līmeņatzīmes!$B$6:$AI$7,2,FALSE)) ->  | ID26: =IF(OR(ID$16=" ",ID$16=0)," ",SUM(IE26:IP26)) ->  | IE26: =IF(IE22=" "," ",$BQ$6*HLOOKUP($ID$15,Līmeņatzīmes!$B$6:$AI$7,2,FALSE)) ->  | IF26: =IF(IF22=" "," ",$BQ$6*HLOOKUP($ID$15,Līmeņatzīmes!$B$6:$AI$7,2,FALSE)) ->  | IG26: =IF(IG22=" "," ",$BQ$6*HLOOKUP($ID$15,Līmeņatzīmes!$B$6:$AI$7,2,FALSE)) ->  | IH26: =IF(IH22=" "," ",$BQ$6*HLOOKUP($ID$15,Līmeņatzīmes!$B$6:$AI$7,2,FALSE)) ->  | II26: =IF(II22=" "," ",$BQ$6*HLOOKUP($ID$15,Līmeņatzīmes!$B$6:$AI$7,2,FALSE)) ->  | IJ26: =IF(IJ22=" "," ",$BQ$6*HLOOKUP($ID$15,Līmeņatzīmes!$B$6:$AI$7,2,FALSE)) ->  | IK26: =IF(IK22=" "," ",$BQ$6*HLOOKUP($ID$15,Līmeņatzīmes!$B$6:$AI$7,2,FALSE)) ->  | IL26: =IF(IL22=" "," ",$BQ$6*HLOOKUP($ID$15,Līmeņatzīmes!$B$6:$AI$7,2,FALSE)) ->  | IM26: =IF(IM22=" "," ",$BQ$6*HLOOKUP($ID$15,Līmeņatzīmes!$B$6:$AI$7,2,FALSE)) ->  | IN26: =IF(IN22=" "," ",$BQ$6*HLOOKUP($ID$15,Līmeņatzīmes!$B$6:$AI$7,2,FALSE)) ->  | IO26: =IF(IO22=" "," ",$BQ$6*HLOOKUP($ID$15,Līmeņatzīmes!$B$6:$AI$7,2,FALSE)) ->  | IP26: =IF(IP22=" "," ",$BQ$6*HLOOKUP($ID$15,Līmeņatzīmes!$B$6:$AI$7,2,FALSE)) ->  | IQ26: =IF(OR(IQ$16=" ",IQ$16=0)," ",SUM(IR26:JC26)) ->  | IR26: =IF(IR22=" "," ",$BQ$6*HLOOKUP($IQ$15,Līmeņatzīmes!$B$6:$AI$7,2,FALSE)) ->  | IS26: =IF(IS22=" "," ",$BQ$6*HLOOKUP($IQ$15,Līmeņatzīmes!$B$6:$AI$7,2,FALSE)) ->  | IT26: =IF(IT22=" "," ",$BQ$6*HLOOKUP($IQ$15,Līmeņatzīmes!$B$6:$AI$7,2,FALSE)) ->  | IU26: =IF(IU22=" "," ",$BQ$6*HLOOKUP($IQ$15,Līmeņatzīmes!$B$6:$AI$7,2,FALSE)) ->  | IV26: =IF(IV22=" "," ",$BQ$6*HLOOKUP($IQ$15,Līmeņatzīmes!$B$6:$AI$7,2,FALSE)) ->  | IW26: =IF(IW22=" "," ",$BQ$6*HLOOKUP($IQ$15,Līmeņatzīmes!$B$6:$AI$7,2,FALSE)) ->  | IX26: =IF(IX22=" "," ",$BQ$6*HLOOKUP($IQ$15,Līmeņatzīmes!$B$6:$AI$7,2,FALSE)) ->  | IY26: =IF(IY22=" "," ",$BQ$6*HLOOKUP($IQ$15,Līmeņatzīmes!$B$6:$AI$7,2,FALSE)) ->  | IZ26: =IF(IZ22=" "," ",$BQ$6*HLOOKUP($IQ$15,Līmeņatzīmes!$B$6:$AI$7,2,FALSE)) ->  | JA26: =IF(JA22=" "," ",$BQ$6*HLOOKUP($IQ$15,Līmeņatzīmes!$B$6:$AI$7,2,FALSE)) ->  | JB26: =IF(JB22=" "," ",$BQ$6*HLOOKUP($IQ$15,Līmeņatzīmes!$B$6:$AI$7,2,FALSE)) ->  | JC26: =IF(JC22=" "," ",$BQ$6*HLOOKUP($IQ$15,Līmeņatzīmes!$B$6:$AI$7,2,FALSE)) ->  | JD26: =IF(OR(JD$16=" ",JD$16=0)," ",SUM(JE26:JP26)) ->  | JE26: =IF(JE22=" "," ",$BQ$6*HLOOKUP($JD$15,Līmeņatzīmes!$B$6:$AI$7,2,FALSE)) ->  | JF26: =IF(JF22=" "," ",$BQ$6*HLOOKUP($JD$15,Līmeņatzīmes!$B$6:$AI$7,2,FALSE)) ->  | JG26: =IF(JG22=" "," ",$BQ$6*HLOOKUP($JD$15,Līmeņatzīmes!$B$6:$AI$7,2,FALSE)) ->  | JH26: =IF(JH22=" "," ",$BQ$6*HLOOKUP($JD$15,Līmeņatzīmes!$B$6:$AI$7,2,FALSE)) ->  | JI26: =IF(JI22=" "," ",$BQ$6*HLOOKUP($JD$15,Līmeņatzīmes!$B$6:$AI$7,2,FALSE)) ->  | JJ26: =IF(JJ22=" "," ",$BQ$6*HLOOKUP($JD$15,Līmeņatzīmes!$B$6:$AI$7,2,FALSE)) ->  | JK26: =IF(JK22=" "," ",$BQ$6*HLOOKUP($JD$15,Līmeņatzīmes!$B$6:$AI$7,2,FALSE)) ->  | JL26: =IF(JL22=" "," ",$BQ$6*HLOOKUP($JD$15,Līmeņatzīmes!$B$6:$AI$7,2,FALSE)) ->  | JM26: =IF(JM22=" "," ",$BQ$6*HLOOKUP($JD$15,Līmeņatzīmes!$B$6:$AI$7,2,FALSE)) ->  | JN26: =IF(JN22=" "," ",$BQ$6*HLOOKUP($JD$15,Līmeņatzīmes!$B$6:$AI$7,2,FALSE)) ->  | JO26: =IF(JO22=" "," ",$BQ$6*HLOOKUP($JD$15,Līmeņatzīmes!$B$6:$AI$7,2,FALSE)) ->  | JP26: =IF(JP22=" "," ",$BQ$6*HLOOKUP($JD$15,Līmeņatzīmes!$B$6:$AI$7,2,FALSE)) ->  | JQ26: =IF(OR(JQ$16=" ",JQ$16=0)," ",SUM(JR26:KC26)) ->  | JR26: =IF(JR22=" "," ",$BQ$6*HLOOKUP($JQ$15,Līmeņatzīmes!$B$6:$AI$7,2,FALSE)) ->  | JS26: =IF(JS22=" "," ",$BQ$6*HLOOKUP($JQ$15,Līmeņatzīmes!$B$6:$AI$7,2,FALSE)) ->  | JT26: =IF(JT22=" "," ",$BQ$6*HLOOKUP($JQ$15,Līmeņatzīmes!$B$6:$AI$7,2,FALSE)) ->  | JU26: =IF(JU22=" "," ",$BQ$6*HLOOKUP($JQ$15,Līmeņatzīmes!$B$6:$AI$7,2,FALSE)) ->  | JV26: =IF(JV22=" "," ",$BQ$6*HLOOKUP($JQ$15,Līmeņatzīmes!$B$6:$AI$7,2,FALSE)) ->  | JW26: =IF(JW22=" "," ",$BQ$6*HLOOKUP($JQ$15,Līmeņatzīmes!$B$6:$AI$7,2,FALSE)) ->  | JX26: =IF(JX22=" "," ",$BQ$6*HLOOKUP($JQ$15,Līmeņatzīmes!$B$6:$AI$7,2,FALSE)) ->  | JY26: =IF(JY22=" "," ",$BQ$6*HLOOKUP($JQ$15,Līmeņatzīmes!$B$6:$AI$7,2,FALSE)) ->  | JZ26: =IF(JZ22=" "," ",$BQ$6*HLOOKUP($JQ$15,Līmeņatzīmes!$B$6:$AI$7,2,FALSE)) ->  | KA26: =IF(KA22=" "," ",$BQ$6*HLOOKUP($JQ$15,Līmeņatzīmes!$B$6:$AI$7,2,FALSE)) ->  | KB26: =IF(KB22=" "," ",$BQ$6*HLOOKUP($JQ$15,Līmeņatzīmes!$B$6:$AI$7,2,FALSE)) ->  | KC26: =IF(KC22=" "," ",$BQ$6*HLOOKUP($JQ$15,Līmeņatzīmes!$B$6:$AI$7,2,FALSE)) ->  | KD26: =IF(OR(KD$16=" ",KD$16=0)," ",SUM(KE26:KP26)) ->  | KE26: =IF(KE22=" "," ",$BQ$6*HLOOKUP($KD$15,Līmeņatzīmes!$B$6:$AI$7,2,FALSE)) ->  | KF26: =IF(KF22=" "," ",$BQ$6*HLOOKUP($KD$15,Līmeņatzīmes!$B$6:$AI$7,2,FALSE)) ->  | KG26: =IF(KG22=" "," ",$BQ$6*HLOOKUP($KD$15,Līmeņatzīmes!$B$6:$AI$7,2,FALSE)) ->  | KH26: =IF(KH22=" "," ",$BQ$6*HLOOKUP($KD$15,Līmeņatzīmes!$B$6:$AI$7,2,FALSE)) ->  | KI26: =IF(KI22=" "," ",$BQ$6*HLOOKUP($KD$15,Līmeņatzīmes!$B$6:$AI$7,2,FALSE)) ->  | KJ26: =IF(KJ22=" "," ",$BQ$6*HLOOKUP($KD$15,Līmeņatzīmes!$B$6:$AI$7,2,FALSE)) ->  | KK26: =IF(KK22=" "," ",$BQ$6*HLOOKUP($KD$15,Līmeņatzīmes!$B$6:$AI$7,2,FALSE)) ->  | KL26: =IF(KL22=" "," ",$BQ$6*HLOOKUP($KD$15,Līmeņatzīmes!$B$6:$AI$7,2,FALSE)) ->  | KM26: =IF(KM22=" "," ",$BQ$6*HLOOKUP($KD$15,Līmeņatzīmes!$B$6:$AI$7,2,FALSE)) ->  | KN26: =IF(KN22=" "," ",$BQ$6*HLOOKUP($KD$15,Līmeņatzīmes!$B$6:$AI$7,2,FALSE)) ->  | KO26: =IF(KO22=" "," ",$BQ$6*HLOOKUP($KD$15,Līmeņatzīmes!$B$6:$AI$7,2,FALSE)) ->  | KP26: =IF(KP22=" "," ",$BQ$6*HLOOKUP($KD$15,Līmeņatzīmes!$B$6:$AI$7,2,FALSE)) ->  | KQ26: =IF(OR(KQ$16=" ",KQ$16=0)," ",SUM(KR26:LC26)) ->  | KR26: =IF(KR22=" "," ",$BQ$6*HLOOKUP($KQ$15,Līmeņatzīmes!$B$6:$AI$7,2,FALSE)) ->  | KS26: =IF(KS22=" "," ",$BQ$6*HLOOKUP($KQ$15,Līmeņatzīmes!$B$6:$AI$7,2,FALSE)) ->  | KT26: =IF(KT22=" "," ",$BQ$6*HLOOKUP($KQ$15,Līmeņatzīmes!$B$6:$AI$7,2,FALSE)) ->  | KU26: =IF(KU22=" "," ",$BQ$6*HLOOKUP($KQ$15,Līmeņatzīmes!$B$6:$AI$7,2,FALSE)) ->  | KV26: =IF(KV22=" "," ",$BQ$6*HLOOKUP($KQ$15,Līmeņatzīmes!$B$6:$AI$7,2,FALSE)) ->  | KW26: =IF(KW22=" "," ",$BQ$6*HLOOKUP($KQ$15,Līmeņatzīmes!$B$6:$AI$7,2,FALSE)) ->  | KX26: =IF(KX22=" "," ",$BQ$6*HLOOKUP($KQ$15,Līmeņatzīmes!$B$6:$AI$7,2,FALSE)) ->  | KY26: =IF(KY22=" "," ",$BQ$6*HLOOKUP($KQ$15,Līmeņatzīmes!$B$6:$AI$7,2,FALSE)) ->  | KZ26: =IF(KZ22=" "," ",$BQ$6*HLOOKUP($KQ$15,Līmeņatzīmes!$B$6:$AI$7,2,FALSE)) ->  | LA26: =IF(LA22=" "," ",$BQ$6*HLOOKUP($KQ$15,Līmeņatzīmes!$B$6:$AI$7,2,FALSE)) ->  | LB26: =IF(LB22=" "," ",$BQ$6*HLOOKUP($KQ$15,Līmeņatzīmes!$B$6:$AI$7,2,FALSE)) ->  | LC26: =IF(LC22=" "," ",$BQ$6*HLOOKUP($KQ$15,Līmeņatzīmes!$B$6:$AI$7,2,FALSE)) ->  | LD26: =IF(OR(LD$16=" ",LD$16=0)," ",SUM(LE26:LP26)) ->  | LE26: =IF(LE22=" "," ",$BQ$6*HLOOKUP($LD$15,Līmeņatzīmes!$B$6:$AI$7,2,FALSE)) ->  | LF26: =IF(LF22=" "," ",$BQ$6*HLOOKUP($LD$15,Līmeņatzīmes!$B$6:$AI$7,2,FALSE)) ->  | LG26: =IF(LG22=" "," ",$BQ$6*HLOOKUP($LD$15,Līmeņatzīmes!$B$6:$AI$7,2,FALSE)) ->  | LH26: =IF(LH22=" "," ",$BQ$6*HLOOKUP($LD$15,Līmeņatzīmes!$B$6:$AI$7,2,FALSE)) ->  | LI26: =IF(LI22=" "," ",$BQ$6*HLOOKUP($LD$15,Līmeņatzīmes!$B$6:$AI$7,2,FALSE)) ->  | LJ26: =IF(LJ22=" "," ",$BQ$6*HLOOKUP($LD$15,Līmeņatzīmes!$B$6:$AI$7,2,FALSE)) ->  | LK26: =IF(LK22=" "," ",$BQ$6*HLOOKUP($LD$15,Līmeņatzīmes!$B$6:$AI$7,2,FALSE)) ->  | LL26: =IF(LL22=" "," ",$BQ$6*HLOOKUP($LD$15,Līmeņatzīmes!$B$6:$AI$7,2,FALSE)) ->  | LM26: =IF(LM22=" "," ",$BQ$6*HLOOKUP($LD$15,Līmeņatzīmes!$B$6:$AI$7,2,FALSE)) ->  | LN26: =IF(LN22=" "," ",$BQ$6*HLOOKUP($LD$15,Līmeņatzīmes!$B$6:$AI$7,2,FALSE)) ->  | LO26: =IF(LO22=" "," ",$BQ$6*HLOOKUP($LD$15,Līmeņatzīmes!$B$6:$AI$7,2,FALSE)) ->  | LP26: =IF(LP22=" "," ",$BQ$6*HLOOKUP($LD$15,Līmeņatzīmes!$B$6:$AI$7,2,FALSE)) ->  | LQ26: =IF(OR(LQ$16=" ",LQ$16=0)," ",SUM(LR26:MC26)) ->  | LR26: =IF(LR22=" "," ",$BQ$6*HLOOKUP($LQ$15,Līmeņatzīmes!$B$6:$AI$7,2,FALSE)) ->  | LS26: =IF(LS22=" "," ",$BQ$6*HLOOKUP($LQ$15,Līmeņatzīmes!$B$6:$AI$7,2,FALSE)) ->  | LT26: =IF(LT22=" "," ",$BQ$6*HLOOKUP($LQ$15,Līmeņatzīmes!$B$6:$AI$7,2,FALSE)) ->  | LU26: =IF(LU22=" "," ",$BQ$6*HLOOKUP($LQ$15,Līmeņatzīmes!$B$6:$AI$7,2,FALSE)) ->  | LV26: =IF(LV22=" "," ",$BQ$6*HLOOKUP($LQ$15,Līmeņatzīmes!$B$6:$AI$7,2,FALSE)) ->  | LW26: =IF(LW22=" "," ",$BQ$6*HLOOKUP($LQ$15,Līmeņatzīmes!$B$6:$AI$7,2,FALSE)) ->  | LX26: =IF(LX22=" "," ",$BQ$6*HLOOKUP($LQ$15,Līmeņatzīmes!$B$6:$AI$7,2,FALSE)) ->  | LY26: =IF(LY22=" "," ",$BQ$6*HLOOKUP($LQ$15,Līmeņatzīmes!$B$6:$AI$7,2,FALSE)) ->  | LZ26: =IF(LZ22=" "," ",$BQ$6*HLOOKUP($LQ$15,Līmeņatzīmes!$B$6:$AI$7,2,FALSE)) ->  | MA26: =IF(MA22=" "," ",$BQ$6*HLOOKUP($LQ$15,Līmeņatzīmes!$B$6:$AI$7,2,FALSE)) ->  | MB26: =IF(MB22=" "," ",$BQ$6*HLOOKUP($LQ$15,Līmeņatzīmes!$B$6:$AI$7,2,FALSE)) ->  | MC26: =IF(MC22=" "," ",$BQ$6*HLOOKUP($LQ$15,Līmeņatzīmes!$B$6:$AI$7,2,FALSE)) ->  | MD26: =IF(OR(MD$16=" ",MD$16=0)," ",SUM(ME26:MP26)) ->  | ME26: =IF(ME22=" "," ",$BQ$6*HLOOKUP($MD$15,Līmeņatzīmes!$B$6:$AI$7,2,FALSE)) ->  | MF26: =IF(MF22=" "," ",$BQ$6*HLOOKUP($MD$15,Līmeņatzīmes!$B$6:$AI$7,2,FALSE)) ->  | MG26: =IF(MG22=" "," ",$BQ$6*HLOOKUP($MD$15,Līmeņatzīmes!$B$6:$AI$7,2,FALSE)) ->  | MH26: =IF(MH22=" "," ",$BQ$6*HLOOKUP($MD$15,Līmeņatzīmes!$B$6:$AI$7,2,FALSE)) ->  | MI26: =IF(MI22=" "," ",$BQ$6*HLOOKUP($MD$15,Līmeņatzīmes!$B$6:$AI$7,2,FALSE)) ->  | MJ26: =IF(MJ22=" "," ",$BQ$6*HLOOKUP($MD$15,Līmeņatzīmes!$B$6:$AI$7,2,FALSE)) ->  | MK26: =IF(MK22=" "," ",$BQ$6*HLOOKUP($MD$15,Līmeņatzīmes!$B$6:$AI$7,2,FALSE)) ->  | ML26: =IF(ML22=" "," ",$BQ$6*HLOOKUP($MD$15,Līmeņatzīmes!$B$6:$AI$7,2,FALSE)) ->  | MM26: =IF(MM22=" "," ",$BQ$6*HLOOKUP($MD$15,Līmeņatzīmes!$B$6:$AI$7,2,FALSE)) ->  | MN26: =IF(MN22=" "," ",$BQ$6*HLOOKUP($MD$15,Līmeņatzīmes!$B$6:$AI$7,2,FALSE)) ->  | MO26: =IF(MO22=" "," ",$BQ$6*HLOOKUP($MD$15,Līmeņatzīmes!$B$6:$AI$7,2,FALSE)) ->  | MP26: =IF(MP22=" "," ",$BQ$6*HLOOKUP($MD$15,Līmeņatzīmes!$B$6:$AI$7,2,FALSE)) ->  | MQ26: =IF(OR(MQ$16=" ",MQ$16=0)," ",SUM(MR26:NC26)) ->  | MR26: =IF(MR22=" "," ",$BQ$6*HLOOKUP($MQ$15,Līmeņatzīmes!$B$6:$AI$7,2,FALSE)) ->  | MS26: =IF(MS22=" "," ",$BQ$6*HLOOKUP($MQ$15,Līmeņatzīmes!$B$6:$AI$7,2,FALSE)) ->  | MT26: =IF(MT22=" "," ",$BQ$6*HLOOKUP($MQ$15,Līmeņatzīmes!$B$6:$AI$7,2,FALSE)) ->  | MU26: =IF(MU22=" "," ",$BQ$6*HLOOKUP($MQ$15,Līmeņatzīmes!$B$6:$AI$7,2,FALSE)) ->  | MV26: =IF(MV22=" "," ",$BQ$6*HLOOKUP($MQ$15,Līmeņatzīmes!$B$6:$AI$7,2,FALSE)) ->  | MW26: =IF(MW22=" "," ",$BQ$6*HLOOKUP($MQ$15,Līmeņatzīmes!$B$6:$AI$7,2,FALSE)) ->  | MX26: =IF(MX22=" "," ",$BQ$6*HLOOKUP($MQ$15,Līmeņatzīmes!$B$6:$AI$7,2,FALSE)) ->  | MY26: =IF(MY22=" "," ",$BQ$6*HLOOKUP($MQ$15,Līmeņatzīmes!$B$6:$AI$7,2,FALSE)) ->  | MZ26: =IF(MZ22=" "," ",$BQ$6*HLOOKUP($MQ$15,Līmeņatzīmes!$B$6:$AI$7,2,FALSE)) ->  | NA26: =IF(NA22=" "," ",$BQ$6*HLOOKUP($MQ$15,Līmeņatzīmes!$B$6:$AI$7,2,FALSE)) ->  | NB26: =IF(NB22=" "," ",$BQ$6*HLOOKUP($MQ$15,Līmeņatzīmes!$B$6:$AI$7,2,FALSE)) ->  | NC26: =IF(NC22=" "," ",$BQ$6*HLOOKUP($MQ$15,Līmeņatzīmes!$B$6:$AI$7,2,FALSE)) ->  | ND26: =IF(OR(ND$16=" ",ND$16=0)," ",SUM(NE26:NP26)) ->  | NE26: =IF(NE22=" "," ",$BQ$6*HLOOKUP($ND$15,Līmeņatzīmes!$B$6:$AI$7,2,FALSE)) ->  | NF26: =IF(NF22=" "," ",$BQ$6*HLOOKUP($ND$15,Līmeņatzīmes!$B$6:$AI$7,2,FALSE)) ->  | NG26: =IF(NG22=" "," ",$BQ$6*HLOOKUP($ND$15,Līmeņatzīmes!$B$6:$AI$7,2,FALSE)) ->  | NH26: =IF(NH22=" "," ",$BQ$6*HLOOKUP($ND$15,Līmeņatzīmes!$B$6:$AI$7,2,FALSE)) ->  | NI26: =IF(NI22=" "," ",$BQ$6*HLOOKUP($ND$15,Līmeņatzīmes!$B$6:$AI$7,2,FALSE)) ->  | NJ26: =IF(NJ22=" "," ",$BQ$6*HLOOKUP($ND$15,Līmeņatzīmes!$B$6:$AI$7,2,FALSE)) ->  | NK26: =IF(NK22=" "," ",$BQ$6*HLOOKUP($ND$15,Līmeņatzīmes!$B$6:$AI$7,2,FALSE)) ->  | NL26: =IF(NL22=" "," ",$BQ$6*HLOOKUP($ND$15,Līmeņatzīmes!$B$6:$AI$7,2,FALSE)) ->  | NM26: =IF(NM22=" "," ",$BQ$6*HLOOKUP($ND$15,Līmeņatzīmes!$B$6:$AI$7,2,FALSE)) ->  | NN26: =IF(NN22=" "," ",$BQ$6*HLOOKUP($ND$15,Līmeņatzīmes!$B$6:$AI$7,2,FALSE)) ->  | NO26: =IF(NO22=" "," ",$BQ$6*HLOOKUP($ND$15,Līmeņatzīmes!$B$6:$AI$7,2,FALSE)) ->  | NP26: =IF(NP22=" "," ",$BQ$6*HLOOKUP($ND$15,Līmeņatzīmes!$B$6:$AI$7,2,FALSE)) ->  | NQ26: =IF(OR(NQ$16=" ",NQ$16=0)," ",SUM(NR26:OC26)) ->  | NR26: =IF(NR22=" "," ",$BQ$6*HLOOKUP($NQ$15,Līmeņatzīmes!$B$6:$AI$7,2,FALSE)) ->  | NS26: =IF(NS22=" "," ",$BQ$6*HLOOKUP($NQ$15,Līmeņatzīmes!$B$6:$AI$7,2,FALSE)) ->  | NT26: =IF(NT22=" "," ",$BQ$6*HLOOKUP($NQ$15,Līmeņatzīmes!$B$6:$AI$7,2,FALSE)) ->  | NU26: =IF(NU22=" "," ",$BQ$6*HLOOKUP($NQ$15,Līmeņatzīmes!$B$6:$AI$7,2,FALSE)) ->  | NV26: =IF(NV22=" "," ",$BQ$6*HLOOKUP($NQ$15,Līmeņatzīmes!$B$6:$AI$7,2,FALSE)) ->  | NW26: =IF(NW22=" "," ",$BQ$6*HLOOKUP($NQ$15,Līmeņatzīmes!$B$6:$AI$7,2,FALSE)) ->  | NX26: =IF(NX22=" "," ",$BQ$6*HLOOKUP($NQ$15,Līmeņatzīmes!$B$6:$AI$7,2,FALSE)) ->  | NY26: =IF(NY22=" "," ",$BQ$6*HLOOKUP($NQ$15,Līmeņatzīmes!$B$6:$AI$7,2,FALSE)) ->  | NZ26: =IF(NZ22=" "," ",$BQ$6*HLOOKUP($NQ$15,Līmeņatzīmes!$B$6:$AI$7,2,FALSE)) ->  | OA26: =IF(OA22=" "," ",$BQ$6*HLOOKUP($NQ$15,Līmeņatzīmes!$B$6:$AI$7,2,FALSE)) ->  | OB26: =IF(OB22=" "," ",$BQ$6*HLOOKUP($NQ$15,Līmeņatzīmes!$B$6:$AI$7,2,FALSE)) ->  | OC26: =IF(OC22=" "," ",$BQ$6*HLOOKUP($NQ$15,Līmeņatzīmes!$B$6:$AI$7,2,FALSE)) ->  | OD26: =IF(OR(OD$16=" ",OD$16=0)," ",SUM(OE26:OP26)) ->  | OE26: =IF(OE22=" "," ",$BQ$6*HLOOKUP($OD$15,Līmeņatzīmes!$B$6:$AI$7,2,FALSE)) ->  | OF26: =IF(OF22=" "," ",$BQ$6*HLOOKUP($OD$15,Līmeņatzīmes!$B$6:$AI$7,2,FALSE)) ->  | OG26: =IF(OG22=" "," ",$BQ$6*HLOOKUP($OD$15,Līmeņatzīmes!$B$6:$AI$7,2,FALSE)) ->  | OH26: =IF(OH22=" "," ",$BQ$6*HLOOKUP($OD$15,Līmeņatzīmes!$B$6:$AI$7,2,FALSE)) ->  | OI26: =IF(OI22=" "," ",$BQ$6*HLOOKUP($OD$15,Līmeņatzīmes!$B$6:$AI$7,2,FALSE)) ->  | OJ26: =IF(OJ22=" "," ",$BQ$6*HLOOKUP($OD$15,Līmeņatzīmes!$B$6:$AI$7,2,FALSE)) ->  | OK26: =IF(OK22=" "," ",$BQ$6*HLOOKUP($OD$15,Līmeņatzīmes!$B$6:$AI$7,2,FALSE)) ->  | OL26: =IF(OL22=" "," ",$BQ$6*HLOOKUP($OD$15,Līmeņatzīmes!$B$6:$AI$7,2,FALSE)) ->  | OM26: =IF(OM22=" "," ",$BQ$6*HLOOKUP($OD$15,Līmeņatzīmes!$B$6:$AI$7,2,FALSE)) ->  | ON26: =IF(ON22=" "," ",$BQ$6*HLOOKUP($OD$15,Līmeņatzīmes!$B$6:$AI$7,2,FALSE)) ->  | OO26: =IF(OO22=" "," ",$BQ$6*HLOOKUP($OD$15,Līmeņatzīmes!$B$6:$AI$7,2,FALSE)) ->  | OP26: =IF(OP22=" "," ",$BQ$6*HLOOKUP($OD$15,Līmeņatzīmes!$B$6:$AI$7,2,FALSE)) ->  | OQ26: =IF(OR(OQ$16=" ",OQ$16=0)," ",SUM(OR26:PC26)) ->  | OR26: =IF(OR22=" "," ",$BQ$6*HLOOKUP($OQ$15,Līmeņatzīmes!$B$6:$AI$7,2,FALSE)) ->  | OS26: =IF(OS22=" "," ",$BQ$6*HLOOKUP($OQ$15,Līmeņatzīmes!$B$6:$AI$7,2,FALSE)) ->  | OT26: =IF(OT22=" "," ",$BQ$6*HLOOKUP($OQ$15,Līmeņatzīmes!$B$6:$AI$7,2,FALSE)) ->  | OU26: =IF(OU22=" "," ",$BQ$6*HLOOKUP($OQ$15,Līmeņatzīmes!$B$6:$AI$7,2,FALSE)) ->  | OV26: =IF(OV22=" "," ",$BQ$6*HLOOKUP($OQ$15,Līmeņatzīmes!$B$6:$AI$7,2,FALSE)) ->  | OW26: =IF(OW22=" "," ",$BQ$6*HLOOKUP($OQ$15,Līmeņatzīmes!$B$6:$AI$7,2,FALSE)) ->  | OX26: =IF(OX22=" "," ",$BQ$6*HLOOKUP($OQ$15,Līmeņatzīmes!$B$6:$AI$7,2,FALSE)) ->  | OY26: =IF(OY22=" "," ",$BQ$6*HLOOKUP($OQ$15,Līmeņatzīmes!$B$6:$AI$7,2,FALSE)) ->  | OZ26: =IF(OZ22=" "," ",$BQ$6*HLOOKUP($OQ$15,Līmeņatzīmes!$B$6:$AI$7,2,FALSE)) ->  | PA26: =IF(PA22=" "," ",$BQ$6*HLOOKUP($OQ$15,Līmeņatzīmes!$B$6:$AI$7,2,FALSE)) ->  | PB26: =IF(PB22=" "," ",$BQ$6*HLOOKUP($OQ$15,Līmeņatzīmes!$B$6:$AI$7,2,FALSE)) ->  | PC26: =IF(PC22=" "," ",$BQ$6*HLOOKUP($OQ$15,Līmeņatzīmes!$B$6:$AI$7,2,FALSE)) ->  | PD26: =IF(OR(PD$16=" ",PD$16=0)," ",SUM(PE26:PP26)) ->  | PE26: =IF(PE22=" "," ",$BQ$6*HLOOKUP($PD$15,Līmeņatzīmes!$B$6:$AI$7,2,FALSE)) ->  | PF26: =IF(PF22=" "," ",$BQ$6*HLOOKUP($PD$15,Līmeņatzīmes!$B$6:$AI$7,2,FALSE)) ->  | PG26: =IF(PG22=" "," ",$BQ$6*HLOOKUP($PD$15,Līmeņatzīmes!$B$6:$AI$7,2,FALSE)) ->  | PH26: =IF(PH22=" "," ",$BQ$6*HLOOKUP($PD$15,Līmeņatzīmes!$B$6:$AI$7,2,FALSE)) ->  | PI26: =IF(PI22=" "," ",$BQ$6*HLOOKUP($PD$15,Līmeņatzīmes!$B$6:$AI$7,2,FALSE)) ->  | PJ26: =IF(PJ22=" "," ",$BQ$6*HLOOKUP($PD$15,Līmeņatzīmes!$B$6:$AI$7,2,FALSE)) ->  | PK26: =IF(PK22=" "," ",$BQ$6*HLOOKUP($PD$15,Līmeņatzīmes!$B$6:$AI$7,2,FALSE)) ->  | PL26: =IF(PL22=" "," ",$BQ$6*HLOOKUP($PD$15,Līmeņatzīmes!$B$6:$AI$7,2,FALSE)) ->  | PM26: =IF(PM22=" "," ",$BQ$6*HLOOKUP($PD$15,Līmeņatzīmes!$B$6:$AI$7,2,FALSE)) ->  | PN26: =IF(PN22=" "," ",$BQ$6*HLOOKUP($PD$15,Līmeņatzīmes!$B$6:$AI$7,2,FALSE)) ->  | PO26: =IF(PO22=" "," ",$BQ$6*HLOOKUP($PD$15,Līmeņatzīmes!$B$6:$AI$7,2,FALSE)) ->  | PP26: =IF(PP22=" "," ",$BQ$6*HLOOKUP($PD$15,Līmeņatzīmes!$B$6:$AI$7,2,FALSE)) ->  | PQ26: =IF(OR(PQ$16=" ",PQ$16=0)," ",SUM(PR26:QC26)) ->  | PR26: =IF(PR22=" "," ",$BQ$6*HLOOKUP($PQ$15,Līmeņatzīmes!$B$6:$AI$7,2,FALSE)) ->  | PS26: =IF(PS22=" "," ",$BQ$6*HLOOKUP($PQ$15,Līmeņatzīmes!$B$6:$AI$7,2,FALSE)) ->  | PT26: =IF(PT22=" "," ",$BQ$6*HLOOKUP($PQ$15,Līmeņatzīmes!$B$6:$AI$7,2,FALSE)) ->  | PU26: =IF(PU22=" "," ",$BQ$6*HLOOKUP($PQ$15,Līmeņatzīmes!$B$6:$AI$7,2,FALSE)) ->  | PV26: =IF(PV22=" "," ",$BQ$6*HLOOKUP($PQ$15,Līmeņatzīmes!$B$6:$AI$7,2,FALSE)) ->  | PW26: =IF(PW22=" "," ",$BQ$6*HLOOKUP($PQ$15,Līmeņatzīmes!$B$6:$AI$7,2,FALSE)) ->  | PX26: =IF(PX22=" "," ",$BQ$6*HLOOKUP($PQ$15,Līmeņatzīmes!$B$6:$AI$7,2,FALSE)) ->  | PY26: =IF(PY22=" "," ",$BQ$6*HLOOKUP($PQ$15,Līmeņatzīmes!$B$6:$AI$7,2,FALSE)) ->  | PZ26: =IF(PZ22=" "," ",$BQ$6*HLOOKUP($PQ$15,Līmeņatzīmes!$B$6:$AI$7,2,FALSE)) ->  | QA26: =IF(QA22=" "," ",$BQ$6*HLOOKUP($PQ$15,Līmeņatzīmes!$B$6:$AI$7,2,FALSE)) ->  | QB26: =IF(QB22=" "," ",$BQ$6*HLOOKUP($PQ$15,Līmeņatzīmes!$B$6:$AI$7,2,FALSE)) ->  | QC26: =IF(QC22=" "," ",$BQ$6*HLOOKUP($PQ$15,Līmeņatzīmes!$B$6:$AI$7,2,FALSE)) -> 
A27: Ekspluatācijas un pārējās darbības izmaksas | B27: EUR/gadā | D27: =IF(OR(D$16=" ",D$16=0)," ",SUM(E27:P27)) ->  | E27: =IF(E22=" "," ",IF($C$27=" ",$CD$6*E21,$C$27*(1+HLOOKUP($D$15,Līmeņatzīmes!$B$3:$AI$4,2,FALSE)))) ->  | F27: =IF(F22=" "," ",IF($C$27=" ",$CD$6*F21,$C$27*(1+HLOOKUP($D$15,Līmeņatzīmes!$B$3:$AI$4,2,FALSE)))) ->  | G27: =IF(G22=" "," ",IF($C$27=" ",$CD$6*G21,$C$27*(1+HLOOKUP($D$15,Līmeņatzīmes!$B$3:$AI$4,2,FALSE)))) ->  | H27: =IF(H22=" "," ",IF($C$27=" ",$CD$6*H21,$C$27*(1+HLOOKUP($D$15,Līmeņatzīmes!$B$3:$AI$4,2,FALSE)))) ->  | I27: =IF(I22=" "," ",IF($C$27=" ",$CD$6*I21,$C$27*(1+HLOOKUP($D$15,Līmeņatzīmes!$B$3:$AI$4,2,FALSE)))) ->  | J27: =IF(J22=" "," ",IF($C$27=" ",$CD$6*J21,$C$27*(1+HLOOKUP($D$15,Līmeņatzīmes!$B$3:$AI$4,2,FALSE)))) ->  | K27: =IF(K22=" "," ",IF($C$27=" ",$CD$6*K21,$C$27*(1+HLOOKUP($D$15,Līmeņatzīmes!$B$3:$AI$4,2,FALSE)))) ->  | L27: =IF(L22=" "," ",IF($C$27=" ",$CD$6*L21,$C$27*(1+HLOOKUP($D$15,Līmeņatzīmes!$B$3:$AI$4,2,FALSE)))) ->  | M27: =IF(M22=" "," ",IF($C$27=" ",$CD$6*M21,$C$27*(1+HLOOKUP($D$15,Līmeņatzīmes!$B$3:$AI$4,2,FALSE)))) ->  | N27: =IF(N22=" "," ",IF($C$27=" ",$CD$6*N21,$C$27*(1+HLOOKUP($D$15,Līmeņatzīmes!$B$3:$AI$4,2,FALSE)))) ->  | O27: =IF(O22=" "," ",IF($C$27=" ",$CD$6*O21,$C$27*(1+HLOOKUP($D$15,Līmeņatzīmes!$B$3:$AI$4,2,FALSE)))) ->  | P27: =IF(P22=" "," ",IF($C$27=" ",$CD$6*P21,$C$27*(1+HLOOKUP($D$15,Līmeņatzīmes!$B$3:$AI$4,2,FALSE)))) ->  | Q27: =IF(OR(Q$16=" ",Q$16=0)," ",SUM(R27:AC27)) ->  | R27: =IF(R22=" "," ",IF($P$27=" ",$CD$6*R21,$P$27*(1+HLOOKUP($Q$15,Līmeņatzīmes!$B$3:$AI$4,2,FALSE)))) ->  | S27: =IF(S22=" "," ",IF($P$27=" ",$CD$6*S21,$P$27*(1+HLOOKUP($Q$15,Līmeņatzīmes!$B$3:$AI$4,2,FALSE)))) ->  | T27: =IF(T22=" "," ",IF($P$27=" ",$CD$6*T21,$P$27*(1+HLOOKUP($Q$15,Līmeņatzīmes!$B$3:$AI$4,2,FALSE)))) ->  | U27: =IF(U22=" "," ",IF($P$27=" ",$CD$6*U21,$P$27*(1+HLOOKUP($Q$15,Līmeņatzīmes!$B$3:$AI$4,2,FALSE)))) ->  | V27: =IF(V22=" "," ",IF($P$27=" ",$CD$6*V21,$P$27*(1+HLOOKUP($Q$15,Līmeņatzīmes!$B$3:$AI$4,2,FALSE)))) ->  | W27: =IF(W22=" "," ",IF($P$27=" ",$CD$6*W21,$P$27*(1+HLOOKUP($Q$15,Līmeņatzīmes!$B$3:$AI$4,2,FALSE)))) ->  | X27: =IF(X22=" "," ",IF($P$27=" ",$CD$6*X21,$P$27*(1+HLOOKUP($Q$15,Līmeņatzīmes!$B$3:$AI$4,2,FALSE)))) ->  | Y27: =IF(Y22=" "," ",IF($P$27=" ",$CD$6*Y21,$P$27*(1+HLOOKUP($Q$15,Līmeņatzīmes!$B$3:$AI$4,2,FALSE)))) ->  | Z27: =IF(Z22=" "," ",IF($P$27=" ",$CD$6*Z21,$P$27*(1+HLOOKUP($Q$15,Līmeņatzīmes!$B$3:$AI$4,2,FALSE)))) ->  | AA27: =IF(AA22=" "," ",IF($P$27=" ",$CD$6*AA21,$P$27*(1+HLOOKUP($Q$15,Līmeņatzīmes!$B$3:$AI$4,2,FALSE)))) ->  | AB27: =IF(AB22=" "," ",IF($P$27=" ",$CD$6*AB21,$P$27*(1+HLOOKUP($Q$15,Līmeņatzīmes!$B$3:$AI$4,2,FALSE)))) ->  | AC27: =IF(AC22=" "," ",IF($P$27=" ",$CD$6*AC21,$P$27*(1+HLOOKUP($Q$15,Līmeņatzīmes!$B$3:$AI$4,2,FALSE)))) ->  | AD27: =IF(OR(AD$16=" ",AD$16=0)," ",SUM(AE27:AP27)) ->  | AE27: =IF(AE22=" "," ",IF($AC$27=" ",$CD$6*AE21,$AC$27*(1+HLOOKUP($AD$15,Līmeņatzīmes!$B$3:$AI$4,2,FALSE)))) ->  | AF27: =IF(AF22=" "," ",IF($AC$27=" ",$CD$6*AF21,$AC$27*(1+HLOOKUP($AD$15,Līmeņatzīmes!$B$3:$AI$4,2,FALSE)))) ->  | AG27: =IF(AG22=" "," ",IF($AC$27=" ",$CD$6*AG21,$AC$27*(1+HLOOKUP($AD$15,Līmeņatzīmes!$B$3:$AI$4,2,FALSE)))) ->  | AH27: =IF(AH22=" "," ",IF($AC$27=" ",$CD$6*AH21,$AC$27*(1+HLOOKUP($AD$15,Līmeņatzīmes!$B$3:$AI$4,2,FALSE)))) ->  | AI27: =IF(AI22=" "," ",IF($AC$27=" ",$CD$6*AI21,$AC$27*(1+HLOOKUP($AD$15,Līmeņatzīmes!$B$3:$AI$4,2,FALSE)))) ->  | AJ27: =IF(AJ22=" "," ",IF($AC$27=" ",$CD$6*AJ21,$AC$27*(1+HLOOKUP($AD$15,Līmeņatzīmes!$B$3:$AI$4,2,FALSE)))) ->  | AK27: =IF(AK22=" "," ",IF($AC$27=" ",$CD$6*AK21,$AC$27*(1+HLOOKUP($AD$15,Līmeņatzīmes!$B$3:$AI$4,2,FALSE)))) ->  | AL27: =IF(AL22=" "," ",IF($AC$27=" ",$CD$6*AL21,$AC$27*(1+HLOOKUP($AD$15,Līmeņatzīmes!$B$3:$AI$4,2,FALSE)))) ->  | AM27: =IF(AM22=" "," ",IF($AC$27=" ",$CD$6*AM21,$AC$27*(1+HLOOKUP($AD$15,Līmeņatzīmes!$B$3:$AI$4,2,FALSE)))) ->  | AN27: =IF(AN22=" "," ",IF($AC$27=" ",$CD$6*AN21,$AC$27*(1+HLOOKUP($AD$15,Līmeņatzīmes!$B$3:$AI$4,2,FALSE)))) ->  | AO27: =IF(AO22=" "," ",IF($AC$27=" ",$CD$6*AO21,$AC$27*(1+HLOOKUP($AD$15,Līmeņatzīmes!$B$3:$AI$4,2,FALSE)))) ->  | AP27: =IF(AP22=" "," ",IF($AC$27=" ",$CD$6*AP21,$AC$27*(1+HLOOKUP($AD$15,Līmeņatzīmes!$B$3:$AI$4,2,FALSE)))) ->  | AQ27: =IF(OR(AQ$16=" ",AQ$16=0)," ",SUM(AR27:BC27)) ->  | AR27: =IF(AR22=" "," ",IF($AP$27=" ",$CD$6*AR21,$AP$27*(1+HLOOKUP($AQ$15,Līmeņatzīmes!$B$3:$AI$4,2,FALSE)))) ->  | AS27: =IF(AS22=" "," ",IF($AP$27=" ",$CD$6*AS21,$AP$27*(1+HLOOKUP($AQ$15,Līmeņatzīmes!$B$3:$AI$4,2,FALSE)))) ->  | AT27: =IF(AT22=" "," ",IF($AP$27=" ",$CD$6*AT21,$AP$27*(1+HLOOKUP($AQ$15,Līmeņatzīmes!$B$3:$AI$4,2,FALSE)))) ->  | AU27: =IF(AU22=" "," ",IF($AP$27=" ",$CD$6*AU21,$AP$27*(1+HLOOKUP($AQ$15,Līmeņatzīmes!$B$3:$AI$4,2,FALSE)))) ->  | AV27: =IF(AV22=" "," ",IF($AP$27=" ",$CD$6*AV21,$AP$27*(1+HLOOKUP($AQ$15,Līmeņatzīmes!$B$3:$AI$4,2,FALSE)))) ->  | AW27: =IF(AW22=" "," ",IF($AP$27=" ",$CD$6*AW21,$AP$27*(1+HLOOKUP($AQ$15,Līmeņatzīmes!$B$3:$AI$4,2,FALSE)))) ->  | AX27: =IF(AX22=" "," ",IF($AP$27=" ",$CD$6*AX21,$AP$27*(1+HLOOKUP($AQ$15,Līmeņatzīmes!$B$3:$AI$4,2,FALSE)))) ->  | AY27: =IF(AY22=" "," ",IF($AP$27=" ",$CD$6*AY21,$AP$27*(1+HLOOKUP($AQ$15,Līmeņatzīmes!$B$3:$AI$4,2,FALSE)))) ->  | AZ27: =IF(AZ22=" "," ",IF($AP$27=" ",$CD$6*AZ21,$AP$27*(1+HLOOKUP($AQ$15,Līmeņatzīmes!$B$3:$AI$4,2,FALSE)))) ->  | BA27: =IF(BA22=" "," ",IF($AP$27=" ",$CD$6*BA21,$AP$27*(1+HLOOKUP($AQ$15,Līmeņatzīmes!$B$3:$AI$4,2,FALSE)))) ->  | BB27: =IF(BB22=" "," ",IF($AP$27=" ",$CD$6*BB21,$AP$27*(1+HLOOKUP($AQ$15,Līmeņatzīmes!$B$3:$AI$4,2,FALSE)))) ->  | BC27: =IF(BC22=" "," ",IF($AP$27=" ",$CD$6*BC21,$AP$27*(1+HLOOKUP($AQ$15,Līmeņatzīmes!$B$3:$AI$4,2,FALSE)))) ->  | BD27: =IF(OR(BD$16=" ",BD$16=0)," ",SUM(BE27:BP27)) ->  | BE27: =IF(BE22=" "," ",IF($BC$27=" ",$CD$6*BE21,$BC$27*(1+HLOOKUP($BD$15,Līmeņatzīmes!$B$3:$AI$4,2,FALSE)))) ->  | BF27: =IF(BF22=" "," ",IF($BC$27=" ",$CD$6*BF21,$BC$27*(1+HLOOKUP($BD$15,Līmeņatzīmes!$B$3:$AI$4,2,FALSE)))) ->  | BG27: =IF(BG22=" "," ",IF($BC$27=" ",$CD$6*BG21,$BC$27*(1+HLOOKUP($BD$15,Līmeņatzīmes!$B$3:$AI$4,2,FALSE)))) ->  | BH27: =IF(BH22=" "," ",IF($BC$27=" ",$CD$6*BH21,$BC$27*(1+HLOOKUP($BD$15,Līmeņatzīmes!$B$3:$AI$4,2,FALSE)))) ->  | BI27: =IF(BI22=" "," ",IF($BC$27=" ",$CD$6*BI21,$BC$27*(1+HLOOKUP($BD$15,Līmeņatzīmes!$B$3:$AI$4,2,FALSE)))) ->  | BJ27: =IF(BJ22=" "," ",IF($BC$27=" ",$CD$6*BJ21,$BC$27*(1+HLOOKUP($BD$15,Līmeņatzīmes!$B$3:$AI$4,2,FALSE)))) ->  | BK27: =IF(BK22=" "," ",IF($BC$27=" ",$CD$6*BK21,$BC$27*(1+HLOOKUP($BD$15,Līmeņatzīmes!$B$3:$AI$4,2,FALSE)))) ->  | BL27: =IF(BL22=" "," ",IF($BC$27=" ",$CD$6*BL21,$BC$27*(1+HLOOKUP($BD$15,Līmeņatzīmes!$B$3:$AI$4,2,FALSE)))) ->  | BM27: =IF(BM22=" "," ",IF($BC$27=" ",$CD$6*BM21,$BC$27*(1+HLOOKUP($BD$15,Līmeņatzīmes!$B$3:$AI$4,2,FALSE)))) ->  | BN27: =IF(BN22=" "," ",IF($BC$27=" ",$CD$6*BN21,$BC$27*(1+HLOOKUP($BD$15,Līmeņatzīmes!$B$3:$AI$4,2,FALSE)))) ->  | BO27: =IF(BO22=" "," ",IF($BC$27=" ",$CD$6*BO21,$BC$27*(1+HLOOKUP($BD$15,Līmeņatzīmes!$B$3:$AI$4,2,FALSE)))) ->  | BP27: =IF(BP22=" "," ",IF($BC$27=" ",$CD$6*BP21,$BC$27*(1+HLOOKUP($BD$15,Līmeņatzīmes!$B$3:$AI$4,2,FALSE)))) ->  | BQ27: =IF(OR(BQ$16=" ",BQ$16=0)," ",SUM(BR27:CC27)) ->  | BR27: =IF(BR22=" "," ",IF($BP$27=" ",$CD$6*BR21,$BP$27*(1+HLOOKUP($BQ$15,Līmeņatzīmes!$B$3:$AI$4,2,FALSE)))) ->  | BS27: =IF(BS22=" "," ",IF($BP$27=" ",$CD$6*BS21,$BP$27*(1+HLOOKUP($BQ$15,Līmeņatzīmes!$B$3:$AI$4,2,FALSE)))) ->  | BT27: =IF(BT22=" "," ",IF($BP$27=" ",$CD$6*BT21,$BP$27*(1+HLOOKUP($BQ$15,Līmeņatzīmes!$B$3:$AI$4,2,FALSE)))) ->  | BU27: =IF(BU22=" "," ",IF($BP$27=" ",$CD$6*BU21,$BP$27*(1+HLOOKUP($BQ$15,Līmeņatzīmes!$B$3:$AI$4,2,FALSE)))) ->  | BV27: =IF(BV22=" "," ",IF($BP$27=" ",$CD$6*BV21,$BP$27*(1+HLOOKUP($BQ$15,Līmeņatzīmes!$B$3:$AI$4,2,FALSE)))) ->  | BW27: =IF(BW22=" "," ",IF($BP$27=" ",$CD$6*BW21,$BP$27*(1+HLOOKUP($BQ$15,Līmeņatzīmes!$B$3:$AI$4,2,FALSE)))) ->  | BX27: =IF(BX22=" "," ",IF($BP$27=" ",$CD$6*BX21,$BP$27*(1+HLOOKUP($BQ$15,Līmeņatzīmes!$B$3:$AI$4,2,FALSE)))) ->  | BY27: =IF(BY22=" "," ",IF($BP$27=" ",$CD$6*BY21,$BP$27*(1+HLOOKUP($BQ$15,Līmeņatzīmes!$B$3:$AI$4,2,FALSE)))) ->  | BZ27: =IF(BZ22=" "," ",IF($BP$27=" ",$CD$6*BZ21,$BP$27*(1+HLOOKUP($BQ$15,Līmeņatzīmes!$B$3:$AI$4,2,FALSE)))) ->  | CA27: =IF(CA22=" "," ",IF($BP$27=" ",$CD$6*CA21,$BP$27*(1+HLOOKUP($BQ$15,Līmeņatzīmes!$B$3:$AI$4,2,FALSE)))) ->  | CB27: =IF(CB22=" "," ",IF($BP$27=" ",$CD$6*CB21,$BP$27*(1+HLOOKUP($BQ$15,Līmeņatzīmes!$B$3:$AI$4,2,FALSE)))) ->  | CC27: =IF(CC22=" "," ",IF($BP$27=" ",$CD$6*CC21,$BP$27*(1+HLOOKUP($BQ$15,Līmeņatzīmes!$B$3:$AI$4,2,FALSE)))) ->  | CD27: =IF(OR(CD$16=" ",CD$16=0)," ",SUM(CE27:CP27)) ->  | CE27: =IF(CE22=" "," ",IF($CC$27=" ",$CD$6*CE21,$CC$27*(1+HLOOKUP($CD$15,Līmeņatzīmes!$B$3:$AI$4,2,FALSE)))) ->  | CF27: =IF(CF22=" "," ",IF($CC$27=" ",$CD$6*CF21,$CC$27*(1+HLOOKUP($CD$15,Līmeņatzīmes!$B$3:$AI$4,2,FALSE)))) ->  | CG27: =IF(CG22=" "," ",IF($CC$27=" ",$CD$6*CG21,$CC$27*(1+HLOOKUP($CD$15,Līmeņatzīmes!$B$3:$AI$4,2,FALSE)))) ->  | CH27: =IF(CH22=" "," ",IF($CC$27=" ",$CD$6*CH21,$CC$27*(1+HLOOKUP($CD$15,Līmeņatzīmes!$B$3:$AI$4,2,FALSE)))) ->  | CI27: =IF(CI22=" "," ",IF($CC$27=" ",$CD$6*CI21,$CC$27*(1+HLOOKUP($CD$15,Līmeņatzīmes!$B$3:$AI$4,2,FALSE)))) ->  | CJ27: =IF(CJ22=" "," ",IF($CC$27=" ",$CD$6*CJ21,$CC$27*(1+HLOOKUP($CD$15,Līmeņatzīmes!$B$3:$AI$4,2,FALSE)))) ->  | CK27: =IF(CK22=" "," ",IF($CC$27=" ",$CD$6*CK21,$CC$27*(1+HLOOKUP($CD$15,Līmeņatzīmes!$B$3:$AI$4,2,FALSE)))) ->  | CL27: =IF(CL22=" "," ",IF($CC$27=" ",$CD$6*CL21,$CC$27*(1+HLOOKUP($CD$15,Līmeņatzīmes!$B$3:$AI$4,2,FALSE)))) ->  | CM27: =IF(CM22=" "," ",IF($CC$27=" ",$CD$6*CM21,$CC$27*(1+HLOOKUP($CD$15,Līmeņatzīmes!$B$3:$AI$4,2,FALSE)))) ->  | CN27: =IF(CN22=" "," ",IF($CC$27=" ",$CD$6*CN21,$CC$27*(1+HLOOKUP($CD$15,Līmeņatzīmes!$B$3:$AI$4,2,FALSE)))) ->  | CO27: =IF(CO22=" "," ",IF($CC$27=" ",$CD$6*CO21,$CC$27*(1+HLOOKUP($CD$15,Līmeņatzīmes!$B$3:$AI$4,2,FALSE)))) ->  | CP27: =IF(CP22=" "," ",IF($CC$27=" ",$CD$6*CP21,$CC$27*(1+HLOOKUP($CD$15,Līmeņatzīmes!$B$3:$AI$4,2,FALSE)))) ->  | CQ27: =IF(OR(CQ$16=" ",CQ$16=0)," ",SUM(CR27:DC27)) ->  | CR27: =IF(CR22=" "," ",IF($CP$27=" ",$CD$6*CR21,$CP$27*(1+HLOOKUP($CQ$15,Līmeņatzīmes!$B$3:$AI$4,2,FALSE)))) ->  | CS27: =IF(CS22=" "," ",IF($CP$27=" ",$CD$6*CS21,$CP$27*(1+HLOOKUP($CQ$15,Līmeņatzīmes!$B$3:$AI$4,2,FALSE)))) ->  | CT27: =IF(CT22=" "," ",IF($CP$27=" ",$CD$6*CT21,$CP$27*(1+HLOOKUP($CQ$15,Līmeņatzīmes!$B$3:$AI$4,2,FALSE)))) ->  | CU27: =IF(CU22=" "," ",IF($CP$27=" ",$CD$6*CU21,$CP$27*(1+HLOOKUP($CQ$15,Līmeņatzīmes!$B$3:$AI$4,2,FALSE)))) ->  | CV27: =IF(CV22=" "," ",IF($CP$27=" ",$CD$6*CV21,$CP$27*(1+HLOOKUP($CQ$15,Līmeņatzīmes!$B$3:$AI$4,2,FALSE)))) ->  | CW27: =IF(CW22=" "," ",IF($CP$27=" ",$CD$6*CW21,$CP$27*(1+HLOOKUP($CQ$15,Līmeņatzīmes!$B$3:$AI$4,2,FALSE)))) ->  | CX27: =IF(CX22=" "," ",IF($CP$27=" ",$CD$6*CX21,$CP$27*(1+HLOOKUP($CQ$15,Līmeņatzīmes!$B$3:$AI$4,2,FALSE)))) ->  | CY27: =IF(CY22=" "," ",IF($CP$27=" ",$CD$6*CY21,$CP$27*(1+HLOOKUP($CQ$15,Līmeņatzīmes!$B$3:$AI$4,2,FALSE)))) ->  | CZ27: =IF(CZ22=" "," ",IF($CP$27=" ",$CD$6*CZ21,$CP$27*(1+HLOOKUP($CQ$15,Līmeņatzīmes!$B$3:$AI$4,2,FALSE)))) ->  | DA27: =IF(DA22=" "," ",IF($CP$27=" ",$CD$6*DA21,$CP$27*(1+HLOOKUP($CQ$15,Līmeņatzīmes!$B$3:$AI$4,2,FALSE)))) ->  | DB27: =IF(DB22=" "," ",IF($CP$27=" ",$CD$6*DB21,$CP$27*(1+HLOOKUP($CQ$15,Līmeņatzīmes!$B$3:$AI$4,2,FALSE)))) ->  | DC27: =IF(DC22=" "," ",IF($CP$27=" ",$CD$6*DC21,$CP$27*(1+HLOOKUP($CQ$15,Līmeņatzīmes!$B$3:$AI$4,2,FALSE)))) ->  | DD27: =IF(OR(DD$16=" ",DD$16=0)," ",SUM(DE27:DP27)) ->  | DE27: =IF(DE22=" "," ",IF($DC$27=" ",$CD$6*DE21,$DC$27*(1+HLOOKUP($DD$15,Līmeņatzīmes!$B$3:$AI$4,2,FALSE)))) ->  | DF27: =IF(DF22=" "," ",IF($DC$27=" ",$CD$6*DF21,$DC$27*(1+HLOOKUP($DD$15,Līmeņatzīmes!$B$3:$AI$4,2,FALSE)))) ->  | DG27: =IF(DG22=" "," ",IF($DC$27=" ",$CD$6*DG21,$DC$27*(1+HLOOKUP($DD$15,Līmeņatzīmes!$B$3:$AI$4,2,FALSE)))) ->  | DH27: =IF(DH22=" "," ",IF($DC$27=" ",$CD$6*DH21,$DC$27*(1+HLOOKUP($DD$15,Līmeņatzīmes!$B$3:$AI$4,2,FALSE)))) ->  | DI27: =IF(DI22=" "," ",IF($DC$27=" ",$CD$6*DI21,$DC$27*(1+HLOOKUP($DD$15,Līmeņatzīmes!$B$3:$AI$4,2,FALSE)))) ->  | DJ27: =IF(DJ22=" "," ",IF($DC$27=" ",$CD$6*DJ21,$DC$27*(1+HLOOKUP($DD$15,Līmeņatzīmes!$B$3:$AI$4,2,FALSE)))) ->  | DK27: =IF(DK22=" "," ",IF($DC$27=" ",$CD$6*DK21,$DC$27*(1+HLOOKUP($DD$15,Līmeņatzīmes!$B$3:$AI$4,2,FALSE)))) ->  | DL27: =IF(DL22=" "," ",IF($DC$27=" ",$CD$6*DL21,$DC$27*(1+HLOOKUP($DD$15,Līmeņatzīmes!$B$3:$AI$4,2,FALSE)))) ->  | DM27: =IF(DM22=" "," ",IF($DC$27=" ",$CD$6*DM21,$DC$27*(1+HLOOKUP($DD$15,Līmeņatzīmes!$B$3:$AI$4,2,FALSE)))) ->  | DN27: =IF(DN22=" "," ",IF($DC$27=" ",$CD$6*DN21,$DC$27*(1+HLOOKUP($DD$15,Līmeņatzīmes!$B$3:$AI$4,2,FALSE)))) ->  | DO27: =IF(DO22=" "," ",IF($DC$27=" ",$CD$6*DO21,$DC$27*(1+HLOOKUP($DD$15,Līmeņatzīmes!$B$3:$AI$4,2,FALSE)))) ->  | DP27: =IF(DP22=" "," ",IF($DC$27=" ",$CD$6*DP21,$DC$27*(1+HLOOKUP($DD$15,Līmeņatzīmes!$B$3:$AI$4,2,FALSE)))) ->  | DQ27: =IF(OR(DQ$16=" ",DQ$16=0)," ",SUM(DR27:EC27)) ->  | DR27: =IF(DR22=" "," ",IF($DP$27=" ",$CD$6*DR21,$DP$27*(1+HLOOKUP($DQ$15,Līmeņatzīmes!$B$3:$AI$4,2,FALSE)))) ->  | DS27: =IF(DS22=" "," ",IF($DP$27=" ",$CD$6*DS21,$DP$27*(1+HLOOKUP($DQ$15,Līmeņatzīmes!$B$3:$AI$4,2,FALSE)))) ->  | DT27: =IF(DT22=" "," ",IF($DP$27=" ",$CD$6*DT21,$DP$27*(1+HLOOKUP($DQ$15,Līmeņatzīmes!$B$3:$AI$4,2,FALSE)))) ->  | DU27: =IF(DU22=" "," ",IF($DP$27=" ",$CD$6*DU21,$DP$27*(1+HLOOKUP($DQ$15,Līmeņatzīmes!$B$3:$AI$4,2,FALSE)))) ->  | DV27: =IF(DV22=" "," ",IF($DP$27=" ",$CD$6*DV21,$DP$27*(1+HLOOKUP($DQ$15,Līmeņatzīmes!$B$3:$AI$4,2,FALSE)))) ->  | DW27: =IF(DW22=" "," ",IF($DP$27=" ",$CD$6*DW21,$DP$27*(1+HLOOKUP($DQ$15,Līmeņatzīmes!$B$3:$AI$4,2,FALSE)))) ->  | DX27: =IF(DX22=" "," ",IF($DP$27=" ",$CD$6*DX21,$DP$27*(1+HLOOKUP($DQ$15,Līmeņatzīmes!$B$3:$AI$4,2,FALSE)))) ->  | DY27: =IF(DY22=" "," ",IF($DP$27=" ",$CD$6*DY21,$DP$27*(1+HLOOKUP($DQ$15,Līmeņatzīmes!$B$3:$AI$4,2,FALSE)))) ->  | DZ27: =IF(DZ22=" "," ",IF($DP$27=" ",$CD$6*DZ21,$DP$27*(1+HLOOKUP($DQ$15,Līmeņatzīmes!$B$3:$AI$4,2,FALSE)))) ->  | EA27: =IF(EA22=" "," ",IF($DP$27=" ",$CD$6*EA21,$DP$27*(1+HLOOKUP($DQ$15,Līmeņatzīmes!$B$3:$AI$4,2,FALSE)))) ->  | EB27: =IF(EB22=" "," ",IF($DP$27=" ",$CD$6*EB21,$DP$27*(1+HLOOKUP($DQ$15,Līmeņatzīmes!$B$3:$AI$4,2,FALSE)))) ->  | EC27: =IF(EC22=" "," ",IF($DP$27=" ",$CD$6*EC21,$DP$27*(1+HLOOKUP($DQ$15,Līmeņatzīmes!$B$3:$AI$4,2,FALSE)))) ->  | ED27: =IF(OR(ED$16=" ",ED$16=0)," ",SUM(EE27:EP27)) ->  | EE27: =IF(EE22=" "," ",IF($EC$27=" ",$CD$6*EE21,$EC$27*(1+HLOOKUP($ED$15,Līmeņatzīmes!$B$3:$AI$4,2,FALSE)))) ->  | EF27: =IF(EF22=" "," ",IF($EC$27=" ",$CD$6*EF21,$EC$27*(1+HLOOKUP($ED$15,Līmeņatzīmes!$B$3:$AI$4,2,FALSE)))) ->  | EG27: =IF(EG22=" "," ",IF($EC$27=" ",$CD$6*EG21,$EC$27*(1+HLOOKUP($ED$15,Līmeņatzīmes!$B$3:$AI$4,2,FALSE)))) ->  | EH27: =IF(EH22=" "," ",IF($EC$27=" ",$CD$6*EH21,$EC$27*(1+HLOOKUP($ED$15,Līmeņatzīmes!$B$3:$AI$4,2,FALSE)))) ->  | EI27: =IF(EI22=" "," ",IF($EC$27=" ",$CD$6*EI21,$EC$27*(1+HLOOKUP($ED$15,Līmeņatzīmes!$B$3:$AI$4,2,FALSE)))) ->  | EJ27: =IF(EJ22=" "," ",IF($EC$27=" ",$CD$6*EJ21,$EC$27*(1+HLOOKUP($ED$15,Līmeņatzīmes!$B$3:$AI$4,2,FALSE)))) ->  | EK27: =IF(EK22=" "," ",IF($EC$27=" ",$CD$6*EK21,$EC$27*(1+HLOOKUP($ED$15,Līmeņatzīmes!$B$3:$AI$4,2,FALSE)))) ->  | EL27: =IF(EL22=" "," ",IF($EC$27=" ",$CD$6*EL21,$EC$27*(1+HLOOKUP($ED$15,Līmeņatzīmes!$B$3:$AI$4,2,FALSE)))) ->  | EM27: =IF(EM22=" "," ",IF($EC$27=" ",$CD$6*EM21,$EC$27*(1+HLOOKUP($ED$15,Līmeņatzīmes!$B$3:$AI$4,2,FALSE)))) ->  | EN27: =IF(EN22=" "," ",IF($EC$27=" ",$CD$6*EN21,$EC$27*(1+HLOOKUP($ED$15,Līmeņatzīmes!$B$3:$AI$4,2,FALSE)))) ->  | EO27: =IF(EO22=" "," ",IF($EC$27=" ",$CD$6*EO21,$EC$27*(1+HLOOKUP($ED$15,Līmeņatzīmes!$B$3:$AI$4,2,FALSE)))) ->  | EP27: =IF(EP22=" "," ",IF($EC$27=" ",$CD$6*EP21,$EC$27*(1+HLOOKUP($ED$15,Līmeņatzīmes!$B$3:$AI$4,2,FALSE)))) ->  | EQ27: =IF(OR(EQ$16=" ",EQ$16=0)," ",SUM(ER27:FC27)) ->  | ER27: =IF(ER22=" "," ",IF($EP$27=" ",$CD$6*ER21,$EP$27*(1+HLOOKUP($EQ$15,Līmeņatzīmes!$B$3:$AI$4,2,FALSE)))) ->  | ES27: =IF(ES22=" "," ",IF($EP$27=" ",$CD$6*ES21,$EP$27*(1+HLOOKUP($EQ$15,Līmeņatzīmes!$B$3:$AI$4,2,FALSE)))) ->  | ET27: =IF(ET22=" "," ",IF($EP$27=" ",$CD$6*ET21,$EP$27*(1+HLOOKUP($EQ$15,Līmeņatzīmes!$B$3:$AI$4,2,FALSE)))) ->  | EU27: =IF(EU22=" "," ",IF($EP$27=" ",$CD$6*EU21,$EP$27*(1+HLOOKUP($EQ$15,Līmeņatzīmes!$B$3:$AI$4,2,FALSE)))) ->  | EV27: =IF(EV22=" "," ",IF($EP$27=" ",$CD$6*EV21,$EP$27*(1+HLOOKUP($EQ$15,Līmeņatzīmes!$B$3:$AI$4,2,FALSE)))) ->  | EW27: =IF(EW22=" "," ",IF($EP$27=" ",$CD$6*EW21,$EP$27*(1+HLOOKUP($EQ$15,Līmeņatzīmes!$B$3:$AI$4,2,FALSE)))) ->  | EX27: =IF(EX22=" "," ",IF($EP$27=" ",$CD$6*EX21,$EP$27*(1+HLOOKUP($EQ$15,Līmeņatzīmes!$B$3:$AI$4,2,FALSE)))) ->  | EY27: =IF(EY22=" "," ",IF($EP$27=" ",$CD$6*EY21,$EP$27*(1+HLOOKUP($EQ$15,Līmeņatzīmes!$B$3:$AI$4,2,FALSE)))) ->  | EZ27: =IF(EZ22=" "," ",IF($EP$27=" ",$CD$6*EZ21,$EP$27*(1+HLOOKUP($EQ$15,Līmeņatzīmes!$B$3:$AI$4,2,FALSE)))) ->  | FA27: =IF(FA22=" "," ",IF($EP$27=" ",$CD$6*FA21,$EP$27*(1+HLOOKUP($EQ$15,Līmeņatzīmes!$B$3:$AI$4,2,FALSE)))) ->  | FB27: =IF(FB22=" "," ",IF($EP$27=" ",$CD$6*FB21,$EP$27*(1+HLOOKUP($EQ$15,Līmeņatzīmes!$B$3:$AI$4,2,FALSE)))) ->  | FC27: =IF(FC22=" "," ",IF($EP$27=" ",$CD$6*FC21,$EP$27*(1+HLOOKUP($EQ$15,Līmeņatzīmes!$B$3:$AI$4,2,FALSE)))) ->  | FD27: =IF(OR(FD$16=" ",FD$16=0)," ",SUM(FE27:FP27)) ->  | FE27: =IF(FE22=" "," ",IF($FC$27=" ",$CD$6*FE21,$FC$27*(1+HLOOKUP($FD$15,Līmeņatzīmes!$B$3:$AI$4,2,FALSE)))) ->  | FF27: =IF(FF22=" "," ",IF($FC$27=" ",$CD$6*FF21,$FC$27*(1+HLOOKUP($FD$15,Līmeņatzīmes!$B$3:$AI$4,2,FALSE)))) ->  | FG27: =IF(FG22=" "," ",IF($FC$27=" ",$CD$6*FG21,$FC$27*(1+HLOOKUP($FD$15,Līmeņatzīmes!$B$3:$AI$4,2,FALSE)))) ->  | FH27: =IF(FH22=" "," ",IF($FC$27=" ",$CD$6*FH21,$FC$27*(1+HLOOKUP($FD$15,Līmeņatzīmes!$B$3:$AI$4,2,FALSE)))) ->  | FI27: =IF(FI22=" "," ",IF($FC$27=" ",$CD$6*FI21,$FC$27*(1+HLOOKUP($FD$15,Līmeņatzīmes!$B$3:$AI$4,2,FALSE)))) ->  | FJ27: =IF(FJ22=" "," ",IF($FC$27=" ",$CD$6*FJ21,$FC$27*(1+HLOOKUP($FD$15,Līmeņatzīmes!$B$3:$AI$4,2,FALSE)))) ->  | FK27: =IF(FK22=" "," ",IF($FC$27=" ",$CD$6*FK21,$FC$27*(1+HLOOKUP($FD$15,Līmeņatzīmes!$B$3:$AI$4,2,FALSE)))) ->  | FL27: =IF(FL22=" "," ",IF($FC$27=" ",$CD$6*FL21,$FC$27*(1+HLOOKUP($FD$15,Līmeņatzīmes!$B$3:$AI$4,2,FALSE)))) ->  | FM27: =IF(FM22=" "," ",IF($FC$27=" ",$CD$6*FM21,$FC$27*(1+HLOOKUP($FD$15,Līmeņatzīmes!$B$3:$AI$4,2,FALSE)))) ->  | FN27: =IF(FN22=" "," ",IF($FC$27=" ",$CD$6*FN21,$FC$27*(1+HLOOKUP($FD$15,Līmeņatzīmes!$B$3:$AI$4,2,FALSE)))) ->  | FO27: =IF(FO22=" "," ",IF($FC$27=" ",$CD$6*FO21,$FC$27*(1+HLOOKUP($FD$15,Līmeņatzīmes!$B$3:$AI$4,2,FALSE)))) ->  | FP27: =IF(FP22=" "," ",IF($FC$27=" ",$CD$6*FP21,$FC$27*(1+HLOOKUP($FD$15,Līmeņatzīmes!$B$3:$AI$4,2,FALSE)))) ->  | FQ27: =IF(OR(FQ$16=" ",FQ$16=0)," ",SUM(FR27:GC27)) ->  | FR27: =IF(FR22=" "," ",IF($FP$27=" ",$CD$6*FR21,$FP$27*(1+HLOOKUP($FQ$15,Līmeņatzīmes!$B$3:$AI$4,2,FALSE)))) ->  | FS27: =IF(FS22=" "," ",IF($FP$27=" ",$CD$6*FS21,$FP$27*(1+HLOOKUP($FQ$15,Līmeņatzīmes!$B$3:$AI$4,2,FALSE)))) ->  | FT27: =IF(FT22=" "," ",IF($FP$27=" ",$CD$6*FT21,$FP$27*(1+HLOOKUP($FQ$15,Līmeņatzīmes!$B$3:$AI$4,2,FALSE)))) ->  | FU27: =IF(FU22=" "," ",IF($FP$27=" ",$CD$6*FU21,$FP$27*(1+HLOOKUP($FQ$15,Līmeņatzīmes!$B$3:$AI$4,2,FALSE)))) ->  | FV27: =IF(FV22=" "," ",IF($FP$27=" ",$CD$6*FV21,$FP$27*(1+HLOOKUP($FQ$15,Līmeņatzīmes!$B$3:$AI$4,2,FALSE)))) ->  | FW27: =IF(FW22=" "," ",IF($FP$27=" ",$CD$6*FW21,$FP$27*(1+HLOOKUP($FQ$15,Līmeņatzīmes!$B$3:$AI$4,2,FALSE)))) ->  | FX27: =IF(FX22=" "," ",IF($FP$27=" ",$CD$6*FX21,$FP$27*(1+HLOOKUP($FQ$15,Līmeņatzīmes!$B$3:$AI$4,2,FALSE)))) ->  | FY27: =IF(FY22=" "," ",IF($FP$27=" ",$CD$6*FY21,$FP$27*(1+HLOOKUP($FQ$15,Līmeņatzīmes!$B$3:$AI$4,2,FALSE)))) ->  | FZ27: =IF(FZ22=" "," ",IF($FP$27=" ",$CD$6*FZ21,$FP$27*(1+HLOOKUP($FQ$15,Līmeņatzīmes!$B$3:$AI$4,2,FALSE)))) ->  | GA27: =IF(GA22=" "," ",IF($FP$27=" ",$CD$6*GA21,$FP$27*(1+HLOOKUP($FQ$15,Līmeņatzīmes!$B$3:$AI$4,2,FALSE)))) ->  | GB27: =IF(GB22=" "," ",IF($FP$27=" ",$CD$6*GB21,$FP$27*(1+HLOOKUP($FQ$15,Līmeņatzīmes!$B$3:$AI$4,2,FALSE)))) ->  | GC27: =IF(GC22=" "," ",IF($FP$27=" ",$CD$6*GC21,$FP$27*(1+HLOOKUP($FQ$15,Līmeņatzīmes!$B$3:$AI$4,2,FALSE)))) ->  | GD27: =IF(OR(GD$16=" ",GD$16=0)," ",SUM(GE27:GP27)) ->  | GE27: =IF(GE22=" "," ",IF($GC$27=" ",$CD$6*GE21,$GC$27*(1+HLOOKUP($GD$15,Līmeņatzīmes!$B$3:$AI$4,2,FALSE)))) ->  | GF27: =IF(GF22=" "," ",IF($GC$27=" ",$CD$6*GF21,$GC$27*(1+HLOOKUP($GD$15,Līmeņatzīmes!$B$3:$AI$4,2,FALSE)))) ->  | GG27: =IF(GG22=" "," ",IF($GC$27=" ",$CD$6*GG21,$GC$27*(1+HLOOKUP($GD$15,Līmeņatzīmes!$B$3:$AI$4,2,FALSE)))) ->  | GH27: =IF(GH22=" "," ",IF($GC$27=" ",$CD$6*GH21,$GC$27*(1+HLOOKUP($GD$15,Līmeņatzīmes!$B$3:$AI$4,2,FALSE)))) ->  | GI27: =IF(GI22=" "," ",IF($GC$27=" ",$CD$6*GI21,$GC$27*(1+HLOOKUP($GD$15,Līmeņatzīmes!$B$3:$AI$4,2,FALSE)))) ->  | GJ27: =IF(GJ22=" "," ",IF($GC$27=" ",$CD$6*GJ21,$GC$27*(1+HLOOKUP($GD$15,Līmeņatzīmes!$B$3:$AI$4,2,FALSE)))) ->  | GK27: =IF(GK22=" "," ",IF($GC$27=" ",$CD$6*GK21,$GC$27*(1+HLOOKUP($GD$15,Līmeņatzīmes!$B$3:$AI$4,2,FALSE)))) ->  | GL27: =IF(GL22=" "," ",IF($GC$27=" ",$CD$6*GL21,$GC$27*(1+HLOOKUP($GD$15,Līmeņatzīmes!$B$3:$AI$4,2,FALSE)))) ->  | GM27: =IF(GM22=" "," ",IF($GC$27=" ",$CD$6*GM21,$GC$27*(1+HLOOKUP($GD$15,Līmeņatzīmes!$B$3:$AI$4,2,FALSE)))) ->  | GN27: =IF(GN22=" "," ",IF($GC$27=" ",$CD$6*GN21,$GC$27*(1+HLOOKUP($GD$15,Līmeņatzīmes!$B$3:$AI$4,2,FALSE)))) ->  | GO27: =IF(GO22=" "," ",IF($GC$27=" ",$CD$6*GO21,$GC$27*(1+HLOOKUP($GD$15,Līmeņatzīmes!$B$3:$AI$4,2,FALSE)))) ->  | GP27: =IF(GP22=" "," ",IF($GC$27=" ",$CD$6*GP21,$GC$27*(1+HLOOKUP($GD$15,Līmeņatzīmes!$B$3:$AI$4,2,FALSE)))) ->  | GQ27: =IF(OR(GQ$16=" ",GQ$16=0)," ",SUM(GR27:HC27)) ->  | GR27: =IF(GR22=" "," ",IF($GP$27=" ",$CD$6*GR21,$GP$27*(1+HLOOKUP($GQ$15,Līmeņatzīmes!$B$3:$AI$4,2,FALSE)))) ->  | GS27: =IF(GS22=" "," ",IF($GP$27=" ",$CD$6*GS21,$GP$27*(1+HLOOKUP($GQ$15,Līmeņatzīmes!$B$3:$AI$4,2,FALSE)))) ->  | GT27: =IF(GT22=" "," ",IF($GP$27=" ",$CD$6*GT21,$GP$27*(1+HLOOKUP($GQ$15,Līmeņatzīmes!$B$3:$AI$4,2,FALSE)))) ->  | GU27: =IF(GU22=" "," ",IF($GP$27=" ",$CD$6*GU21,$GP$27*(1+HLOOKUP($GQ$15,Līmeņatzīmes!$B$3:$AI$4,2,FALSE)))) ->  | GV27: =IF(GV22=" "," ",IF($GP$27=" ",$CD$6*GV21,$GP$27*(1+HLOOKUP($GQ$15,Līmeņatzīmes!$B$3:$AI$4,2,FALSE)))) ->  | GW27: =IF(GW22=" "," ",IF($GP$27=" ",$CD$6*GW21,$GP$27*(1+HLOOKUP($GQ$15,Līmeņatzīmes!$B$3:$AI$4,2,FALSE)))) ->  | GX27: =IF(GX22=" "," ",IF($GP$27=" ",$CD$6*GX21,$GP$27*(1+HLOOKUP($GQ$15,Līmeņatzīmes!$B$3:$AI$4,2,FALSE)))) ->  | GY27: =IF(GY22=" "," ",IF($GP$27=" ",$CD$6*GY21,$GP$27*(1+HLOOKUP($GQ$15,Līmeņatzīmes!$B$3:$AI$4,2,FALSE)))) ->  | GZ27: =IF(GZ22=" "," ",IF($GP$27=" ",$CD$6*GZ21,$GP$27*(1+HLOOKUP($GQ$15,Līmeņatzīmes!$B$3:$AI$4,2,FALSE)))) ->  | HA27: =IF(HA22=" "," ",IF($GP$27=" ",$CD$6*HA21,$GP$27*(1+HLOOKUP($GQ$15,Līmeņatzīmes!$B$3:$AI$4,2,FALSE)))) ->  | HB27: =IF(HB22=" "," ",IF($GP$27=" ",$CD$6*HB21,$GP$27*(1+HLOOKUP($GQ$15,Līmeņatzīmes!$B$3:$AI$4,2,FALSE)))) ->  | HC27: =IF(HC22=" "," ",IF($GP$27=" ",$CD$6*HC21,$GP$27*(1+HLOOKUP($GQ$15,Līmeņatzīmes!$B$3:$AI$4,2,FALSE)))) ->  | HD27: =IF(OR(HD$16=" ",HD$16=0)," ",SUM(HE27:HP27)) ->  | HE27: =IF(HE22=" "," ",IF($HC$27=" ",$CD$6*HE21,$HC$27*(1+HLOOKUP($HD$15,Līmeņatzīmes!$B$3:$AI$4,2,FALSE)))) ->  | HF27: =IF(HF22=" "," ",IF($HC$27=" ",$CD$6*HF21,$HC$27*(1+HLOOKUP($HD$15,Līmeņatzīmes!$B$3:$AI$4,2,FALSE)))) ->  | HG27: =IF(HG22=" "," ",IF($HC$27=" ",$CD$6*HG21,$HC$27*(1+HLOOKUP($HD$15,Līmeņatzīmes!$B$3:$AI$4,2,FALSE)))) ->  | HH27: =IF(HH22=" "," ",IF($HC$27=" ",$CD$6*HH21,$HC$27*(1+HLOOKUP($HD$15,Līmeņatzīmes!$B$3:$AI$4,2,FALSE)))) ->  | HI27: =IF(HI22=" "," ",IF($HC$27=" ",$CD$6*HI21,$HC$27*(1+HLOOKUP($HD$15,Līmeņatzīmes!$B$3:$AI$4,2,FALSE)))) ->  | HJ27: =IF(HJ22=" "," ",IF($HC$27=" ",$CD$6*HJ21,$HC$27*(1+HLOOKUP($HD$15,Līmeņatzīmes!$B$3:$AI$4,2,FALSE)))) ->  | HK27: =IF(HK22=" "," ",IF($HC$27=" ",$CD$6*HK21,$HC$27*(1+HLOOKUP($HD$15,Līmeņatzīmes!$B$3:$AI$4,2,FALSE)))) ->  | HL27: =IF(HL22=" "," ",IF($HC$27=" ",$CD$6*HL21,$HC$27*(1+HLOOKUP($HD$15,Līmeņatzīmes!$B$3:$AI$4,2,FALSE)))) ->  | HM27: =IF(HM22=" "," ",IF($HC$27=" ",$CD$6*HM21,$HC$27*(1+HLOOKUP($HD$15,Līmeņatzīmes!$B$3:$AI$4,2,FALSE)))) ->  | HN27: =IF(HN22=" "," ",IF($HC$27=" ",$CD$6*HN21,$HC$27*(1+HLOOKUP($HD$15,Līmeņatzīmes!$B$3:$AI$4,2,FALSE)))) ->  | HO27: =IF(HO22=" "," ",IF($HC$27=" ",$CD$6*HO21,$HC$27*(1+HLOOKUP($HD$15,Līmeņatzīmes!$B$3:$AI$4,2,FALSE)))) ->  | HP27: =IF(HP22=" "," ",IF($HC$27=" ",$CD$6*HP21,$HC$27*(1+HLOOKUP($HD$15,Līmeņatzīmes!$B$3:$AI$4,2,FALSE)))) ->  | HQ27: =IF(OR(HQ$16=" ",HQ$16=0)," ",SUM(HR27:IC27)) ->  | HR27: =IF(HR22=" "," ",IF($HP$27=" ",$CD$6*HR21,$HP$27*(1+HLOOKUP($HQ$15,Līmeņatzīmes!$B$3:$AI$4,2,FALSE)))) ->  | HS27: =IF(HS22=" "," ",IF($HP$27=" ",$CD$6*HS21,$HP$27*(1+HLOOKUP($HQ$15,Līmeņatzīmes!$B$3:$AI$4,2,FALSE)))) ->  | HT27: =IF(HT22=" "," ",IF($HP$27=" ",$CD$6*HT21,$HP$27*(1+HLOOKUP($HQ$15,Līmeņatzīmes!$B$3:$AI$4,2,FALSE)))) ->  | HU27: =IF(HU22=" "," ",IF($HP$27=" ",$CD$6*HU21,$HP$27*(1+HLOOKUP($HQ$15,Līmeņatzīmes!$B$3:$AI$4,2,FALSE)))) ->  | HV27: =IF(HV22=" "," ",IF($HP$27=" ",$CD$6*HV21,$HP$27*(1+HLOOKUP($HQ$15,Līmeņatzīmes!$B$3:$AI$4,2,FALSE)))) ->  | HW27: =IF(HW22=" "," ",IF($HP$27=" ",$CD$6*HW21,$HP$27*(1+HLOOKUP($HQ$15,Līmeņatzīmes!$B$3:$AI$4,2,FALSE)))) ->  | HX27: =IF(HX22=" "," ",IF($HP$27=" ",$CD$6*HX21,$HP$27*(1+HLOOKUP($HQ$15,Līmeņatzīmes!$B$3:$AI$4,2,FALSE)))) ->  | HY27: =IF(HY22=" "," ",IF($HP$27=" ",$CD$6*HY21,$HP$27*(1+HLOOKUP($HQ$15,Līmeņatzīmes!$B$3:$AI$4,2,FALSE)))) ->  | HZ27: =IF(HZ22=" "," ",IF($HP$27=" ",$CD$6*HZ21,$HP$27*(1+HLOOKUP($HQ$15,Līmeņatzīmes!$B$3:$AI$4,2,FALSE)))) ->  | IA27: =IF(IA22=" "," ",IF($HP$27=" ",$CD$6*IA21,$HP$27*(1+HLOOKUP($HQ$15,Līmeņatzīmes!$B$3:$AI$4,2,FALSE)))) ->  | IB27: =IF(IB22=" "," ",IF($HP$27=" ",$CD$6*IB21,$HP$27*(1+HLOOKUP($HQ$15,Līmeņatzīmes!$B$3:$AI$4,2,FALSE)))) ->  | IC27: =IF(IC22=" "," ",IF($HP$27=" ",$CD$6*IC21,$HP$27*(1+HLOOKUP($HQ$15,Līmeņatzīmes!$B$3:$AI$4,2,FALSE)))) ->  | ID27: =IF(OR(ID$16=" ",ID$16=0)," ",SUM(IE27:IP27)) ->  | IE27: =IF(IE22=" "," ",IF($IC$27=" ",$CD$6*IE21,$IC$27*(1+HLOOKUP($ID$15,Līmeņatzīmes!$B$3:$AI$4,2,FALSE)))) ->  | IF27: =IF(IF22=" "," ",IF($IC$27=" ",$CD$6*IF21,$IC$27*(1+HLOOKUP($ID$15,Līmeņatzīmes!$B$3:$AI$4,2,FALSE)))) ->  | IG27: =IF(IG22=" "," ",IF($IC$27=" ",$CD$6*IG21,$IC$27*(1+HLOOKUP($ID$15,Līmeņatzīmes!$B$3:$AI$4,2,FALSE)))) ->  | IH27: =IF(IH22=" "," ",IF($IC$27=" ",$CD$6*IH21,$IC$27*(1+HLOOKUP($ID$15,Līmeņatzīmes!$B$3:$AI$4,2,FALSE)))) ->  | II27: =IF(II22=" "," ",IF($IC$27=" ",$CD$6*II21,$IC$27*(1+HLOOKUP($ID$15,Līmeņatzīmes!$B$3:$AI$4,2,FALSE)))) ->  | IJ27: =IF(IJ22=" "," ",IF($IC$27=" ",$CD$6*IJ21,$IC$27*(1+HLOOKUP($ID$15,Līmeņatzīmes!$B$3:$AI$4,2,FALSE)))) ->  | IK27: =IF(IK22=" "," ",IF($IC$27=" ",$CD$6*IK21,$IC$27*(1+HLOOKUP($ID$15,Līmeņatzīmes!$B$3:$AI$4,2,FALSE)))) ->  | IL27: =IF(IL22=" "," ",IF($IC$27=" ",$CD$6*IL21,$IC$27*(1+HLOOKUP($ID$15,Līmeņatzīmes!$B$3:$AI$4,2,FALSE)))) ->  | IM27: =IF(IM22=" "," ",IF($IC$27=" ",$CD$6*IM21,$IC$27*(1+HLOOKUP($ID$15,Līmeņatzīmes!$B$3:$AI$4,2,FALSE)))) ->  | IN27: =IF(IN22=" "," ",IF($IC$27=" ",$CD$6*IN21,$IC$27*(1+HLOOKUP($ID$15,Līmeņatzīmes!$B$3:$AI$4,2,FALSE)))) ->  | IO27: =IF(IO22=" "," ",IF($IC$27=" ",$CD$6*IO21,$IC$27*(1+HLOOKUP($ID$15,Līmeņatzīmes!$B$3:$AI$4,2,FALSE)))) ->  | IP27: =IF(IP22=" "," ",IF($IC$27=" ",$CD$6*IP21,$IC$27*(1+HLOOKUP($ID$15,Līmeņatzīmes!$B$3:$AI$4,2,FALSE)))) ->  | IQ27: =IF(OR(IQ$16=" ",IQ$16=0)," ",SUM(IR27:JC27)) ->  | IR27: =IF(IR22=" "," ",IF($IP$27=" ",$CD$6*IR21,$IP$27*(1+HLOOKUP($IQ$15,Līmeņatzīmes!$B$3:$AI$4,2,FALSE)))) ->  | IS27: =IF(IS22=" "," ",IF($IP$27=" ",$CD$6*IS21,$IP$27*(1+HLOOKUP($IQ$15,Līmeņatzīmes!$B$3:$AI$4,2,FALSE)))) ->  | IT27: =IF(IT22=" "," ",IF($IP$27=" ",$CD$6*IT21,$IP$27*(1+HLOOKUP($IQ$15,Līmeņatzīmes!$B$3:$AI$4,2,FALSE)))) ->  | IU27: =IF(IU22=" "," ",IF($IP$27=" ",$CD$6*IU21,$IP$27*(1+HLOOKUP($IQ$15,Līmeņatzīmes!$B$3:$AI$4,2,FALSE)))) ->  | IV27: =IF(IV22=" "," ",IF($IP$27=" ",$CD$6*IV21,$IP$27*(1+HLOOKUP($IQ$15,Līmeņatzīmes!$B$3:$AI$4,2,FALSE)))) ->  | IW27: =IF(IW22=" "," ",IF($IP$27=" ",$CD$6*IW21,$IP$27*(1+HLOOKUP($IQ$15,Līmeņatzīmes!$B$3:$AI$4,2,FALSE)))) ->  | IX27: =IF(IX22=" "," ",IF($IP$27=" ",$CD$6*IX21,$IP$27*(1+HLOOKUP($IQ$15,Līmeņatzīmes!$B$3:$AI$4,2,FALSE)))) ->  | IY27: =IF(IY22=" "," ",IF($IP$27=" ",$CD$6*IY21,$IP$27*(1+HLOOKUP($IQ$15,Līmeņatzīmes!$B$3:$AI$4,2,FALSE)))) ->  | IZ27: =IF(IZ22=" "," ",IF($IP$27=" ",$CD$6*IZ21,$IP$27*(1+HLOOKUP($IQ$15,Līmeņatzīmes!$B$3:$AI$4,2,FALSE)))) ->  | JA27: =IF(JA22=" "," ",IF($IP$27=" ",$CD$6*JA21,$IP$27*(1+HLOOKUP($IQ$15,Līmeņatzīmes!$B$3:$AI$4,2,FALSE)))) ->  | JB27: =IF(JB22=" "," ",IF($IP$27=" ",$CD$6*JB21,$IP$27*(1+HLOOKUP($IQ$15,Līmeņatzīmes!$B$3:$AI$4,2,FALSE)))) ->  | JC27: =IF(JC22=" "," ",IF($IP$27=" ",$CD$6*JC21,$IP$27*(1+HLOOKUP($IQ$15,Līmeņatzīmes!$B$3:$AI$4,2,FALSE)))) ->  | JD27: =IF(OR(JD$16=" ",JD$16=0)," ",SUM(JE27:JP27)) ->  | JE27: =IF(JE22=" "," ",IF($JC$27=" ",$CD$6*JE21,$JC$27*(1+HLOOKUP($JD$15,Līmeņatzīmes!$B$3:$AI$4,2,FALSE)))) ->  | JF27: =IF(JF22=" "," ",IF($JC$27=" ",$CD$6*JF21,$JC$27*(1+HLOOKUP($JD$15,Līmeņatzīmes!$B$3:$AI$4,2,FALSE)))) ->  | JG27: =IF(JG22=" "," ",IF($JC$27=" ",$CD$6*JG21,$JC$27*(1+HLOOKUP($JD$15,Līmeņatzīmes!$B$3:$AI$4,2,FALSE)))) ->  | JH27: =IF(JH22=" "," ",IF($JC$27=" ",$CD$6*JH21,$JC$27*(1+HLOOKUP($JD$15,Līmeņatzīmes!$B$3:$AI$4,2,FALSE)))) ->  | JI27: =IF(JI22=" "," ",IF($JC$27=" ",$CD$6*JI21,$JC$27*(1+HLOOKUP($JD$15,Līmeņatzīmes!$B$3:$AI$4,2,FALSE)))) ->  | JJ27: =IF(JJ22=" "," ",IF($JC$27=" ",$CD$6*JJ21,$JC$27*(1+HLOOKUP($JD$15,Līmeņatzīmes!$B$3:$AI$4,2,FALSE)))) ->  | JK27: =IF(JK22=" "," ",IF($JC$27=" ",$CD$6*JK21,$JC$27*(1+HLOOKUP($JD$15,Līmeņatzīmes!$B$3:$AI$4,2,FALSE)))) ->  | JL27: =IF(JL22=" "," ",IF($JC$27=" ",$CD$6*JL21,$JC$27*(1+HLOOKUP($JD$15,Līmeņatzīmes!$B$3:$AI$4,2,FALSE)))) ->  | JM27: =IF(JM22=" "," ",IF($JC$27=" ",$CD$6*JM21,$JC$27*(1+HLOOKUP($JD$15,Līmeņatzīmes!$B$3:$AI$4,2,FALSE)))) ->  | JN27: =IF(JN22=" "," ",IF($JC$27=" ",$CD$6*JN21,$JC$27*(1+HLOOKUP($JD$15,Līmeņatzīmes!$B$3:$AI$4,2,FALSE)))) ->  | JO27: =IF(JO22=" "," ",IF($JC$27=" ",$CD$6*JO21,$JC$27*(1+HLOOKUP($JD$15,Līmeņatzīmes!$B$3:$AI$4,2,FALSE)))) ->  | JP27: =IF(JP22=" "," ",IF($JC$27=" ",$CD$6*JP21,$JC$27*(1+HLOOKUP($JD$15,Līmeņatzīmes!$B$3:$AI$4,2,FALSE)))) ->  | JQ27: =IF(OR(JQ$16=" ",JQ$16=0)," ",SUM(JR27:KC27)) ->  | JR27: =IF(JR22=" "," ",IF($JP$27=" ",$CD$6*JR21,$JP$27*(1+HLOOKUP($JQ$15,Līmeņatzīmes!$B$3:$AI$4,2,FALSE)))) ->  | JS27: =IF(JS22=" "," ",IF($JP$27=" ",$CD$6*JS21,$JP$27*(1+HLOOKUP($JQ$15,Līmeņatzīmes!$B$3:$AI$4,2,FALSE)))) ->  | JT27: =IF(JT22=" "," ",IF($JP$27=" ",$CD$6*JT21,$JP$27*(1+HLOOKUP($JQ$15,Līmeņatzīmes!$B$3:$AI$4,2,FALSE)))) ->  | JU27: =IF(JU22=" "," ",IF($JP$27=" ",$CD$6*JU21,$JP$27*(1+HLOOKUP($JQ$15,Līmeņatzīmes!$B$3:$AI$4,2,FALSE)))) ->  | JV27: =IF(JV22=" "," ",IF($JP$27=" ",$CD$6*JV21,$JP$27*(1+HLOOKUP($JQ$15,Līmeņatzīmes!$B$3:$AI$4,2,FALSE)))) ->  | JW27: =IF(JW22=" "," ",IF($JP$27=" ",$CD$6*JW21,$JP$27*(1+HLOOKUP($JQ$15,Līmeņatzīmes!$B$3:$AI$4,2,FALSE)))) ->  | JX27: =IF(JX22=" "," ",IF($JP$27=" ",$CD$6*JX21,$JP$27*(1+HLOOKUP($JQ$15,Līmeņatzīmes!$B$3:$AI$4,2,FALSE)))) ->  | JY27: =IF(JY22=" "," ",IF($JP$27=" ",$CD$6*JY21,$JP$27*(1+HLOOKUP($JQ$15,Līmeņatzīmes!$B$3:$AI$4,2,FALSE)))) ->  | JZ27: =IF(JZ22=" "," ",IF($JP$27=" ",$CD$6*JZ21,$JP$27*(1+HLOOKUP($JQ$15,Līmeņatzīmes!$B$3:$AI$4,2,FALSE)))) ->  | KA27: =IF(KA22=" "," ",IF($JP$27=" ",$CD$6*KA21,$JP$27*(1+HLOOKUP($JQ$15,Līmeņatzīmes!$B$3:$AI$4,2,FALSE)))) ->  | KB27: =IF(KB22=" "," ",IF($JP$27=" ",$CD$6*KB21,$JP$27*(1+HLOOKUP($JQ$15,Līmeņatzīmes!$B$3:$AI$4,2,FALSE)))) ->  | KC27: =IF(KC22=" "," ",IF($JP$27=" ",$CD$6*KC21,$JP$27*(1+HLOOKUP($JQ$15,Līmeņatzīmes!$B$3:$AI$4,2,FALSE)))) ->  | KD27: =IF(OR(KD$16=" ",KD$16=0)," ",SUM(KE27:KP27)) ->  | KE27: =IF(KE22=" "," ",IF($KC$27=" ",$CD$6*KE21,$KC$27*(1+HLOOKUP($KD$15,Līmeņatzīmes!$B$3:$AI$4,2,FALSE)))) ->  | KF27: =IF(KF22=" "," ",IF($KC$27=" ",$CD$6*KF21,$KC$27*(1+HLOOKUP($KD$15,Līmeņatzīmes!$B$3:$AI$4,2,FALSE)))) ->  | KG27: =IF(KG22=" "," ",IF($KC$27=" ",$CD$6*KG21,$KC$27*(1+HLOOKUP($KD$15,Līmeņatzīmes!$B$3:$AI$4,2,FALSE)))) ->  | KH27: =IF(KH22=" "," ",IF($KC$27=" ",$CD$6*KH21,$KC$27*(1+HLOOKUP($KD$15,Līmeņatzīmes!$B$3:$AI$4,2,FALSE)))) ->  | KI27: =IF(KI22=" "," ",IF($KC$27=" ",$CD$6*KI21,$KC$27*(1+HLOOKUP($KD$15,Līmeņatzīmes!$B$3:$AI$4,2,FALSE)))) ->  | KJ27: =IF(KJ22=" "," ",IF($KC$27=" ",$CD$6*KJ21,$KC$27*(1+HLOOKUP($KD$15,Līmeņatzīmes!$B$3:$AI$4,2,FALSE)))) ->  | KK27: =IF(KK22=" "," ",IF($KC$27=" ",$CD$6*KK21,$KC$27*(1+HLOOKUP($KD$15,Līmeņatzīmes!$B$3:$AI$4,2,FALSE)))) ->  | KL27: =IF(KL22=" "," ",IF($KC$27=" ",$CD$6*KL21,$KC$27*(1+HLOOKUP($KD$15,Līmeņatzīmes!$B$3:$AI$4,2,FALSE)))) ->  | KM27: =IF(KM22=" "," ",IF($KC$27=" ",$CD$6*KM21,$KC$27*(1+HLOOKUP($KD$15,Līmeņatzīmes!$B$3:$AI$4,2,FALSE)))) ->  | KN27: =IF(KN22=" "," ",IF($KC$27=" ",$CD$6*KN21,$KC$27*(1+HLOOKUP($KD$15,Līmeņatzīmes!$B$3:$AI$4,2,FALSE)))) ->  | KO27: =IF(KO22=" "," ",IF($KC$27=" ",$CD$6*KO21,$KC$27*(1+HLOOKUP($KD$15,Līmeņatzīmes!$B$3:$AI$4,2,FALSE)))) ->  | KP27: =IF(KP22=" "," ",IF($KC$27=" ",$CD$6*KP21,$KC$27*(1+HLOOKUP($KD$15,Līmeņatzīmes!$B$3:$AI$4,2,FALSE)))) ->  | KQ27: =IF(OR(KQ$16=" ",KQ$16=0)," ",SUM(KR27:LC27)) ->  | KR27: =IF(KR22=" "," ",IF($KP$27=" ",$CD$6*KR21,$KP$27*(1+HLOOKUP($KQ$15,Līmeņatzīmes!$B$3:$AI$4,2,FALSE)))) ->  | KS27: =IF(KS22=" "," ",IF($KP$27=" ",$CD$6*KS21,$KP$27*(1+HLOOKUP($KQ$15,Līmeņatzīmes!$B$3:$AI$4,2,FALSE)))) ->  | KT27: =IF(KT22=" "," ",IF($KP$27=" ",$CD$6*KT21,$KP$27*(1+HLOOKUP($KQ$15,Līmeņatzīmes!$B$3:$AI$4,2,FALSE)))) ->  | KU27: =IF(KU22=" "," ",IF($KP$27=" ",$CD$6*KU21,$KP$27*(1+HLOOKUP($KQ$15,Līmeņatzīmes!$B$3:$AI$4,2,FALSE)))) ->  | KV27: =IF(KV22=" "," ",IF($KP$27=" ",$CD$6*KV21,$KP$27*(1+HLOOKUP($KQ$15,Līmeņatzīmes!$B$3:$AI$4,2,FALSE)))) ->  | KW27: =IF(KW22=" "," ",IF($KP$27=" ",$CD$6*KW21,$KP$27*(1+HLOOKUP($KQ$15,Līmeņatzīmes!$B$3:$AI$4,2,FALSE)))) ->  | KX27: =IF(KX22=" "," ",IF($KP$27=" ",$CD$6*KX21,$KP$27*(1+HLOOKUP($KQ$15,Līmeņatzīmes!$B$3:$AI$4,2,FALSE)))) ->  | KY27: =IF(KY22=" "," ",IF($KP$27=" ",$CD$6*KY21,$KP$27*(1+HLOOKUP($KQ$15,Līmeņatzīmes!$B$3:$AI$4,2,FALSE)))) ->  | KZ27: =IF(KZ22=" "," ",IF($KP$27=" ",$CD$6*KZ21,$KP$27*(1+HLOOKUP($KQ$15,Līmeņatzīmes!$B$3:$AI$4,2,FALSE)))) ->  | LA27: =IF(LA22=" "," ",IF($KP$27=" ",$CD$6*LA21,$KP$27*(1+HLOOKUP($KQ$15,Līmeņatzīmes!$B$3:$AI$4,2,FALSE)))) ->  | LB27: =IF(LB22=" "," ",IF($KP$27=" ",$CD$6*LB21,$KP$27*(1+HLOOKUP($KQ$15,Līmeņatzīmes!$B$3:$AI$4,2,FALSE)))) ->  | LC27: =IF(LC22=" "," ",IF($KP$27=" ",$CD$6*LC21,$KP$27*(1+HLOOKUP($KQ$15,Līmeņatzīmes!$B$3:$AI$4,2,FALSE)))) ->  | LD27: =IF(OR(LD$16=" ",LD$16=0)," ",SUM(LE27:LP27)) ->  | LE27: =IF(LE22=" "," ",IF($LC$27=" ",$CD$6*LE21,$LC$27*(1+HLOOKUP($LD$15,Līmeņatzīmes!$B$3:$AI$4,2,FALSE)))) ->  | LF27: =IF(LF22=" "," ",IF($LC$27=" ",$CD$6*LF21,$LC$27*(1+HLOOKUP($LD$15,Līmeņatzīmes!$B$3:$AI$4,2,FALSE)))) ->  | LG27: =IF(LG22=" "," ",IF($LC$27=" ",$CD$6*LG21,$LC$27*(1+HLOOKUP($LD$15,Līmeņatzīmes!$B$3:$AI$4,2,FALSE)))) ->  | LH27: =IF(LH22=" "," ",IF($LC$27=" ",$CD$6*LH21,$LC$27*(1+HLOOKUP($LD$15,Līmeņatzīmes!$B$3:$AI$4,2,FALSE)))) ->  | LI27: =IF(LI22=" "," ",IF($LC$27=" ",$CD$6*LI21,$LC$27*(1+HLOOKUP($LD$15,Līmeņatzīmes!$B$3:$AI$4,2,FALSE)))) ->  | LJ27: =IF(LJ22=" "," ",IF($LC$27=" ",$CD$6*LJ21,$LC$27*(1+HLOOKUP($LD$15,Līmeņatzīmes!$B$3:$AI$4,2,FALSE)))) ->  | LK27: =IF(LK22=" "," ",IF($LC$27=" ",$CD$6*LK21,$LC$27*(1+HLOOKUP($LD$15,Līmeņatzīmes!$B$3:$AI$4,2,FALSE)))) ->  | LL27: =IF(LL22=" "," ",IF($LC$27=" ",$CD$6*LL21,$LC$27*(1+HLOOKUP($LD$15,Līmeņatzīmes!$B$3:$AI$4,2,FALSE)))) ->  | LM27: =IF(LM22=" "," ",IF($LC$27=" ",$CD$6*LM21,$LC$27*(1+HLOOKUP($LD$15,Līmeņatzīmes!$B$3:$AI$4,2,FALSE)))) ->  | LN27: =IF(LN22=" "," ",IF($LC$27=" ",$CD$6*LN21,$LC$27*(1+HLOOKUP($LD$15,Līmeņatzīmes!$B$3:$AI$4,2,FALSE)))) ->  | LO27: =IF(LO22=" "," ",IF($LC$27=" ",$CD$6*LO21,$LC$27*(1+HLOOKUP($LD$15,Līmeņatzīmes!$B$3:$AI$4,2,FALSE)))) ->  | LP27: =IF(LP22=" "," ",IF($LC$27=" ",$CD$6*LP21,$LC$27*(1+HLOOKUP($LD$15,Līmeņatzīmes!$B$3:$AI$4,2,FALSE)))) ->  | LQ27: =IF(OR(LQ$16=" ",LQ$16=0)," ",SUM(LR27:MC27)) ->  | LR27: =IF(LR22=" "," ",IF($LP$27=" ",$CD$6*LR21,$LP$27*(1+HLOOKUP($LQ$15,Līmeņatzīmes!$B$3:$AI$4,2,FALSE)))) ->  | LS27: =IF(LS22=" "," ",IF($LP$27=" ",$CD$6*LS21,$LP$27*(1+HLOOKUP($LQ$15,Līmeņatzīmes!$B$3:$AI$4,2,FALSE)))) ->  | LT27: =IF(LT22=" "," ",IF($LP$27=" ",$CD$6*LT21,$LP$27*(1+HLOOKUP($LQ$15,Līmeņatzīmes!$B$3:$AI$4,2,FALSE)))) ->  | LU27: =IF(LU22=" "," ",IF($LP$27=" ",$CD$6*LU21,$LP$27*(1+HLOOKUP($LQ$15,Līmeņatzīmes!$B$3:$AI$4,2,FALSE)))) ->  | LV27: =IF(LV22=" "," ",IF($LP$27=" ",$CD$6*LV21,$LP$27*(1+HLOOKUP($LQ$15,Līmeņatzīmes!$B$3:$AI$4,2,FALSE)))) ->  | LW27: =IF(LW22=" "," ",IF($LP$27=" ",$CD$6*LW21,$LP$27*(1+HLOOKUP($LQ$15,Līmeņatzīmes!$B$3:$AI$4,2,FALSE)))) ->  | LX27: =IF(LX22=" "," ",IF($LP$27=" ",$CD$6*LX21,$LP$27*(1+HLOOKUP($LQ$15,Līmeņatzīmes!$B$3:$AI$4,2,FALSE)))) ->  | LY27: =IF(LY22=" "," ",IF($LP$27=" ",$CD$6*LY21,$LP$27*(1+HLOOKUP($LQ$15,Līmeņatzīmes!$B$3:$AI$4,2,FALSE)))) ->  | LZ27: =IF(LZ22=" "," ",IF($LP$27=" ",$CD$6*LZ21,$LP$27*(1+HLOOKUP($LQ$15,Līmeņatzīmes!$B$3:$AI$4,2,FALSE)))) ->  | MA27: =IF(MA22=" "," ",IF($LP$27=" ",$CD$6*MA21,$LP$27*(1+HLOOKUP($LQ$15,Līmeņatzīmes!$B$3:$AI$4,2,FALSE)))) ->  | MB27: =IF(MB22=" "," ",IF($LP$27=" ",$CD$6*MB21,$LP$27*(1+HLOOKUP($LQ$15,Līmeņatzīmes!$B$3:$AI$4,2,FALSE)))) ->  | MC27: =IF(MC22=" "," ",IF($LP$27=" ",$CD$6*MC21,$LP$27*(1+HLOOKUP($LQ$15,Līmeņatzīmes!$B$3:$AI$4,2,FALSE)))) ->  | MD27: =IF(OR(MD$16=" ",MD$16=0)," ",SUM(ME27:MP27)) ->  | ME27: =IF(ME22=" "," ",IF($MC$27=" ",$CD$6*ME21,$MC$27*(1+HLOOKUP($MD$15,Līmeņatzīmes!$B$3:$AI$4,2,FALSE)))) ->  | MF27: =IF(MF22=" "," ",IF($MC$27=" ",$CD$6*MF21,$MC$27*(1+HLOOKUP($MD$15,Līmeņatzīmes!$B$3:$AI$4,2,FALSE)))) ->  | MG27: =IF(MG22=" "," ",IF($MC$27=" ",$CD$6*MG21,$MC$27*(1+HLOOKUP($MD$15,Līmeņatzīmes!$B$3:$AI$4,2,FALSE)))) ->  | MH27: =IF(MH22=" "," ",IF($MC$27=" ",$CD$6*MH21,$MC$27*(1+HLOOKUP($MD$15,Līmeņatzīmes!$B$3:$AI$4,2,FALSE)))) ->  | MI27: =IF(MI22=" "," ",IF($MC$27=" ",$CD$6*MI21,$MC$27*(1+HLOOKUP($MD$15,Līmeņatzīmes!$B$3:$AI$4,2,FALSE)))) ->  | MJ27: =IF(MJ22=" "," ",IF($MC$27=" ",$CD$6*MJ21,$MC$27*(1+HLOOKUP($MD$15,Līmeņatzīmes!$B$3:$AI$4,2,FALSE)))) ->  | MK27: =IF(MK22=" "," ",IF($MC$27=" ",$CD$6*MK21,$MC$27*(1+HLOOKUP($MD$15,Līmeņatzīmes!$B$3:$AI$4,2,FALSE)))) ->  | ML27: =IF(ML22=" "," ",IF($MC$27=" ",$CD$6*ML21,$MC$27*(1+HLOOKUP($MD$15,Līmeņatzīmes!$B$3:$AI$4,2,FALSE)))) ->  | MM27: =IF(MM22=" "," ",IF($MC$27=" ",$CD$6*MM21,$MC$27*(1+HLOOKUP($MD$15,Līmeņatzīmes!$B$3:$AI$4,2,FALSE)))) ->  | MN27: =IF(MN22=" "," ",IF($MC$27=" ",$CD$6*MN21,$MC$27*(1+HLOOKUP($MD$15,Līmeņatzīmes!$B$3:$AI$4,2,FALSE)))) ->  | MO27: =IF(MO22=" "," ",IF($MC$27=" ",$CD$6*MO21,$MC$27*(1+HLOOKUP($MD$15,Līmeņatzīmes!$B$3:$AI$4,2,FALSE)))) ->  | MP27: =IF(MP22=" "," ",IF($MC$27=" ",$CD$6*MP21,$MC$27*(1+HLOOKUP($MD$15,Līmeņatzīmes!$B$3:$AI$4,2,FALSE)))) ->  | MQ27: =IF(OR(MQ$16=" ",MQ$16=0)," ",SUM(MR27:NC27)) ->  | MR27: =IF(MR22=" "," ",IF($MP$27=" ",$CD$6*MR21,$MP$27*(1+HLOOKUP($MQ$15,Līmeņatzīmes!$B$3:$AI$4,2,FALSE)))) ->  | MS27: =IF(MS22=" "," ",IF($MP$27=" ",$CD$6*MS21,$MP$27*(1+HLOOKUP($MQ$15,Līmeņatzīmes!$B$3:$AI$4,2,FALSE)))) ->  | MT27: =IF(MT22=" "," ",IF($MP$27=" ",$CD$6*MT21,$MP$27*(1+HLOOKUP($MQ$15,Līmeņatzīmes!$B$3:$AI$4,2,FALSE)))) ->  | MU27: =IF(MU22=" "," ",IF($MP$27=" ",$CD$6*MU21,$MP$27*(1+HLOOKUP($MQ$15,Līmeņatzīmes!$B$3:$AI$4,2,FALSE)))) ->  | MV27: =IF(MV22=" "," ",IF($MP$27=" ",$CD$6*MV21,$MP$27*(1+HLOOKUP($MQ$15,Līmeņatzīmes!$B$3:$AI$4,2,FALSE)))) ->  | MW27: =IF(MW22=" "," ",IF($MP$27=" ",$CD$6*MW21,$MP$27*(1+HLOOKUP($MQ$15,Līmeņatzīmes!$B$3:$AI$4,2,FALSE)))) ->  | MX27: =IF(MX22=" "," ",IF($MP$27=" ",$CD$6*MX21,$MP$27*(1+HLOOKUP($MQ$15,Līmeņatzīmes!$B$3:$AI$4,2,FALSE)))) ->  | MY27: =IF(MY22=" "," ",IF($MP$27=" ",$CD$6*MY21,$MP$27*(1+HLOOKUP($MQ$15,Līmeņatzīmes!$B$3:$AI$4,2,FALSE)))) ->  | MZ27: =IF(MZ22=" "," ",IF($MP$27=" ",$CD$6*MZ21,$MP$27*(1+HLOOKUP($MQ$15,Līmeņatzīmes!$B$3:$AI$4,2,FALSE)))) ->  | NA27: =IF(NA22=" "," ",IF($MP$27=" ",$CD$6*NA21,$MP$27*(1+HLOOKUP($MQ$15,Līmeņatzīmes!$B$3:$AI$4,2,FALSE)))) ->  | NB27: =IF(NB22=" "," ",IF($MP$27=" ",$CD$6*NB21,$MP$27*(1+HLOOKUP($MQ$15,Līmeņatzīmes!$B$3:$AI$4,2,FALSE)))) ->  | NC27: =IF(NC22=" "," ",IF($MP$27=" ",$CD$6*NC21,$MP$27*(1+HLOOKUP($MQ$15,Līmeņatzīmes!$B$3:$AI$4,2,FALSE)))) ->  | ND27: =IF(OR(ND$16=" ",ND$16=0)," ",SUM(NE27:NP27)) ->  | NE27: =IF(NE22=" "," ",IF($NC$27=" ",$CD$6*NE21,$NC$27*(1+HLOOKUP($ND$15,Līmeņatzīmes!$B$3:$AI$4,2,FALSE)))) ->  | NF27: =IF(NF22=" "," ",IF($NC$27=" ",$CD$6*NF21,$NC$27*(1+HLOOKUP($ND$15,Līmeņatzīmes!$B$3:$AI$4,2,FALSE)))) ->  | NG27: =IF(NG22=" "," ",IF($NC$27=" ",$CD$6*NG21,$NC$27*(1+HLOOKUP($ND$15,Līmeņatzīmes!$B$3:$AI$4,2,FALSE)))) ->  | NH27: =IF(NH22=" "," ",IF($NC$27=" ",$CD$6*NH21,$NC$27*(1+HLOOKUP($ND$15,Līmeņatzīmes!$B$3:$AI$4,2,FALSE)))) ->  | NI27: =IF(NI22=" "," ",IF($NC$27=" ",$CD$6*NI21,$NC$27*(1+HLOOKUP($ND$15,Līmeņatzīmes!$B$3:$AI$4,2,FALSE)))) ->  | NJ27: =IF(NJ22=" "," ",IF($NC$27=" ",$CD$6*NJ21,$NC$27*(1+HLOOKUP($ND$15,Līmeņatzīmes!$B$3:$AI$4,2,FALSE)))) ->  | NK27: =IF(NK22=" "," ",IF($NC$27=" ",$CD$6*NK21,$NC$27*(1+HLOOKUP($ND$15,Līmeņatzīmes!$B$3:$AI$4,2,FALSE)))) ->  | NL27: =IF(NL22=" "," ",IF($NC$27=" ",$CD$6*NL21,$NC$27*(1+HLOOKUP($ND$15,Līmeņatzīmes!$B$3:$AI$4,2,FALSE)))) ->  | NM27: =IF(NM22=" "," ",IF($NC$27=" ",$CD$6*NM21,$NC$27*(1+HLOOKUP($ND$15,Līmeņatzīmes!$B$3:$AI$4,2,FALSE)))) ->  | NN27: =IF(NN22=" "," ",IF($NC$27=" ",$CD$6*NN21,$NC$27*(1+HLOOKUP($ND$15,Līmeņatzīmes!$B$3:$AI$4,2,FALSE)))) ->  | NO27: =IF(NO22=" "," ",IF($NC$27=" ",$CD$6*NO21,$NC$27*(1+HLOOKUP($ND$15,Līmeņatzīmes!$B$3:$AI$4,2,FALSE)))) ->  | NP27: =IF(NP22=" "," ",IF($NC$27=" ",$CD$6*NP21,$NC$27*(1+HLOOKUP($ND$15,Līmeņatzīmes!$B$3:$AI$4,2,FALSE)))) ->  | NQ27: =IF(OR(NQ$16=" ",NQ$16=0)," ",SUM(NR27:OC27)) ->  | NR27: =IF(NR22=" "," ",IF($NP$27=" ",$CD$6*NR21,$NP$27*(1+HLOOKUP($NQ$15,Līmeņatzīmes!$B$3:$AI$4,2,FALSE)))) ->  | NS27: =IF(NS22=" "," ",IF($NP$27=" ",$CD$6*NS21,$NP$27*(1+HLOOKUP($NQ$15,Līmeņatzīmes!$B$3:$AI$4,2,FALSE)))) ->  | NT27: =IF(NT22=" "," ",IF($NP$27=" ",$CD$6*NT21,$NP$27*(1+HLOOKUP($NQ$15,Līmeņatzīmes!$B$3:$AI$4,2,FALSE)))) ->  | NU27: =IF(NU22=" "," ",IF($NP$27=" ",$CD$6*NU21,$NP$27*(1+HLOOKUP($NQ$15,Līmeņatzīmes!$B$3:$AI$4,2,FALSE)))) ->  | NV27: =IF(NV22=" "," ",IF($NP$27=" ",$CD$6*NV21,$NP$27*(1+HLOOKUP($NQ$15,Līmeņatzīmes!$B$3:$AI$4,2,FALSE)))) ->  | NW27: =IF(NW22=" "," ",IF($NP$27=" ",$CD$6*NW21,$NP$27*(1+HLOOKUP($NQ$15,Līmeņatzīmes!$B$3:$AI$4,2,FALSE)))) ->  | NX27: =IF(NX22=" "," ",IF($NP$27=" ",$CD$6*NX21,$NP$27*(1+HLOOKUP($NQ$15,Līmeņatzīmes!$B$3:$AI$4,2,FALSE)))) ->  | NY27: =IF(NY22=" "," ",IF($NP$27=" ",$CD$6*NY21,$NP$27*(1+HLOOKUP($NQ$15,Līmeņatzīmes!$B$3:$AI$4,2,FALSE)))) ->  | NZ27: =IF(NZ22=" "," ",IF($NP$27=" ",$CD$6*NZ21,$NP$27*(1+HLOOKUP($NQ$15,Līmeņatzīmes!$B$3:$AI$4,2,FALSE)))) ->  | OA27: =IF(OA22=" "," ",IF($NP$27=" ",$CD$6*OA21,$NP$27*(1+HLOOKUP($NQ$15,Līmeņatzīmes!$B$3:$AI$4,2,FALSE)))) ->  | OB27: =IF(OB22=" "," ",IF($NP$27=" ",$CD$6*OB21,$NP$27*(1+HLOOKUP($NQ$15,Līmeņatzīmes!$B$3:$AI$4,2,FALSE)))) ->  | OC27: =IF(OC22=" "," ",IF($NP$27=" ",$CD$6*OC21,$NP$27*(1+HLOOKUP($NQ$15,Līmeņatzīmes!$B$3:$AI$4,2,FALSE)))) ->  | OD27: =IF(OR(OD$16=" ",OD$16=0)," ",SUM(OE27:OP27)) ->  | OE27: =IF(OE22=" "," ",IF($OC$27=" ",$CD$6*OE21,$OC$27*(1+HLOOKUP($OD$15,Līmeņatzīmes!$B$3:$AI$4,2,FALSE)))) ->  | OF27: =IF(OF22=" "," ",IF($OC$27=" ",$CD$6*OF21,$OC$27*(1+HLOOKUP($OD$15,Līmeņatzīmes!$B$3:$AI$4,2,FALSE)))) ->  | OG27: =IF(OG22=" "," ",IF($OC$27=" ",$CD$6*OG21,$OC$27*(1+HLOOKUP($OD$15,Līmeņatzīmes!$B$3:$AI$4,2,FALSE)))) ->  | OH27: =IF(OH22=" "," ",IF($OC$27=" ",$CD$6*OH21,$OC$27*(1+HLOOKUP($OD$15,Līmeņatzīmes!$B$3:$AI$4,2,FALSE)))) ->  | OI27: =IF(OI22=" "," ",IF($OC$27=" ",$CD$6*OI21,$OC$27*(1+HLOOKUP($OD$15,Līmeņatzīmes!$B$3:$AI$4,2,FALSE)))) ->  | OJ27: =IF(OJ22=" "," ",IF($OC$27=" ",$CD$6*OJ21,$OC$27*(1+HLOOKUP($OD$15,Līmeņatzīmes!$B$3:$AI$4,2,FALSE)))) ->  | OK27: =IF(OK22=" "," ",IF($OC$27=" ",$CD$6*OK21,$OC$27*(1+HLOOKUP($OD$15,Līmeņatzīmes!$B$3:$AI$4,2,FALSE)))) ->  | OL27: =IF(OL22=" "," ",IF($OC$27=" ",$CD$6*OL21,$OC$27*(1+HLOOKUP($OD$15,Līmeņatzīmes!$B$3:$AI$4,2,FALSE)))) ->  | OM27: =IF(OM22=" "," ",IF($OC$27=" ",$CD$6*OM21,$OC$27*(1+HLOOKUP($OD$15,Līmeņatzīmes!$B$3:$AI$4,2,FALSE)))) ->  | ON27: =IF(ON22=" "," ",IF($OC$27=" ",$CD$6*ON21,$OC$27*(1+HLOOKUP($OD$15,Līmeņatzīmes!$B$3:$AI$4,2,FALSE)))) ->  | OO27: =IF(OO22=" "," ",IF($OC$27=" ",$CD$6*OO21,$OC$27*(1+HLOOKUP($OD$15,Līmeņatzīmes!$B$3:$AI$4,2,FALSE)))) ->  | OP27: =IF(OP22=" "," ",IF($OC$27=" ",$CD$6*OP21,$OC$27*(1+HLOOKUP($OD$15,Līmeņatzīmes!$B$3:$AI$4,2,FALSE)))) ->  | OQ27: =IF(OR(OQ$16=" ",OQ$16=0)," ",SUM(OR27:PC27)) ->  | OR27: =IF(OR22=" "," ",IF($OP$27=" ",$CD$6*OR21,$OP$27*(1+HLOOKUP($OQ$15,Līmeņatzīmes!$B$3:$AI$4,2,FALSE)))) ->  | OS27: =IF(OS22=" "," ",IF($OP$27=" ",$CD$6*OS21,$OP$27*(1+HLOOKUP($OQ$15,Līmeņatzīmes!$B$3:$AI$4,2,FALSE)))) ->  | OT27: =IF(OT22=" "," ",IF($OP$27=" ",$CD$6*OT21,$OP$27*(1+HLOOKUP($OQ$15,Līmeņatzīmes!$B$3:$AI$4,2,FALSE)))) ->  | OU27: =IF(OU22=" "," ",IF($OP$27=" ",$CD$6*OU21,$OP$27*(1+HLOOKUP($OQ$15,Līmeņatzīmes!$B$3:$AI$4,2,FALSE)))) ->  | OV27: =IF(OV22=" "," ",IF($OP$27=" ",$CD$6*OV21,$OP$27*(1+HLOOKUP($OQ$15,Līmeņatzīmes!$B$3:$AI$4,2,FALSE)))) ->  | OW27: =IF(OW22=" "," ",IF($OP$27=" ",$CD$6*OW21,$OP$27*(1+HLOOKUP($OQ$15,Līmeņatzīmes!$B$3:$AI$4,2,FALSE)))) ->  | OX27: =IF(OX22=" "," ",IF($OP$27=" ",$CD$6*OX21,$OP$27*(1+HLOOKUP($OQ$15,Līmeņatzīmes!$B$3:$AI$4,2,FALSE)))) ->  | OY27: =IF(OY22=" "," ",IF($OP$27=" ",$CD$6*OY21,$OP$27*(1+HLOOKUP($OQ$15,Līmeņatzīmes!$B$3:$AI$4,2,FALSE)))) ->  | OZ27: =IF(OZ22=" "," ",IF($OP$27=" ",$CD$6*OZ21,$OP$27*(1+HLOOKUP($OQ$15,Līmeņatzīmes!$B$3:$AI$4,2,FALSE)))) ->  | PA27: =IF(PA22=" "," ",IF($OP$27=" ",$CD$6*PA21,$OP$27*(1+HLOOKUP($OQ$15,Līmeņatzīmes!$B$3:$AI$4,2,FALSE)))) ->  | PB27: =IF(PB22=" "," ",IF($OP$27=" ",$CD$6*PB21,$OP$27*(1+HLOOKUP($OQ$15,Līmeņatzīmes!$B$3:$AI$4,2,FALSE)))) ->  | PC27: =IF(PC22=" "," ",IF($OP$27=" ",$CD$6*PC21,$OP$27*(1+HLOOKUP($OQ$15,Līmeņatzīmes!$B$3:$AI$4,2,FALSE)))) ->  | PD27: =IF(OR(PD$16=" ",PD$16=0)," ",SUM(PE27:PP27)) ->  | PE27: =IF(PE22=" "," ",IF($PC$27=" ",$CD$6*PE21,$PC$27*(1+HLOOKUP($PD$15,Līmeņatzīmes!$B$3:$AI$4,2,FALSE)))) ->  | PF27: =IF(PF22=" "," ",IF($PC$27=" ",$CD$6*PF21,$PC$27*(1+HLOOKUP($PD$15,Līmeņatzīmes!$B$3:$AI$4,2,FALSE)))) ->  | PG27: =IF(PG22=" "," ",IF($PC$27=" ",$CD$6*PG21,$PC$27*(1+HLOOKUP($PD$15,Līmeņatzīmes!$B$3:$AI$4,2,FALSE)))) ->  | PH27: =IF(PH22=" "," ",IF($PC$27=" ",$CD$6*PH21,$PC$27*(1+HLOOKUP($PD$15,Līmeņatzīmes!$B$3:$AI$4,2,FALSE)))) ->  | PI27: =IF(PI22=" "," ",IF($PC$27=" ",$CD$6*PI21,$PC$27*(1+HLOOKUP($PD$15,Līmeņatzīmes!$B$3:$AI$4,2,FALSE)))) ->  | PJ27: =IF(PJ22=" "," ",IF($PC$27=" ",$CD$6*PJ21,$PC$27*(1+HLOOKUP($PD$15,Līmeņatzīmes!$B$3:$AI$4,2,FALSE)))) ->  | PK27: =IF(PK22=" "," ",IF($PC$27=" ",$CD$6*PK21,$PC$27*(1+HLOOKUP($PD$15,Līmeņatzīmes!$B$3:$AI$4,2,FALSE)))) ->  | PL27: =IF(PL22=" "," ",IF($PC$27=" ",$CD$6*PL21,$PC$27*(1+HLOOKUP($PD$15,Līmeņatzīmes!$B$3:$AI$4,2,FALSE)))) ->  | PM27: =IF(PM22=" "," ",IF($PC$27=" ",$CD$6*PM21,$PC$27*(1+HLOOKUP($PD$15,Līmeņatzīmes!$B$3:$AI$4,2,FALSE)))) ->  | PN27: =IF(PN22=" "," ",IF($PC$27=" ",$CD$6*PN21,$PC$27*(1+HLOOKUP($PD$15,Līmeņatzīmes!$B$3:$AI$4,2,FALSE)))) ->  | PO27: =IF(PO22=" "," ",IF($PC$27=" ",$CD$6*PO21,$PC$27*(1+HLOOKUP($PD$15,Līmeņatzīmes!$B$3:$AI$4,2,FALSE)))) ->  | PP27: =IF(PP22=" "," ",IF($PC$27=" ",$CD$6*PP21,$PC$27*(1+HLOOKUP($PD$15,Līmeņatzīmes!$B$3:$AI$4,2,FALSE)))) ->  | PQ27: =IF(OR(PQ$16=" ",PQ$16=0)," ",SUM(PR27:QC27)) ->  | PR27: =IF(PR22=" "," ",IF($PP$27=" ",$CD$6*PR21,$PP$27*(1+HLOOKUP($PQ$15,Līmeņatzīmes!$B$3:$AI$4,2,FALSE)))) ->  | PS27: =IF(PS22=" "," ",IF($PP$27=" ",$CD$6*PS21,$PP$27*(1+HLOOKUP($PQ$15,Līmeņatzīmes!$B$3:$AI$4,2,FALSE)))) ->  | PT27: =IF(PT22=" "," ",IF($PP$27=" ",$CD$6*PT21,$PP$27*(1+HLOOKUP($PQ$15,Līmeņatzīmes!$B$3:$AI$4,2,FALSE)))) ->  | PU27: =IF(PU22=" "," ",IF($PP$27=" ",$CD$6*PU21,$PP$27*(1+HLOOKUP($PQ$15,Līmeņatzīmes!$B$3:$AI$4,2,FALSE)))) ->  | PV27: =IF(PV22=" "," ",IF($PP$27=" ",$CD$6*PV21,$PP$27*(1+HLOOKUP($PQ$15,Līmeņatzīmes!$B$3:$AI$4,2,FALSE)))) ->  | PW27: =IF(PW22=" "," ",IF($PP$27=" ",$CD$6*PW21,$PP$27*(1+HLOOKUP($PQ$15,Līmeņatzīmes!$B$3:$AI$4,2,FALSE)))) ->  | PX27: =IF(PX22=" "," ",IF($PP$27=" ",$CD$6*PX21,$PP$27*(1+HLOOKUP($PQ$15,Līmeņatzīmes!$B$3:$AI$4,2,FALSE)))) ->  | PY27: =IF(PY22=" "," ",IF($PP$27=" ",$CD$6*PY21,$PP$27*(1+HLOOKUP($PQ$15,Līmeņatzīmes!$B$3:$AI$4,2,FALSE)))) ->  | PZ27: =IF(PZ22=" "," ",IF($PP$27=" ",$CD$6*PZ21,$PP$27*(1+HLOOKUP($PQ$15,Līmeņatzīmes!$B$3:$AI$4,2,FALSE)))) ->  | QA27: =IF(QA22=" "," ",IF($PP$27=" ",$CD$6*QA21,$PP$27*(1+HLOOKUP($PQ$15,Līmeņatzīmes!$B$3:$AI$4,2,FALSE)))) ->  | QB27: =IF(QB22=" "," ",IF($PP$27=" ",$CD$6*QB21,$PP$27*(1+HLOOKUP($PQ$15,Līmeņatzīmes!$B$3:$AI$4,2,FALSE)))) ->  | QC27: =IF(QC22=" "," ",IF($PP$27=" ",$CD$6*QC21,$PP$27*(1+HLOOKUP($PQ$15,Līmeņatzīmes!$B$3:$AI$4,2,FALSE)))) -> 
A29: Tīrā Naudas Plūsma | B29: EUR/gadā | D29: =IF(D22=" "," ",SUM(E29:P29)) ->  | E29: =IF(OR(E22=" ",E22=0)," ",E19-E25) ->  | F29: =IF(OR(F22=" ",F22=0)," ",F19-F25) ->  | Q29: =IF(Q22=" "," ",SUM(R29:AC29)) ->  | AD29: =IF(AD22=" "," ",SUM(AE29:AP29)) ->  | AQ29: =IF(AQ22=" "," ",SUM(AR29:BC29)) ->  | BD29: =IF(BD22=" "," ",SUM(BE29:BP29)) ->  | BQ29: =IF(BQ22=" "," ",SUM(BR29:CC29)) ->  | BS29: =IF(OR(BS22=" ",BS22=0)," ",BS19-BS25) ->  | CD29: =IF(CD22=" "," ",SUM(CE29:CP29)) ->  | CE29: =IF(OR(CE22=" ",CE22=0)," ",CE19-CE25) ->  | CQ29: =IF(CQ22=" "," ",SUM(CR29:DC29)) ->  | CR29: =IF(OR(CR22=" ",CR22=0)," ",CR19-CR25) ->  | DD29: =IF(DD22=" "," ",SUM(DE29:DP29)) ->  | DE29: =IF(OR(DE22=" ",DE22=0)," ",DE19-DE25) ->  | DQ29: =IF(DQ22=" "," ",SUM(DR29:EC29)) ->  | DR29: =IF(OR(DR22=" ",DR22=0)," ",DR19-DR25) ->  | ED29: =IF(ED22=" "," ",SUM(EE29:EP29)) ->  | EE29: =IF(OR(EE22=" ",EE22=0)," ",EE19-EE25) ->  | EQ29: =IF(EQ22=" "," ",SUM(ER29:FC29)) ->  | ER29: =IF(OR(ER22=" ",ER22=0)," ",ER19-ER25) ->  | FD29: =IF(FD22=" "," ",SUM(FE29:FP29)) ->  | FE29: =IF(OR(FE22=" ",FE22=0)," ",FE19-FE25) ->  | FQ29: =IF(FQ22=" "," ",SUM(FR29:GC29)) ->  | FR29: =IF(OR(FR22=" ",FR22=0)," ",FR19-FR25) ->  | GD29: =IF(GD22=" "," ",SUM(GE29:GP29)) ->  | GE29: =IF(OR(GE22=" ",GE22=0)," ",GE19-GE25) ->  | GQ29: =IF(GQ22=" "," ",SUM(GR29:HC29)) ->  | GR29: =IF(OR(GR22=" ",GR22=0)," ",GR19-GR25) ->  | HD29: =IF(HD22=" "," ",SUM(HE29:HP29)) ->  | HE29: =IF(OR(HE22=" ",HE22=0)," ",HE19-HE25) ->  | HQ29: =IF(HQ22=" "," ",SUM(HR29:IC29)) ->  | HR29: =IF(OR(HR22=" ",HR22=0)," ",HR19-HR25) ->  | ID29: =IF(ID22=" "," ",SUM(IE29:IP29)) ->  | IE29: =IF(OR(IE22=" ",IE22=0)," ",IE19-IE25) ->  | IQ29: =IF(IQ22=" "," ",SUM(IR29:JC29)) ->  | IR29: =IF(OR(IR22=" ",IR22=0)," ",IR19-IR25) ->  | JD29: =IF(JD22=" "," ",SUM(JE29:JP29)) ->  | JE29: =IF(OR(JE22=" ",JE22=0)," ",JE19-JE25) ->  | JQ29: =IF(JQ22=" "," ",SUM(JR29:KC29)) ->  | JR29: =IF(OR(JR22=" ",JR22=0)," ",JR19-JR25) ->  | KD29: =IF(KD22=" "," ",SUM(KE29:KP29)) ->  | KE29: =IF(OR(KE22=" ",KE22=0)," ",KE19-KE25) ->  | KQ29: =IF(KQ22=" "," ",SUM(KR29:LC29)) ->  | KR29: =IF(OR(KR22=" ",KR22=0)," ",KR19-KR25) ->  | LD29: =IF(LD22=" "," ",SUM(LE29:LP29)) ->  | LE29: =IF(OR(LE22=" ",LE22=0)," ",LE19-LE25) ->  | LQ29: =IF(LQ22=" "," ",SUM(LR29:MC29)) ->  | LR29: =IF(OR(LR22=" ",LR22=0)," ",LR19-LR25) ->  | MD29: =IF(MD22=" "," ",SUM(ME29:MP29)) ->  | ME29: =IF(OR(ME22=" ",ME22=0)," ",ME19-ME25) ->  | MQ29: =IF(MQ22=" "," ",SUM(MR29:NC29)) ->  | MR29: =IF(OR(MR22=" ",MR22=0)," ",MR19-MR25) ->  | ND29: =IF(ND22=" "," ",SUM(NE29:NP29)) ->  | NE29: =IF(OR(NE22=" ",NE22=0)," ",NE19-NE25) ->  | NQ29: =IF(NQ22=" "," ",SUM(NR29:OC29)) ->  | NR29: =IF(OR(NR22=" ",NR22=0)," ",NR19-NR25) ->  | OD29: =IF(OD22=" "," ",SUM(OE29:OP29)) ->  | OE29: =IF(OR(OE22=" ",OE22=0)," ",OE19-OE25) ->  | OQ29: =IF(OQ22=" "," ",SUM(OR29:PC29)) ->  | OR29: =IF(OR(OR22=" ",OR22=0)," ",OR19-OR25) ->  | PD29: =IF(PD22=" "," ",SUM(PE29:PP29)) ->  | PE29: =IF(OR(PE22=" ",PE22=0)," ",PE19-PE25) ->  | PQ29: =IF(PQ22=" "," ",SUM(PR29:QC29)) ->  | PR29: =IF(OR(PR22=" ",PR22=0)," ",PR19-PR25) -> 
A30: Tīrā Naudas Plūsma un investīcijas | C30: =IF(AND(C$16>=0,C$16<=$QD$4+1),IF(C$16=0,IF(C$15=$D$10,-$C$8-$C$9+$C$10,-$C$8-$C$9),IF(C$15=$D$10,C29+$C$10,C29))," ") ->  | D30: =IF(AND(D$16>=0,D$16<=$QD$4+1),IF(D$16=0,IF(D$15=$D$10,-$C$8-$C$9+$C$10,-$C$8-$C$9),IF(D$15=$D$10,D29+$C$10,D29))," ") ->  | Q30: =IF(AND(Q$16>=0,Q$16<=$QD$4+1),IF(Q$16=0,IF(Q$15=$D$10,-$C$8-$C$9+$C$10,-$C$8-$C$9),IF(Q$15=$D$10,Q29+$C$10,Q29))," ") ->  | AD30: =IF(AND(AD$16>=0,AD$16<=$QD$4+1),IF(AD$16=0,IF(AD$15=$D$10,-$C$8-$C$9+$C$10,-$C$8-$C$9),IF(AD$15=$D$10,AD29+$C$10,AD29))," ") ->  | AQ30: =IF(AND(AQ$16>=0,AQ$16<=$QD$4+1),IF(AQ$16=0,IF(AQ$15=$D$10,-$C$8-$C$9+$C$10,-$C$8-$C$9),IF(AQ$15=$D$10,AQ29+$C$10,AQ29))," ") ->  | BD30: =IF(AND(BD$16>=0,BD$16<=$QD$4+1),IF(BD$16=0,IF(BD$15=$D$10,-$C$8-$C$9+$C$10,-$C$8-$C$9),IF(BD$15=$D$10,BD29+$C$10,BD29))," ") ->  | BQ30: =IF(AND(BQ$16>=0,BQ$16<=$QD$4+1),IF(BQ$16=0,IF(BQ$15=$D$10,-$C$8-$C$9+$C$10,-$C$8-$C$9),IF(BQ$15=$D$10,BQ29+$C$10,BQ29))," ") ->  | CD30: =IF(AND(CD$16>=0,CD$16<=$QD$4+1),IF(CD$16=0,IF(CD$15=$D$10,-$C$8-$C$9+$C$10,-$C$8-$C$9),IF(CD$15=$D$10,CD29+$C$10,CD29))," ") ->  | CQ30: =IF(AND(CQ$16>=0,CQ$16<=$QD$4+1),IF(CQ$16=0,IF(CQ$15=$D$10,-$C$8-$C$9+$C$10,-$C$8-$C$9),IF(CQ$15=$D$10,CQ29+$C$10,CQ29))," ") ->  | DD30: =IF(AND(DD$16>=0,DD$16<=$QD$4+1),IF(DD$16=0,IF(DD$15=$D$10,-$C$8-$C$9+$C$10,-$C$8-$C$9),IF(DD$15=$D$10,DD29+$C$10,DD29))," ") ->  | DQ30: =IF(AND(DQ$16>=0,DQ$16<=$QD$4+1),IF(DQ$16=0,IF(DQ$15=$D$10,-$C$8-$C$9+$C$10,-$C$8-$C$9),IF(DQ$15=$D$10,DQ29+$C$10,DQ29))," ") ->  | ED30: =IF(AND(ED$16>=0,ED$16<=$QD$4+1),IF(ED$16=0,IF(ED$15=$D$10,-$C$8-$C$9+$C$10,-$C$8-$C$9),IF(ED$15=$D$10,ED29+$C$10,ED29))," ") ->  | EQ30: =IF(AND(EQ$16>=0,EQ$16<=$QD$4+1),IF(EQ$16=0,IF(EQ$15=$D$10,-$C$8-$C$9+$C$10,-$C$8-$C$9),IF(EQ$15=$D$10,EQ29+$C$10,EQ29))," ") ->  | FD30: =IF(AND(FD$16>=0,FD$16<=$QD$4+1),IF(FD$16=0,IF(FD$15=$D$10,-$C$8-$C$9+$C$10,-$C$8-$C$9),IF(FD$15=$D$10,FD29+$C$10,FD29))," ") ->  | FQ30: =IF(AND(FQ$16>=0,FQ$16<=$QD$4+1),IF(FQ$16=0,IF(FQ$15=$D$10,-$C$8-$C$9+$C$10,-$C$8-$C$9),IF(FQ$15=$D$10,FQ29+$C$10,FQ29))," ") ->  | GD30: =IF(AND(GD$16>=0,GD$16<=$QD$4+1),IF(GD$16=0,IF(GD$15=$D$10,-$C$8-$C$9+$C$10,-$C$8-$C$9),IF(GD$15=$D$10,GD29+$C$10,GD29))," ") ->  | GQ30: =IF(AND(GQ$16>=0,GQ$16<=$QD$4+1),IF(GQ$16=0,IF(GQ$15=$D$10,-$C$8-$C$9+$C$10,-$C$8-$C$9),IF(GQ$15=$D$10,GQ29+$C$10,GQ29))," ") ->  | HD30: =IF(AND(HD$16>=0,HD$16<=$QD$4+1),IF(HD$16=0,IF(HD$15=$D$10,-$C$8-$C$9+$C$10,-$C$8-$C$9),IF(HD$15=$D$10,HD29+$C$10,HD29))," ") ->  | HQ30: =IF(AND(HQ$16>=0,HQ$16<=$QD$4+1),IF(HQ$16=0,IF(HQ$15=$D$10,-$C$8-$C$9+$C$10,-$C$8-$C$9),IF(HQ$15=$D$10,HQ29+$C$10,HQ29))," ") ->  | ID30: =IF(AND(ID$16>=0,ID$16<=$QD$4+1),IF(ID$16=0,IF(ID$15=$D$10,-$C$8-$C$9+$C$10,-$C$8-$C$9),IF(ID$15=$D$10,ID29+$C$10,ID29))," ") ->  | IQ30: =IF(AND(IQ$16>=0,IQ$16<=$QD$4+1),IF(IQ$16=0,IF(IQ$15=$D$10,-$C$8-$C$9+$C$10,-$C$8-$C$9),IF(IQ$15=$D$10,IQ29+$C$10,IQ29))," ") ->  | JD30: =IF(AND(JD$16>=0,JD$16<=$QD$4+1),IF(JD$16=0,IF(JD$15=$D$10,-$C$8-$C$9+$C$10,-$C$8-$C$9),IF(JD$15=$D$10,JD29+$C$10,JD29))," ") ->  | JQ30: =IF(AND(JQ$16>=0,JQ$16<=$QD$4+1),IF(JQ$16=0,IF(JQ$15=$D$10,-$C$8-$C$9+$C$10,-$C$8-$C$9),IF(JQ$15=$D$10,JQ29+$C$10,JQ29))," ") ->  | KD30: =IF(AND(KD$16>=0,KD$16<=$QD$4+1),IF(KD$16=0,IF(KD$15=$D$10,-$C$8-$C$9+$C$10,-$C$8-$C$9),IF(KD$15=$D$10,KD29+$C$10,KD29))," ") ->  | KQ30: =IF(AND(KQ$16>=0,KQ$16<=$QD$4+1),IF(KQ$16=0,IF(KQ$15=$D$10,-$C$8-$C$9+$C$10,-$C$8-$C$9),IF(KQ$15=$D$10,KQ29+$C$10,KQ29))," ") ->  | LD30: =IF(AND(LD$16>=0,LD$16<=$QD$4+1),IF(LD$16=0,IF(LD$15=$D$10,-$C$8-$C$9+$C$10,-$C$8-$C$9),IF(LD$15=$D$10,LD29+$C$10,LD29))," ") ->  | LQ30: =IF(AND(LQ$16>=0,LQ$16<=$QD$4+1),IF(LQ$16=0,IF(LQ$15=$D$10,-$C$8-$C$9+$C$10,-$C$8-$C$9),IF(LQ$15=$D$10,LQ29+$C$10,LQ29))," ") ->  | MD30: =IF(AND(MD$16>=0,MD$16<=$QD$4+1),IF(MD$16=0,IF(MD$15=$D$10,-$C$8-$C$9+$C$10,-$C$8-$C$9),IF(MD$15=$D$10,MD29+$C$10,MD29))," ") ->  | MQ30: =IF(AND(MQ$16>=0,MQ$16<=$QD$4+1),IF(MQ$16=0,IF(MQ$15=$D$10,-$C$8-$C$9+$C$10,-$C$8-$C$9),IF(MQ$15=$D$10,MQ29+$C$10,MQ29))," ") ->  | ND30: =IF(AND(ND$16>=0,ND$16<=$QD$4+1),IF(ND$16=0,IF(ND$15=$D$10,-$C$8-$C$9+$C$10,-$C$8-$C$9),IF(ND$15=$D$10,ND29+$C$10,ND29))," ") ->  | NQ30: =IF(AND(NQ$16>=0,NQ$16<=$QD$4+1),IF(NQ$16=0,IF(NQ$15=$D$10,-$C$8-$C$9+$C$10,-$C$8-$C$9),IF(NQ$15=$D$10,NQ29+$C$10,NQ29))," ") ->  | OD30: =IF(AND(OD$16>=0,OD$16<=$QD$4+1),IF(OD$16=0,IF(OD$15=$D$10,-$C$8-$C$9+$C$10,-$C$8-$C$9),IF(OD$15=$D$10,OD29+$C$10,OD29))," ") ->  | OQ30: =IF(AND(OQ$16>=0,OQ$16<=$QD$4+1),IF(OQ$16=0,IF(OQ$15=$D$10,-$C$8-$C$9+$C$10,-$C$8-$C$9),IF(OQ$15=$D$10,OQ29+$C$10,OQ29))," ") ->  | PD30: =IF(AND(PD$16>=0,PD$16<=$QD$4+1),IF(PD$16=0,IF(PD$15=$D$10,-$C$8-$C$9+$C$10,-$C$8-$C$9),IF(PD$15=$D$10,PD29+$C$10,PD29))," ") ->  | PQ30: =IF(AND(PQ$16>=0,PQ$16<=$QD$4+1),IF(PQ$16=0,IF(PQ$15=$D$10,-$C$8-$C$9+$C$10,-$C$8-$C$9),IF(PQ$15=$D$10,PQ29+$C$10,PQ29))," ") -> 
A31: IRR | D31: =IF(OR(D30=" ",D$16<=0)," ",IRR($C$30:D$30)) ->  | Q31: =IF(OR(Q30=" ",Q$16<=0)," ",IRR($C$30:Q$30)) ->  | AD31: =IF(OR(AD30=" ",AD$16<=0)," ",IRR($C$30:AD$30)) ->  | AQ31: =IF(OR(AQ30=" ",AQ$16<=0)," ",IRR($C$30:AQ$30)) ->  | BD31: =IF(OR(BD30=" ",BD$16<=0)," ",IRR($C$30:BD$30)) ->  | BQ31: =IF(OR(BQ30=" ",BQ$16<=0)," ",IRR($C$30:BQ$30)) ->  | CD31: =IF(OR(CD30=" ",CD$16<=0)," ",IRR($C$30:CD$30)) ->  | CQ31: =IF(OR(CQ30=" ",CQ$16<=0)," ",IRR($C$30:CQ$30)) ->  | DD31: =IF(OR(DD30=" ",DD$16<=0)," ",IRR($C$30:DD$30)) ->  | DQ31: =IF(OR(DQ30=" ",DQ$16<=0)," ",IRR($C$30:DQ$30)) ->  | ED31: =IF(OR(ED30=" ",ED$16<=0)," ",IRR($C$30:ED$30)) ->  | EQ31: =IF(OR(EQ30=" ",EQ$16<=0)," ",IRR($C$30:EQ$30)) ->  | FD31: =IF(OR(FD30=" ",FD$16<=0)," ",IRR($C$30:FD$30)) ->  | FQ31: =IF(OR(FQ30=" ",FQ$16<=0)," ",IRR($C$30:FQ$30)) ->  | GD31: =IF(OR(GD30=" ",GD$16<=0)," ",IRR($C$30:GD$30)) ->  | GQ31: =IF(OR(GQ30=" ",GQ$16<=0)," ",IRR($C$30:GQ$30)) ->  | HD31: =IF(OR(HD30=" ",HD$16<=0)," ",IRR($C$30:HD$30)) ->  | HQ31: =IF(OR(HQ30=" ",HQ$16<=0)," ",IRR($C$30:HQ$30)) ->  | ID31: =IF(OR(ID30=" ",ID$16<=0)," ",IRR($C$30:ID$30)) ->  | IQ31: =IF(OR(IQ30=" ",IQ$16<=0)," ",IRR($C$30:IQ$30)) ->  | JD31: =IF(OR(JD30=" ",JD$16<=0)," ",IRR($C$30:JD$30)) ->  | JQ31: =IF(OR(JQ30=" ",JQ$16<=0)," ",IRR($C$30:JQ$30)) ->  | KD31: =IF(OR(KD30=" ",KD$16<=0)," ",IRR($C$30:KD$30)) ->  | KQ31: =IF(OR(KQ30=" ",KQ$16<=0)," ",IRR($C$30:KQ$30)) ->  | LD31: =IF(OR(LD30=" ",LD$16<=0)," ",IRR($C$30:LD$30)) ->  | LQ31: =IF(OR(LQ30=" ",LQ$16<=0)," ",IRR($C$30:LQ$30)) ->  | MD31: =IF(OR(MD30=" ",MD$16<=0)," ",IRR($C$30:MD$30)) ->  | MQ31: =IF(OR(MQ30=" ",MQ$16<=0)," ",IRR($C$30:MQ$30)) ->  | ND31: =IF(OR(ND30=" ",ND$16<=0)," ",IRR($C$30:ND$30)) ->  | NQ31: =IF(OR(NQ30=" ",NQ$16<=0)," ",IRR($C$30:NQ$30)) ->  | OD31: =IF(OR(OD30=" ",OD$16<=0)," ",IRR($C$30:OD$30)) ->  | OQ31: =IF(OR(OQ30=" ",OQ$16<=0)," ",IRR($C$30:OQ$30)) ->  | PD31: =IF(OR(PD30=" ",PD$16<=0)," ",IRR($C$30:PD$30)) ->  | PQ31: =IF(OR(PQ30=" ",PQ$16<=0)," ",IRR($C$30:PQ$30)) -> 
A33: Pārkompensācijas koeficients | B33: 1
A34: Pārkompensācijas koeficients spēkā no | B34: 2017 | C34: 7
A35: IRR pirms pārkompen.koeficienta piemērošanas | B35: =IF($C$6=12,HLOOKUP(QD4,A16:PQ31,14,FALSE),HLOOKUP(QD6,A16:PQ31,16,FALSE)) -> 
A36: IRR pēc pārkompen.koeficienta piemērošanas | B36: =IF($C$6=12,HLOOKUP(QD4,A40:PQ55,15,FALSE),HLOOKUP(QD6,A40:PQ55,16,FALSE)) -> 
A38: IRR aprēķins (pēc pārkompensācijas koeficienta)
A39: Gads | C39: 2006 | D39: =C39+1 -> 2007 | E39: 2007 | Q39: =D39+1 -> 2008 | R39: 2008 | AD39: =Q39+1 -> 2009 | AE39: 2009 | AQ39: =AD39+1 -> 2010 | AR39: 2010 | BD39: =AQ39+1 -> 2011 | BE39: 2011 | BQ39: 2012 | BR39: 2012 | CD39: 2013 | CE39: 2013 | CQ39: 2014 | CR39: 2014 | DD39: 2015 | DE39: 2015 | DQ39: 2016 | DR39: 2016 | ED39: 2017 | EE39: 2017 | EQ39: 2018 | ER39: 2018 | FD39: 2019 | FE39: 2019 | FQ39: 2020 | FR39: 2020 | GD39: 2021 | GE39: 2021 | GQ39: 2022 | GR39: 2022 | HD39: 2023 | HE39: 2023 | HQ39: 2024 | HR39: 2024 | ID39: 2025 | IE39: 2024 | IQ39: 2026 | IR39: 2026 | JD39: 2027 | JE39: 2027 | JQ39: 2028 | JR39: 2028 | KD39: 2029 | KE39: 2029 | KQ39: 2030 | KR39: 2030 | LD39: 2031 | LE39: 2031 | LQ39: 2032 | LR39: 2032 | MD39: 2033 | ME39: 2033 | MQ39: 2034 | MR39: 2034 | ND39: 2035 | NE39: 2035 | NQ39: 2036 | NR39: 2036 | OD39: 2037 | OE39: 2037 | OQ39: 2038 | OR39: 2038 | PD39: 2039 | PE39: 2039 | PQ39: 2040 | PR39: 2040
A40: Projekta gads | C40: =IF(C39-$B$5<-1," ",IF(C39-$B$5=-1,0," ")) ->  | D40: =IF(D39-$B$5<-1," ",IF(D39-$B$5=-1,0,IF(OR(C40=0,C40<$QD$4),C40+1,IF(C40=$QD$4,21," ")))) ->  | Q40: =IF(Q39-$B$5<-1," ",IF(Q39-$B$5=-1,0,IF(OR(D40=0,D40<$QD$4),D40+1,IF(D40=$QD$4,21," ")))) ->  | S40: =IF(S41-$B$5<-1," ",IF(S41-$B$5=-1,0,IF(R40=0,R40+1,IF(R40=$QD$4,21," ")))) -> 1 | AD40: =IF(AD39-$B$5<-1," ",IF(AD39-$B$5=-1,0,IF(OR(Q40=0,Q40<$QD$4),Q40+1,IF(Q40=$QD$4,21," ")))) ->  | AE40: =IF(AE41-$B$5<-1," ",IF(AE41-$B$5=-1,0,IF(AD40=0,AD40+1,IF(AD40=$QD$4,21," ")))) ->  | AQ40: =IF(AQ39-$B$5<-1," ",IF(AQ39-$B$5=-1,0,IF(OR(AD40=0,AD40<$QD$4),AD40+1,IF(AD40=$QD$4,21," ")))) ->  | AR40: =IF(AR41-$B$5<-1," ",IF(AR41-$B$5=-1,0,IF(AQ40=0,AQ40+1,IF(AQ40=$QD$4,21," ")))) ->  | BD40: =IF(BD39-$B$5<-1," ",IF(BD39-$B$5=-1,0,IF(OR(AQ40=0,AQ40<$QD$4),AQ40+1,IF(AQ40=$QD$4,21," ")))) ->  | BE40: =IF(BE41-$B$5<-1," ",IF(BE41-$B$5=-1,0,IF(BD40=0,BD40+1,IF(BD40=$QD$4,21," ")))) ->  | BQ40: =IF(BQ39-$B$5<-1," ",IF(BQ39-$B$5=-1,0,IF(OR(BD40=0,BD40<$QD$4),BD40+1,IF(BD40=$QD$4,21," ")))) ->  | CD40: =IF(CD39-$B$5<-1," ",IF(CD39-$B$5=-1,0,IF(OR(BQ40=0,BQ40<$QD$4),BQ40+1,IF(BQ40=$QD$4,21," ")))) ->  | CQ40: =IF(CQ39-$B$5<-1," ",IF(CQ39-$B$5=-1,0,IF(OR(CD40=0,CD40<$QD$4),CD40+1,IF(CD40=$QD$4,21," ")))) ->  | DD40: =IF(DD39-$B$5<-1," ",IF(DD39-$B$5=-1,0,IF(OR(CQ40=0,CQ40<$QD$4),CQ40+1,IF(CQ40=$QD$4,21," ")))) ->  | DQ40: =IF(DQ39-$B$5<-1," ",IF(DQ39-$B$5=-1,0,IF(OR(DD40=0,DD40<$QD$4),DD40+1,IF(DD40=$QD$4,21," ")))) ->  | ED40: =IF(ED39-$B$5<-1," ",IF(ED39-$B$5=-1,0,IF(OR(DQ40=0,DQ40<$QD$4),DQ40+1,IF(DQ40=$QD$4,21," ")))) ->  | EQ40: =IF(EQ39-$B$5<-1," ",IF(EQ39-$B$5=-1,0,IF(OR(ED40=0,ED40<$QD$4),ED40+1,IF(ED40=$QD$4,21," ")))) ->  | FD40: =IF(FD39-$B$5<-1," ",IF(FD39-$B$5=-1,0,IF(OR(EQ40=0,EQ40<$QD$4),EQ40+1,IF(EQ40=$QD$4,21," ")))) ->  | FQ40: =IF(FQ39-$B$5<-1," ",IF(FQ39-$B$5=-1,0,IF(OR(FD40=0,FD40<$QD$4),FD40+1,IF(FD40=$QD$4,21," ")))) ->  | GD40: =IF(GD39-$B$5<-1," ",IF(GD39-$B$5=-1,0,IF(OR(FQ40=0,FQ40<$QD$4),FQ40+1,IF(FQ40=$QD$4,21," ")))) ->  | GQ40: =IF(GQ39-$B$5<-1," ",IF(GQ39-$B$5=-1,0,IF(OR(GD40=0,GD40<$QD$4),GD40+1,IF(GD40=$QD$4,21," ")))) ->  | HD40: =IF(HD39-$B$5<-1," ",IF(HD39-$B$5=-1,0,IF(OR(GQ40=0,GQ40<$QD$4),GQ40+1,IF(GQ40=$QD$4,21," ")))) ->  | HQ40: =IF(HQ39-$B$5<-1," ",IF(HQ39-$B$5=-1,0,IF(OR(HD40=0,HD40<$QD$4),HD40+1,IF(HD40=$QD$4,21," ")))) ->  | ID40: =IF(ID39-$B$5<-1," ",IF(ID39-$B$5=-1,0,IF(OR(HQ40=0,HQ40<$QD$4),HQ40+1,IF(HQ40=$QD$4,21," ")))) ->  | IQ40: =IF(IQ39-$B$5<-1," ",IF(IQ39-$B$5=-1,0,IF(OR(ID40=0,ID40<$QD$4),ID40+1,IF(ID40=$QD$4,21," ")))) ->  | JD40: =IF(JD39-$B$5<-1," ",IF(JD39-$B$5=-1,0,IF(OR(IQ40=0,IQ40<$QD$4),IQ40+1,IF(IQ40=$QD$4,21," ")))) ->  | JQ40: =IF(JQ39-$B$5<-1," ",IF(JQ39-$B$5=-1,0,IF(OR(JD40=0,JD40<$QD$4),JD40+1,IF(JD40=$QD$4,21," ")))) ->  | KD40: =IF(KD39-$B$5<-1," ",IF(KD39-$B$5=-1,0,IF(OR(JQ40=0,JQ40<$QD$4),JQ40+1,IF(JQ40=$QD$4,21," ")))) ->  | KQ40: =IF(KQ39-$B$5<-1," ",IF(KQ39-$B$5=-1,0,IF(OR(KD40=0,KD40<$QD$4),KD40+1,IF(KD40=$QD$4,21," ")))) ->  | LD40: =IF(LD39-$B$5<-1," ",IF(LD39-$B$5=-1,0,IF(OR(KQ40=0,KQ40<$QD$4),KQ40+1,IF(KQ40=$QD$4,21," ")))) ->  | LQ40: =IF(LQ39-$B$5<-1," ",IF(LQ39-$B$5=-1,0,IF(OR(LD40=0,LD40<$QD$4),LD40+1,IF(LD40=$QD$4,21," ")))) ->  | MD40: =IF(MD39-$B$5<-1," ",IF(MD39-$B$5=-1,0,IF(OR(LQ40=0,LQ40<$QD$4),LQ40+1,IF(LQ40=$QD$4,21," ")))) ->  | MQ40: =IF(MQ39-$B$5<-1," ",IF(MQ39-$B$5=-1,0,IF(OR(MD40=0,MD40<$QD$4),MD40+1,IF(MD40=$QD$4,21," ")))) ->  | ND40: =IF(ND39-$B$5<-1," ",IF(ND39-$B$5=-1,0,IF(OR(MQ40=0,MQ40<$QD$4),MQ40+1,IF(MQ40=$QD$4,21," ")))) ->  | NQ40: =IF(NQ39-$B$5<-1," ",IF(NQ39-$B$5=-1,0,IF(OR(ND40=0,ND40<$QD$4),ND40+1,IF(ND40=$QD$4,21," ")))) ->  | OD40: =IF(OD39-$B$5<-1," ",IF(OD39-$B$5=-1,0,IF(OR(NQ40=0,NQ40<$QD$4),NQ40+1,IF(NQ40=$QD$4,21," ")))) ->  | OQ40: =IF(OQ39-$B$5<-1," ",IF(OQ39-$B$5=-1,0,IF(OR(OD40=0,OD40<$QD$4),OD40+1,IF(OD40=$QD$4,21," ")))) ->  | PD40: =IF(PD39-$B$5<-1," ",IF(PD39-$B$5=-1,0,IF(OR(OQ40=0,OQ40<$QD$4),OQ40+1,IF(OQ40=$QD$4,21," ")))) ->  | PQ40: =IF(PQ39-$B$5<-1," ",IF(PQ39-$B$5=-1,0,IF(OR(PD40=0,PD40<$QD$4),PD40+1,IF(PD40=$QD$4,21," ")))) -> 
A41: Mēnesis | C41: =IF(C40=1,0," ") ->  | D41: =IF(Q40=1,0," ") ->  | E41: 1 | F41: 2 | G41: 3 | H41: 4 | I41: 5 | J41: 6 | K41: 7 | L41: 8 | M41: 9 | N41: 10 | O41: 11 | P41: 12 | R41: 1 | S41: 2 | T41: 3 | U41: 4 | V41: 5 | W41: 6 | X41: 7 | Y41: 8 | Z41: 9 | AA41: 10 | AB41: 11 | AC41: 12 | AE41: 1 | AF41: 2 | AG41: 3 | AH41: 4 | AI41: 5 | AJ41: 6 | AK41: 7 | AL41: 8 | AM41: 9 | AN41: 10 | AO41: 11 | AP41: 12 | AR41: 1 | AS41: 2 | AT41: 3 | AU41: 4 | AV41: 5 | AW41: 6 | AX41: 7 | AY41: 8 | AZ41: 9 | BA41: 10 | BB41: 11 | BC41: 12 | BE41: 1 | BF41: 2 | BG41: 3 | BH41: 4 | BI41: 5 | BJ41: 6 | BK41: 7 | BL41: 8 | BM41: 9 | BN41: 10 | BO41: 11 | BP41: 12 | BR41: 1 | BS41: 2 | BT41: 3 | BU41: 4 | BV41: 5 | BW41: 6 | BX41: 7 | BY41: 8 | BZ41: 9 | CA41: 10 | CB41: 11 | CC41: 12 | CE41: 1 | CF41: 2 | CG41: 3 | CH41: 4 | CI41: 5 | CJ41: 6 | CK41: 7 | CL41: 8 | CM41: 9 | CN41: 10 | CO41: 11 | CP41: 12 | CR41: 1 | CS41: 2 | CT41: 3 | CU41: 4 | CV41: 5 | CW41: 6 | CX41: 7 | CY41: 8 | CZ41: 9 | DA41: 10 | DB41: 11 | DC41: 12 | DE41: 1 | DF41: 2 | DG41: 3 | DH41: 4 | DI41: 5 | DJ41: 6 | DK41: 7 | DL41: 8 | DM41: 9 | DN41: 10 | DO41: 11 | DP41: 12 | DR41: 1 | DS41: 2 | DT41: 3 | DU41: 4 | DV41: 5 | DW41: 6 | DX41: 7 | DY41: 8 | DZ41: 9 | EA41: 10 | EB41: 11 | EC41: 12 | EE41: 1 | EF41: 2 | EG41: 3 | EH41: 4 | EI41: 5 | EJ41: 6 | EK41: 7 | EL41: 8 | EM41: 9 | EN41: 10 | EO41: 11 | EP41: 12 | ER41: 1 | ES41: 2 | ET41: 3 | EU41: 4 | EV41: 5 | EW41: 6 | EX41: 7 | EY41: 8 | EZ41: 9 | FA41: 10 | FB41: 11 | FC41: 12 | FE41: 1 | FF41: 2 | FG41: 3 | FH41: 4 | FI41: 5 | FJ41: 6 | FK41: 7 | FL41: 8 | FM41: 9 | FN41: 10 | FO41: 11 | FP41: 12 | FR41: 1 | FS41: 2 | FT41: 3 | FU41: 4 | FV41: 5 | FW41: 6 | FX41: 7 | FY41: 8 | FZ41: 9 | GA41: 10 | GB41: 11 | GC41: 12 | GE41: 1 | GF41: 2 | GG41: 3 | GH41: 4 | GI41: 5 | GJ41: 6 | GK41: 7 | GL41: 8 | GM41: 9 | GN41: 10 | GO41: 11 | GP41: 12 | GR41: 1 | GS41: 2 | GT41: 3 | GU41: 4 | GV41: 5 | GW41: 6 | GX41: 7 | GY41: 8 | GZ41: 9 | HA41: 10 | HB41: 11 | HC41: 12 | HE41: 1 | HF41: 2 | HG41: 3 | HH41: 4 | HI41: 5 | HJ41: 6 | HK41: 7 | HL41: 8 | HM41: 9 | HN41: 10 | HO41: 11 | HP41: 12 | HR41: 1 | HS41: 2 | HT41: 3 | HU41: 4 | HV41: 5 | HW41: 6 | HX41: 7 | HY41: 8 | HZ41: 9 | IA41: 10 | IB41: 11 | IC41: 12 | IE41: 1 | IF41: 2 | IG41: 3 | IH41: 4 | II41: 5 | IJ41: 6 | IK41: 7 | IL41: 8 | IM41: 9 | IN41: 10 | IO41: 11 | IP41: 12 | IR41: 1 | IS41: 2 | IT41: 3 | IU41: 4 | IV41: 5 | IW41: 6 | IX41: 7 | IY41: 8 | IZ41: 9 | JA41: 10 | JB41: 11 | JC41: 12 | JE41: 1 | JF41: 2 | JG41: 3 | JH41: 4 | JI41: 5 | JJ41: 6 | JK41: 7 | JL41: 8 | JM41: 9 | JN41: 10 | JO41: 11 | JP41: 12 | JR41: 1 | JS41: 2 | JT41: 3 | JU41: 4 | JV41: 5 | JW41: 6 | JX41: 7 | JY41: 8 | JZ41: 9 | KA41: 10 | KB41: 11 | KC41: 12 | KE41: 1 | KF41: 2 | KG41: 3 | KH41: 4 | KI41: 5 | KJ41: 6 | KK41: 7 | KL41: 8 | KM41: 9 | KN41: 10 | KO41: 11 | KP41: 12 | KR41: 1 | KS41: 2 | KT41: 3 | KU41: 4 | KV41: 5 | KW41: 6 | KX41: 7 | KY41: 8 | KZ41: 9 | LA41: 10 | LB41: 11 | LC41: 12 | LE41: 1 | LF41: 2 | LG41: 3 | LH41: 4 | LI41: 5 | LJ41: 6 | LK41: 7 | LL41: 8 | LM41: 9 | LN41: 10 | LO41: 11 | LP41: 12 | LR41: 1 | LS41: 2 | LT41: 3 | LU41: 4 | LV41: 5 | LW41: 6 | LX41: 7 | LY41: 8 | LZ41: 9 | MA41: 10 | MB41: 11 | MC41: 12 | ME41: 1 | MF41: 2 | MG41: 3 | MH41: 4 | MI41: 5 | MJ41: 6 | MK41: 7 | ML41: 8 | MM41: 9 | MN41: 10 | MO41: 11 | MP41: 12 | MR41: 1 | MS41: 2 | MT41: 3 | MU41: 4 | MV41: 5 | MW41: 6 | MX41: 7 | MY41: 8 | MZ41: 9 | NA41: 10 | NB41: 11 | NC41: 12 | NE41: 1 | NF41: 2 | NG41: 3 | NH41: 4 | NI41: 5 | NJ41: 6 | NK41: 7 | NL41: 8 | NM41: 9 | NN41: 10 | NO41: 11 | NP41: 12 | NR41: 1 | NS41: 2 | NT41: 3 | NU41: 4 | NV41: 5 | NW41: 6 | NX41: 7 | NY41: 8 | NZ41: 9 | OA41: 10 | OB41: 11 | OC41: 12 | OE41: 1 | OF41: 2 | OG41: 3 | OH41: 4 | OI41: 5 | OJ41: 6 | OK41: 7 | OL41: 8 | OM41: 9 | ON41: 10 | OO41: 11 | OP41: 12 | OR41: 1 | OS41: 2 | OT41: 3 | OU41: 4 | OV41: 5 | OW41: 6 | OX41: 7 | OY41: 8 | OZ41: 9 | PA41: 10 | PB41: 11 | PC41: 12 | PE41: 1 | PF41: 2 | PG41: 3 | PH41: 4 | PI41: 5 | PJ41: 6 | PK41: 7 | PL41: 8 | PM41: 9 | PN41: 10 | PO41: 11 | PP41: 12 | PR41: 1 | PS41: 2 | PT41: 3 | PU41: 4 | PV41: 5 | PW41: 6 | PX41: 7 | PY41: 8 | PZ41: 9 | QA41: 10 | QB41: 11 | QC41: 12
E42: =$D$15&E41 -> 20071 | F42: =$D$15&F41 -> 20072 | G42: 20073 | H42: 20074 | I42: 20075 | J42: 20076 | K42: 20077 | L42: 20078 | M42: 20079 | N42: 200710 | O42: 200711 | P42: 200712 | R42: =$Q$15&R41 -> 20081 | S42: =$Q$15&S41 -> 20082 | T42: 20083 | U42: 20084 | V42: 20085 | W42: 20086 | X42: 20087 | Y42: 20088 | Z42: 20089 | AA42: 200810 | AB42: 200811 | AC42: 200812 | AE42: =$AD$15&AE41 -> 20091 | AF42: =$AD$15&AF41 -> 20092 | AG42: 20093 | AH42: 20094 | AI42: 20095 | AJ42: 20096 | AK42: 20097 | AL42: 20098 | AM42: 20099 | AN42: 200910 | AO42: 200911 | AP42: 200912 | AR42: =$AQ$15&AR41 -> 20101 | AS42: =$AQ$15&AS41 -> 20102 | AT42: 20103 | AU42: 20104 | AV42: 20105 | AW42: 20106 | AX42: 20107 | AY42: 20108 | AZ42: 20109 | BA42: 201010 | BB42: 201011 | BC42: 201012 | BE42: =$BD$15&BE41 -> 20111 | BF42: =$BD$15&BF41 -> 20112 | BG42: 20113 | BH42: 20114 | BI42: 20115 | BJ42: 20116 | BK42: 20117 | BL42: 20118 | BM42: 20119 | BN42: 201110 | BO42: 201111 | BP42: 201112 | BR42: =$BQ$15&BR41 -> 20121 | BS42: =$BQ$15&BS41 -> 20122 | BT42: 20123 | BU42: 20124 | BV42: 20125 | BW42: 20126 | BX42: 20127 | BY42: 20128 | BZ42: 20129 | CA42: 201210 | CB42: 201211 | CC42: 201212 | CE42: =$CD$15&CE41 -> 20131 | CF42: =$CD$15&CF41 -> 20132 | CG42: 20133 | CH42: 20134 | CI42: 20135 | CJ42: 20136 | CK42: 20137 | CL42: 20138 | CM42: 20139 | CN42: 201310 | CO42: 201311 | CP42: 201312 | CR42: =$CQ$15&CR41 -> 20141 | CS42: =$CQ$15&CS41 -> 20142 | CT42: 20143 | CU42: 20144 | CV42: 20145 | CW42: 20146 | CX42: 20147 | CY42: 20148 | CZ42: 20149 | DA42: 201410 | DB42: 201411 | DC42: 201412 | DE42: =$DD$15&DE41 -> 20151 | DF42: =$DD$15&DF41 -> 20152 | DG42: 20153 | DH42: 20154 | DI42: 20155 | DJ42: 20156 | DK42: 20157 | DL42: 20158 | DM42: 20159 | DN42: 201510 | DO42: 201511 | DP42: 201512 | DR42: =$DQ$15&DR41 -> 20161 | DS42: =$DQ$15&DS41 -> 20162 | DT42: 20163 | DU42: 20164 | DV42: 20165 | DW42: 20166 | DX42: 20167 | DY42: 20168 | DZ42: 20169 | EA42: 201610 | EB42: 201611 | EC42: 201612 | EE42: =$ED$15&EE41 -> 20171 | EF42: =$ED$15&EF41 -> 20172 | EG42: 20173 | EH42: 20174 | EI42: 20175 | EJ42: 20176 | EK42: 20177 | EL42: 20178 | EM42: 20179 | EN42: 201710 | EO42: 201711 | EP42: 201712 | ER42: =$EQ$15&ER41 -> 20181 | ES42: =$EQ$15&ES41 -> 20182 | ET42: 20183 | EU42: 20184 | EV42: 20185 | EW42: 20186 | EX42: 20187 | EY42: 20188 | EZ42: 20189 | FA42: 201810 | FB42: 201811 | FC42: 201812 | FE42: =$FD$15&FE41 -> 20191 | FF42: =$FD$15&FF41 -> 20192 | FG42: 20193 | FH42: 20194 | FI42: 20195 | FJ42: 20196 | FK42: 20197 | FL42: 20198 | FM42: 20199 | FN42: 201910 | FO42: 201911 | FP42: 201912 | FR42: =$FQ$15&FR41 -> 20201 | FS42: =$FQ$15&FS41 -> 20202 | FT42: 20203 | FU42: 20204 | FV42: 20205 | FW42: 20206 | FX42: 20207 | FY42: 20208 | FZ42: 20209 | GA42: 202010 | GB42: 202011 | GC42: 202012 | GE42: =$GD$15&GE41 -> 20211 | GF42: =$GD$15&GF41 -> 20212 | GG42: 20213 | GH42: 20214 | GI42: 20215 | GJ42: 20216 | GK42: 20217 | GL42: 20218 | GM42: 20219 | GN42: 202110 | GO42: 202111 | GP42: 202112 | GR42: =$GQ$15&GR41 -> 20221 | GS42: =$GQ$15&GS41 -> 20222 | GT42: 20223 | GU42: 20224 | GV42: 20225 | GW42: 20226 | GX42: 20227 | GY42: 20228 | GZ42: 20229 | HA42: 202210 | HB42: 202211 | HC42: 202212 | HE42: =$HD$15&HE41 -> 20231 | HF42: =$HD$15&HF41 -> 20232 | HG42: 20233 | HH42: 20234 | HI42: 20235 | HJ42: 20236 | HK42: 20237 | HL42: 20238 | HM42: 20239 | HN42: 202310 | HO42: 202311 | HP42: 202312 | HR42: =$HQ$15&HR41 -> 20241 | HS42: =$HQ$15&HS41 -> 20242 | HT42: 20243 | HU42: 20244 | HV42: 20245 | HW42: 20246 | HX42: 20247 | HY42: 20248 | HZ42: 20249 | IA42: 202410 | IB42: 202411 | IC42: 202412 | IE42: =$ID$15&IE41 -> 20251 | IF42: =$ID$15&IF41 -> 20252 | IG42: 20253 | IH42: 20254 | II42: 20255 | IJ42: 20256 | IK42: 20257 | IL42: 20258 | IM42: 20259 | IN42: 202510 | IO42: 202511 | IP42: 202512 | IR42: =$IQ$15&IR41 -> 20261 | IS42: =$IQ$15&IS41 -> 20262 | IT42: 20263 | IU42: 20264 | IV42: 20265 | IW42: 20266 | IX42: 20267 | IY42: 20268 | IZ42: 20269 | JA42: 202610 | JB42: 202611 | JC42: 202612 | JE42: =$JD$15&JE41 -> 20271 | JF42: =$JD$15&JF41 -> 20272 | JG42: 20273 | JH42: 20274 | JI42: 20275 | JJ42: 20276 | JK42: 20277 | JL42: 20278 | JM42: 20279 | JN42: 202710 | JO42: 202711 | JP42: 202712 | JR42: =$JQ$15&JR41 -> 20281 | JS42: =$JQ$15&JS41 -> 20282 | JT42: 20283 | JU42: 20284 | JV42: 20285 | JW42: 20286 | JX42: 20287 | JY42: 20288 | JZ42: 20289 | KA42: 202810 | KB42: 202811 | KC42: 202812 | KE42: =$KD$15&KE41 -> 20291 | KF42: =$KD$15&KF41 -> 20292 | KG42: 20293 | KH42: 20294 | KI42: 20295 | KJ42: 20296 | KK42: 20297 | KL42: 20298 | KM42: 20299 | KN42: 202910 | KO42: 202911 | KP42: 202912 | KR42: =$KQ$15&KR41 -> 20301 | KS42: =$KQ$15&KS41 -> 20302 | KT42: 20303 | KU42: 20304 | KV42: 20305 | KW42: 20306 | KX42: 20307 | KY42: 20308 | KZ42: 20309 | LA42: 203010 | LB42: 203011 | LC42: 203012 | LE42: =$LD$15&LE41 -> 20311 | LF42: =$LD$15&LF41 -> 20312 | LG42: 20313 | LH42: 20314 | LI42: 20315 | LJ42: 20316 | LK42: 20317 | LL42: 20318 | LM42: 20319 | LN42: 203110 | LO42: 203111 | LP42: 203112 | LR42: =$LQ$15&LR41 -> 20321 | LS42: =$LQ$15&LS41 -> 20322 | LT42: 20323 | LU42: 20324 | LV42: 20325 | LW42: 20326 | LX42: 20327 | LY42: 20328 | LZ42: 20329 | MA42: 203210 | MB42: 203211 | MC42: 203212 | ME42: =$MD$15&ME41 -> 20331 | MF42: =$MD$15&MF41 -> 20332 | MG42: 20333 | MH42: 20334 | MI42: 20335 | MJ42: 20336 | MK42: 20337 | ML42: 20338 | MM42: 20339 | MN42: 203310 | MO42: 203311 | MP42: 203312 | MR42: =$MQ$15&MR41 -> 20341 | MS42: =$MQ$15&MS41 -> 20342 | MT42: 20343 | MU42: 20344 | MV42: 20345 | MW42: 20346 | MX42: 20347 | MY42: 20348 | MZ42: 20349 | NA42: 203410 | NB42: 203411 | NC42: 203412 | NE42: =$ND$15&NE41 -> 20351 | NF42: =$ND$15&NF41 -> 20352 | NG42: 20353 | NH42: 20354 | NI42: 20355 | NJ42: 20356 | NK42: 20357 | NL42: 20358 | NM42: 20359 | NN42: 203510 | NO42: 203511 | NP42: 203512 | NR42: =$NQ$15&NR41 -> 20361 | NS42: =$NQ$15&NS41 -> 20362 | NT42: 20363 | NU42: 20364 | NV42: 20365 | NW42: 20366 | NX42: 20367 | NY42: 20368 | NZ42: 20369 | OA42: 203610 | OB42: 203611 | OC42: 203612 | OE42: =$OD$15&OE41 -> 20371 | OF42: =$OD$15&OF41 -> 20372 | OG42: 20373 | OH42: 20374 | OI42: 20375 | OJ42: 20376 | OK42: 20377 | OL42: 20378 | OM42: 20379 | ON42: 203710 | OO42: 203711 | OP42: 203712 | OR42: =$OQ$15&OR41 -> 20381 | OS42: =$OQ$15&OS41 -> 20382 | OT42: 20383 | OU42: 20384 | OV42: 20385 | OW42: 20386 | OX42: 20387 | OY42: 20388 | OZ42: 20389 | PA42: 203810 | PB42: 203811 | PC42: 203812 | PE42: =$PD$15&PE41 -> 20391 | PF42: =$PD$15&PF41 -> 20392 | PG42: 20393 | PH42: 20394 | PI42: 20395 | PJ42: 20396 | PK42: 20397 | PL42: 20398 | PM42: 20399 | PN42: 203910 | PO42: 203911 | PP42: 203912 | PR42: =$PQ$15&PR41 -> 20401 | PS42: =$PQ$15&PS41 -> 20402 | PT42: 20403 | PU42: 20404 | PV42: 20405 | PW42: 20406 | PX42: 20407 | PY42: 20408 | PZ42: 20409 | QA42: 204010 | QB42: 204011 | QC42: 204012
A43: Ieņēmumi kopā | D43: =IF(D46=" "," ",SUM(E43:P43)) ->  | E43: =IF(E46=" "," ",(E44+E47)*(1-E48)) ->  | Q43: =IF(Q46=" "," ",SUM(R43:AC43)) ->  | R43: =IF(R46=" "," ",(R44+R47)*(1-R48)) ->  | AD43: =IF(AD46=" "," ",SUM(AE43:AP43)) ->  | AE43: =IF(AE46=" "," ",(AE44+AE47)*(1-AE48)) ->  | AQ43: =IF(AQ46=" "," ",SUM(AR43:BC43)) ->  | AR43: =IF(AR46=" "," ",(AR44+AR47)*(1-AR48)) ->  | BD43: =IF(BD46=" "," ",SUM(BE43:BP43)) ->  | BE43: =IF(BE46=" "," ",(BE44+BE47)*(1-BE48)) ->  | BQ43: =IF(BQ46=" "," ",SUM(BR43:CC43)) ->  | BR43: =IF(BR46=" "," ",(BR44+BR47)*(1-BR48)) ->  | CD43: =IF(CD46=" "," ",(CD44*(1-CD48))) ->  | CE43: =IF(CE46=" "," ",(CE44+CE47)*(1-CE48)) ->  | CQ43: =IF(CQ46=" "," ",SUM(CR43:DC43)) ->  | CR43: =IF(CR46=" "," ",(CR44+CR47)*(1-CR48)) ->  | DD43: =IF(DD46=" "," ",SUM(DE43:DP43)) ->  | DE43: =IF(DE46=" "," ",(DE44+DE47)*(1-DE48)) ->  | DQ43: =IF(DQ46=" "," ",SUM(DR43:EC43)) ->  | DR43: =IF(DR46=" "," ",(DR44+DR47)*(1-DR48)) ->  | ED43: =IF(ED46=" "," ",SUM(EE43:EP43)) ->  | EE43: =IF(EE46=" "," ",(EE44+EE47)*(1-EE48)) ->  | EQ43: =IF(EQ46=" "," ",SUM(ER43:FC43)) ->  | ER43: =IF(ER46=" "," ",(ER44+ER47)*(1-ER48)) ->  | FD43: =IF(FD46=" "," ",SUM(FE43:FP43)) ->  | FE43: =IF(FE46=" "," ",(FE44+FE47)*(1-FE48)) ->  | FQ43: =IF(FQ46=" "," ",SUM(FR43:GC43)) ->  | FR43: =IF(FR46=" "," ",(FR44+FR47)*(1-FR48)) ->  | GD43: =IF(GD46=" "," ",SUM(GE43:GP43)) ->  | GE43: =IF(GE46=" "," ",(GE44+GE47)*(1-GE48)) ->  | GQ43: =IF(GQ46=" "," ",SUM(GR43:HC43)) ->  | GR43: =IF(GR46=" "," ",(GR44+GR47)*(1-GR48)) ->  | HD43: =IF(HD46=" "," ",SUM(HE43:HP43)) ->  | HE43: =IF(HE46=" "," ",(HE44+HE47)*(1-HE48)) ->  | HQ43: =IF(HQ46=" "," ",SUM(HR43:IC43)) ->  | HR43: =IF(HR46=" "," ",(HR44+HR47)*(1-HR48)) ->  | ID43: =IF(ID46=" "," ",SUM(IE43:IP43)) ->  | IE43: =IF(IE46=" "," ",(IE44+IE47)*(1-IE48)) ->  | IQ43: =IF(IQ46=" "," ",SUM(IR43:JC43)) ->  | IR43: =IF(IR46=" "," ",(IR44+IR47)*(1-IR48)) ->  | JD43: =IF(JD46=" "," ",SUM(JE43:JP43)) ->  | JE43: =IF(JE46=" "," ",(JE44+JE47)*(1-JE48)) ->  | JQ43: =IF(JQ46=" "," ",(JQ44*(1-JQ48))) ->  | JR43: =IF(JR46=" "," ",(JR44+JR47)*(1-JR48)) ->  | KD43: =IF(KD46=" "," ",(KD44*(1-KD48))) ->  | KE43: =IF(KE46=" "," ",(KE44+KE47)*(1-KE48)) ->  | KQ43: =IF(KQ46=" "," ",(KQ44*(1-KQ48))) ->  | KR43: =IF(KR46=" "," ",(KR44+KR47)*(1-KR48)) ->  | LD43: =IF(LD46=" "," ",(LD44*(1-LD48))) ->  | LE43: =IF(LE46=" "," ",(LE44+LE47)*(1-LE48)) ->  | LQ43: =IF(LQ46=" "," ",(LQ44*(1-LQ48))) ->  | LR43: =IF(LR46=" "," ",(LR44+LR47)*(1-LR48)) ->  | MD43: =IF(MD46=" "," ",(MD44*(1-MD48))) ->  | ME43: =IF(ME46=" "," ",(ME44+ME47)*(1-ME48)) ->  | MQ43: =IF(MQ46=" "," ",(MQ44*(1-MQ48))) ->  | MR43: =IF(MR46=" "," ",(MR44+MR47)*(1-MR48)) ->  | ND43: =IF(ND46=" "," ",(ND44*(1-ND48))) ->  | NE43: =IF(NE46=" "," ",(NE44+NE47)*(1-NE48)) ->  | NQ43: =IF(NQ46=" "," ",(NQ44*(1-NQ48))) ->  | NR43: =IF(NR46=" "," ",(NR44+NR47)*(1-NR48)) ->  | OD43: =IF(OD46=" "," ",(OD44*(1-OD48))) ->  | OE43: =IF(OE46=" "," ",(OE44+OE47)*(1-OE48)) ->  | OQ43: =IF(OQ46=" "," ",(OQ44*(1-OQ48))) ->  | OR43: =IF(OR46=" "," ",(OR44+OR47)*(1-OR48)) ->  | PD43: =IF(PD46=" "," ",(PD44*(1-PD48))) ->  | PE43: =IF(PE46=" "," ",(PE44+PE47)*(1-PE48)) ->  | PQ43: =IF(PQ46=" "," ",(PQ44*(1-PQ48))) ->  | PR43: =IF(PR46=" "," ",(PR44+PR47)*(1-PR48)) -> 
A44: Ieņēmumi no elektroenerģijas pārdošanas OI ietvaros | B44: EUR | D44: =IF(OR(D$16=" ",D$16=0)," ",SUM(E44:P44)) ->  | E44: =IF(OR(E46=" ",E46=0)," ",E45*ROUND(E46,2)) ->  | F44: =IF(OR(F46=" ",F46=0)," ",F45*ROUND(F46,2)) ->  | Q44: =IF(OR(Q$16=" ",Q$16=0)," ",SUM(R44:AC44)) ->  | R44: =IF(OR(R46=" ",R46=0)," ",R45*ROUND(R46,2)) ->  | AD44: =IF(OR(AD$16=" ",AD$16=0)," ",SUM(AE44:AP44)) ->  | AE44: =IF(OR(AE46=" ",AE46=0)," ",AE45*ROUND(AE46,2)) ->  | AQ44: =IF(OR(AQ$16=" ",AQ$16=0)," ",SUM(AR44:BC44)) ->  | AR44: =IF(OR(AR46=" ",AR46=0)," ",AR45*ROUND(AR46,2)) ->  | BD44: =IF(OR(BD$16=" ",BD$16=0)," ",SUM(BE44:BP44)) ->  | BE44: =IF(OR(BE46=" ",BE46=0)," ",BE45*ROUND(BE46,2)) ->  | BQ44: =IF(OR(BQ$16=" ",BQ$16=0)," ",SUM(BR44:CC44)) ->  | BR44: =IF(OR(BR46=" ",BR46=0)," ",BR45*ROUND(BR46,2)) ->  | CD44: =IF(OR(CD$16=" ",CD$16=0)," ",SUM(CE44:CP44)) ->  | CE44: =IF(OR(CE46=" ",CE46=0)," ",CE45*ROUND(CE46,2)) ->  | CQ44: =IF(OR(CQ$16=" ",CQ$16=0)," ",SUM(CR44:DC44)) ->  | CR44: =IF(OR(CR46=" ",CR46=0)," ",CR45*ROUND(CR46,2)) ->  | DD44: =IF(OR(DD$16=" ",DD$16=0)," ",SUM(DE44:DP44)) ->  | DE44: =IF(OR(DE46=" ",DE46=0)," ",DE45*ROUND(DE46,2)) ->  | DQ44: =IF(OR(DQ$16=" ",DQ$16=0)," ",SUM(DR44:EC44)) ->  | DR44: =IF(OR(DR46=" ",DR46=0)," ",DR45*ROUND(DR46,2)) ->  | ED44: =IF(OR(ED$16=" ",ED$16=0)," ",SUM(EE44:EP44)) ->  | EE44: =IF(OR(EE46=" ",EE46=0)," ",EE45*ROUND(EE46,2)) ->  | EQ44: =IF(OR(EQ$16=" ",EQ$16=0)," ",SUM(ER44:FC44)) ->  | ER44: =IF(OR(ER46=" ",ER46=0)," ",ER45*ROUND(ER46,2)) ->  | FD44: =IF(OR(FD$16=" ",FD$16=0)," ",SUM(FE44:FP44)) ->  | FE44: =IF(OR(FE46=" ",FE46=0)," ",FE45*ROUND(FE46,2)) ->  | FQ44: =IF(OR(FQ$16=" ",FQ$16=0)," ",SUM(FR44:GC44)) ->  | FR44: =IF(OR(FR46=" ",FR46=0)," ",FR45*ROUND(FR46,2)) ->  | GD44: =IF(OR(GD$16=" ",GD$16=0)," ",SUM(GE44:GP44)) ->  | GE44: =IF(OR(GE46=" ",GE46=0)," ",GE45*ROUND(GE46,2)) ->  | GQ44: =IF(OR(GQ$16=" ",GQ$16=0)," ",SUM(GR44:HC44)) ->  | GR44: =IF(OR(GR46=" ",GR46=0)," ",GR45*ROUND(GR46,2)) ->  | HD44: =IF(OR(HD$16=" ",HD$16=0)," ",SUM(HE44:HP44)) ->  | HE44: =IF(OR(HE46=" ",HE46=0)," ",HE45*ROUND(HE46,2)) ->  | HQ44: =IF(OR(HQ$16=" ",HQ$16=0)," ",SUM(HR44:IC44)) ->  | HR44: =IF(OR(HR46=" ",HR46=0)," ",HR45*ROUND(HR46,2)) ->  | ID44: =IF(OR(ID$16=" ",ID$16=0)," ",SUM(IE44:IP44)) ->  | IE44: =IF(OR(IE46=" ",IE46=0)," ",IE45*ROUND(IE46,2)) ->  | IQ44: =IF(OR(IQ$16=" ",IQ$16=0)," ",SUM(IR44:JC44)) ->  | IR44: =IF(OR(IR46=" ",IR46=0)," ",IR45*ROUND(IR46,2)) ->  | JD44: =IF(OR(JD$16=" ",JD$16=0)," ",SUM(JE44:JP44)) ->  | JE44: =IF(OR(JE46=" ",JE46=0)," ",JE45*ROUND(JE46,2)) ->  | JQ44: =IF(OR(JQ$16=" ",JQ$16=0)," ",SUM(JR44:KC44)) ->  | JR44: =IF(OR(JR46=" ",JR46=0)," ",JR45*ROUND(JR46,2)) ->  | KD44: =IF(OR(KD$16=" ",KD$16=0)," ",SUM(KE44:KP44)) ->  | KE44: =IF(OR(KE46=" ",KE46=0)," ",KE45*ROUND(KE46,2)) ->  | KQ44: =IF(OR(KQ$16=" ",KQ$16=0)," ",SUM(KR44:LC44)) ->  | KR44: =IF(OR(KR46=" ",KR46=0)," ",KR45*ROUND(KR46,2)) ->  | LD44: =IF(OR(LD$16=" ",LD$16=0)," ",SUM(LE44:LP44)) ->  | LE44: =IF(OR(LE46=" ",LE46=0)," ",LE45*ROUND(LE46,2)) ->  | LQ44: =IF(OR(LQ$16=" ",LQ$16=0)," ",SUM(LR44:MC44)) ->  | LR44: =IF(OR(LR46=" ",LR46=0)," ",LR45*ROUND(LR46,2)) ->  | MD44: =IF(OR(MD$16=" ",MD$16=0)," ",SUM(ME44:MP44)) ->  | ME44: =IF(OR(ME46=" ",ME46=0)," ",ME45*ROUND(ME46,2)) ->  | MQ44: =IF(OR(MQ$16=" ",MQ$16=0)," ",SUM(MR44:NC44)) ->  | MR44: =IF(OR(MR46=" ",MR46=0)," ",MR45*ROUND(MR46,2)) ->  | ND44: =IF(OR(ND$16=" ",ND$16=0)," ",SUM(NE44:NP44)) ->  | NE44: =IF(OR(NE46=" ",NE46=0)," ",NE45*ROUND(NE46,2)) ->  | NQ44: =IF(OR(NQ$16=" ",NQ$16=0)," ",SUM(NR44:OC44)) ->  | NR44: =IF(OR(NR46=" ",NR46=0)," ",NR45*ROUND(NR46,2)) ->  | OD44: =IF(OR(OD$16=" ",OD$16=0)," ",SUM(OE44:OP44)) ->  | OE44: =IF(OR(OE46=" ",OE46=0)," ",OE45*ROUND(OE46,2)) ->  | OQ44: =IF(OR(OQ$16=" ",OQ$16=0)," ",SUM(OR44:PC44)) ->  | OR44: =IF(OR(OR46=" ",OR46=0)," ",OR45*ROUND(OR46,2)) ->  | PD44: =IF(OR(PD$16=" ",PD$16=0)," ",SUM(PE44:PP44)) ->  | PE44: =IF(OR(PE46=" ",PE46=0)," ",PE45*ROUND(PE46,2)) ->  | PQ44: =IF(OR(PQ$16=" ",PQ$16=0)," ",SUM(PR44:QC44)) ->  | PR44: =IF(OR(PR46=" ",PR46=0)," ",PR45*ROUND(PR46,2)) -> 
A45: Pārdotais elektroenerģijas apjoms | B45: MWh | D45: =IF(OR(D$16=" ",D$16=0)," ",SUM(E45:P45)) ->  | E45: =IF(OR(E46=" ",E46=0)," ",$BD$6*$C$7/12) ->  | F45: =IF(OR(F46=" ",F46=0)," ",$BD$6*$C$7/12) ->  | Q45: =IF(OR(Q$16=" ",Q$16=0)," ",SUM(R45:AC45)) ->  | R45: =IF(OR(R46=" ",R46=0)," ",$BD$6*$C$7/12) ->  | AD45: =IF(OR(AD$16=" ",AD$16=0)," ",SUM(AE45:AP45)) ->  | AE45: =IF(OR(AE46=" ",AE46=0)," ",$BD$6*$C$7/12) ->  | AQ45: =IF(OR(AQ$16=" ",AQ$16=0)," ",SUM(AR45:BC45)) ->  | AR45: =IF(OR(AR46=" ",AR46=0)," ",$BD$6*$C$7/12) ->  | BD45: =IF(OR(BD$16=" ",BD$16=0)," ",SUM(BE45:BP45)) ->  | BE45: =IF(OR(BE46=" ",BE46=0)," ",$BD$6*$C$7/12) ->  | BQ45: =IF(OR(BQ$16=" ",BQ$16=0)," ",SUM(BR45:CC45)) ->  | BR45: =IF(OR(BR46=" ",BR46=0)," ",$BD$6*$C$7/12) ->  | CD45: =IF(OR(CD$16=" ",CD$16=0)," ",SUM(CE45:CP45)) ->  | CE45: =IF(OR(CE46=" ",CE46=0)," ",$BD$6*$C$7/12) ->  | CQ45: =IF(OR(CQ$16=" ",CQ$16=0)," ",SUM(CR45:DC45)) ->  | CR45: =IF(OR(CR46=" ",CR46=0)," ",$BD$6*$C$7/12) ->  | DD45: =IF(OR(DD$16=" ",DD$16=0)," ",SUM(DE45:DP45)) ->  | DE45: =IF(OR(DE46=" ",DE46=0)," ",$BD$6*$C$7/12) ->  | DF45: =IF(OR(DF46=" ",DF46=0)," ",$BD$6*$C$7/12) ->  | DQ45: =IF(OR(DQ$16=" ",DQ$16=0)," ",SUM(DR45:EC45)) ->  | DR45: =IF(OR(DR46=" ",DR46=0)," ",$BD$6*$C$7/12) ->  | DS45: =IF(OR(DS46=" ",DS46=0)," ",$BD$6*$C$7/12) ->  | ED45: =IF(OR(ED$16=" ",ED$16=0)," ",SUM(EE45:EP45)) ->  | EE45: =IF(OR(EE46=" ",EE46=0)," ",$BD$6*$C$7/12) ->  | EF45: =IF(OR(EF46=" ",EF46=0)," ",$BD$6*$C$7/12) ->  | EQ45: =IF(OR(EQ$16=" ",EQ$16=0)," ",SUM(ER45:FC45)) ->  | ER45: =IF(OR(ER46=" ",ER46=0)," ",$BD$6*$C$7/12) ->  | ES45: =IF(OR(ES46=" ",ES46=0)," ",$BD$6*$C$7/12) ->  | FD45: =IF(OR(FD$16=" ",FD$16=0)," ",SUM(FE45:FP45)) ->  | FE45: =IF(OR(FE46=" ",FE46=0)," ",$BD$6*$C$7/12) ->  | FF45: =IF(OR(FF46=" ",FF46=0)," ",$BD$6*$C$7/12) ->  | FQ45: =IF(OR(FQ$16=" ",FQ$16=0)," ",SUM(FR45:GC45)) ->  | FR45: =IF(OR(FR46=" ",FR46=0)," ",$BD$6*$C$7/12) ->  | FS45: =IF(OR(FS46=" ",FS46=0)," ",$BD$6*$C$7/12) ->  | GD45: =IF(OR(GD$16=" ",GD$16=0)," ",SUM(GE45:GP45)) ->  | GE45: =IF(OR(GE46=" ",GE46=0)," ",$BD$6*$C$7/12) ->  | GF45: =IF(OR(GF46=" ",GF46=0)," ",$BD$6*$C$7/12) ->  | GQ45: =IF(OR(GQ$16=" ",GQ$16=0)," ",SUM(GR45:HC45)) ->  | GR45: =IF(OR(GR46=" ",GR46=0)," ",$BD$6*$C$7/12) ->  | GS45: =IF(OR(GS46=" ",GS46=0)," ",$BD$6*$C$7/12) ->  | HD45: =IF(OR(HD$16=" ",HD$16=0)," ",SUM(HE45:HP45)) ->  | HE45: =IF(OR(HE46=" ",HE46=0)," ",$BD$6*$C$7/12) ->  | HF45: =IF(OR(HF46=" ",HF46=0)," ",$BD$6*$C$7/12) ->  | HQ45: =IF(OR(HQ$16=" ",HQ$16=0)," ",SUM(HR45:IC45)) ->  | HR45: =IF(OR(HR46=" ",HR46=0)," ",$BD$6*$C$7/12) ->  | HS45: =IF(OR(HS46=" ",HS46=0)," ",$BD$6*$C$7/12) ->  | ID45: =IF(OR(ID$16=" ",ID$16=0)," ",SUM(IE45:IP45)) ->  | IE45: =IF(OR(IE46=" ",IE46=0)," ",$BD$6*$C$7/12) ->  | IF45: =IF(OR(IF46=" ",IF46=0)," ",$BD$6*$C$7/12) ->  | IQ45: =IF(OR(IQ$16=" ",IQ$16=0)," ",SUM(IR45:JC45)) ->  | IR45: =IF(OR(IR46=" ",IR46=0)," ",$BD$6*$C$7/12) ->  | IS45: =IF(OR(IS46=" ",IS46=0)," ",$BD$6*$C$7/12) ->  | JD45: =IF(OR(JD$16=" ",JD$16=0)," ",SUM(JE45:JP45)) ->  | JE45: =IF(OR(JE46=" ",JE46=0)," ",$BD$6*$C$7/12) ->  | JF45: =IF(OR(JF46=" ",JF46=0)," ",$BD$6*$C$7/12) ->  | JQ45: =IF(OR(JQ$16=" ",JQ$16=0)," ",SUM(JR45:KC45)) ->  | JR45: =IF(OR(JR46=" ",JR46=0)," ",$BD$6*$C$7/12) ->  | JS45: =IF(OR(JS46=" ",JS46=0)," ",$BD$6*$C$7/12) ->  | KD45: =IF(OR(KD$16=" ",KD$16=0)," ",SUM(KE45:KP45)) ->  | KE45: =IF(OR(KE46=" ",KE46=0)," ",$BD$6*$C$7/12) ->  | KF45: =IF(OR(KF46=" ",KF46=0)," ",$BD$6*$C$7/12) ->  | KQ45: =IF(OR(KQ$16=" ",KQ$16=0)," ",SUM(KR45:LC45)) ->  | KR45: =IF(OR(KR46=" ",KR46=0)," ",$BD$6*$C$7/12) ->  | KS45: =IF(OR(KS46=" ",KS46=0)," ",$BD$6*$C$7/12) ->  | LD45: =IF(OR(LD$16=" ",LD$16=0)," ",SUM(LE45:LP45)) ->  | LE45: =IF(OR(LE46=" ",LE46=0)," ",$BD$6*$C$7/12) ->  | LF45: =IF(OR(LF46=" ",LF46=0)," ",$BD$6*$C$7/12) ->  | LQ45: =IF(OR(LQ$16=" ",LQ$16=0)," ",SUM(LR45:MC45)) ->  | LR45: =IF(OR(LR46=" ",LR46=0)," ",$BD$6*$C$7/12) ->  | LS45: =IF(OR(LS46=" ",LS46=0)," ",$BD$6*$C$7/12) ->  | MD45: =IF(OR(MD$16=" ",MD$16=0)," ",SUM(ME45:MP45)) ->  | ME45: =IF(OR(ME46=" ",ME46=0)," ",$BD$6*$C$7/12) ->  | MF45: =IF(OR(MF46=" ",MF46=0)," ",$BD$6*$C$7/12) ->  | MQ45: =IF(OR(MQ$16=" ",MQ$16=0)," ",SUM(MR45:NC45)) ->  | MR45: =IF(OR(MR46=" ",MR46=0)," ",$BD$6*$C$7/12) ->  | MS45: =IF(OR(MS46=" ",MS46=0)," ",$BD$6*$C$7/12) ->  | ND45: =IF(OR(ND$16=" ",ND$16=0)," ",SUM(NE45:NP45)) ->  | NE45: =IF(OR(NE46=" ",NE46=0)," ",$BD$6*$C$7/12) ->  | NF45: =IF(OR(NF46=" ",NF46=0)," ",$BD$6*$C$7/12) ->  | NQ45: =IF(OR(NQ$16=" ",NQ$16=0)," ",SUM(NR45:OC45)) ->  | NR45: =IF(OR(NR46=" ",NR46=0)," ",$BD$6*$C$7/12) ->  | NS45: =IF(OR(NS46=" ",NS46=0)," ",$BD$6*$C$7/12) ->  | OD45: =IF(OR(OD$16=" ",OD$16=0)," ",SUM(OE45:OP45)) ->  | OE45: =IF(OR(OE46=" ",OE46=0)," ",$BD$6*$C$7/12) ->  | OF45: =IF(OR(OF46=" ",OF46=0)," ",$BD$6*$C$7/12) ->  | OQ45: =IF(OR(OQ$16=" ",OQ$16=0)," ",SUM(OR45:PC45)) ->  | OR45: =IF(OR(OR46=" ",OR46=0)," ",$BD$6*$C$7/12) ->  | OS45: =IF(OR(OS46=" ",OS46=0)," ",$BD$6*$C$7/12) ->  | PD45: =IF(OR(PD$16=" ",PD$16=0)," ",SUM(PE45:PP45)) ->  | PE45: =IF(OR(PE46=" ",PE46=0)," ",$BD$6*$C$7/12) ->  | PF45: =IF(OR(PF46=" ",PF46=0)," ",$BD$6*$C$7/12) ->  | PQ45: =IF(OR(PQ$16=" ",PQ$16=0)," ",SUM(PR45:QC45)) ->  | PR45: =IF(OR(PR46=" ",PR46=0)," ",$BD$6*$C$7/12) ->  | PS45: =IF(OR(PS46=" ",PS46=0)," ",$BD$6*$C$7/12) -> 
A46: Elektroenerģijas cena | B46: EUR/MWh | D46: =IF(OR(D$16=" ",D$16=0,D45=0)," ",SUMPRODUCT(E45:P45,E46:P46)/D45) ->  | E46: =IF(E22=" "," ",IF($D$39=$B$34,IF(E41>=$C$34,$B$33*E22,E22),IF($D$39>$B$34,$B$33*E22,E22))) ->  | F46: =IF(F22=" "," ",IF($D$39=$B$34,IF(F41>=$C$34,$B$33*F22,F22),IF($D$39>$B$34,$B$33*F22,F22))) ->  | Q46: =IF(OR(Q$16=" ",Q$16=0,Q45=0)," ",SUMPRODUCT(R45:AC45,R46:AC46)/Q45) ->  | R46: =IF(R22=" "," ",IF($Q$39=$B$34,IF(R41>=$C$34,$B$33*R22,R22),IF($Q$39>$B$34,$B$33*R22,R22))) ->  | S46: =IF(S22=" "," ",IF($Q$39=$B$34,IF(S41>=$C$34,$B$33*S22,S22),IF($Q$39>$B$34,$B$33*S22,S22))) ->  | AD46: =IF(OR(AD$16=" ",AD$16=0,AD45=0)," ",SUMPRODUCT(AE45:AP45,AE46:AP46)/AD45) ->  | AE46: =IF(AE22=" "," ",IF($AD$39=$B$34,IF(AE41>=$C$34,$B$33*AE22,AE22),IF($AD$39>$B$34,$B$33*AE22,AE22))) ->  | AF46: =IF(AF22=" "," ",IF($AD$39=$B$34,IF(AF41>=$C$34,$B$33*AF22,AF22),IF($AD$39>$B$34,$B$33*AF22,AF22))) ->  | AQ46: =IF(OR(AQ$16=" ",AQ$16=0,AQ45=0)," ",SUMPRODUCT(AR45:BC45,AR46:BC46)/AQ45) ->  | AR46: =IF(AR22=" "," ",IF($AQ$39=$B$34,IF(AR41>=$C$34,$B$33*AR22,AR22),IF($AQ$39>$B$34,$B$33*AR22,AR22))) ->  | AS46: =IF(AS22=" "," ",IF($AQ$39=$B$34,IF(AS41>=$C$34,$B$33*AS22,AS22),IF($AQ$39>$B$34,$B$33*AS22,AS22))) ->  | BD46: =IF(OR(BD$16=" ",BD$16=0,BD45=0)," ",SUMPRODUCT(BE45:BP45,BE46:BP46)/BD45) ->  | BE46: =IF(BE22=" "," ",IF($BD$39=$B$34,IF(BE41>=$C$34,$B$33*BE22,BE22),IF($BD$39>$B$34,$B$33*BE22,BE22))) ->  | BF46: =IF(BF22=" "," ",IF($BD$39=$B$34,IF(BF41>=$C$34,$B$33*BF22,BF22),IF($BD$39>$B$34,$B$33*BF22,BF22))) ->  | BQ46: =IF(OR(BQ$16=" ",BQ$16=0,BQ45=0)," ",SUMPRODUCT(BR45:CC45,BR46:CC46)/BQ45) ->  | BR46: =IF(BR22=" "," ",IF($BQ$39=$B$34,IF(BR41>=$C$34,$B$33*BR22,BR22),IF($BQ$39>$B$34,$B$33*BR22,BR22))) ->  | BS46: =IF(BS22=" "," ",IF($BQ$39=$B$34,IF(BS41>=$C$34,$B$33*BS22,BS22),IF($BQ$39>$B$34,$B$33*BS22,BS22))) ->  | CD46: =IF(OR(CD$16=" ",CD$16=0,CD45=0)," ",SUMPRODUCT(CE45:CP45,CE46:CP46)/CD45) ->  | CE46: =IF(CE22=" "," ",IF($CD$39=$B$34,IF(CE41>=$C$34,$B$33*CE22,CE22),IF($CD$39>$B$34,$B$33*CE22,CE22))) ->  | CF46: =IF(CF22=" "," ",IF($CD$39=$B$34,IF(CF41>=$C$34,$B$33*CF22,CF22),IF($CD$39>$B$34,$B$33*CF22,CF22))) ->  | CQ46: =IF(OR(CQ$16=" ",CQ$16=0,CQ45=0)," ",SUMPRODUCT(CR45:DC45,CR46:DC46)/CQ45) ->  | CR46: =IF(CR22=" "," ",IF($CQ$39=$B$34,IF(CR41>=$C$34,$B$33*CR22,CR22),IF($CQ$39>$B$34,$B$33*CR22,CR22))) ->  | CS46: =IF(CS22=" "," ",IF($CQ$39=$B$34,IF(CS41>=$C$34,$B$33*CS22,CS22),IF($CQ$39>$B$34,$B$33*CS22,CS22))) ->  | DD46: =IF(OR(DD$16=" ",DD$16=0,DD45=0)," ",SUMPRODUCT(DE45:DP45,DE46:DP46)/DD45) ->  | DE46: =IF(DE22=" "," ",IF($DD$39=$B$34,IF(DE41>=$C$34,$B$33*DE22,DE22),IF($DD$39>$B$34,$B$33*DE22,DE22))) ->  | DF46: =IF(DF22=" "," ",IF($DD$39=$B$34,IF(DF41>=$C$34,$B$33*DF22,DF22),IF($DD$39>$B$34,$B$33*DF22,DF22))) ->  | DQ46: =IF(OR(DQ$16=" ",DQ$16=0,DQ45=0)," ",SUMPRODUCT(DR45:EC45,DR46:EC46)/DQ45) ->  | DR46: =IF(DR22=" "," ",IF($DQ$39=$B$34,IF(DR41>=$C$34,$B$33*DR22,DR22),IF($DQ$39>$B$34,$B$33*DR22,DR22))) ->  | DS46: =IF(DS22=" "," ",IF($DQ$39=$B$34,IF(DS41>=$C$34,$B$33*DS22,DS22),IF($DQ$39>$B$34,$B$33*DS22,DS22))) ->  | ED46: =IF(OR(ED$16=" ",ED$16=0,ED45=0)," ",SUMPRODUCT(EE45:EP45,EE46:EP46)/ED45) ->  | EE46: =IF(EE22=" "," ",IF($ED$39=$B$34,IF(EE41>=$C$34,$B$33*EE22,EE22),IF($ED$39>$B$34,$B$33*EE22,EE22))) ->  | EF46: =IF(EF22=" "," ",IF($ED$39=$B$34,IF(EF41>=$C$34,$B$33*EF22,EF22),IF($ED$39>$B$34,$B$33*EF22,EF22))) ->  | EQ46: =IF(OR(EQ$16=" ",EQ$16=0,EQ45=0)," ",SUMPRODUCT(ER45:FC45,ER46:FC46)/EQ45) ->  | ER46: =IF(ER22=" "," ",IF($EQ$39=$B$34,IF(ER41>=$C$34,$B$33*ER22,ER22),IF($EQ$39>$B$34,$B$33*ER22,ER22))) ->  | ES46: =IF(ES22=" "," ",IF($EQ$39=$B$34,IF(ES41>=$C$34,$B$33*ES22,ES22),IF($EQ$39>$B$34,$B$33*ES22,ES22))) ->  | FD46: =IF(OR(FD$16=" ",FD$16=0,FD45=0)," ",SUMPRODUCT(FE45:FP45,FE46:FP46)/FD45) ->  | FE46: =IF(FE22=" "," ",IF($FD$39=$B$34,IF(FE41>=$C$34,$B$33*FE22,FE22),IF($FD$39>$B$34,$B$33*FE22,FE22))) ->  | FQ46: =IF(OR(FQ$16=" ",FQ$16=0,FQ45=0)," ",SUMPRODUCT(FR45:GC45,FR46:GC46)/FQ45) ->  | FR46: =IF(FR22=" "," ",IF($FQ$39=$B$34,IF(FR41>=$C$34,$B$33*FR22,FR22),IF($FQ$39>$B$34,$B$33*FR22,FR22))) ->  | GD46: =IF(OR(GD$16=" ",GD$16=0,GD45=0)," ",SUMPRODUCT(GE45:GP45,GE46:GP46)/GD45) ->  | GE46: =IF(GE22=" "," ",IF($GD$39=$B$34,IF(GE41>=$C$34,$B$33*GE22,GE22),IF($GD$39>$B$34,$B$33*GE22,GE22))) ->  | GQ46: =IF(OR(GQ$16=" ",GQ$16=0,GQ45=0)," ",SUMPRODUCT(GR45:HC45,GR46:HC46)/GQ45) ->  | GR46: =IF(GR22=" "," ",IF($GQ$39=$B$34,IF(GR41>=$C$34,$B$33*GR22,GR22),IF($GQ$39>$B$34,$B$33*GR22,GR22))) ->  | HD46: =IF(OR(HD$16=" ",HD$16=0,HD45=0)," ",SUMPRODUCT(HE45:HP45,HE46:HP46)/HD45) ->  | HE46: =IF(HE22=" "," ",IF($HD$39=$B$34,IF(HE41>=$C$34,$B$33*HE22,HE22),IF($HD$39>$B$34,$B$33*HE22,HE22))) ->  | HQ46: =IF(OR(HQ$16=" ",HQ$16=0,HQ45=0)," ",SUMPRODUCT(HR45:IC45,HR46:IC46)/HQ45) ->  | HR46: =IF(HR22=" "," ",IF($HQ$39=$B$34,IF(HR41>=$C$34,$B$33*HR22,HR22),IF($HQ$39>$B$34,$B$33*HR22,HR22))) ->  | ID46: =IF(OR(ID$16=" ",ID$16=0,ID45=0)," ",SUMPRODUCT(IE45:IP45,IE46:IP46)/ID45) ->  | IE46: =IF(IE22=" "," ",IF($ID$39=$B$34,IF(IE41>=$C$34,$B$33*IE22,IE22),IF($ID$39>$B$34,$B$33*IE22,IE22))) ->  | IQ46: =IF(OR(IQ$16=" ",IQ$16=0,IQ45=0)," ",SUMPRODUCT(IR45:JC45,IR46:JC46)/IQ45) ->  | IR46: =IF(IR22=" "," ",IF($IQ$39=$B$34,IF(IR41>=$C$34,$B$33*IR22,IR22),IF($IQ$39>$B$34,$B$33*IR22,IR22))) ->  | JD46: =IF(OR(JD$16=" ",JD$16=0,JD45=0)," ",SUMPRODUCT(JE45:JP45,JE46:JP46)/JD45) ->  | JE46: =IF(JE22=" "," ",IF($JD$39=$B$34,IF(JE41>=$C$34,$B$33*JE22,JE22),IF($JD$39>$B$34,$B$33*JE22,JE22))) ->  | JQ46: =IF(OR(JQ$16=" ",JQ$16=0,JQ45=0)," ",SUMPRODUCT(JR45:KC45,JR46:KC46)/JQ45) ->  | JR46: =IF(JR22=" "," ",IF($JQ$39=$B$34,IF(JR41>=$C$34,$B$33*JR22,JR22),IF($JQ$39>$B$34,$B$33*JR22,JR22))) ->  | KD46: =IF(OR(KD$16=" ",KD$16=0,KD45=0)," ",SUMPRODUCT(KE45:KP45,KE46:KP46)/KD45) ->  | KE46: =IF(KE22=" "," ",IF($KD$39=$B$34,IF(KE41>=$C$34,$B$33*KE22,KE22),IF($KD$39>$B$34,$B$33*KE22,KE22))) ->  | KQ46: =IF(OR(KQ$16=" ",KQ$16=0,KQ45=0)," ",SUMPRODUCT(KR45:LC45,KR46:LC46)/KQ45) ->  | KR46: =IF(KR22=" "," ",IF($KQ$39=$B$34,IF(KR41>=$C$34,$B$33*KR22,KR22),IF($KQ$39>$B$34,$B$33*KR22,KR22))) ->  | LD46: =IF(OR(LD$16=" ",LD$16=0,LD45=0)," ",SUMPRODUCT(LE45:LP45,LE46:LP46)/LD45) ->  | LE46: =IF(LE22=" "," ",IF($LD$39=$B$34,IF(LE41>=$C$34,$B$33*LE22,LE22),IF($LD$39>$B$34,$B$33*LE22,LE22))) ->  | LQ46: =IF(OR(LQ$16=" ",LQ$16=0,LQ45=0)," ",SUMPRODUCT(LR45:MC45,LR46:MC46)/LQ45) ->  | LR46: =IF(LR22=" "," ",IF($LQ$39=$B$34,IF(LR41>=$C$34,$B$33*LR22,LR22),IF($LQ$39>$B$34,$B$33*LR22,LR22))) ->  | MD46: =IF(OR(MD$16=" ",MD$16=0,MD45=0)," ",SUMPRODUCT(ME45:MP45,ME46:MP46)/MD45) ->  | ME46: =IF(ME22=" "," ",IF($MD$39=$B$34,IF(ME41>=$C$34,$B$33*ME22,ME22),IF($MD$39>$B$34,$B$33*ME22,ME22))) ->  | MQ46: =IF(OR(MQ$16=" ",MQ$16=0,MQ45=0)," ",SUMPRODUCT(MR45:NC45,MR46:NC46)/MQ45) ->  | MR46: =IF(MR22=" "," ",IF($MQ$39=$B$34,IF(MR41>=$C$34,$B$33*MR22,MR22),IF($MQ$39>$B$34,$B$33*MR22,MR22))) ->  | ND46: =IF(OR(ND$16=" ",ND$16=0,ND45=0)," ",SUMPRODUCT(NE45:NP45,NE46:NP46)/ND45) ->  | NE46: =IF(NE22=" "," ",IF($ND$39=$B$34,IF(NE41>=$C$34,$B$33*NE22,NE22),IF($ND$39>$B$34,$B$33*NE22,NE22))) ->  | NQ46: =IF(OR(NQ$16=" ",NQ$16=0,NQ45=0)," ",SUMPRODUCT(NR45:OC45,NR46:OC46)/NQ45) ->  | NR46: =IF(NR22=" "," ",IF($NQ$39=$B$34,IF(NR41>=$C$34,$B$33*NR22,NR22),IF($NQ$39>$B$34,$B$33*NR22,NR22))) ->  | OD46: =IF(OR(OD$16=" ",OD$16=0,OD45=0)," ",SUMPRODUCT(OE45:OP45,OE46:OP46)/OD45) ->  | OE46: =IF(OE22=" "," ",IF($OD$39=$B$34,IF(OE41>=$C$34,$B$33*OE22,OE22),IF($OD$39>$B$34,$B$33*OE22,OE22))) ->  | OQ46: =IF(OR(OQ$16=" ",OQ$16=0,OQ45=0)," ",SUMPRODUCT(OR45:PC45,OR46:PC46)/OQ45) ->  | OR46: =IF(OR22=" "," ",IF($OQ$39=$B$34,IF(OR41>=$C$34,$B$33*OR22,OR22),IF($OQ$39>$B$34,$B$33*OR22,OR22))) ->  | PD46: =IF(OR(PD$16=" ",PD$16=0,PD45=0)," ",SUMPRODUCT(PE45:PP45,PE46:PP46)/PD45) ->  | PE46: =IF(PE22=" "," ",IF($PD$39=$B$34,IF(PE41>=$C$34,$B$33*PE22,PE22),IF($PD$39>$B$34,$B$33*PE22,PE22))) ->  | PQ46: =IF(OR(PQ$16=" ",PQ$16=0,PQ45=0)," ",SUMPRODUCT(PR45:QC45,PR46:QC46)/PQ45) ->  | PR46: =IF(PR22=" "," ",IF($PQ$39=$B$34,IF(PR41>=$C$34,$B$33*PR22,PR22),IF($PQ$39>$B$34,$B$33*PR22,PR22))) ->  | PS46: =IF(PS22=" "," ",IF($PQ$39=$B$34,IF(PS41>=$C$34,$B$33*PS22,PS22),IF($PQ$39>$B$34,$B$33*PS22,PS22))) -> 
A47: Balansēšanas izdevumi | B47: EUR | AD47: =IF(OR(AD$16=" ",AD$16=0)," ",SUM(AE47:AP47)) ->  | AH47: =IF(OR(AH46=" ",AH46=0)," ",-$DD$6*AH44) ->  | AQ47: =IF(OR(AQ$16=" ",AQ$16=0)," ",SUM(AR47:BC47)) ->  | AR47: =IF(OR(AR46=" ",AR46=0)," ",-$DD$6*AR44) ->  | BD47: =IF(OR(BD$16=" ",BD$16=0)," ",SUM(BE47:BP47)) ->  | BE47: =IF(OR(BE46=" ",BE46=0)," ",-$DD$6*BE44) ->  | BQ47: =IF(OR(BQ$16=" ",BQ$16=0)," ",SUM(BR47:CC47)) ->  | BR47: =IF(OR(BR46=" ",BR46=0)," ",-$DD$6*BR44) ->  | CD47: =IF(OR(CD$16=" ",CD$16=0)," ",SUM(CE47:CP47)) ->  | CE47: =IF(OR(CE46=" ",CE46=0)," ",-$DD$6*CE44) ->  | CQ47: =IF(OR(CQ$16=" ",CQ$16=0)," ",SUM(CR47:DC47)) ->  | CR47: =IF(OR(CR46=" ",CR46=0)," ",-$DD$6*CR44) ->  | DD47: =IF(OR(DD$16=" ",DD$16=0)," ",SUM(DE47:DP47)) ->  | DE47: =IF(OR(DE46=" ",DE46=0)," ",-$DD$6*DE44) ->  | DQ47: =IF(OR(DQ$16=" ",DQ$16=0)," ",SUM(DR47:EC47)) ->  | DR47: =IF(OR(DR46=" ",DR46=0)," ",-$DD$6*DR44) ->  | ED47: =IF(OR(ED$16=" ",ED$16=0)," ",SUM(EE47:EP47)) ->  | EE47: =IF(OR(EE46=" ",EE46=0)," ",-$DD$6*EE44) ->  | EQ47: =IF(OR(EQ$16=" ",EQ$16=0)," ",SUM(ER47:FC47)) ->  | ER47: =IF(OR(ER46=" ",ER46=0)," ",-$DD$6*ER44) ->  | FD47: =IF(OR(FD$16=" ",FD$16=0)," ",SUM(FE47:FP47)) ->  | FE47: =IF(OR(FE46=" ",FE46=0)," ",-$DD$6*FE44) ->  | FQ47: =IF(OR(FQ$16=" ",FQ$16=0)," ",SUM(FR47:GC47)) ->  | FR47: =IF(OR(FR46=" ",FR46=0)," ",-$DD$6*FR44) ->  | GD47: =IF(OR(GD$16=" ",GD$16=0)," ",SUM(GE47:GP47)) ->  | GE47: =IF(OR(GE46=" ",GE46=0)," ",-$DD$6*GE44) ->  | GQ47: =IF(OR(GQ$16=" ",GQ$16=0)," ",SUM(GR47:HC47)) ->  | GR47: =IF(OR(GR46=" ",GR46=0)," ",-$DD$6*GR44) ->  | HD47: =IF(OR(HD$16=" ",HD$16=0)," ",SUM(HE47:HP47)) ->  | HE47: =IF(OR(HE46=" ",HE46=0)," ",-$DD$6*HE44) ->  | HQ47: =IF(OR(HQ$16=" ",HQ$16=0)," ",SUM(HR47:IC47)) ->  | HR47: =IF(OR(HR46=" ",HR46=0)," ",-$DD$6*HR44) ->  | ID47: =IF(OR(ID$16=" ",ID$16=0)," ",SUM(IE47:IP47)) ->  | IE47: =IF(OR(IE46=" ",IE46=0)," ",-$DD$6*IE44) ->  | IQ47: =IF(OR(IQ$16=" ",IQ$16=0)," ",SUM(IR47:JC47)) ->  | IR47: =IF(OR(IR46=" ",IR46=0)," ",-$DD$6*IR44) ->  | JD47: =IF(OR(JD$16=" ",JD$16=0)," ",SUM(JE47:JP47)) ->  | JE47: =IF(OR(JE46=" ",JE46=0)," ",-$DD$6*JE44) ->  | JQ47: =IF(OR(JQ$16=" ",JQ$16=0)," ",SUM(JR47:KC47)) ->  | JR47: =IF(OR(JR46=" ",JR46=0)," ",-$DD$6*JR44) ->  | KD47: =IF(OR(KD$16=" ",KD$16=0)," ",SUM(KE47:KP47)) ->  | KE47: =IF(OR(KE46=" ",KE46=0)," ",-$DD$6*KE44) ->  | KQ47: =IF(OR(KQ$16=" ",KQ$16=0)," ",SUM(KR47:LC47)) ->  | KR47: =IF(OR(KR46=" ",KR46=0)," ",-$DD$6*KR44) ->  | LD47: =IF(OR(LD$16=" ",LD$16=0)," ",SUM(LE47:LP47)) ->  | LE47: =IF(OR(LE46=" ",LE46=0)," ",-$DD$6*LE44) ->  | LQ47: =IF(OR(LQ$16=" ",LQ$16=0)," ",SUM(LR47:MC47)) ->  | LR47: =IF(OR(LR46=" ",LR46=0)," ",-$DD$6*LR44) ->  | MD47: =IF(OR(MD$16=" ",MD$16=0)," ",SUM(ME47:MP47)) ->  | ME47: =IF(OR(ME46=" ",ME46=0)," ",-$DD$6*ME44) ->  | MQ47: =IF(OR(MQ$16=" ",MQ$16=0)," ",SUM(MR47:NC47)) ->  | MR47: =IF(OR(MR46=" ",MR46=0)," ",-$DD$6*MR44) ->  | ND47: =IF(OR(ND$16=" ",ND$16=0)," ",SUM(NE47:NP47)) ->  | NE47: =IF(OR(NE46=" ",NE46=0)," ",-$DD$6*NE44) ->  | NQ47: =IF(OR(NQ$16=" ",NQ$16=0)," ",SUM(NR47:OC47)) ->  | NR47: =IF(OR(NR46=" ",NR46=0)," ",-$DD$6*NR44) ->  | OD47: =IF(OR(OD$16=" ",OD$16=0)," ",SUM(OE47:OP47)) ->  | OE47: =IF(OR(OE46=" ",OE46=0)," ",-$DD$6*OE44) ->  | OQ47: =IF(OR(OQ$16=" ",OQ$16=0)," ",SUM(OR47:PC47)) ->  | OR47: =IF(OR(OR46=" ",OR46=0)," ",-$DD$6*OR44) ->  | PD47: =IF(OR(PD$16=" ",PD$16=0)," ",SUM(PE47:PP47)) ->  | PE47: =IF(OR(PE46=" ",PE46=0)," ",-$DD$6*PE44) ->  | PQ47: =IF(OR(PQ$16=" ",PQ$16=0)," ",SUM(PR47:QC47)) ->  | PR47: =IF(OR(PR46=" ",PR46=0)," ",-$DD$6*PR44) -> 
A48: SEN | B48: % | CR48: =CR24 -> 0.1 | CS48: =CS24 -> 0.1 | CT48: 0.1 | CU48: 0.1 | CV48: 0.1 | CW48: 0.1 | CX48: 0.1 | CY48: 0.1 | CZ48: 0.1 | DA48: 0.1 | DB48: 0.1 | DC48: 0.1 | DE48: =DE24 -> 0.1 | DF48: =DF24 -> 0.1 | DG48: 0.1 | DH48: 0.1 | DI48: 0.1 | DJ48: 0.1 | DK48: 0.1 | DL48: 0.1 | DM48: 0.1 | DN48: 0.1 | DO48: 0.1 | DP48: 0.1 | DR48: =DR24 -> 0.1 | DS48: =DS24 -> 0.1 | DT48: 0.1 | DU48: 0.1 | DV48: 0.1 | DW48: 0.1 | DX48: 0.1 | DY48: 0.1 | DZ48: 0.1 | EA48: 0.1 | EB48: 0.1 | EC48: 0.1 | EE48: =EE24 -> 0.1 | EF48: =EF24 -> 0.1 | EG48: 0.1 | EH48: 0.1 | EI48: 0.1 | EJ48: 0.1 | EK48: 0.1 | EL48: 0.1 | EM48: 0.1 | EN48: 0.1 | EO48: 0.1 | EP48: 0.1
A49: Izdevumi kopā | B49: EUR | D49: =IF(D46=" "," ",D50+D51+D52) ->  | E49: =IF(E46=" "," ",E50+E51+E52) ->  | F49: =IF(F46=" "," ",F50+F51+F52) ->  | Q49: =IF(Q46=" "," ",Q50+Q51+Q52) ->  | R49: =IF(R46=" "," ",R50+R51+R52) ->  | S49: =IF(S46=" "," ",S50+S51+S52) ->  | AD49: =IF(AD46=" "," ",AD50+AD51+AD52) ->  | AE49: =IF(AE46=" "," ",AE50+AE51+AE52) ->  | AF49: =IF(AF46=" "," ",AF50+AF51+AF52) ->  | AQ49: =IF(AQ46=" "," ",AQ50+AQ51+AQ52) ->  | AR49: =IF(AR46=" "," ",AR50+AR51+AR52) ->  | AS49: =IF(AS46=" "," ",AS50+AS51+AS52) ->  | BD49: =IF(BD46=" "," ",BD50+BD51+BD52) ->  | BE49: =IF(BE46=" "," ",BE50+BE51+BE52) ->  | BF49: =IF(BF46=" "," ",BF50+BF51+BF52) ->  | BQ49: =IF(BQ46=" "," ",BQ50+BQ51+BQ52) ->  | BR49: =IF(BR46=" "," ",BR50+BR51+BR52) ->  | BS49: =IF(BS46=" "," ",BS50+BS51+BS52) ->  | CD49: =IF(CD46=" "," ",CD50+CD51+CD52) ->  | CE49: =IF(CE46=" "," ",CE50+CE51+CE52) ->  | CF49: =IF(CF46=" "," ",CF50+CF51+CF52) ->  | CQ49: =IF(CQ46=" "," ",CQ50+CQ51+CQ52) ->  | CR49: =IF(CR46=" "," ",CR50+CR51+CR52) ->  | CS49: =IF(CS46=" "," ",CS50+CS51+CS52) ->  | DD49: =IF(DD46=" "," ",DD50+DD51+DD52) ->  | DE49: =IF(DE46=" "," ",DE50+DE51+DE52) ->  | DF49: =IF(DF46=" "," ",DF50+DF51+DF52) ->  | DQ49: =IF(DQ46=" "," ",DQ50+DQ51+DQ52) ->  | DR49: =IF(DR46=" "," ",DR50+DR51+DR52) ->  | DS49: =IF(DS46=" "," ",DS50+DS51+DS52) ->  | EC49: =IF(EC46=" "," ",EC50+EC51+EC52) ->  | ED49: =IF(ED46=" "," ",ED50+ED51+ED52) ->  | EE49: =IF(EE46=" "," ",EE50+EE51+EE52) ->  | EF49: =IF(EF46=" "," ",EF50+EF51+EF52) ->  | EQ49: =IF(EQ46=" "," ",EQ50+EQ51+EQ52) ->  | ER49: =IF(ER46=" "," ",ER50+ER51+ER52) ->  | ES49: =IF(ES46=" "," ",ES50+ES51+ES52) ->  | FD49: =IF(FD46=" "," ",FD50+FD51+FD52) ->  | FE49: =IF(FE46=" "," ",FE50+FE51+FE52) ->  | FF49: =IF(FF46=" "," ",FF50+FF51+FF52) ->  | FQ49: =IF(FQ46=" "," ",FQ50+FQ51+FQ52) ->  | FR49: =IF(FR46=" "," ",FR50+FR51+FR52) ->  | FS49: =IF(FS46=" "," ",FS50+FS51+FS52) ->  | GD49: =IF(GD46=" "," ",GD50+GD51+GD52) ->  | GE49: =IF(GE46=" "," ",GE50+GE51+GE52) ->  | GF49: =IF(GF46=" "," ",GF50+GF51+GF52) ->  | GQ49: =IF(GQ46=" "," ",GQ50+GQ51+GQ52) ->  | GR49: =IF(GR46=" "," ",GR50+GR51+GR52) ->  | GS49: =IF(GS46=" "," ",GS50+GS51+GS52) ->  | HD49: =IF(HD46=" "," ",HD50+HD51+HD52) ->  | HE49: =IF(HE46=" "," ",HE50+HE51+HE52) ->  | HF49: =IF(HF46=" "," ",HF50+HF51+HF52) ->  | HQ49: =IF(HQ46=" "," ",HQ50+HQ51+HQ52) ->  | HR49: =IF(HR46=" "," ",HR50+HR51+HR52) ->  | HS49: =IF(HS46=" "," ",HS50+HS51+HS52) ->  | ID49: =IF(ID46=" "," ",ID50+ID51+ID52) ->  | IE49: =IF(IE46=" "," ",IE50+IE51+IE52) ->  | IF49: =IF(IF46=" "," ",IF50+IF51+IF52) ->  | IQ49: =IF(IQ46=" "," ",IQ50+IQ51+IQ52) ->  | IR49: =IF(IR46=" "," ",IR50+IR51+IR52) ->  | IS49: =IF(IS46=" "," ",IS50+IS51+IS52) ->  | JD49: =IF(JD46=" "," ",JD50+JD51+JD52) ->  | JE49: =IF(JE46=" "," ",JE50+JE51+JE52) ->  | JF49: =IF(JF46=" "," ",JF50+JF51+JF52) ->  | JQ49: =IF(JQ46=" "," ",JQ50+JQ51+JQ52) ->  | JR49: =IF(JR46=" "," ",JR50+JR51+JR52) ->  | JS49: =IF(JS46=" "," ",JS50+JS51+JS52) ->  | KD49: =IF(KD46=" "," ",KD50+KD51+KD52) ->  | KE49: =IF(KE46=" "," ",KE50+KE51+KE52) ->  | KF49: =IF(KF46=" "," ",KF50+KF51+KF52) ->  | KQ49: =IF(KQ46=" "," ",KQ50+KQ51+KQ52) ->  | KR49: =IF(KR46=" "," ",KR50+KR51+KR52) ->  | KS49: =IF(KS46=" "," ",KS50+KS51+KS52) ->  | LD49: =IF(LD46=" "," ",LD50+LD51+LD52) ->  | LE49: =IF(LE46=" "," ",LE50+LE51+LE52) ->  | LF49: =IF(LF46=" "," ",LF50+LF51+LF52) ->  | LQ49: =IF(LQ46=" "," ",LQ50+LQ51+LQ52) ->  | LR49: =IF(LR46=" "," ",LR50+LR51+LR52) ->  | LS49: =IF(LS46=" "," ",LS50+LS51+LS52) ->  | MD49: =IF(MD46=" "," ",MD50+MD51+MD52) ->  | ME49: =IF(ME46=" "," ",ME50+ME51+ME52) ->  | MF49: =IF(MF46=" "," ",MF50+MF51+MF52) ->  | MQ49: =IF(MQ46=" "," ",MQ50+MQ51+MQ52) ->  | MR49: =IF(MR46=" "," ",MR50+MR51+MR52) ->  | MS49: =IF(MS46=" "," ",MS50+MS51+MS52) ->  | ND49: =IF(ND46=" "," ",ND50+ND51+ND52) ->  | NE49: =IF(NE46=" "," ",NE50+NE51+NE52) ->  | NF49: =IF(NF46=" "," ",NF50+NF51+NF52) ->  | NQ49: =IF(NQ46=" "," ",NQ50+NQ51+NQ52) ->  | NR49: =IF(NR46=" "," ",NR50+NR51+NR52) ->  | OD49: =IF(OD46=" "," ",OD50+OD51+OD52) ->  | OE49: =IF(OE46=" "," ",OE50+OE51+OE52) ->  | OF49: =IF(OF46=" "," ",OF50+OF51+OF52) ->  | OQ49: =IF(OQ46=" "," ",OQ50+OQ51+OQ52) ->  | OR49: =IF(OR46=" "," ",OR50+OR51+OR52) ->  | OS49: =IF(OS46=" "," ",OS50+OS51+OS52) ->  | PD49: =IF(PD46=" "," ",PD50+PD51+PD52) ->  | PE49: =IF(PE46=" "," ",PE50+PE51+PE52) ->  | PF49: =IF(PF46=" "," ",PF50+PF51+PF52) ->  | PQ49: =IF(PQ46=" "," ",PQ50+PQ51+PQ52) ->  | PR49: =IF(PR46=" "," ",PR50+PR51+PR52) ->  | PS49: =IF(PS46=" "," ",PS50+PS51+PS52) -> 
A50: Personālizmaksas | B50: EUR/gadā | D50: =IF(OR(D$16=" ",D$16=0)," ",SUM(E50:P50)) ->  | E50: =IF(E46=" "," ",$BQ$6*HLOOKUP($D$15,Līmeņatzīmes!$B$6:$AI$7,2,FALSE)) ->  | F50: =IF(F46=" "," ",$BQ$6*HLOOKUP($D$15,Līmeņatzīmes!$B$6:$AI$7,2,FALSE)) ->  | G50: =IF(G46=" "," ",$BQ$6*HLOOKUP($D$15,Līmeņatzīmes!$B$6:$AI$7,2,FALSE)) ->  | H50: =IF(H46=" "," ",$BQ$6*HLOOKUP($D$15,Līmeņatzīmes!$B$6:$AI$7,2,FALSE)) ->  | I50: =IF(I46=" "," ",$BQ$6*HLOOKUP($D$15,Līmeņatzīmes!$B$6:$AI$7,2,FALSE)) ->  | J50: =IF(J46=" "," ",$BQ$6*HLOOKUP($D$15,Līmeņatzīmes!$B$6:$AI$7,2,FALSE)) ->  | K50: =IF(K46=" "," ",$BQ$6*HLOOKUP($D$15,Līmeņatzīmes!$B$6:$AI$7,2,FALSE)) ->  | L50: =IF(L46=" "," ",$BQ$6*HLOOKUP($D$15,Līmeņatzīmes!$B$6:$AI$7,2,FALSE)) ->  | M50: =IF(M46=" "," ",$BQ$6*HLOOKUP($D$15,Līmeņatzīmes!$B$6:$AI$7,2,FALSE)) ->  | N50: =IF(N46=" "," ",$BQ$6*HLOOKUP($D$15,Līmeņatzīmes!$B$6:$AI$7,2,FALSE)) ->  | O50: =IF(O46=" "," ",$BQ$6*HLOOKUP($D$15,Līmeņatzīmes!$B$6:$AI$7,2,FALSE)) ->  | P50: =IF(P46=" "," ",$BQ$6*HLOOKUP($D$15,Līmeņatzīmes!$B$6:$AI$7,2,FALSE)) ->  | Q50: =IF(OR(Q$16=" ",Q$16=0)," ",SUM(R50:AC50)) ->  | R50: =IF(R46=" "," ",$BQ$6*HLOOKUP($Q$15,Līmeņatzīmes!$B$6:$AI$7,2,FALSE)) ->  | S50: =IF(S46=" "," ",$BQ$6*HLOOKUP($Q$15,Līmeņatzīmes!$B$6:$AI$7,2,FALSE)) ->  | T50: =IF(T46=" "," ",$BQ$6*HLOOKUP($Q$15,Līmeņatzīmes!$B$6:$AI$7,2,FALSE)) ->  | U50: =IF(U46=" "," ",$BQ$6*HLOOKUP($Q$15,Līmeņatzīmes!$B$6:$AI$7,2,FALSE)) ->  | V50: =IF(V46=" "," ",$BQ$6*HLOOKUP($Q$15,Līmeņatzīmes!$B$6:$AI$7,2,FALSE)) ->  | W50: =IF(W46=" "," ",$BQ$6*HLOOKUP($Q$15,Līmeņatzīmes!$B$6:$AI$7,2,FALSE)) ->  | X50: =IF(X46=" "," ",$BQ$6*HLOOKUP($Q$15,Līmeņatzīmes!$B$6:$AI$7,2,FALSE)) ->  | Y50: =IF(Y46=" "," ",$BQ$6*HLOOKUP($Q$15,Līmeņatzīmes!$B$6:$AI$7,2,FALSE)) ->  | Z50: =IF(Z46=" "," ",$BQ$6*HLOOKUP($Q$15,Līmeņatzīmes!$B$6:$AI$7,2,FALSE)) ->  | AA50: =IF(AA46=" "," ",$BQ$6*HLOOKUP($Q$15,Līmeņatzīmes!$B$6:$AI$7,2,FALSE)) ->  | AB50: =IF(AB46=" "," ",$BQ$6*HLOOKUP($Q$15,Līmeņatzīmes!$B$6:$AI$7,2,FALSE)) ->  | AC50: =IF(AC46=" "," ",$BQ$6*HLOOKUP($Q$15,Līmeņatzīmes!$B$6:$AI$7,2,FALSE)) ->  | AD50: =IF(OR(AD$16=" ",AD$16=0)," ",SUM(AE50:AP50)) ->  | AE50: =IF(AE46=" "," ",$BQ$6*HLOOKUP($AD$15,Līmeņatzīmes!$B$6:$AI$7,2,FALSE)) ->  | AF50: =IF(AF46=" "," ",$BQ$6*HLOOKUP($AD$15,Līmeņatzīmes!$B$6:$AI$7,2,FALSE)) ->  | AG50: =IF(AG46=" "," ",$BQ$6*HLOOKUP($AD$15,Līmeņatzīmes!$B$6:$AI$7,2,FALSE)) ->  | AH50: =IF(AH46=" "," ",$BQ$6*HLOOKUP($AD$15,Līmeņatzīmes!$B$6:$AI$7,2,FALSE)) ->  | AI50: =IF(AI46=" "," ",$BQ$6*HLOOKUP($AD$15,Līmeņatzīmes!$B$6:$AI$7,2,FALSE)) ->  | AJ50: =IF(AJ46=" "," ",$BQ$6*HLOOKUP($AD$15,Līmeņatzīmes!$B$6:$AI$7,2,FALSE)) ->  | AK50: =IF(AK46=" "," ",$BQ$6*HLOOKUP($AD$15,Līmeņatzīmes!$B$6:$AI$7,2,FALSE)) ->  | AL50: =IF(AL46=" "," ",$BQ$6*HLOOKUP($AD$15,Līmeņatzīmes!$B$6:$AI$7,2,FALSE)) ->  | AM50: =IF(AM46=" "," ",$BQ$6*HLOOKUP($AD$15,Līmeņatzīmes!$B$6:$AI$7,2,FALSE)) ->  | AN50: =IF(AN46=" "," ",$BQ$6*HLOOKUP($AD$15,Līmeņatzīmes!$B$6:$AI$7,2,FALSE)) ->  | AO50: =IF(AO46=" "," ",$BQ$6*HLOOKUP($AD$15,Līmeņatzīmes!$B$6:$AI$7,2,FALSE)) ->  | AP50: =IF(AP46=" "," ",$BQ$6*HLOOKUP($AD$15,Līmeņatzīmes!$B$6:$AI$7,2,FALSE)) ->  | AQ50: =IF(OR(AQ$16=" ",AQ$16=0)," ",SUM(AR50:BC50)) ->  | AR50: =IF(AR46=" "," ",$BQ$6*HLOOKUP($AQ$15,Līmeņatzīmes!$B$6:$AI$7,2,FALSE)) ->  | AS50: =IF(AS46=" "," ",$BQ$6*HLOOKUP($AQ$15,Līmeņatzīmes!$B$6:$AI$7,2,FALSE)) ->  | AT50: =IF(AT46=" "," ",$BQ$6*HLOOKUP($AQ$15,Līmeņatzīmes!$B$6:$AI$7,2,FALSE)) ->  | AU50: =IF(AU46=" "," ",$BQ$6*HLOOKUP($AQ$15,Līmeņatzīmes!$B$6:$AI$7,2,FALSE)) ->  | AV50: =IF(AV46=" "," ",$BQ$6*HLOOKUP($AQ$15,Līmeņatzīmes!$B$6:$AI$7,2,FALSE)) ->  | AW50: =IF(AW46=" "," ",$BQ$6*HLOOKUP($AQ$15,Līmeņatzīmes!$B$6:$AI$7,2,FALSE)) ->  | AX50: =IF(AX46=" "," ",$BQ$6*HLOOKUP($AQ$15,Līmeņatzīmes!$B$6:$AI$7,2,FALSE)) ->  | AY50: =IF(AY46=" "," ",$BQ$6*HLOOKUP($AQ$15,Līmeņatzīmes!$B$6:$AI$7,2,FALSE)) ->  | AZ50: =IF(AZ46=" "," ",$BQ$6*HLOOKUP($AQ$15,Līmeņatzīmes!$B$6:$AI$7,2,FALSE)) ->  | BA50: =IF(BA46=" "," ",$BQ$6*HLOOKUP($AQ$15,Līmeņatzīmes!$B$6:$AI$7,2,FALSE)) ->  | BB50: =IF(BB46=" "," ",$BQ$6*HLOOKUP($AQ$15,Līmeņatzīmes!$B$6:$AI$7,2,FALSE)) ->  | BC50: =IF(BC46=" "," ",$BQ$6*HLOOKUP($AQ$15,Līmeņatzīmes!$B$6:$AI$7,2,FALSE)) ->  | BD50: =IF(OR(BD$16=" ",BD$16=0)," ",SUM(BE50:BP50)) ->  | BE50: =IF(BE46=" "," ",$BQ$6*HLOOKUP($BD$15,Līmeņatzīmes!$B$6:$AI$7,2,FALSE)) ->  | BF50: =IF(BF46=" "," ",$BQ$6*HLOOKUP($BD$15,Līmeņatzīmes!$B$6:$AI$7,2,FALSE)) ->  | BG50: =IF(BG46=" "," ",$BQ$6*HLOOKUP($BD$15,Līmeņatzīmes!$B$6:$AI$7,2,FALSE)) ->  | BH50: =IF(BH46=" "," ",$BQ$6*HLOOKUP($BD$15,Līmeņatzīmes!$B$6:$AI$7,2,FALSE)) ->  | BI50: =IF(BI46=" "," ",$BQ$6*HLOOKUP($BD$15,Līmeņatzīmes!$B$6:$AI$7,2,FALSE)) ->  | BJ50: =IF(BJ46=" "," ",$BQ$6*HLOOKUP($BD$15,Līmeņatzīmes!$B$6:$AI$7,2,FALSE)) ->  | BK50: =IF(BK46=" "," ",$BQ$6*HLOOKUP($BD$15,Līmeņatzīmes!$B$6:$AI$7,2,FALSE)) ->  | BL50: =IF(BL46=" "," ",$BQ$6*HLOOKUP($BD$15,Līmeņatzīmes!$B$6:$AI$7,2,FALSE)) ->  | BM50: =IF(BM46=" "," ",$BQ$6*HLOOKUP($BD$15,Līmeņatzīmes!$B$6:$AI$7,2,FALSE)) ->  | BN50: =IF(BN46=" "," ",$BQ$6*HLOOKUP($BD$15,Līmeņatzīmes!$B$6:$AI$7,2,FALSE)) ->  | BO50: =IF(BO46=" "," ",$BQ$6*HLOOKUP($BD$15,Līmeņatzīmes!$B$6:$AI$7,2,FALSE)) ->  | BP50: =IF(BP46=" "," ",$BQ$6*HLOOKUP($BD$15,Līmeņatzīmes!$B$6:$AI$7,2,FALSE)) ->  | BQ50: =IF(OR(BQ$16=" ",BQ$16=0)," ",SUM(BR50:CC50)) ->  | BR50: =IF(BR46=" "," ",$BQ$6*HLOOKUP($BQ$15,Līmeņatzīmes!$B$6:$AI$7,2,FALSE)) ->  | BS50: =IF(BS46=" "," ",$BQ$6*HLOOKUP($BQ$15,Līmeņatzīmes!$B$6:$AI$7,2,FALSE)) ->  | BT50: =IF(BT46=" "," ",$BQ$6*HLOOKUP($BQ$15,Līmeņatzīmes!$B$6:$AI$7,2,FALSE)) ->  | BU50: =IF(BU46=" "," ",$BQ$6*HLOOKUP($BQ$15,Līmeņatzīmes!$B$6:$AI$7,2,FALSE)) ->  | BV50: =IF(BV46=" "," ",$BQ$6*HLOOKUP($BQ$15,Līmeņatzīmes!$B$6:$AI$7,2,FALSE)) ->  | BW50: =IF(BW46=" "," ",$BQ$6*HLOOKUP($BQ$15,Līmeņatzīmes!$B$6:$AI$7,2,FALSE)) ->  | BX50: =IF(BX46=" "," ",$BQ$6*HLOOKUP($BQ$15,Līmeņatzīmes!$B$6:$AI$7,2,FALSE)) ->  | BY50: =IF(BY46=" "," ",$BQ$6*HLOOKUP($BQ$15,Līmeņatzīmes!$B$6:$AI$7,2,FALSE)) ->  | BZ50: =IF(BZ46=" "," ",$BQ$6*HLOOKUP($BQ$15,Līmeņatzīmes!$B$6:$AI$7,2,FALSE)) ->  | CA50: =IF(CA46=" "," ",$BQ$6*HLOOKUP($BQ$15,Līmeņatzīmes!$B$6:$AI$7,2,FALSE)) ->  | CB50: =IF(CB46=" "," ",$BQ$6*HLOOKUP($BQ$15,Līmeņatzīmes!$B$6:$AI$7,2,FALSE)) ->  | CC50: =IF(CC46=" "," ",$BQ$6*HLOOKUP($BQ$15,Līmeņatzīmes!$B$6:$AI$7,2,FALSE)) ->  | CD50: =IF(OR(CD$16=" ",CD$16=0)," ",SUM(CE50:CP50)) ->  | CE50: =IF(CE46=" "," ",$BQ$6*HLOOKUP($CD$15,Līmeņatzīmes!$B$6:$AI$7,2,FALSE)) ->  | CF50: =IF(CF46=" "," ",$BQ$6*HLOOKUP($CD$15,Līmeņatzīmes!$B$6:$AI$7,2,FALSE)) ->  | CG50: =IF(CG46=" "," ",$BQ$6*HLOOKUP($CD$15,Līmeņatzīmes!$B$6:$AI$7,2,FALSE)) ->  | CH50: =IF(CH46=" "," ",$BQ$6*HLOOKUP($CD$15,Līmeņatzīmes!$B$6:$AI$7,2,FALSE)) ->  | CI50: =IF(CI46=" "," ",$BQ$6*HLOOKUP($CD$15,Līmeņatzīmes!$B$6:$AI$7,2,FALSE)) ->  | CJ50: =IF(CJ46=" "," ",$BQ$6*HLOOKUP($CD$15,Līmeņatzīmes!$B$6:$AI$7,2,FALSE)) ->  | CK50: =IF(CK46=" "," ",$BQ$6*HLOOKUP($CD$15,Līmeņatzīmes!$B$6:$AI$7,2,FALSE)) ->  | CL50: =IF(CL46=" "," ",$BQ$6*HLOOKUP($CD$15,Līmeņatzīmes!$B$6:$AI$7,2,FALSE)) ->  | CM50: =IF(CM46=" "," ",$BQ$6*HLOOKUP($CD$15,Līmeņatzīmes!$B$6:$AI$7,2,FALSE)) ->  | CN50: =IF(CN46=" "," ",$BQ$6*HLOOKUP($CD$15,Līmeņatzīmes!$B$6:$AI$7,2,FALSE)) ->  | CO50: =IF(CO46=" "," ",$BQ$6*HLOOKUP($CD$15,Līmeņatzīmes!$B$6:$AI$7,2,FALSE)) ->  | CP50: =IF(CP46=" "," ",$BQ$6*HLOOKUP($CD$15,Līmeņatzīmes!$B$6:$AI$7,2,FALSE)) ->  | CQ50: =IF(OR(CQ$16=" ",CQ$16=0)," ",SUM(CR50:DC50)) ->  | CR50: =IF(CR46=" "," ",$BQ$6*HLOOKUP($CQ$15,Līmeņatzīmes!$B$6:$AI$7,2,FALSE)) ->  | CS50: =IF(CS46=" "," ",$BQ$6*HLOOKUP($CQ$15,Līmeņatzīmes!$B$6:$AI$7,2,FALSE)) ->  | CT50: =IF(CT46=" "," ",$BQ$6*HLOOKUP($CQ$15,Līmeņatzīmes!$B$6:$AI$7,2,FALSE)) ->  | CU50: =IF(CU46=" "," ",$BQ$6*HLOOKUP($CQ$15,Līmeņatzīmes!$B$6:$AI$7,2,FALSE)) ->  | CV50: =IF(CV46=" "," ",$BQ$6*HLOOKUP($CQ$15,Līmeņatzīmes!$B$6:$AI$7,2,FALSE)) ->  | CW50: =IF(CW46=" "," ",$BQ$6*HLOOKUP($CQ$15,Līmeņatzīmes!$B$6:$AI$7,2,FALSE)) ->  | CX50: =IF(CX46=" "," ",$BQ$6*HLOOKUP($CQ$15,Līmeņatzīmes!$B$6:$AI$7,2,FALSE)) ->  | CY50: =IF(CY46=" "," ",$BQ$6*HLOOKUP($CQ$15,Līmeņatzīmes!$B$6:$AI$7,2,FALSE)) ->  | CZ50: =IF(CZ46=" "," ",$BQ$6*HLOOKUP($CQ$15,Līmeņatzīmes!$B$6:$AI$7,2,FALSE)) ->  | DA50: =IF(DA46=" "," ",$BQ$6*HLOOKUP($CQ$15,Līmeņatzīmes!$B$6:$AI$7,2,FALSE)) ->  | DB50: =IF(DB46=" "," ",$BQ$6*HLOOKUP($CQ$15,Līmeņatzīmes!$B$6:$AI$7,2,FALSE)) ->  | DC50: =IF(DC46=" "," ",$BQ$6*HLOOKUP($CQ$15,Līmeņatzīmes!$B$6:$AI$7,2,FALSE)) ->  | DD50: =IF(OR(DD$16=" ",DD$16=0)," ",SUM(DE50:DP50)) ->  | DE50: =IF(DE46=" "," ",$BQ$6*HLOOKUP($DD$15,Līmeņatzīmes!$B$6:$AI$7,2,FALSE)) ->  | DF50: =IF(DF46=" "," ",$BQ$6*HLOOKUP($DD$15,Līmeņatzīmes!$B$6:$AI$7,2,FALSE)) ->  | DG50: =IF(DG46=" "," ",$BQ$6*HLOOKUP($DD$15,Līmeņatzīmes!$B$6:$AI$7,2,FALSE)) ->  | DH50: =IF(DH46=" "," ",$BQ$6*HLOOKUP($DD$15,Līmeņatzīmes!$B$6:$AI$7,2,FALSE)) ->  | DI50: =IF(DI46=" "," ",$BQ$6*HLOOKUP($DD$15,Līmeņatzīmes!$B$6:$AI$7,2,FALSE)) ->  | DJ50: =IF(DJ46=" "," ",$BQ$6*HLOOKUP($DD$15,Līmeņatzīmes!$B$6:$AI$7,2,FALSE)) ->  | DK50: =IF(DK46=" "," ",$BQ$6*HLOOKUP($DD$15,Līmeņatzīmes!$B$6:$AI$7,2,FALSE)) ->  | DL50: =IF(DL46=" "," ",$BQ$6*HLOOKUP($DD$15,Līmeņatzīmes!$B$6:$AI$7,2,FALSE)) ->  | DM50: =IF(DM46=" "," ",$BQ$6*HLOOKUP($DD$15,Līmeņatzīmes!$B$6:$AI$7,2,FALSE)) ->  | DN50: =IF(DN46=" "," ",$BQ$6*HLOOKUP($DD$15,Līmeņatzīmes!$B$6:$AI$7,2,FALSE)) ->  | DO50: =IF(DO46=" "," ",$BQ$6*HLOOKUP($DD$15,Līmeņatzīmes!$B$6:$AI$7,2,FALSE)) ->  | DP50: =IF(DP46=" "," ",$BQ$6*HLOOKUP($DD$15,Līmeņatzīmes!$B$6:$AI$7,2,FALSE)) ->  | DQ50: =IF(OR(DQ$16=" ",DQ$16=0)," ",SUM(DR50:EC50)) ->  | DR50: =IF(DR46=" "," ",$BQ$6*HLOOKUP($DQ$15,Līmeņatzīmes!$B$6:$AI$7,2,FALSE)) ->  | DS50: =IF(DS46=" "," ",$BQ$6*HLOOKUP($DQ$15,Līmeņatzīmes!$B$6:$AI$7,2,FALSE)) ->  | DT50: =IF(DT46=" "," ",$BQ$6*HLOOKUP($DQ$15,Līmeņatzīmes!$B$6:$AI$7,2,FALSE)) ->  | DU50: =IF(DU46=" "," ",$BQ$6*HLOOKUP($DQ$15,Līmeņatzīmes!$B$6:$AI$7,2,FALSE)) ->  | DV50: =IF(DV46=" "," ",$BQ$6*HLOOKUP($DQ$15,Līmeņatzīmes!$B$6:$AI$7,2,FALSE)) ->  | DW50: =IF(DW46=" "," ",$BQ$6*HLOOKUP($DQ$15,Līmeņatzīmes!$B$6:$AI$7,2,FALSE)) ->  | DX50: =IF(DX46=" "," ",$BQ$6*HLOOKUP($DQ$15,Līmeņatzīmes!$B$6:$AI$7,2,FALSE)) ->  | DY50: =IF(DY46=" "," ",$BQ$6*HLOOKUP($DQ$15,Līmeņatzīmes!$B$6:$AI$7,2,FALSE)) ->  | DZ50: =IF(DZ46=" "," ",$BQ$6*HLOOKUP($DQ$15,Līmeņatzīmes!$B$6:$AI$7,2,FALSE)) ->  | EA50: =IF(EA46=" "," ",$BQ$6*HLOOKUP($DQ$15,Līmeņatzīmes!$B$6:$AI$7,2,FALSE)) ->  | EB50: =IF(EB46=" "," ",$BQ$6*HLOOKUP($DQ$15,Līmeņatzīmes!$B$6:$AI$7,2,FALSE)) ->  | EC50: =IF(EC46=" "," ",$BQ$6*HLOOKUP($DQ$15,Līmeņatzīmes!$B$6:$AI$7,2,FALSE)) ->  | ED50: =IF(OR(ED$16=" ",ED$16=0)," ",SUM(EE50:EP50)) ->  | EE50: =IF(EE46=" "," ",$BQ$6*HLOOKUP($ED$15,Līmeņatzīmes!$B$6:$AI$7,2,FALSE)) ->  | EF50: =IF(EF46=" "," ",$BQ$6*HLOOKUP($ED$15,Līmeņatzīmes!$B$6:$AI$7,2,FALSE)) ->  | EG50: =IF(EG46=" "," ",$BQ$6*HLOOKUP($ED$15,Līmeņatzīmes!$B$6:$AI$7,2,FALSE)) ->  | EH50: =IF(EH46=" "," ",$BQ$6*HLOOKUP($ED$15,Līmeņatzīmes!$B$6:$AI$7,2,FALSE)) ->  | EI50: =IF(EI46=" "," ",$BQ$6*HLOOKUP($ED$15,Līmeņatzīmes!$B$6:$AI$7,2,FALSE)) ->  | EJ50: =IF(EJ46=" "," ",$BQ$6*HLOOKUP($ED$15,Līmeņatzīmes!$B$6:$AI$7,2,FALSE)) ->  | EK50: =IF(EK46=" "," ",$BQ$6*HLOOKUP($ED$15,Līmeņatzīmes!$B$6:$AI$7,2,FALSE)) ->  | EL50: =IF(EL46=" "," ",$BQ$6*HLOOKUP($ED$15,Līmeņatzīmes!$B$6:$AI$7,2,FALSE)) ->  | EM50: =IF(EM46=" "," ",$BQ$6*HLOOKUP($ED$15,Līmeņatzīmes!$B$6:$AI$7,2,FALSE)) ->  | EN50: =IF(EN46=" "," ",$BQ$6*HLOOKUP($ED$15,Līmeņatzīmes!$B$6:$AI$7,2,FALSE)) ->  | EO50: =IF(EO46=" "," ",$BQ$6*HLOOKUP($ED$15,Līmeņatzīmes!$B$6:$AI$7,2,FALSE)) ->  | EP50: =IF(EP46=" "," ",$BQ$6*HLOOKUP($ED$15,Līmeņatzīmes!$B$6:$AI$7,2,FALSE)) ->  | EQ50: =IF(OR(EQ$16=" ",EQ$16=0)," ",SUM(ER50:FC50)) ->  | ER50: =IF(ER46=" "," ",$BQ$6*HLOOKUP($EQ$15,Līmeņatzīmes!$B$6:$AI$7,2,FALSE)) ->  | ES50: =IF(ES46=" "," ",$BQ$6*HLOOKUP($EQ$15,Līmeņatzīmes!$B$6:$AI$7,2,FALSE)) ->  | ET50: =IF(ET46=" "," ",$BQ$6*HLOOKUP($EQ$15,Līmeņatzīmes!$B$6:$AI$7,2,FALSE)) ->  | EU50: =IF(EU46=" "," ",$BQ$6*HLOOKUP($EQ$15,Līmeņatzīmes!$B$6:$AI$7,2,FALSE)) ->  | EV50: =IF(EV46=" "," ",$BQ$6*HLOOKUP($EQ$15,Līmeņatzīmes!$B$6:$AI$7,2,FALSE)) ->  | EW50: =IF(EW46=" "," ",$BQ$6*HLOOKUP($EQ$15,Līmeņatzīmes!$B$6:$AI$7,2,FALSE)) ->  | EX50: =IF(EX46=" "," ",$BQ$6*HLOOKUP($EQ$15,Līmeņatzīmes!$B$6:$AI$7,2,FALSE)) ->  | EY50: =IF(EY46=" "," ",$BQ$6*HLOOKUP($EQ$15,Līmeņatzīmes!$B$6:$AI$7,2,FALSE)) ->  | EZ50: =IF(EZ46=" "," ",$BQ$6*HLOOKUP($EQ$15,Līmeņatzīmes!$B$6:$AI$7,2,FALSE)) ->  | FA50: =IF(FA46=" "," ",$BQ$6*HLOOKUP($EQ$15,Līmeņatzīmes!$B$6:$AI$7,2,FALSE)) ->  | FB50: =IF(FB46=" "," ",$BQ$6*HLOOKUP($EQ$15,Līmeņatzīmes!$B$6:$AI$7,2,FALSE)) ->  | FC50: =IF(FC46=" "," ",$BQ$6*HLOOKUP($EQ$15,Līmeņatzīmes!$B$6:$AI$7,2,FALSE)) ->  | FD50: =IF(OR(FD$16=" ",FD$16=0)," ",SUM(FE50:FP50)) ->  | FE50: =IF(FE46=" "," ",$BQ$6*HLOOKUP($FD$15,Līmeņatzīmes!$B$6:$AI$7,2,FALSE)) ->  | FF50: =IF(FF46=" "," ",$BQ$6*HLOOKUP($FD$15,Līmeņatzīmes!$B$6:$AI$7,2,FALSE)) ->  | FG50: =IF(FG46=" "," ",$BQ$6*HLOOKUP($FD$15,Līmeņatzīmes!$B$6:$AI$7,2,FALSE)) ->  | FH50: =IF(FH46=" "," ",$BQ$6*HLOOKUP($FD$15,Līmeņatzīmes!$B$6:$AI$7,2,FALSE)) ->  | FI50: =IF(FI46=" "," ",$BQ$6*HLOOKUP($FD$15,Līmeņatzīmes!$B$6:$AI$7,2,FALSE)) ->  | FJ50: =IF(FJ46=" "," ",$BQ$6*HLOOKUP($FD$15,Līmeņatzīmes!$B$6:$AI$7,2,FALSE)) ->  | FK50: =IF(FK46=" "," ",$BQ$6*HLOOKUP($FD$15,Līmeņatzīmes!$B$6:$AI$7,2,FALSE)) ->  | FL50: =IF(FL46=" "," ",$BQ$6*HLOOKUP($FD$15,Līmeņatzīmes!$B$6:$AI$7,2,FALSE)) ->  | FM50: =IF(FM46=" "," ",$BQ$6*HLOOKUP($FD$15,Līmeņatzīmes!$B$6:$AI$7,2,FALSE)) ->  | FN50: =IF(FN46=" "," ",$BQ$6*HLOOKUP($FD$15,Līmeņatzīmes!$B$6:$AI$7,2,FALSE)) ->  | FO50: =IF(FO46=" "," ",$BQ$6*HLOOKUP($FD$15,Līmeņatzīmes!$B$6:$AI$7,2,FALSE)) ->  | FP50: =IF(FP46=" "," ",$BQ$6*HLOOKUP($FD$15,Līmeņatzīmes!$B$6:$AI$7,2,FALSE)) ->  | FQ50: =IF(OR(FQ$16=" ",FQ$16=0)," ",SUM(FR50:GC50)) ->  | FR50: =IF(FR46=" "," ",$BQ$6*HLOOKUP($FQ$15,Līmeņatzīmes!$B$6:$AI$7,2,FALSE)) ->  | FS50: =IF(FS46=" "," ",$BQ$6*HLOOKUP($FQ$15,Līmeņatzīmes!$B$6:$AI$7,2,FALSE)) ->  | FT50: =IF(FT46=" "," ",$BQ$6*HLOOKUP($FQ$15,Līmeņatzīmes!$B$6:$AI$7,2,FALSE)) ->  | FU50: =IF(FU46=" "," ",$BQ$6*HLOOKUP($FQ$15,Līmeņatzīmes!$B$6:$AI$7,2,FALSE)) ->  | FV50: =IF(FV46=" "," ",$BQ$6*HLOOKUP($FQ$15,Līmeņatzīmes!$B$6:$AI$7,2,FALSE)) ->  | FW50: =IF(FW46=" "," ",$BQ$6*HLOOKUP($FQ$15,Līmeņatzīmes!$B$6:$AI$7,2,FALSE)) ->  | FX50: =IF(FX46=" "," ",$BQ$6*HLOOKUP($FQ$15,Līmeņatzīmes!$B$6:$AI$7,2,FALSE)) ->  | FY50: =IF(FY46=" "," ",$BQ$6*HLOOKUP($FQ$15,Līmeņatzīmes!$B$6:$AI$7,2,FALSE)) ->  | FZ50: =IF(FZ46=" "," ",$BQ$6*HLOOKUP($FQ$15,Līmeņatzīmes!$B$6:$AI$7,2,FALSE)) ->  | GA50: =IF(GA46=" "," ",$BQ$6*HLOOKUP($FQ$15,Līmeņatzīmes!$B$6:$AI$7,2,FALSE)) ->  | GB50: =IF(GB46=" "," ",$BQ$6*HLOOKUP($FQ$15,Līmeņatzīmes!$B$6:$AI$7,2,FALSE)) ->  | GC50: =IF(GC46=" "," ",$BQ$6*HLOOKUP($FQ$15,Līmeņatzīmes!$B$6:$AI$7,2,FALSE)) ->  | GD50: =IF(OR(GD$16=" ",GD$16=0)," ",SUM(GE50:GP50)) ->  | GE50: =IF(GE46=" "," ",$BQ$6*HLOOKUP($GD$15,Līmeņatzīmes!$B$6:$AI$7,2,FALSE)) ->  | GF50: =IF(GF46=" "," ",$BQ$6*HLOOKUP($GD$15,Līmeņatzīmes!$B$6:$AI$7,2,FALSE)) ->  | GG50: =IF(GG46=" "," ",$BQ$6*HLOOKUP($GD$15,Līmeņatzīmes!$B$6:$AI$7,2,FALSE)) ->  | GH50: =IF(GH46=" "," ",$BQ$6*HLOOKUP($GD$15,Līmeņatzīmes!$B$6:$AI$7,2,FALSE)) ->  | GI50: =IF(GI46=" "," ",$BQ$6*HLOOKUP($GD$15,Līmeņatzīmes!$B$6:$AI$7,2,FALSE)) ->  | GJ50: =IF(GJ46=" "," ",$BQ$6*HLOOKUP($GD$15,Līmeņatzīmes!$B$6:$AI$7,2,FALSE)) ->  | GK50: =IF(GK46=" "," ",$BQ$6*HLOOKUP($GD$15,Līmeņatzīmes!$B$6:$AI$7,2,FALSE)) ->  | GL50: =IF(GL46=" "," ",$BQ$6*HLOOKUP($GD$15,Līmeņatzīmes!$B$6:$AI$7,2,FALSE)) ->  | GM50: =IF(GM46=" "," ",$BQ$6*HLOOKUP($GD$15,Līmeņatzīmes!$B$6:$AI$7,2,FALSE)) ->  | GN50: =IF(GN46=" "," ",$BQ$6*HLOOKUP($GD$15,Līmeņatzīmes!$B$6:$AI$7,2,FALSE)) ->  | GO50: =IF(GO46=" "," ",$BQ$6*HLOOKUP($GD$15,Līmeņatzīmes!$B$6:$AI$7,2,FALSE)) ->  | GP50: =IF(GP46=" "," ",$BQ$6*HLOOKUP($GD$15,Līmeņatzīmes!$B$6:$AI$7,2,FALSE)) ->  | GQ50: =IF(OR(GQ$16=" ",GQ$16=0)," ",SUM(GR50:HC50)) ->  | GR50: =IF(GR46=" "," ",$BQ$6*HLOOKUP($GQ$15,Līmeņatzīmes!$B$6:$AI$7,2,FALSE)) ->  | GS50: =IF(GS46=" "," ",$BQ$6*HLOOKUP($GQ$15,Līmeņatzīmes!$B$6:$AI$7,2,FALSE)) ->  | GT50: =IF(GT46=" "," ",$BQ$6*HLOOKUP($GQ$15,Līmeņatzīmes!$B$6:$AI$7,2,FALSE)) ->  | GU50: =IF(GU46=" "," ",$BQ$6*HLOOKUP($GQ$15,Līmeņatzīmes!$B$6:$AI$7,2,FALSE)) ->  | GV50: =IF(GV46=" "," ",$BQ$6*HLOOKUP($GQ$15,Līmeņatzīmes!$B$6:$AI$7,2,FALSE)) ->  | GW50: =IF(GW46=" "," ",$BQ$6*HLOOKUP($GQ$15,Līmeņatzīmes!$B$6:$AI$7,2,FALSE)) ->  | GX50: =IF(GX46=" "," ",$BQ$6*HLOOKUP($GQ$15,Līmeņatzīmes!$B$6:$AI$7,2,FALSE)) ->  | GY50: =IF(GY46=" "," ",$BQ$6*HLOOKUP($GQ$15,Līmeņatzīmes!$B$6:$AI$7,2,FALSE)) ->  | GZ50: =IF(GZ46=" "," ",$BQ$6*HLOOKUP($GQ$15,Līmeņatzīmes!$B$6:$AI$7,2,FALSE)) ->  | HA50: =IF(HA46=" "," ",$BQ$6*HLOOKUP($GQ$15,Līmeņatzīmes!$B$6:$AI$7,2,FALSE)) ->  | HB50: =IF(HB46=" "," ",$BQ$6*HLOOKUP($GQ$15,Līmeņatzīmes!$B$6:$AI$7,2,FALSE)) ->  | HC50: =IF(HC46=" "," ",$BQ$6*HLOOKUP($GQ$15,Līmeņatzīmes!$B$6:$AI$7,2,FALSE)) ->  | HD50: =IF(OR(HD$16=" ",HD$16=0)," ",SUM(HE50:HP50)) ->  | HE50: =IF(HE46=" "," ",$BQ$6*HLOOKUP($HD$15,Līmeņatzīmes!$B$6:$AI$7,2,FALSE)) ->  | HF50: =IF(HF46=" "," ",$BQ$6*HLOOKUP($HD$15,Līmeņatzīmes!$B$6:$AI$7,2,FALSE)) ->  | HG50: =IF(HG46=" "," ",$BQ$6*HLOOKUP($HD$15,Līmeņatzīmes!$B$6:$AI$7,2,FALSE)) ->  | HH50: =IF(HH46=" "," ",$BQ$6*HLOOKUP($HD$15,Līmeņatzīmes!$B$6:$AI$7,2,FALSE)) ->  | HI50: =IF(HI46=" "," ",$BQ$6*HLOOKUP($HD$15,Līmeņatzīmes!$B$6:$AI$7,2,FALSE)) ->  | HJ50: =IF(HJ46=" "," ",$BQ$6*HLOOKUP($HD$15,Līmeņatzīmes!$B$6:$AI$7,2,FALSE)) ->  | HK50: =IF(HK46=" "," ",$BQ$6*HLOOKUP($HD$15,Līmeņatzīmes!$B$6:$AI$7,2,FALSE)) ->  | HL50: =IF(HL46=" "," ",$BQ$6*HLOOKUP($HD$15,Līmeņatzīmes!$B$6:$AI$7,2,FALSE)) ->  | HM50: =IF(HM46=" "," ",$BQ$6*HLOOKUP($HD$15,Līmeņatzīmes!$B$6:$AI$7,2,FALSE)) ->  | HN50: =IF(HN46=" "," ",$BQ$6*HLOOKUP($HD$15,Līmeņatzīmes!$B$6:$AI$7,2,FALSE)) ->  | HO50: =IF(HO46=" "," ",$BQ$6*HLOOKUP($HD$15,Līmeņatzīmes!$B$6:$AI$7,2,FALSE)) ->  | HP50: =IF(HP46=" "," ",$BQ$6*HLOOKUP($HD$15,Līmeņatzīmes!$B$6:$AI$7,2,FALSE)) ->  | HQ50: =IF(OR(HQ$16=" ",HQ$16=0)," ",SUM(HR50:IC50)) ->  | HR50: =IF(HR46=" "," ",$BQ$6*HLOOKUP($HQ$15,Līmeņatzīmes!$B$6:$AI$7,2,FALSE)) ->  | HS50: =IF(HS46=" "," ",$BQ$6*HLOOKUP($HQ$15,Līmeņatzīmes!$B$6:$AI$7,2,FALSE)) ->  | HT50: =IF(HT46=" "," ",$BQ$6*HLOOKUP($HQ$15,Līmeņatzīmes!$B$6:$AI$7,2,FALSE)) ->  | HU50: =IF(HU46=" "," ",$BQ$6*HLOOKUP($HQ$15,Līmeņatzīmes!$B$6:$AI$7,2,FALSE)) ->  | HV50: =IF(HV46=" "," ",$BQ$6*HLOOKUP($HQ$15,Līmeņatzīmes!$B$6:$AI$7,2,FALSE)) ->  | HW50: =IF(HW46=" "," ",$BQ$6*HLOOKUP($HQ$15,Līmeņatzīmes!$B$6:$AI$7,2,FALSE)) ->  | HX50: =IF(HX46=" "," ",$BQ$6*HLOOKUP($HQ$15,Līmeņatzīmes!$B$6:$AI$7,2,FALSE)) ->  | HY50: =IF(HY46=" "," ",$BQ$6*HLOOKUP($HQ$15,Līmeņatzīmes!$B$6:$AI$7,2,FALSE)) ->  | HZ50: =IF(HZ46=" "," ",$BQ$6*HLOOKUP($HQ$15,Līmeņatzīmes!$B$6:$AI$7,2,FALSE)) ->  | IA50: =IF(IA46=" "," ",$BQ$6*HLOOKUP($HQ$15,Līmeņatzīmes!$B$6:$AI$7,2,FALSE)) ->  | IB50: =IF(IB46=" "," ",$BQ$6*HLOOKUP($HQ$15,Līmeņatzīmes!$B$6:$AI$7,2,FALSE)) ->  | IC50: =IF(IC46=" "," ",$BQ$6*HLOOKUP($HQ$15,Līmeņatzīmes!$B$6:$AI$7,2,FALSE)) ->  | ID50: =IF(OR(ID$16=" ",ID$16=0)," ",SUM(IE50:IP50)) ->  | IE50: =IF(IE46=" "," ",$BQ$6*HLOOKUP($ID$15,Līmeņatzīmes!$B$6:$AI$7,2,FALSE)) ->  | IF50: =IF(IF46=" "," ",$BQ$6*HLOOKUP($ID$15,Līmeņatzīmes!$B$6:$AI$7,2,FALSE)) ->  | IG50: =IF(IG46=" "," ",$BQ$6*HLOOKUP($ID$15,Līmeņatzīmes!$B$6:$AI$7,2,FALSE)) ->  | IH50: =IF(IH46=" "," ",$BQ$6*HLOOKUP($ID$15,Līmeņatzīmes!$B$6:$AI$7,2,FALSE)) ->  | II50: =IF(II46=" "," ",$BQ$6*HLOOKUP($ID$15,Līmeņatzīmes!$B$6:$AI$7,2,FALSE)) ->  | IJ50: =IF(IJ46=" "," ",$BQ$6*HLOOKUP($ID$15,Līmeņatzīmes!$B$6:$AI$7,2,FALSE)) ->  | IK50: =IF(IK46=" "," ",$BQ$6*HLOOKUP($ID$15,Līmeņatzīmes!$B$6:$AI$7,2,FALSE)) ->  | IL50: =IF(IL46=" "," ",$BQ$6*HLOOKUP($ID$15,Līmeņatzīmes!$B$6:$AI$7,2,FALSE)) ->  | IM50: =IF(IM46=" "," ",$BQ$6*HLOOKUP($ID$15,Līmeņatzīmes!$B$6:$AI$7,2,FALSE)) ->  | IN50: =IF(IN46=" "," ",$BQ$6*HLOOKUP($ID$15,Līmeņatzīmes!$B$6:$AI$7,2,FALSE)) ->  | IO50: =IF(IO46=" "," ",$BQ$6*HLOOKUP($ID$15,Līmeņatzīmes!$B$6:$AI$7,2,FALSE)) ->  | IP50: =IF(IP46=" "," ",$BQ$6*HLOOKUP($ID$15,Līmeņatzīmes!$B$6:$AI$7,2,FALSE)) ->  | IQ50: =IF(OR(IQ$16=" ",IQ$16=0)," ",SUM(IR50:JC50)) ->  | IR50: =IF(IR46=" "," ",$BQ$6*HLOOKUP($IQ$15,Līmeņatzīmes!$B$6:$AI$7,2,FALSE)) ->  | IS50: =IF(IS46=" "," ",$BQ$6*HLOOKUP($IQ$15,Līmeņatzīmes!$B$6:$AI$7,2,FALSE)) ->  | IT50: =IF(IT46=" "," ",$BQ$6*HLOOKUP($IQ$15,Līmeņatzīmes!$B$6:$AI$7,2,FALSE)) ->  | IU50: =IF(IU46=" "," ",$BQ$6*HLOOKUP($IQ$15,Līmeņatzīmes!$B$6:$AI$7,2,FALSE)) ->  | IV50: =IF(IV46=" "," ",$BQ$6*HLOOKUP($IQ$15,Līmeņatzīmes!$B$6:$AI$7,2,FALSE)) ->  | IW50: =IF(IW46=" "," ",$BQ$6*HLOOKUP($IQ$15,Līmeņatzīmes!$B$6:$AI$7,2,FALSE)) ->  | IX50: =IF(IX46=" "," ",$BQ$6*HLOOKUP($IQ$15,Līmeņatzīmes!$B$6:$AI$7,2,FALSE)) ->  | IY50: =IF(IY46=" "," ",$BQ$6*HLOOKUP($IQ$15,Līmeņatzīmes!$B$6:$AI$7,2,FALSE)) ->  | IZ50: =IF(IZ46=" "," ",$BQ$6*HLOOKUP($IQ$15,Līmeņatzīmes!$B$6:$AI$7,2,FALSE)) ->  | JA50: =IF(JA46=" "," ",$BQ$6*HLOOKUP($IQ$15,Līmeņatzīmes!$B$6:$AI$7,2,FALSE)) ->  | JB50: =IF(JB46=" "," ",$BQ$6*HLOOKUP($IQ$15,Līmeņatzīmes!$B$6:$AI$7,2,FALSE)) ->  | JC50: =IF(JC46=" "," ",$BQ$6*HLOOKUP($IQ$15,Līmeņatzīmes!$B$6:$AI$7,2,FALSE)) ->  | JD50: =IF(OR(JD$16=" ",JD$16=0)," ",SUM(JE50:JP50)) ->  | JE50: =IF(JE46=" "," ",$BQ$6*HLOOKUP($JD$15,Līmeņatzīmes!$B$6:$AI$7,2,FALSE)) ->  | JF50: =IF(JF46=" "," ",$BQ$6*HLOOKUP($JD$15,Līmeņatzīmes!$B$6:$AI$7,2,FALSE)) ->  | JG50: =IF(JG46=" "," ",$BQ$6*HLOOKUP($JD$15,Līmeņatzīmes!$B$6:$AI$7,2,FALSE)) ->  | JH50: =IF(JH46=" "," ",$BQ$6*HLOOKUP($JD$15,Līmeņatzīmes!$B$6:$AI$7,2,FALSE)) ->  | JI50: =IF(JI46=" "," ",$BQ$6*HLOOKUP($JD$15,Līmeņatzīmes!$B$6:$AI$7,2,FALSE)) ->  | JJ50: =IF(JJ46=" "," ",$BQ$6*HLOOKUP($JD$15,Līmeņatzīmes!$B$6:$AI$7,2,FALSE)) ->  | JK50: =IF(JK46=" "," ",$BQ$6*HLOOKUP($JD$15,Līmeņatzīmes!$B$6:$AI$7,2,FALSE)) ->  | JL50: =IF(JL46=" "," ",$BQ$6*HLOOKUP($JD$15,Līmeņatzīmes!$B$6:$AI$7,2,FALSE)) ->  | JM50: =IF(JM46=" "," ",$BQ$6*HLOOKUP($JD$15,Līmeņatzīmes!$B$6:$AI$7,2,FALSE)) ->  | JN50: =IF(JN46=" "," ",$BQ$6*HLOOKUP($JD$15,Līmeņatzīmes!$B$6:$AI$7,2,FALSE)) ->  | JO50: =IF(JO46=" "," ",$BQ$6*HLOOKUP($JD$15,Līmeņatzīmes!$B$6:$AI$7,2,FALSE)) ->  | JP50: =IF(JP46=" "," ",$BQ$6*HLOOKUP($JD$15,Līmeņatzīmes!$B$6:$AI$7,2,FALSE)) ->  | JQ50: =IF(OR(JQ$16=" ",JQ$16=0)," ",SUM(JR50:KC50)) ->  | JR50: =IF(JR46=" "," ",$BQ$6*HLOOKUP($JQ$15,Līmeņatzīmes!$B$6:$AI$7,2,FALSE)) ->  | JS50: =IF(JS46=" "," ",$BQ$6*HLOOKUP($JQ$15,Līmeņatzīmes!$B$6:$AI$7,2,FALSE)) ->  | JT50: =IF(JT46=" "," ",$BQ$6*HLOOKUP($JQ$15,Līmeņatzīmes!$B$6:$AI$7,2,FALSE)) ->  | JU50: =IF(JU46=" "," ",$BQ$6*HLOOKUP($JQ$15,Līmeņatzīmes!$B$6:$AI$7,2,FALSE)) ->  | JV50: =IF(JV46=" "," ",$BQ$6*HLOOKUP($JQ$15,Līmeņatzīmes!$B$6:$AI$7,2,FALSE)) ->  | JW50: =IF(JW46=" "," ",$BQ$6*HLOOKUP($JQ$15,Līmeņatzīmes!$B$6:$AI$7,2,FALSE)) ->  | JX50: =IF(JX46=" "," ",$BQ$6*HLOOKUP($JQ$15,Līmeņatzīmes!$B$6:$AI$7,2,FALSE)) ->  | JY50: =IF(JY46=" "," ",$BQ$6*HLOOKUP($JQ$15,Līmeņatzīmes!$B$6:$AI$7,2,FALSE)) ->  | JZ50: =IF(JZ46=" "," ",$BQ$6*HLOOKUP($JQ$15,Līmeņatzīmes!$B$6:$AI$7,2,FALSE)) ->  | KA50: =IF(KA46=" "," ",$BQ$6*HLOOKUP($JQ$15,Līmeņatzīmes!$B$6:$AI$7,2,FALSE)) ->  | KB50: =IF(KB46=" "," ",$BQ$6*HLOOKUP($JQ$15,Līmeņatzīmes!$B$6:$AI$7,2,FALSE)) ->  | KC50: =IF(KC46=" "," ",$BQ$6*HLOOKUP($JQ$15,Līmeņatzīmes!$B$6:$AI$7,2,FALSE)) ->  | KD50: =IF(OR(KD$16=" ",KD$16=0)," ",SUM(KE50:KP50)) ->  | KE50: =IF(KE46=" "," ",$BQ$6*HLOOKUP($KD$15,Līmeņatzīmes!$B$6:$AI$7,2,FALSE)) ->  | KF50: =IF(KF46=" "," ",$BQ$6*HLOOKUP($KD$15,Līmeņatzīmes!$B$6:$AI$7,2,FALSE)) ->  | KG50: =IF(KG46=" "," ",$BQ$6*HLOOKUP($KD$15,Līmeņatzīmes!$B$6:$AI$7,2,FALSE)) ->  | KH50: =IF(KH46=" "," ",$BQ$6*HLOOKUP($KD$15,Līmeņatzīmes!$B$6:$AI$7,2,FALSE)) ->  | KI50: =IF(KI46=" "," ",$BQ$6*HLOOKUP($KD$15,Līmeņatzīmes!$B$6:$AI$7,2,FALSE)) ->  | KJ50: =IF(KJ46=" "," ",$BQ$6*HLOOKUP($KD$15,Līmeņatzīmes!$B$6:$AI$7,2,FALSE)) ->  | KK50: =IF(KK46=" "," ",$BQ$6*HLOOKUP($KD$15,Līmeņatzīmes!$B$6:$AI$7,2,FALSE)) ->  | KL50: =IF(KL46=" "," ",$BQ$6*HLOOKUP($KD$15,Līmeņatzīmes!$B$6:$AI$7,2,FALSE)) ->  | KM50: =IF(KM46=" "," ",$BQ$6*HLOOKUP($KD$15,Līmeņatzīmes!$B$6:$AI$7,2,FALSE)) ->  | KN50: =IF(KN46=" "," ",$BQ$6*HLOOKUP($KD$15,Līmeņatzīmes!$B$6:$AI$7,2,FALSE)) ->  | KO50: =IF(KO46=" "," ",$BQ$6*HLOOKUP($KD$15,Līmeņatzīmes!$B$6:$AI$7,2,FALSE)) ->  | KP50: =IF(KP46=" "," ",$BQ$6*HLOOKUP($KD$15,Līmeņatzīmes!$B$6:$AI$7,2,FALSE)) ->  | KQ50: =IF(OR(KQ$16=" ",KQ$16=0)," ",SUM(KR50:LC50)) ->  | KR50: =IF(KR46=" "," ",$BQ$6*HLOOKUP($KQ$15,Līmeņatzīmes!$B$6:$AI$7,2,FALSE)) ->  | KS50: =IF(KS46=" "," ",$BQ$6*HLOOKUP($KQ$15,Līmeņatzīmes!$B$6:$AI$7,2,FALSE)) ->  | KT50: =IF(KT46=" "," ",$BQ$6*HLOOKUP($KQ$15,Līmeņatzīmes!$B$6:$AI$7,2,FALSE)) ->  | KU50: =IF(KU46=" "," ",$BQ$6*HLOOKUP($KQ$15,Līmeņatzīmes!$B$6:$AI$7,2,FALSE)) ->  | KV50: =IF(KV46=" "," ",$BQ$6*HLOOKUP($KQ$15,Līmeņatzīmes!$B$6:$AI$7,2,FALSE)) ->  | KW50: =IF(KW46=" "," ",$BQ$6*HLOOKUP($KQ$15,Līmeņatzīmes!$B$6:$AI$7,2,FALSE)) ->  | KX50: =IF(KX46=" "," ",$BQ$6*HLOOKUP($KQ$15,Līmeņatzīmes!$B$6:$AI$7,2,FALSE)) ->  | KY50: =IF(KY46=" "," ",$BQ$6*HLOOKUP($KQ$15,Līmeņatzīmes!$B$6:$AI$7,2,FALSE)) ->  | KZ50: =IF(KZ46=" "," ",$BQ$6*HLOOKUP($KQ$15,Līmeņatzīmes!$B$6:$AI$7,2,FALSE)) ->  | LA50: =IF(LA46=" "," ",$BQ$6*HLOOKUP($KQ$15,Līmeņatzīmes!$B$6:$AI$7,2,FALSE)) ->  | LB50: =IF(LB46=" "," ",$BQ$6*HLOOKUP($KQ$15,Līmeņatzīmes!$B$6:$AI$7,2,FALSE)) ->  | LC50: =IF(LC46=" "," ",$BQ$6*HLOOKUP($KQ$15,Līmeņatzīmes!$B$6:$AI$7,2,FALSE)) ->  | LD50: =IF(OR(LD$16=" ",LD$16=0)," ",SUM(LE50:LP50)) ->  | LE50: =IF(LE46=" "," ",$BQ$6*HLOOKUP($LD$15,Līmeņatzīmes!$B$6:$AI$7,2,FALSE)) ->  | LF50: =IF(LF46=" "," ",$BQ$6*HLOOKUP($LD$15,Līmeņatzīmes!$B$6:$AI$7,2,FALSE)) ->  | LG50: =IF(LG46=" "," ",$BQ$6*HLOOKUP($LD$15,Līmeņatzīmes!$B$6:$AI$7,2,FALSE)) ->  | LH50: =IF(LH46=" "," ",$BQ$6*HLOOKUP($LD$15,Līmeņatzīmes!$B$6:$AI$7,2,FALSE)) ->  | LI50: =IF(LI46=" "," ",$BQ$6*HLOOKUP($LD$15,Līmeņatzīmes!$B$6:$AI$7,2,FALSE)) ->  | LJ50: =IF(LJ46=" "," ",$BQ$6*HLOOKUP($LD$15,Līmeņatzīmes!$B$6:$AI$7,2,FALSE)) ->  | LK50: =IF(LK46=" "," ",$BQ$6*HLOOKUP($LD$15,Līmeņatzīmes!$B$6:$AI$7,2,FALSE)) ->  | LL50: =IF(LL46=" "," ",$BQ$6*HLOOKUP($LD$15,Līmeņatzīmes!$B$6:$AI$7,2,FALSE)) ->  | LM50: =IF(LM46=" "," ",$BQ$6*HLOOKUP($LD$15,Līmeņatzīmes!$B$6:$AI$7,2,FALSE)) ->  | LN50: =IF(LN46=" "," ",$BQ$6*HLOOKUP($LD$15,Līmeņatzīmes!$B$6:$AI$7,2,FALSE)) ->  | LO50: =IF(LO46=" "," ",$BQ$6*HLOOKUP($LD$15,Līmeņatzīmes!$B$6:$AI$7,2,FALSE)) ->  | LP50: =IF(LP46=" "," ",$BQ$6*HLOOKUP($LD$15,Līmeņatzīmes!$B$6:$AI$7,2,FALSE)) ->  | LQ50: =IF(OR(LQ$16=" ",LQ$16=0)," ",SUM(LR50:MC50)) ->  | LR50: =IF(LR46=" "," ",$BQ$6*HLOOKUP($LQ$15,Līmeņatzīmes!$B$6:$AI$7,2,FALSE)) ->  | LS50: =IF(LS46=" "," ",$BQ$6*HLOOKUP($LQ$15,Līmeņatzīmes!$B$6:$AI$7,2,FALSE)) ->  | LT50: =IF(LT46=" "," ",$BQ$6*HLOOKUP($LQ$15,Līmeņatzīmes!$B$6:$AI$7,2,FALSE)) ->  | LU50: =IF(LU46=" "," ",$BQ$6*HLOOKUP($LQ$15,Līmeņatzīmes!$B$6:$AI$7,2,FALSE)) ->  | LV50: =IF(LV46=" "," ",$BQ$6*HLOOKUP($LQ$15,Līmeņatzīmes!$B$6:$AI$7,2,FALSE)) ->  | LW50: =IF(LW46=" "," ",$BQ$6*HLOOKUP($LQ$15,Līmeņatzīmes!$B$6:$AI$7,2,FALSE)) ->  | LX50: =IF(LX46=" "," ",$BQ$6*HLOOKUP($LQ$15,Līmeņatzīmes!$B$6:$AI$7,2,FALSE)) ->  | LY50: =IF(LY46=" "," ",$BQ$6*HLOOKUP($LQ$15,Līmeņatzīmes!$B$6:$AI$7,2,FALSE)) ->  | LZ50: =IF(LZ46=" "," ",$BQ$6*HLOOKUP($LQ$15,Līmeņatzīmes!$B$6:$AI$7,2,FALSE)) ->  | MA50: =IF(MA46=" "," ",$BQ$6*HLOOKUP($LQ$15,Līmeņatzīmes!$B$6:$AI$7,2,FALSE)) ->  | MB50: =IF(MB46=" "," ",$BQ$6*HLOOKUP($LQ$15,Līmeņatzīmes!$B$6:$AI$7,2,FALSE)) ->  | MC50: =IF(MC46=" "," ",$BQ$6*HLOOKUP($LQ$15,Līmeņatzīmes!$B$6:$AI$7,2,FALSE)) ->  | MD50: =IF(OR(MD$16=" ",MD$16=0)," ",SUM(ME50:MP50)) ->  | ME50: =IF(ME46=" "," ",$BQ$6*HLOOKUP($MD$15,Līmeņatzīmes!$B$6:$AI$7,2,FALSE)) ->  | MF50: =IF(MF46=" "," ",$BQ$6*HLOOKUP($MD$15,Līmeņatzīmes!$B$6:$AI$7,2,FALSE)) ->  | MG50: =IF(MG46=" "," ",$BQ$6*HLOOKUP($MD$15,Līmeņatzīmes!$B$6:$AI$7,2,FALSE)) ->  | MH50: =IF(MH46=" "," ",$BQ$6*HLOOKUP($MD$15,Līmeņatzīmes!$B$6:$AI$7,2,FALSE)) ->  | MI50: =IF(MI46=" "," ",$BQ$6*HLOOKUP($MD$15,Līmeņatzīmes!$B$6:$AI$7,2,FALSE)) ->  | MJ50: =IF(MJ46=" "," ",$BQ$6*HLOOKUP($MD$15,Līmeņatzīmes!$B$6:$AI$7,2,FALSE)) ->  | MK50: =IF(MK46=" "," ",$BQ$6*HLOOKUP($MD$15,Līmeņatzīmes!$B$6:$AI$7,2,FALSE)) ->  | ML50: =IF(ML46=" "," ",$BQ$6*HLOOKUP($MD$15,Līmeņatzīmes!$B$6:$AI$7,2,FALSE)) ->  | MM50: =IF(MM46=" "," ",$BQ$6*HLOOKUP($MD$15,Līmeņatzīmes!$B$6:$AI$7,2,FALSE)) ->  | MN50: =IF(MN46=" "," ",$BQ$6*HLOOKUP($MD$15,Līmeņatzīmes!$B$6:$AI$7,2,FALSE)) ->  | MO50: =IF(MO46=" "," ",$BQ$6*HLOOKUP($MD$15,Līmeņatzīmes!$B$6:$AI$7,2,FALSE)) ->  | MP50: =IF(MP46=" "," ",$BQ$6*HLOOKUP($MD$15,Līmeņatzīmes!$B$6:$AI$7,2,FALSE)) ->  | MQ50: =IF(OR(MQ$16=" ",MQ$16=0)," ",SUM(MR50:NC50)) ->  | MR50: =IF(MR46=" "," ",$BQ$6*HLOOKUP($MQ$15,Līmeņatzīmes!$B$6:$AI$7,2,FALSE)) ->  | MS50: =IF(MS46=" "," ",$BQ$6*HLOOKUP($MQ$15,Līmeņatzīmes!$B$6:$AI$7,2,FALSE)) ->  | MT50: =IF(MT46=" "," ",$BQ$6*HLOOKUP($MQ$15,Līmeņatzīmes!$B$6:$AI$7,2,FALSE)) ->  | MU50: =IF(MU46=" "," ",$BQ$6*HLOOKUP($MQ$15,Līmeņatzīmes!$B$6:$AI$7,2,FALSE)) ->  | MV50: =IF(MV46=" "," ",$BQ$6*HLOOKUP($MQ$15,Līmeņatzīmes!$B$6:$AI$7,2,FALSE)) ->  | MW50: =IF(MW46=" "," ",$BQ$6*HLOOKUP($MQ$15,Līmeņatzīmes!$B$6:$AI$7,2,FALSE)) ->  | MX50: =IF(MX46=" "," ",$BQ$6*HLOOKUP($MQ$15,Līmeņatzīmes!$B$6:$AI$7,2,FALSE)) ->  | MY50: =IF(MY46=" "," ",$BQ$6*HLOOKUP($MQ$15,Līmeņatzīmes!$B$6:$AI$7,2,FALSE)) ->  | MZ50: =IF(MZ46=" "," ",$BQ$6*HLOOKUP($MQ$15,Līmeņatzīmes!$B$6:$AI$7,2,FALSE)) ->  | NA50: =IF(NA46=" "," ",$BQ$6*HLOOKUP($MQ$15,Līmeņatzīmes!$B$6:$AI$7,2,FALSE)) ->  | NB50: =IF(NB46=" "," ",$BQ$6*HLOOKUP($MQ$15,Līmeņatzīmes!$B$6:$AI$7,2,FALSE)) ->  | NC50: =IF(NC46=" "," ",$BQ$6*HLOOKUP($MQ$15,Līmeņatzīmes!$B$6:$AI$7,2,FALSE)) ->  | ND50: =IF(OR(ND$16=" ",ND$16=0)," ",SUM(NE50:NP50)) ->  | NE50: =IF(NE46=" "," ",$BQ$6*HLOOKUP($ND$15,Līmeņatzīmes!$B$6:$AI$7,2,FALSE)) ->  | NF50: =IF(NF46=" "," ",$BQ$6*HLOOKUP($ND$15,Līmeņatzīmes!$B$6:$AI$7,2,FALSE)) ->  | NG50: =IF(NG46=" "," ",$BQ$6*HLOOKUP($ND$15,Līmeņatzīmes!$B$6:$AI$7,2,FALSE)) ->  | NH50: =IF(NH46=" "," ",$BQ$6*HLOOKUP($ND$15,Līmeņatzīmes!$B$6:$AI$7,2,FALSE)) ->  | NI50: =IF(NI46=" "," ",$BQ$6*HLOOKUP($ND$15,Līmeņatzīmes!$B$6:$AI$7,2,FALSE)) ->  | NJ50: =IF(NJ46=" "," ",$BQ$6*HLOOKUP($ND$15,Līmeņatzīmes!$B$6:$AI$7,2,FALSE)) ->  | NK50: =IF(NK46=" "," ",$BQ$6*HLOOKUP($ND$15,Līmeņatzīmes!$B$6:$AI$7,2,FALSE)) ->  | NL50: =IF(NL46=" "," ",$BQ$6*HLOOKUP($ND$15,Līmeņatzīmes!$B$6:$AI$7,2,FALSE)) ->  | NM50: =IF(NM46=" "," ",$BQ$6*HLOOKUP($ND$15,Līmeņatzīmes!$B$6:$AI$7,2,FALSE)) ->  | NN50: =IF(NN46=" "," ",$BQ$6*HLOOKUP($ND$15,Līmeņatzīmes!$B$6:$AI$7,2,FALSE)) ->  | NO50: =IF(NO46=" "," ",$BQ$6*HLOOKUP($ND$15,Līmeņatzīmes!$B$6:$AI$7,2,FALSE)) ->  | NP50: =IF(NP46=" "," ",$BQ$6*HLOOKUP($ND$15,Līmeņatzīmes!$B$6:$AI$7,2,FALSE)) ->  | NQ50: =IF(OR(NQ$16=" ",NQ$16=0)," ",SUM(NR50:OC50)) ->  | NR50: =IF(NR46=" "," ",$BQ$6*HLOOKUP($NQ$15,Līmeņatzīmes!$B$6:$AI$7,2,FALSE)) ->  | NS50: =IF(NS46=" "," ",$BQ$6*HLOOKUP($NQ$15,Līmeņatzīmes!$B$6:$AI$7,2,FALSE)) ->  | NT50: =IF(NT46=" "," ",$BQ$6*HLOOKUP($NQ$15,Līmeņatzīmes!$B$6:$AI$7,2,FALSE)) ->  | NU50: =IF(NU46=" "," ",$BQ$6*HLOOKUP($NQ$15,Līmeņatzīmes!$B$6:$AI$7,2,FALSE)) ->  | NV50: =IF(NV46=" "," ",$BQ$6*HLOOKUP($NQ$15,Līmeņatzīmes!$B$6:$AI$7,2,FALSE)) ->  | NW50: =IF(NW46=" "," ",$BQ$6*HLOOKUP($NQ$15,Līmeņatzīmes!$B$6:$AI$7,2,FALSE)) ->  | NX50: =IF(NX46=" "," ",$BQ$6*HLOOKUP($NQ$15,Līmeņatzīmes!$B$6:$AI$7,2,FALSE)) ->  | NY50: =IF(NY46=" "," ",$BQ$6*HLOOKUP($NQ$15,Līmeņatzīmes!$B$6:$AI$7,2,FALSE)) ->  | NZ50: =IF(NZ46=" "," ",$BQ$6*HLOOKUP($NQ$15,Līmeņatzīmes!$B$6:$AI$7,2,FALSE)) ->  | OA50: =IF(OA46=" "," ",$BQ$6*HLOOKUP($NQ$15,Līmeņatzīmes!$B$6:$AI$7,2,FALSE)) ->  | OB50: =IF(OB46=" "," ",$BQ$6*HLOOKUP($NQ$15,Līmeņatzīmes!$B$6:$AI$7,2,FALSE)) ->  | OC50: =IF(OC46=" "," ",$BQ$6*HLOOKUP($NQ$15,Līmeņatzīmes!$B$6:$AI$7,2,FALSE)) ->  | OD50: =IF(OR(OD$16=" ",OD$16=0)," ",SUM(OE50:OP50)) ->  | OE50: =IF(OE46=" "," ",$BQ$6*HLOOKUP($OD$15,Līmeņatzīmes!$B$6:$AI$7,2,FALSE)) ->  | OF50: =IF(OF46=" "," ",$BQ$6*HLOOKUP($OD$15,Līmeņatzīmes!$B$6:$AI$7,2,FALSE)) ->  | OG50: =IF(OG46=" "," ",$BQ$6*HLOOKUP($OD$15,Līmeņatzīmes!$B$6:$AI$7,2,FALSE)) ->  | OH50: =IF(OH46=" "," ",$BQ$6*HLOOKUP($OD$15,Līmeņatzīmes!$B$6:$AI$7,2,FALSE)) ->  | OI50: =IF(OI46=" "," ",$BQ$6*HLOOKUP($OD$15,Līmeņatzīmes!$B$6:$AI$7,2,FALSE)) ->  | OJ50: =IF(OJ46=" "," ",$BQ$6*HLOOKUP($OD$15,Līmeņatzīmes!$B$6:$AI$7,2,FALSE)) ->  | OK50: =IF(OK46=" "," ",$BQ$6*HLOOKUP($OD$15,Līmeņatzīmes!$B$6:$AI$7,2,FALSE)) ->  | OL50: =IF(OL46=" "," ",$BQ$6*HLOOKUP($OD$15,Līmeņatzīmes!$B$6:$AI$7,2,FALSE)) ->  | OM50: =IF(OM46=" "," ",$BQ$6*HLOOKUP($OD$15,Līmeņatzīmes!$B$6:$AI$7,2,FALSE)) ->  | ON50: =IF(ON46=" "," ",$BQ$6*HLOOKUP($OD$15,Līmeņatzīmes!$B$6:$AI$7,2,FALSE)) ->  | OO50: =IF(OO46=" "," ",$BQ$6*HLOOKUP($OD$15,Līmeņatzīmes!$B$6:$AI$7,2,FALSE)) ->  | OP50: =IF(OP46=" "," ",$BQ$6*HLOOKUP($OD$15,Līmeņatzīmes!$B$6:$AI$7,2,FALSE)) ->  | OQ50: =IF(OR(OQ$16=" ",OQ$16=0)," ",SUM(OR50:PC50)) ->  | OR50: =IF(OR46=" "," ",$BQ$6*HLOOKUP($OQ$15,Līmeņatzīmes!$B$6:$AI$7,2,FALSE)) ->  | OS50: =IF(OS46=" "," ",$BQ$6*HLOOKUP($OQ$15,Līmeņatzīmes!$B$6:$AI$7,2,FALSE)) ->  | OT50: =IF(OT46=" "," ",$BQ$6*HLOOKUP($OQ$15,Līmeņatzīmes!$B$6:$AI$7,2,FALSE)) ->  | OU50: =IF(OU46=" "," ",$BQ$6*HLOOKUP($OQ$15,Līmeņatzīmes!$B$6:$AI$7,2,FALSE)) ->  | OV50: =IF(OV46=" "," ",$BQ$6*HLOOKUP($OQ$15,Līmeņatzīmes!$B$6:$AI$7,2,FALSE)) ->  | OW50: =IF(OW46=" "," ",$BQ$6*HLOOKUP($OQ$15,Līmeņatzīmes!$B$6:$AI$7,2,FALSE)) ->  | OX50: =IF(OX46=" "," ",$BQ$6*HLOOKUP($OQ$15,Līmeņatzīmes!$B$6:$AI$7,2,FALSE)) ->  | OY50: =IF(OY46=" "," ",$BQ$6*HLOOKUP($OQ$15,Līmeņatzīmes!$B$6:$AI$7,2,FALSE)) ->  | OZ50: =IF(OZ46=" "," ",$BQ$6*HLOOKUP($OQ$15,Līmeņatzīmes!$B$6:$AI$7,2,FALSE)) ->  | PA50: =IF(PA46=" "," ",$BQ$6*HLOOKUP($OQ$15,Līmeņatzīmes!$B$6:$AI$7,2,FALSE)) ->  | PB50: =IF(PB46=" "," ",$BQ$6*HLOOKUP($OQ$15,Līmeņatzīmes!$B$6:$AI$7,2,FALSE)) ->  | PC50: =IF(PC46=" "," ",$BQ$6*HLOOKUP($OQ$15,Līmeņatzīmes!$B$6:$AI$7,2,FALSE)) ->  | PD50: =IF(OR(PD$16=" ",PD$16=0)," ",SUM(PE50:PP50)) ->  | PE50: =IF(PE46=" "," ",$BQ$6*HLOOKUP($PD$15,Līmeņatzīmes!$B$6:$AI$7,2,FALSE)) ->  | PF50: =IF(PF46=" "," ",$BQ$6*HLOOKUP($PD$15,Līmeņatzīmes!$B$6:$AI$7,2,FALSE)) ->  | PG50: =IF(PG46=" "," ",$BQ$6*HLOOKUP($PD$15,Līmeņatzīmes!$B$6:$AI$7,2,FALSE)) ->  | PH50: =IF(PH46=" "," ",$BQ$6*HLOOKUP($PD$15,Līmeņatzīmes!$B$6:$AI$7,2,FALSE)) ->  | PI50: =IF(PI46=" "," ",$BQ$6*HLOOKUP($PD$15,Līmeņatzīmes!$B$6:$AI$7,2,FALSE)) ->  | PJ50: =IF(PJ46=" "," ",$BQ$6*HLOOKUP($PD$15,Līmeņatzīmes!$B$6:$AI$7,2,FALSE)) ->  | PK50: =IF(PK46=" "," ",$BQ$6*HLOOKUP($PD$15,Līmeņatzīmes!$B$6:$AI$7,2,FALSE)) ->  | PL50: =IF(PL46=" "," ",$BQ$6*HLOOKUP($PD$15,Līmeņatzīmes!$B$6:$AI$7,2,FALSE)) ->  | PM50: =IF(PM46=" "," ",$BQ$6*HLOOKUP($PD$15,Līmeņatzīmes!$B$6:$AI$7,2,FALSE)) ->  | PN50: =IF(PN46=" "," ",$BQ$6*HLOOKUP($PD$15,Līmeņatzīmes!$B$6:$AI$7,2,FALSE)) ->  | PO50: =IF(PO46=" "," ",$BQ$6*HLOOKUP($PD$15,Līmeņatzīmes!$B$6:$AI$7,2,FALSE)) ->  | PP50: =IF(PP46=" "," ",$BQ$6*HLOOKUP($PD$15,Līmeņatzīmes!$B$6:$AI$7,2,FALSE)) ->  | PQ50: =IF(OR(PQ$16=" ",PQ$16=0)," ",SUM(PR50:QC50)) ->  | PR50: =IF(PR46=" "," ",$BQ$6*HLOOKUP($PQ$15,Līmeņatzīmes!$B$6:$AI$7,2,FALSE)) ->  | PS50: =IF(PS46=" "," ",$BQ$6*HLOOKUP($PQ$15,Līmeņatzīmes!$B$6:$AI$7,2,FALSE)) ->  | PT50: =IF(PT46=" "," ",$BQ$6*HLOOKUP($PQ$15,Līmeņatzīmes!$B$6:$AI$7,2,FALSE)) ->  | PU50: =IF(PU46=" "," ",$BQ$6*HLOOKUP($PQ$15,Līmeņatzīmes!$B$6:$AI$7,2,FALSE)) ->  | PV50: =IF(PV46=" "," ",$BQ$6*HLOOKUP($PQ$15,Līmeņatzīmes!$B$6:$AI$7,2,FALSE)) ->  | PW50: =IF(PW46=" "," ",$BQ$6*HLOOKUP($PQ$15,Līmeņatzīmes!$B$6:$AI$7,2,FALSE)) ->  | PX50: =IF(PX46=" "," ",$BQ$6*HLOOKUP($PQ$15,Līmeņatzīmes!$B$6:$AI$7,2,FALSE)) ->  | PY50: =IF(PY46=" "," ",$BQ$6*HLOOKUP($PQ$15,Līmeņatzīmes!$B$6:$AI$7,2,FALSE)) ->  | PZ50: =IF(PZ46=" "," ",$BQ$6*HLOOKUP($PQ$15,Līmeņatzīmes!$B$6:$AI$7,2,FALSE)) ->  | QA50: =IF(QA46=" "," ",$BQ$6*HLOOKUP($PQ$15,Līmeņatzīmes!$B$6:$AI$7,2,FALSE)) ->  | QB50: =IF(QB46=" "," ",$BQ$6*HLOOKUP($PQ$15,Līmeņatzīmes!$B$6:$AI$7,2,FALSE)) ->  | QC50: =IF(QC46=" "," ",$BQ$6*HLOOKUP($PQ$15,Līmeņatzīmes!$B$6:$AI$7,2,FALSE)) -> 
